Workbook

Sheet Info
B2: FORSUM for Ruminant ver 2.0
B3: Simple Ration Formulation Software

Sheet Tahapan
B2: Tahapan Formulasi Ransum
B3: Forsum for Ruminant ver 2.0 - Simple Ration Formulation Software

Sheet Bahan Pakan
B2: FORSUM for Ruminant ver 2.0
B3: Simple Ration Formulation Software
B5: Tabel 1. Komposisi Nutrien Bahan Pakan Rumiansia
B6: No. BP | C6: Jenis | D6: Bahan Pakan | E6: Min | F6: Max | G6: Harga | H6: BK | I6: Abu | J6: PK | K6: LK | L6: SK | M6: BetaN | N6: TDN | O6: Ca | P6: P
B7: 1 | C7: Hijauan | D7: Jerami Padi | E7: 0 | F7: 30 | G7: 200 | H7: 87.5 | I7: 16.9 | J7: 4.15 | K7: 1.47 | L7: 32.5 | M7: 45 | N7: 43.2 | O7: 0.413 | P7: 0.292
B8: 2 | C8: Hijauan | D8: Rumput Lapang | E8: 0 | F8: 50 | G8: 200 | H8: 24.4 | I8: 14.5 | J8: 8.2 | K8: 1.44 | L8: 31.7 | M8: 44.2 | N8: 56.2 | O8: 0.366 | P8: 0.23
B9: 3 | C9: Hijauan | D9: Rumput Gajah | E9: 0 | F9: 50 | G9: 200 | H9: 22.2 | I9: 12 | J9: 8.69 | K9: 2.71 | L9: 32.3 | M9: 43.7 | N9: 52.4 | O9: 0.475 | P9: 0.347
B10: 4 | C10: Hijauan | D10: Daun Jagung | E10: 0 | F10: 40 | G10: 250 | H10: 21 | I10: 10.2 | J10: 9.92 | K10: 1.78 | L10: 27.4 | M10: 50.7 | N10: 60 | O10: 1.24 | P10: 0.234
B11: 5 | C11: Hijauan | D11: Daun Singkong | E11: 0 | F11: 30 | G11: 500 | H11: 21.6 | I11: 12.1 | J11: 24.1 | K11: 4.73 | L11: 22.1 | M11: 37 | N11: 61.8 | O11: 1.54 | P11: 0.457
B12: 6 | C12: Hijauan | D12: Daun Indigofera (tepung) | E12: 0 | F12: 30 | G12: 600 | H12: 85.24 | I12: 7.14 | J12: 29.56 | K12: 1.22 | L12: 19.8 | M12: 42.54 | N12: 68.69 | O12: 1.5 | P12: 0.2
B13: 7 | C13: Hijauan | D13: Daun Lamtoro | E13: 0 | F13: 30 | G13: 300 | H13: 24.8 | I13: 7.5 | J13: 24.2 | K13: 3.72 | L13: 21.5 | M13: 43.1 | N13: 74.4 | O13: 1.68 | P13: 0.21
B14: 8 | C14: Energi | D14: Jagung | E14: 10 | F14: 50 | G14: 3000 | H14: 86.8 | I14: 2.15 | J14: 10.8 | K14: 4.28 | L14: 3.53 | M14: 80.2 | N14: 80.8 | O14: 0.234 | P14: 0.414
B15: 9 | C15: Energi | D15: Dedak Padi Halus | E15: 0 | F15: 40 | G15: 1800 | H15: 87.7 | I15: 13.6 | J15: 12 | K15: 8.64 | L15: 13.9 | M15: 50.9 | N15: 67.9 | O15: 0.0856 | P15: 1.39
B16: 10 | C16: Energi | D16: Dedak Padi Kasar | E16: 0 | F16: 40 | G16: 1800 | H16: 87.7 | I16: 13.6 | J16: 8 | K16: 8.64 | L16: 16 | M16: 45 | N16: 60 | O16: 0.0856 | P16: 1.39
B17: 11 | C17: Energi | D17: Bekatul | E17: 0 | F17: 30 | G17: 2500 | H17: 88 | I17: 9.98 | J17: 12.8 | K17: 8.1 | L17: 7.13 | M17: 62 | N17: 69.9 | O17: 0.0786 | P17: 1.23
B18: 12 | C18: Energi | D18: Onggok | E18: 0 | F18: 40 | G18: 2200 | H18: 79.8 | I18: 2.4 | J18: 1.87 | K18: 0.324 | L18: 8.9 | M18: 86.5 | N18: 78.3 | O18: 0.26 | P18: 0.16
B19: 13 | C19: Energi | D19: Onggok Super | E19: 0 | F19: 30 | G19: 2200 | H19: 83 | I19: 2.4 | J19: 2 | K19: 0.324 | L19: 8.9 | M19: 86.5 | N19: 80 | O19: 0.26 | P19: 0.16
B20: 14 | C20: Energi | D20: Gaplek | E20: 0 | F20: 30 | G20: 3000 | H20: 79.5 | I20: 4.69 | J20: 2.6 | K20: 7 | L20: 5.67 | M20: 86.3 | N20: 78.5 | O20: 0.17 | P20: 0.09
B21: 15 | C21: Energi | D21: Pollard | E21: 0 | F21: 30 | G21: 3300 | H21: 88.5 | I21: 5.93 | J21: 18.5 | K21: 3.86 | L21: 9.78 | M21: 61.9 | N21: 69.2 | O21: 0.231 | P21: 1.1
B22: 16 | C22: Protein | D22: Singkong | E22: 0 | F22: 30 | G22: 3500 | H22: 32.3 | I22: 3.3 | J22: 3.3 | K22: 1.51 | L22: 4.15 | M22: 87.7 | N22: 81.8 | O22: 0.26 | P22: 0.16
B23: 17 | C23: Protein | D23: Bungkil Kedelai | E23: 0 | F23: 35 | G23: 6500 | H23: 88.1 | I23: 8.16 | J23: 46.9 | K23: 2.66 | L23: 5.9 | M23: 36.4 | N23: 83.2 | O23: 0.376 | P23: 0.718
B24: 18 | C24: Protein | D24: Biji Kedelai | E24: 0 | F24: 20 | G24: 8000 | H24: 89.5 | I24: 7.74 | J24: 41.2 | K24: 17.6 | L24: 7.91 | M24: 25.6 | N24: 92.8 | O24: 0.39 | P24: 0.839
B25: 19 | C25: Protein | D25: Bungkil Kelapa Sawit | E25: 0 | F25: 30 | G25: 1400 | H25: 90.3 | I25: 4.07 | J25: 16.8 | K25: 11.9 | L25: 22.6 | M25: 44.6 | N25: 79 | O25: 0.165 | P25: 0.616
B26: 20 | C26: Protein | D26: Bungkil Kelapa | E26: 0 | F26: 30 | G26: 2750 | H26: 88.6 | I26: 8.24 | J26: 21.3 | K26: 10.9 | L26: 14.2 | M26: 45.4 | N26: 78.7 | O26: 0.165 | P26: 0.616
B27: 21 | C27: Protein | D27: Bungkil Biji Kapuk | E27: 0 | F27: 10 | G27: 2100 | H27: 83.9 | I27: 7.54 | J27: 29.6 | K27: 7.58 | L27: 30 | M27: 25.3 | N27: 73.7 | O27: 0.519 | P27: 0.582
B28: 22 | C28: Protein | D28: Ampas Bir Kering | E28: 0 | F28: 20 | G28: 2000 | H28: 94.6 | I28: 4.5 | J28: 32.3 | K28: 10.2 | L28: 17.3 | M28: 35.7 | N28: 75.4 | O28: 0.205 | P28: 0.555
B29: 23 | C29: Protein | D29: Ampas Kecap | E29: 0 | F29: 20 | G29: 1000 | H29: 26.6 | I29: 14.2 | J29: 23.5 | K29: 24.2 | L29: 16 | M29: 22.1 | N29: 87.2 | O29: 0.882 | P29: 0.141
B30: 24 | C30: Protein | D30: Ampas Tahu | E30: 0 | F30: 30 | G30: =25000/60 -> 416.6666667 | H30: 14.6 | I30: 5.1 | J30: 30.3 | K30: 9.9 | L30: 22.2 | M30: 32.5 | N30: 77.9 | O30: 0.882 | P30: 0.141
B31: 25 | C31: Protein | D31: Ampas Singkong | E31: 0 | F31: 20 | G31: 400 | H31: 90.2 | I31: 6.33 | J31: 45.1 | K31: 10.7 | L31: 8.95 | M31: 28.9 | N31: 80.9 | O31: 0.519 | P31: 0.582
B32: 26 | C32: Protein | D32: Bungkil Kacang Tanah | E32: 0 | F32: 20 | G32: 4000 | H32: 90.2 | I32: 6.33 | J32: 45.1 | K32: 10.7 | L32: 8.95 | M32: 28.9 | N32: 80.9 | O32: 0.519 | P32: 0.582
B33: 27 | C33: Energi | D33: CPO | E33: 1 | F33: 5 | G33: 5000 | H33: 99 | I33: 0.5 | J33: 0 | K33: 99 | L33: 0 | M33: 0 | N33: 90 | O33: 0 | P33: 0
B34: 28 | C34: Energi | D34: Molases | E34: 5 | F34: 17 | G34: 3000 | H34: 70.89 | I34: 4 | J34: 4 | K34: 0.1 | L34: 1 | M34: 90.9 | N34: 80 | O34: 0.8 | P34: 0
B35: 29 | C35: Mineral | D35: Garam | E35: 0.25 | F35: 1 | G35: 1500 | H35: 99.6 | I35: 0 | J35: 0 | K35: 0 | L35: 0 | M35: 0 | N35: 0 | O35: 0 | P35: 0
B36: 30 | C36: Mineral | D36: Kapur | E36: 0 | F36: 2 | G36: 500 | H36: 99 | I36: 0 | J36: 0 | K36: 0 | L36: 0 | M36: 0 | N36: 0 | O36: 38 | P36: 0
B37: 31 | C37: Mineral | D37: Kalsium Karbonat | E37: 0 | F37: 2 | G37: 750 | H37: 99 | I37: 0 | J37: 0 | K37: 0 | L37: 0 | M37: 0 | N37: 0 | O37: 40 | P37: 0
B38: 32 | C38: Mineral | D38: DCP | E38: 0 | F38: 2 | G38: 20000 | H38: 93.5 | I38: 0 | J38: 0 | K38: 0 | L38: 0 | M38: 0 | N38: 0 | O38: 22.72 | P38: 17.68
B39: 33 | C39: Mineral | D39: MCP | E39: 0 | F39: 1 | G39: 15000 | H39: 93.5 | I39: 0 | J39: 0 | K39: 0 | L39: 0 | M39: 0 | N39: 0 | O39: 16 | P39: 12
B40: 34 | C40: Mineral | D40: Premix | E40: 0 | F40: 1 | G40: 30000 | H40: 98 | I40: 0 | J40: 0 | K40: 0 | L40: 0 | M40: 0 | N40: 0 | O40: 4 | P40: 2
B41: 35 | C41: Protein | D41: Tepung Skim | E41: 0 | F41: 10 | G41: 20000 | H41: 94 | I41: 7.9 | J41: 35.2 | K41: 1 | L41: 3.03 | M41: 52.9 | N41: 85.5 | O41: 1.33 | P41: 1.09
B42: 36 | C42: Protein | D42: DDGS | E42: 0 | F42: 10 | G42: 4800 | H42: 89 | I42: 11 | J42: 29.5 | K42: 11.1 | L42: 7.9 | M42: 40.5 | N42: 88 | O42: 0 | P42: 0
B43: 37 | C43: Energi | D43: Kulit Kacang Asin (+ biji) | E43: 0 | F43: 5 | G43: 2700 | H43: 91 | I43: 5.3 | J43: 12 | K43: 2 | L43: 55 | M43: 21.8 | N43: 60 | O43: 2.2 | P43: 0.7
B44: 38 | C44: Protein | D44: Kulit Kacang Tanah | E44: 0 | F44: 5 | G44: 1000 | H44: 91 | I44: 5.3 | J44: 6.9 | K44: 2 | L44: 64 | M44: 21.8 | N44: 31.7 | O44: 2.2 | P44: 0.7
B45: 39 | C45: Protein | D45: Kulit Kopi | E45: 0 | F45: 10 | G45: 700 | H45: 92.3 | I45: 8.4 | J45: 16.7 | K45: 5.9 | L45: 18.7 | M45: 50.3 | N45: 53.29 | O45: 0 | P45: 0
B46: 40 | C46: Protein | D46: Bran Sari Boga | E46: 0 | F46: 25 | G46: 1900 | H46: 0 | I46: 0 | J46: 0 | K46: 0 | L46: 0 | M46: 0 | N46: 0 | O46: 0 | P46: 0
B47: 41 | C47: Protein | D47: Brand Jagung | E47: 0 | F47: 25 | G47: 1600 | H47: 0 | I47: 0 | J47: 0 | K47: 0 | L47: 0 | M47: 0 | N47: 0 | O47: 0 | P47: 0
B48: 42 | C48: Protein | D48: Bran Kacang Hijau | E48: 0 | F48: 25 | G48: 1700 | H48: 0 | I48: 0 | J48: 0 | K48: 0 | L48: 0 | M48: 0 | N48: 0 | O48: 0 | P48: 0
B49: 43 | C49: Energi | D49: Lumpur Sawit | E49: 0 | F49: 20 | G49: 1000 | H49: 70 | I49: 41.31 | J49: 14.17 | K49: 3.75 | L49: 34.82 | M49: 16.28 | N49: 50 | O49: 0 | P49: 0
B50: 44 | G50: 0 | H50: 0 | I50: 0 | J50: 0 | K50: 0 | L50: 0 | M50: 0 | N50: 0 | O50: 0 | P50: 0
B51: 45 | G51: 0 | H51: 0 | I51: 0 | J51: 0 | K51: 0 | L51: 0 | M51: 0 | N51: 0 | O51: 0 | P51: 0
B52: 46 | G52: 0 | H52: 0 | I52: 0 | J52: 0 | K52: 0 | L52: 0 | M52: 0 | N52: 0 | O52: 0 | P52: 0
B53: 47 | G53: 0 | H53: 0 | I53: 0 | J53: 0 | K53: 0 | L53: 0 | M53: 0 | N53: 0 | O53: 0 | P53: 0
B54: 48 | G54: 0 | H54: 0 | I54: 0 | J54: 0 | K54: 0 | L54: 0 | M54: 0 | N54: 0 | O54: 0 | P54: 0
B55: 49 | G55: 0 | H55: 0 | I55: 0 | J55: 0 | K55: 0 | L55: 0 | M55: 0 | N55: 0 | O55: 0 | P55: 0
B56: 50 | C56: NPN | D56: Urea | E56: 0 | F56: 2.5 | G56: 4500 | H56: 95 | I56: 0 | J56: 280 | K56: 0 | L56: 0 | M56: 0 | N56: 0 | O56: 0 | P56: 0

Sheet Nutrien S Potong
B2: FORSUM for Ruminant ver 2.0
B3: Simple Ration Formulation Software
B5: Tabel 3. Kebutuhan Nutrien pada Sapi Potong | K5: Kebutuhan Nutrien Sapi Pertumbuhan
B6: Nutrien | C6: Unit | D6: Konst Penggemukan | F6: Konsentrat Induk | H6: Konsentrat Pejantan | K6: BB(kg) | L6: PBBH(kg) | M6: BK (kg) | N6: Hijauan(%) | O6: PK (%) | P6: TDN(%) | Q6: Ca (%) | R6: P (%)
D7: Min | E7: Max | F7: Min | G7: Max | H7: Min | I7: Max | K7: 100 | L7: 0 | M7: 2.1 | N7: 100 | O7: 8.7 | P7: 50 | Q7: 0.18 | R7: 0.18
B8: Bahan Kering | C8: % | D8: 86 | E8: - | F8: 86 | G8: - | H8: 86 | I8: - | L8: 0.5 | M8: 3 | N8: 70-80 | O8: 12.4 | P8: 55 | Q8: 0.47 | R8: 0.37
B9: Abu | C9: % | D9: - | E9: - | F9: - | G9: 12 | H9: - | I9: 12 | L9: 0.7 | M9: 2.9 | N9: 50-60 | O9: 14.4 | P9: 62 | Q9: 0.66 | R9: 0.48
B10: Protein Kasar | C10: % | D10: 13 | E10: 15 | F10: 14 | G10: 16 | H10: 12 | I10: 15 | L10: 1.1 | M10: 3 | N10: 15 | O10: 17.8 | P10: 77 | Q10: 0.97 | R10: 0.63
B11: Lemak Kasar | C11: % | D11: 7 | E11: - | G11: 6 | I11: 6 | K11: 150 | L11: 0 | M11: 2.8 | N11: 100 | O11: 8.7 | P11: 50 | Q11: 0.18 | R11: 0.18
B12: Serat Kasar | C12: % | D12: - | E12: - | F12: - | G12: - | H12: - | I12: - | L12: 0.5 | M12: 4.1 | N12: 70-80 | O12: 11 | P12: 55 | Q12: 0.34 | R12: 0.39
B13: BetaN | C13: % | D13: - | E13: - | F13: - | G13: - | H13: - | I13: - | L13: 0.7 | M13: 4 | N13: 50-60 | O13: 12.4 | P13: 62 | Q13: 0.45 | R13: 0.35
B14: TDN | C14: % | D14: 70 | E14: 72 | F14: 65 | G14: 68 | H14: 65 | I14: 68 | L14: 1.1 | M14: 4 | N14: 15 | O14: 15 | P14: 77 | Q14: 0.5 | R14: 0.38
B15: Kalsium | C15: % | D15: 0.8 | E15: 1 | F15: 0.8 | G15: 1 | H15: 0.8 | I15: 1 | K15: 200 | L15: 0 | M15: 3.5 | N15: 100 | O15: 8.5 | P15: 50 | Q15: 0.18 | R15: 0.18
B16: Pospor | C16: % | D16: 0.6 | E16: 0.8 | F16: 0.6 | G16: 0.8 | H16: 0.6 | I16: 0.8 | L16: 0.3 | M16: 5.4 | N16: 100 | O16: 9.1 | P16: 50 | Q16: 0.18 | R16: 0.18
L17: 0.7 | M17: 6 | N17: 70-80 | O17: 10.2 | P17: 58 | Q17: 0.3 | R17: 0.27
L18: 1.1 | M18: 5 | N18: 15 | O18: 12.8 | P18: 77 | Q18: 0.5 | R18: 0.38
K19: 250 | L19: 0 | M19: 4.1 | N19: 100 | O19: 8.5 | P19: 50 | Q19: 0.18 | R19: 0.18
L20: 0.3 | M20: 6.4 | N20: 100 | O20: 8.9 | P20: 50 | Q20: 0.18 | R20: 0.18
L21: 0.7 | M21: 5.8 | N21: 55-65 | O21: 10.5 | P21: 65 | Q21: 0.29 | R21: 0.26
L22: 1.1 | M22: 6.5 | N22: 20-25 | O22: 11.4 | P22: 72 | Q22: 0.38 | R22: 0.31
K23: 300 | L23: 0 | M23: 4.7 | N23: 100 | O23: 8.6 | P23: 50 | Q23: 0.18 | R23: 0.18
L24: 0.3 | M24: 7.4 | N24: 100 | O24: 8.9 | P24: 50 | Q24: 0.18 | R24: 0.18
L25: 0.7 | M25: 6.6 | N25: 55-65 | O25: 10.5 | P25: 65 | Q25: 0.24 | R25: 0.23
L26: 1.1 | M26: 7.5 | N26: 20-25 | O26: 11.4 | P26: 72 | Q26: 0.31 | R26: 0.27
K27: 350 | L27: 0 | M27: 5.3 | N27: 100 | O27: 8.5 | P27: 50 | Q27: 0.18 | R27: 0.18
L28: 0.3 | M28: 8.2 | N28: 100 | O28: 8.5 | P28: 50 | Q28: 0.18 | R28: 0.18
L29: 0.7 | M29: 7.9 | N29: 55-65 | O29: 9.2 | P29: 62 | Q29: 0.19 | R29: 0.19
L30: 1.1 | M30: 8.3 | N30: 20-25 | O30: 9.9 | P30: 72 | Q30: 0.24 | R30: 0.23
K31: 400 | L31: 0 | M31: 5.8 | N31: 100 | O31: 8.5 | P31: 50 | Q31: 0.18 | R31: 0.18
L32: 0.3 | M32: 9.1 | N32: 100 | O32: 8.5 | P32: 50 | Q32: 0.18 | R32: 0.18
L33: 0.5 | M33: 8.5 | N33: 70-80 | O33: 8.8 | P33: 58 | Q33: 0.18 | R33: 0.18
L34: 0.9 | M34: 8.4 | N34: 20-25 | O34: 9.4 | P34: 69 | Q34: 0.2 | R34: 0.2
K35: 450 | L35: 0 | M35: 6.4 | N35: 100 | O35: 8.5 | P35: 50 | Q35: 0.18 | R35: 0.18
L36: 0.2 | M36: 8.7 | N36: 100 | O36: 8.5 | P36: 50 | Q36: 0.18 | R36: 0.17
L37: 0.8 | M37: 9.1 | N37: 35-45 | O37: 9 | P37: 68 | Q37: 0.18 | R37: 0.18

Sheet Nutrien S Perah
B2: FORSUM for Ruminant ver 2.0
B3: Simple Ration Formulation Software
B5: Tabel 2. Kebutuhan Nutrien pada Sapi Perah
B6: Nutrien | C6: Unit | D6: Calf Starter 1 | F6: Calf Starter 2 | H6: Dara | J6: Laktasi | L6: Laktasi Prod Tinggi | N6: Kering Bunting | P6: Jantan
D7: Min | E7: Max | F7: Min | G7: Max | H7: Min | I7: Max | J7: Min | K7: Max | L7: Min | M7: Max | N7: Min | O7: Max | P7: Min | Q7: Max
B8: Bahan Kering | C8: % | D8: 86 | E8: - | F8: 86 | G8: - | H8: 86 | I8: - | J8: 86 | K8: - | L8: 86 | M8: - | N8: 86 | O8: - | P8: 86 | Q8: -
B9: Abu | C9: % | D9: - | E9: 8 | F9: - | G9: 10 | H9: - | I9: 10 | J9: - | K9: 10 | L9: - | M9: 10 | N9: - | O9: 10 | P9: - | Q9: 10
B10: Protein Kasar | C10: % | D10: 21 | E10: - | F10: 16 | G10: - | H10: 15 | I10: - | J10: 16 | K10: - | L10: 18 | M10: - | N10: 14 | O10: - | P10: 12 | Q10: -
B11: Lemak Kasar | C11: % | D11: - | E11: 12 | F11: - | G11: 7 | H11: - | I11: 7 | J11: - | K11: 7 | L11: - | M11: 7 | N11: - | O11: 7 | P11: - | Q11: 6
B12: Serat Kasar | C12: % | D12: - | E12: - | F12: - | G12: - | H12: - | I12: - | J12: - | K12: - | L12: - | M12: - | N12: - | O12: - | P12: - | Q12: -
B13: BetaN | C13: % | D13: - | E13: - | F13: - | G13: - | H13: - | I13: - | J13: - | K13: - | L13: - | M13: - | N13: - | O13: - | P13: - | Q13: -
B14: TDN | C14: % | D14: 94 | E14: - | F14: 78 | G14: - | H14: 65 | I14: - | J14: 70 | K14: - | L14: 75 | M14: - | N14: 62 | O14: - | P14: 65 | Q14: -
B15: Kalsium | C15: % | D15: 0.7 | E15: 0.9 | F15: 0.6 | G15: 0.8 | H15: 0.6 | I15: 0.8 | J15: 0.8 | K15: 1 | L15: 1 | M15: 1.2 | N15: 0.6 | O15: 0.8 | P15: 0.5 | Q15: 0.7
B16: Pospor | C16: % | D16: 0.4 | E16: 0.6 | F16: 0.4 | G16: 0.6 | H16: 0.5 | I16: 0.7 | J16: 0.6 | K16: 0.8 | L16: 0.6 | M16: 0.8 | N16: 0.5 | O16: 0.7 | P16: 0.3 | Q16: 0.5

Sheet Ransum-1
C2: FORSUM for Ruminant ver 2.0 | Y2: Jenis Ransum : | Z2: Konsentrat Penggemukan
C3: Simple Ration Formulation Software | Y3: Formulator : | Z3: Idat G. Permana
C5: Tabel 1. Komposisi Ransum | I5: Jumlah Campuran (kg) | J5: 1000 | Y5: Tabel 2. Kandungan Nutrien Ransum
B6: No Pakan | C6: No | D6: Bahan Pakan | E6: Min | F6: Max | G6: % DM | I6: %As Fed | J6: Jumlah (kg) | K6: Harga | L6: BK | M6: Abu | N6: PK | O6: LK | P6: SK | Q6: BetaN | R6: TDN | S6: Ca | T6: P | Y6: Nutrien | Z6: Unit | AA6: Min | AB6: Max | AC6: Nutrien
B7: =IF($D7='Bahan Pakan'!D$7,1,IF($D7='Bahan Pakan'!D$8,2,IF($D7='Bahan Pakan'!D$9,3,IF($D7='Bahan Pakan'!D$10,4,IF($D7='Bahan Pakan'!D$11,5,IF($D7='Bahan Pakan'!D$12,6,IF($D7='Bahan Pakan'!D$13,7,IF($D7='Bahan Pakan'!D$14,8,IF($D7='Bahan Pakan'!D$15,9,IF($D7='Bahan Pakan'!D$16,10,IF($D7='Bahan Pakan'!D$17,11,IF($D7='Bahan Pakan'!D$18,12,IF($D7='Bahan Pakan'!D$19,13,IF($D7='Bahan Pakan'!D$20,14,IF($D7='Bahan Pakan'!D$21,15,IF($D7='Bahan Pakan'!D$22,16,IF($D7='Bahan Pakan'!D$23,17,IF($D7='Bahan Pakan'!D$24,18,IF($D7='Bahan Pakan'!D$25,19,IF($D7='Bahan Pakan'!D$26,20,IF($D7='Bahan Pakan'!D$27,21,IF($D7='Bahan Pakan'!D$28,22,IF($D7='Bahan Pakan'!D$29,23,IF($D7='Bahan Pakan'!D$30,24,IF($D7='Bahan Pakan'!D$31,25,IF($D7='Bahan Pakan'!D$32,26,IF($D7='Bahan Pakan'!D$33,27,IF($D7='Bahan Pakan'!D$34,28,IF($D7='Bahan Pakan'!D$35,29,IF($D7='Bahan Pakan'!D$36,30,IF($D7='Bahan Pakan'!D$37,31,IF($D7='Bahan Pakan'!D$38,32,IF($D7='Bahan Pakan'!D$39,33,IF($D7='Bahan Pakan'!D$40,34,IF($D7='Bahan Pakan'!D$41,35,IF($D7='Bahan Pakan'!D$42,36,IF($D7='Bahan Pakan'!D$43,37,IF($D7='Bahan Pakan'!D$44,38,IF($D7='Bahan Pakan'!D$45,39,IF($D7='Bahan Pakan'!D$46,40,IF($D7='Bahan Pakan'!D$47,41,IF($D7='Bahan Pakan'!D$48,42,IF($D7='Bahan Pakan'!D$49,43,IF($D7='Bahan Pakan'!D$50,44,IF($D7='Bahan Pakan'!D$51,45,IF($D7='Bahan Pakan'!D$52,46,IF($D7='Bahan Pakan'!D$53,47,IF($D7='Bahan Pakan'!D$54,48,IF($D7='Bahan Pakan'!D$55,49,IF($D7='Bahan Pakan'!D$56,50,0)))))))))))))))))))))))))))))))))))))))))))))))))) -> 8 | C7: 1 | D7: Jagung | E7: =IF($B7=1,'Bahan Pakan'!E$7,IF($B7=2,'Bahan Pakan'!E$8,IF($B7=3,'Bahan Pakan'!E$9,IF($B7=4,'Bahan Pakan'!E$10,IF($B7=5,'Bahan Pakan'!E$11,IF($B7=6,'Bahan Pakan'!E$12,IF($B7=7,'Bahan Pakan'!E$13,IF($B7=8,'Bahan Pakan'!E$14,IF($B7=9,'Bahan Pakan'!E$15,IF($B7=10,'Bahan Pakan'!E$16,IF($B7=11,'Bahan Pakan'!E$17,IF($B7=12,'Bahan Pakan'!E$18,IF($B7=13,'Bahan Pakan'!E$19,IF($B7=14,'Bahan Pakan'!E$20,IF($B7=15,'Bahan Pakan'!E$21,IF($B7=16,'Bahan Pakan'!E$22,IF($B7=17,'Bahan Pakan'!E$23,IF($B7=18,'Bahan Pakan'!E$24,IF($B7=19,'Bahan Pakan'!E$25,IF($B7=20,'Bahan Pakan'!E$26,IF($B7=21,'Bahan Pakan'!E$27,IF($B7=22,'Bahan Pakan'!E$28,IF($B7=23,'Bahan Pakan'!E$29,IF($B7=24,'Bahan Pakan'!E$30,IF($B7=25,'Bahan Pakan'!E$31,IF($B7=26,'Bahan Pakan'!E$32,IF($B7=27,'Bahan Pakan'!E$33,IF($B7=28,'Bahan Pakan'!E$34,IF($B7=29,'Bahan Pakan'!E$35,IF($B7=30,'Bahan Pakan'!E$36,IF($B7=31,'Bahan Pakan'!E$37,IF($B7=32,'Bahan Pakan'!E$38,IF($B7=33,'Bahan Pakan'!E$39,IF($B7=34,'Bahan Pakan'!E$40,IF($B7=35,'Bahan Pakan'!E$41,IF($B7=36,'Bahan Pakan'!E$42,IF($B7=37,'Bahan Pakan'!E$43,IF($B7=38,'Bahan Pakan'!E$44,IF($B7=39,'Bahan Pakan'!E$45,IF($B7=40,'Bahan Pakan'!E$46,IF($B7=41,'Bahan Pakan'!E$47,IF($B7=42,'Bahan Pakan'!E$48,IF($B7=43,'Bahan Pakan'!E$49,IF($B7=44,'Bahan Pakan'!E$50,IF($B7=45,'Bahan Pakan'!E$51,IF($B7=46,'Bahan Pakan'!E$52,IF($B7=47,'Bahan Pakan'!E$53,IF($B7=48,'Bahan Pakan'!E$54,IF($B7=49,'Bahan Pakan'!E$55,IF($B7=50,'Bahan Pakan'!E$56,0)))))))))))))))))))))))))))))))))))))))))))))))))) -> 10 | F7: =IF($B7=1,'Bahan Pakan'!F$7,IF($B7=2,'Bahan Pakan'!F$8,IF($B7=3,'Bahan Pakan'!F$9,IF($B7=4,'Bahan Pakan'!F$10,IF($B7=5,'Bahan Pakan'!F$11,IF($B7=6,'Bahan Pakan'!F$12,IF($B7=7,'Bahan Pakan'!F$13,IF($B7=8,'Bahan Pakan'!F$14,IF($B7=9,'Bahan Pakan'!F$15,IF($B7=10,'Bahan Pakan'!F$16,IF($B7=11,'Bahan Pakan'!F$17,IF($B7=12,'Bahan Pakan'!F$18,IF($B7=13,'Bahan Pakan'!F$19,IF($B7=14,'Bahan Pakan'!F$20,IF($B7=15,'Bahan Pakan'!F$21,IF($B7=16,'Bahan Pakan'!F$22,IF($B7=17,'Bahan Pakan'!F$23,IF($B7=18,'Bahan Pakan'!F$24,IF($B7=19,'Bahan Pakan'!F$25,IF($B7=20,'Bahan Pakan'!F$26,IF($B7=21,'Bahan Pakan'!F$27,IF($B7=22,'Bahan Pakan'!F$28,IF($B7=23,'Bahan Pakan'!F$29,IF($B7=24,'Bahan Pakan'!F$30,IF($B7=25,'Bahan Pakan'!F$31,IF($B7=26,'Bahan Pakan'!F$32,IF($B7=27,'Bahan Pakan'!F$33,IF($B7=28,'Bahan Pakan'!F$34,IF($B7=29,'Bahan Pakan'!F$35,IF($B7=30,'Bahan Pakan'!F$36,IF($B7=31,'Bahan Pakan'!F$37,IF($B7=32,'Bahan Pakan'!F$38,IF($B7=33,'Bahan Pakan'!F$39,IF($B7=34,'Bahan Pakan'!F$40,IF($B7=35,'Bahan Pakan'!F$41,IF($B7=36,'Bahan Pakan'!F$42,IF($B7=37,'Bahan Pakan'!F$43,IF($B7=38,'Bahan Pakan'!F$44,IF($B7=39,'Bahan Pakan'!F$45,IF($B7=40,'Bahan Pakan'!F$46,IF($B7=41,'Bahan Pakan'!F$47,IF($B7=42,'Bahan Pakan'!F$48,IF($B7=43,'Bahan Pakan'!F$49,IF($B7=44,'Bahan Pakan'!F$50,IF($B7=45,'Bahan Pakan'!F$51,IF($B7=46,'Bahan Pakan'!F$52,IF($B7=47,'Bahan Pakan'!F$53,IF($B7=48,'Bahan Pakan'!F$54,IF($B7=49,'Bahan Pakan'!F$55,IF($B7=50,'Bahan Pakan'!F$56,0)))))))))))))))))))))))))))))))))))))))))))))))))) -> 50 | G7: 20 | H7: =IF(G7>0,(G7*100/L7),0) -> 23.04147465 | I7: =H7/$H$22*100 -> 19.26643435 | J7: =I7/100*$J$22 -> 192.6643435 | K7: =IF($B7=1,'Bahan Pakan'!G$7,IF($B7=2,'Bahan Pakan'!G$8,IF($B7=3,'Bahan Pakan'!G$9,IF($B7=4,'Bahan Pakan'!G$10,IF($B7=5,'Bahan Pakan'!G$11,IF($B7=6,'Bahan Pakan'!G$12,IF($B7=7,'Bahan Pakan'!G$13,IF($B7=8,'Bahan Pakan'!G$14,IF($B7=9,'Bahan Pakan'!G$15,IF($B7=10,'Bahan Pakan'!G$16,IF($B7=11,'Bahan Pakan'!G$17,IF($B7=12,'Bahan Pakan'!G$18,IF($B7=13,'Bahan Pakan'!G$19,IF($B7=14,'Bahan Pakan'!G$20,IF($B7=15,'Bahan Pakan'!G$21,IF($B7=16,'Bahan Pakan'!G$22,IF($B7=17,'Bahan Pakan'!G$23,IF($B7=18,'Bahan Pakan'!G$24,IF($B7=19,'Bahan Pakan'!G$25,IF($B7=20,'Bahan Pakan'!G$26,IF($B7=21,'Bahan Pakan'!G$27,IF($B7=22,'Bahan Pakan'!G$28,IF($B7=23,'Bahan Pakan'!G$29,IF($B7=24,'Bahan Pakan'!G$30,IF($B7=25,'Bahan Pakan'!G$31,IF($B7=26,'Bahan Pakan'!G$32,IF($B7=27,'Bahan Pakan'!G$33,IF($B7=28,'Bahan Pakan'!G$34,IF($B7=29,'Bahan Pakan'!G$35,IF($B7=30,'Bahan Pakan'!G$36,IF($B7=31,'Bahan Pakan'!G$37,IF($B7=32,'Bahan Pakan'!G$38,IF($B7=33,'Bahan Pakan'!G$39,IF($B7=34,'Bahan Pakan'!G$40,IF($B7=35,'Bahan Pakan'!G$41,IF($B7=36,'Bahan Pakan'!G$42,IF($B7=37,'Bahan Pakan'!G$43,IF($B7=38,'Bahan Pakan'!G$44,IF($B7=39,'Bahan Pakan'!G$45,IF($B7=40,'Bahan Pakan'!G$46,IF($B7=41,'Bahan Pakan'!G$47,IF($B7=42,'Bahan Pakan'!G$48,IF($B7=43,'Bahan Pakan'!G$49,IF($B7=44,'Bahan Pakan'!G$50,IF($B7=45,'Bahan Pakan'!G$51,IF($B7=46,'Bahan Pakan'!G$52,IF($B7=47,'Bahan Pakan'!G$53,IF($B7=48,'Bahan Pakan'!G$54,IF($B7=49,'Bahan Pakan'!G$55,IF($B7=50,'Bahan Pakan'!G$56,0)))))))))))))))))))))))))))))))))))))))))))))))))) -> 3000 | L7: =IF($B7=1,'Bahan Pakan'!H$7,IF($B7=2,'Bahan Pakan'!H$8,IF($B7=3,'Bahan Pakan'!H$9,IF($B7=4,'Bahan Pakan'!H$10,IF($B7=5,'Bahan Pakan'!H$11,IF($B7=6,'Bahan Pakan'!H$12,IF($B7=7,'Bahan Pakan'!H$13,IF($B7=8,'Bahan Pakan'!H$14,IF($B7=9,'Bahan Pakan'!H$15,IF($B7=10,'Bahan Pakan'!H$16,IF($B7=11,'Bahan Pakan'!H$17,IF($B7=12,'Bahan Pakan'!H$18,IF($B7=13,'Bahan Pakan'!H$19,IF($B7=14,'Bahan Pakan'!H$20,IF($B7=15,'Bahan Pakan'!H$21,IF($B7=16,'Bahan Pakan'!H$22,IF($B7=17,'Bahan Pakan'!H$23,IF($B7=18,'Bahan Pakan'!H$24,IF($B7=19,'Bahan Pakan'!H$25,IF($B7=20,'Bahan Pakan'!H$26,IF($B7=21,'Bahan Pakan'!H$27,IF($B7=22,'Bahan Pakan'!H$28,IF($B7=23,'Bahan Pakan'!H$29,IF($B7=24,'Bahan Pakan'!H$30,IF($B7=25,'Bahan Pakan'!H$31,IF($B7=26,'Bahan Pakan'!H$32,IF($B7=27,'Bahan Pakan'!H$33,IF($B7=28,'Bahan Pakan'!H$34,IF($B7=29,'Bahan Pakan'!H$35,IF($B7=30,'Bahan Pakan'!H$36,IF($B7=31,'Bahan Pakan'!H$37,IF($B7=32,'Bahan Pakan'!H$38,IF($B7=33,'Bahan Pakan'!H$39,IF($B7=34,'Bahan Pakan'!H$40,IF($B7=35,'Bahan Pakan'!H$41,IF($B7=36,'Bahan Pakan'!H$42,IF($B7=37,'Bahan Pakan'!H$43,IF($B7=38,'Bahan Pakan'!H$44,IF($B7=39,'Bahan Pakan'!H$45,IF($B7=40,'Bahan Pakan'!H$46,IF($B7=41,'Bahan Pakan'!H$47,IF($B7=42,'Bahan Pakan'!H$48,IF($B7=43,'Bahan Pakan'!H$49,IF($B7=44,'Bahan Pakan'!H$50,IF($B7=45,'Bahan Pakan'!H$51,IF($B7=46,'Bahan Pakan'!H$52,IF($B7=47,'Bahan Pakan'!H$53,IF($B7=48,'Bahan Pakan'!H$54,IF($B7=49,'Bahan Pakan'!H$55,IF($B7=50,'Bahan Pakan'!H$56,0)))))))))))))))))))))))))))))))))))))))))))))))))) -> 86.8 | M7: =IF($B7=1,'Bahan Pakan'!I$7,IF($B7=2,'Bahan Pakan'!I$8,IF($B7=3,'Bahan Pakan'!I$9,IF($B7=4,'Bahan Pakan'!I$10,IF($B7=5,'Bahan Pakan'!I$11,IF($B7=6,'Bahan Pakan'!I$12,IF($B7=7,'Bahan Pakan'!I$13,IF($B7=8,'Bahan Pakan'!I$14,IF($B7=9,'Bahan Pakan'!I$15,IF($B7=10,'Bahan Pakan'!I$16,IF($B7=11,'Bahan Pakan'!I$17,IF($B7=12,'Bahan Pakan'!I$18,IF($B7=13,'Bahan Pakan'!I$19,IF($B7=14,'Bahan Pakan'!I$20,IF($B7=15,'Bahan Pakan'!I$21,IF($B7=16,'Bahan Pakan'!I$22,IF($B7=17,'Bahan Pakan'!I$23,IF($B7=18,'Bahan Pakan'!I$24,IF($B7=19,'Bahan Pakan'!I$25,IF($B7=20,'Bahan Pakan'!I$26,IF($B7=21,'Bahan Pakan'!I$27,IF($B7=22,'Bahan Pakan'!I$28,IF($B7=23,'Bahan Pakan'!I$29,IF($B7=24,'Bahan Pakan'!I$30,IF($B7=25,'Bahan Pakan'!I$31,IF($B7=26,'Bahan Pakan'!I$32,IF($B7=27,'Bahan Pakan'!I$33,IF($B7=28,'Bahan Pakan'!I$34,IF($B7=29,'Bahan Pakan'!I$35,IF($B7=30,'Bahan Pakan'!I$36,IF($B7=31,'Bahan Pakan'!I$37,IF($B7=32,'Bahan Pakan'!I$38,IF($B7=33,'Bahan Pakan'!I$39,IF($B7=34,'Bahan Pakan'!I$40,IF($B7=35,'Bahan Pakan'!I$41,IF($B7=36,'Bahan Pakan'!I$42,IF($B7=37,'Bahan Pakan'!I$43,IF($B7=38,'Bahan Pakan'!I$44,IF($B7=39,'Bahan Pakan'!I$45,IF($B7=40,'Bahan Pakan'!I$46,IF($B7=41,'Bahan Pakan'!I$47,IF($B7=42,'Bahan Pakan'!I$48,IF($B7=43,'Bahan Pakan'!I$49,IF($B7=44,'Bahan Pakan'!I$50,IF($B7=45,'Bahan Pakan'!I$51,IF($B7=46,'Bahan Pakan'!I$52,IF($B7=47,'Bahan Pakan'!I$53,IF($B7=48,'Bahan Pakan'!I$54,IF($B7=49,'Bahan Pakan'!I$55,IF($B7=50,'Bahan Pakan'!I$56,0)))))))))))))))))))))))))))))))))))))))))))))))))) -> 2.15 | N7: =IF($B7=1,'Bahan Pakan'!J$7,IF($B7=2,'Bahan Pakan'!J$8,IF($B7=3,'Bahan Pakan'!J$9,IF($B7=4,'Bahan Pakan'!J$10,IF($B7=5,'Bahan Pakan'!J$11,IF($B7=6,'Bahan Pakan'!J$12,IF($B7=7,'Bahan Pakan'!J$13,IF($B7=8,'Bahan Pakan'!J$14,IF($B7=9,'Bahan Pakan'!J$15,IF($B7=10,'Bahan Pakan'!J$16,IF($B7=11,'Bahan Pakan'!J$17,IF($B7=12,'Bahan Pakan'!J$18,IF($B7=13,'Bahan Pakan'!J$19,IF($B7=14,'Bahan Pakan'!J$20,IF($B7=15,'Bahan Pakan'!J$21,IF($B7=16,'Bahan Pakan'!J$22,IF($B7=17,'Bahan Pakan'!J$23,IF($B7=18,'Bahan Pakan'!J$24,IF($B7=19,'Bahan Pakan'!J$25,IF($B7=20,'Bahan Pakan'!J$26,IF($B7=21,'Bahan Pakan'!J$27,IF($B7=22,'Bahan Pakan'!J$28,IF($B7=23,'Bahan Pakan'!J$29,IF($B7=24,'Bahan Pakan'!J$30,IF($B7=25,'Bahan Pakan'!J$31,IF($B7=26,'Bahan Pakan'!J$32,IF($B7=27,'Bahan Pakan'!J$33,IF($B7=28,'Bahan Pakan'!J$34,IF($B7=29,'Bahan Pakan'!J$35,IF($B7=30,'Bahan Pakan'!J$36,IF($B7=31,'Bahan Pakan'!J$37,IF($B7=32,'Bahan Pakan'!J$38,IF($B7=33,'Bahan Pakan'!J$39,IF($B7=34,'Bahan Pakan'!J$40,IF($B7=35,'Bahan Pakan'!J$41,IF($B7=36,'Bahan Pakan'!J$42,IF($B7=37,'Bahan Pakan'!J$43,IF($B7=38,'Bahan Pakan'!J$44,IF($B7=39,'Bahan Pakan'!J$45,IF($B7=40,'Bahan Pakan'!J$46,IF($B7=41,'Bahan Pakan'!J$47,IF($B7=42,'Bahan Pakan'!J$48,IF($B7=43,'Bahan Pakan'!J$49,IF($B7=44,'Bahan Pakan'!J$50,IF($B7=45,'Bahan Pakan'!J$51,IF($B7=46,'Bahan Pakan'!J$52,IF($B7=47,'Bahan Pakan'!J$53,IF($B7=48,'Bahan Pakan'!J$54,IF($B7=49,'Bahan Pakan'!J$55,IF($B7=50,'Bahan Pakan'!J$56,0)))))))))))))))))))))))))))))))))))))))))))))))))) -> 10.8 | O7: =IF($B7=1,'Bahan Pakan'!K$7,IF($B7=2,'Bahan Pakan'!K$8,IF($B7=3,'Bahan Pakan'!K$9,IF($B7=4,'Bahan Pakan'!K$10,IF($B7=5,'Bahan Pakan'!K$11,IF($B7=6,'Bahan Pakan'!K$12,IF($B7=7,'Bahan Pakan'!K$13,IF($B7=8,'Bahan Pakan'!K$14,IF($B7=9,'Bahan Pakan'!K$15,IF($B7=10,'Bahan Pakan'!K$16,IF($B7=11,'Bahan Pakan'!K$17,IF($B7=12,'Bahan Pakan'!K$18,IF($B7=13,'Bahan Pakan'!K$19,IF($B7=14,'Bahan Pakan'!K$20,IF($B7=15,'Bahan Pakan'!K$21,IF($B7=16,'Bahan Pakan'!K$22,IF($B7=17,'Bahan Pakan'!K$23,IF($B7=18,'Bahan Pakan'!K$24,IF($B7=19,'Bahan Pakan'!K$25,IF($B7=20,'Bahan Pakan'!K$26,IF($B7=21,'Bahan Pakan'!K$27,IF($B7=22,'Bahan Pakan'!K$28,IF($B7=23,'Bahan Pakan'!K$29,IF($B7=24,'Bahan Pakan'!K$30,IF($B7=25,'Bahan Pakan'!K$31,IF($B7=26,'Bahan Pakan'!K$32,IF($B7=27,'Bahan Pakan'!K$33,IF($B7=28,'Bahan Pakan'!K$34,IF($B7=29,'Bahan Pakan'!K$35,IF($B7=30,'Bahan Pakan'!K$36,IF($B7=31,'Bahan Pakan'!K$37,IF($B7=32,'Bahan Pakan'!K$38,IF($B7=33,'Bahan Pakan'!K$39,IF($B7=34,'Bahan Pakan'!K$40,IF($B7=35,'Bahan Pakan'!K$41,IF($B7=36,'Bahan Pakan'!K$42,IF($B7=37,'Bahan Pakan'!K$43,IF($B7=38,'Bahan Pakan'!K$44,IF($B7=39,'Bahan Pakan'!K$45,IF($B7=40,'Bahan Pakan'!K$46,IF($B7=41,'Bahan Pakan'!K$47,IF($B7=42,'Bahan Pakan'!K$48,IF($B7=43,'Bahan Pakan'!K$49,IF($B7=44,'Bahan Pakan'!K$50,IF($B7=45,'Bahan Pakan'!K$51,IF($B7=46,'Bahan Pakan'!K$52,IF($B7=47,'Bahan Pakan'!K$53,IF($B7=48,'Bahan Pakan'!K$54,IF($B7=49,'Bahan Pakan'!K$55,IF($B7=50,'Bahan Pakan'!K$56,0)))))))))))))))))))))))))))))))))))))))))))))))))) -> 4.28 | P7: =IF($B7=1,'Bahan Pakan'!L$7,IF($B7=2,'Bahan Pakan'!L$8,IF($B7=3,'Bahan Pakan'!L$9,IF($B7=4,'Bahan Pakan'!L$10,IF($B7=5,'Bahan Pakan'!L$11,IF($B7=6,'Bahan Pakan'!L$12,IF($B7=7,'Bahan Pakan'!L$13,IF($B7=8,'Bahan Pakan'!L$14,IF($B7=9,'Bahan Pakan'!L$15,IF($B7=10,'Bahan Pakan'!L$16,IF($B7=11,'Bahan Pakan'!L$17,IF($B7=12,'Bahan Pakan'!L$18,IF($B7=13,'Bahan Pakan'!L$19,IF($B7=14,'Bahan Pakan'!L$20,IF($B7=15,'Bahan Pakan'!L$21,IF($B7=16,'Bahan Pakan'!L$22,IF($B7=17,'Bahan Pakan'!L$23,IF($B7=18,'Bahan Pakan'!L$24,IF($B7=19,'Bahan Pakan'!L$25,IF($B7=20,'Bahan Pakan'!L$26,IF($B7=21,'Bahan Pakan'!L$27,IF($B7=22,'Bahan Pakan'!L$28,IF($B7=23,'Bahan Pakan'!L$29,IF($B7=24,'Bahan Pakan'!L$30,IF($B7=25,'Bahan Pakan'!L$31,IF($B7=26,'Bahan Pakan'!L$32,IF($B7=27,'Bahan Pakan'!L$33,IF($B7=28,'Bahan Pakan'!L$34,IF($B7=29,'Bahan Pakan'!L$35,IF($B7=30,'Bahan Pakan'!L$36,IF($B7=31,'Bahan Pakan'!L$37,IF($B7=32,'Bahan Pakan'!L$38,IF($B7=33,'Bahan Pakan'!L$39,IF($B7=34,'Bahan Pakan'!L$40,IF($B7=35,'Bahan Pakan'!L$41,IF($B7=36,'Bahan Pakan'!L$42,IF($B7=37,'Bahan Pakan'!L$43,IF($B7=38,'Bahan Pakan'!L$44,IF($B7=39,'Bahan Pakan'!L$45,IF($B7=40,'Bahan Pakan'!L$46,IF($B7=41,'Bahan Pakan'!L$47,IF($B7=42,'Bahan Pakan'!L$48,IF($B7=43,'Bahan Pakan'!L$49,IF($B7=44,'Bahan Pakan'!L$50,IF($B7=45,'Bahan Pakan'!L$51,IF($B7=46,'Bahan Pakan'!L$52,IF($B7=47,'Bahan Pakan'!L$53,IF($B7=48,'Bahan Pakan'!L$54,IF($B7=49,'Bahan Pakan'!L$55,IF($B7=50,'Bahan Pakan'!L$56,0)))))))))))))))))))))))))))))))))))))))))))))))))) -> 3.53 | Q7: =IF($B7=1,'Bahan Pakan'!M$7,IF($B7=2,'Bahan Pakan'!M$8,IF($B7=3,'Bahan Pakan'!M$9,IF($B7=4,'Bahan Pakan'!M$10,IF($B7=5,'Bahan Pakan'!M$11,IF($B7=6,'Bahan Pakan'!M$12,IF($B7=7,'Bahan Pakan'!M$13,IF($B7=8,'Bahan Pakan'!M$14,IF($B7=9,'Bahan Pakan'!M$15,IF($B7=10,'Bahan Pakan'!M$16,IF($B7=11,'Bahan Pakan'!M$17,IF($B7=12,'Bahan Pakan'!M$18,IF($B7=13,'Bahan Pakan'!M$19,IF($B7=14,'Bahan Pakan'!M$20,IF($B7=15,'Bahan Pakan'!M$21,IF($B7=16,'Bahan Pakan'!M$22,IF($B7=17,'Bahan Pakan'!M$23,IF($B7=18,'Bahan Pakan'!M$24,IF($B7=19,'Bahan Pakan'!M$25,IF($B7=20,'Bahan Pakan'!M$26,IF($B7=21,'Bahan Pakan'!M$27,IF($B7=22,'Bahan Pakan'!M$28,IF($B7=23,'Bahan Pakan'!M$29,IF($B7=24,'Bahan Pakan'!M$30,IF($B7=25,'Bahan Pakan'!M$31,IF($B7=26,'Bahan Pakan'!M$32,IF($B7=27,'Bahan Pakan'!M$33,IF($B7=28,'Bahan Pakan'!M$34,IF($B7=29,'Bahan Pakan'!M$35,IF($B7=30,'Bahan Pakan'!M$36,IF($B7=31,'Bahan Pakan'!M$37,IF($B7=32,'Bahan Pakan'!M$38,IF($B7=33,'Bahan Pakan'!M$39,IF($B7=34,'Bahan Pakan'!M$40,IF($B7=35,'Bahan Pakan'!M$41,IF($B7=36,'Bahan Pakan'!M$42,IF($B7=37,'Bahan Pakan'!M$43,IF($B7=38,'Bahan Pakan'!M$44,IF($B7=39,'Bahan Pakan'!M$45,IF($B7=40,'Bahan Pakan'!M$46,IF($B7=41,'Bahan Pakan'!M$47,IF($B7=42,'Bahan Pakan'!M$48,IF($B7=43,'Bahan Pakan'!M$49,IF($B7=44,'Bahan Pakan'!M$50,IF($B7=45,'Bahan Pakan'!M$51,IF($B7=46,'Bahan Pakan'!M$52,IF($B7=47,'Bahan Pakan'!M$53,IF($B7=48,'Bahan Pakan'!M$54,IF($B7=49,'Bahan Pakan'!M$55,IF($B7=50,'Bahan Pakan'!M$56,0)))))))))))))))))))))))))))))))))))))))))))))))))) -> 80.2 | R7: =IF($B7=1,'Bahan Pakan'!N$7,IF($B7=2,'Bahan Pakan'!N$8,IF($B7=3,'Bahan Pakan'!N$9,IF($B7=4,'Bahan Pakan'!N$10,IF($B7=5,'Bahan Pakan'!N$11,IF($B7=6,'Bahan Pakan'!N$12,IF($B7=7,'Bahan Pakan'!N$13,IF($B7=8,'Bahan Pakan'!N$14,IF($B7=9,'Bahan Pakan'!N$15,IF($B7=10,'Bahan Pakan'!N$16,IF($B7=11,'Bahan Pakan'!N$17,IF($B7=12,'Bahan Pakan'!N$18,IF($B7=13,'Bahan Pakan'!N$19,IF($B7=14,'Bahan Pakan'!N$20,IF($B7=15,'Bahan Pakan'!N$21,IF($B7=16,'Bahan Pakan'!N$22,IF($B7=17,'Bahan Pakan'!N$23,IF($B7=18,'Bahan Pakan'!N$24,IF($B7=19,'Bahan Pakan'!N$25,IF($B7=20,'Bahan Pakan'!N$26,IF($B7=21,'Bahan Pakan'!N$27,IF($B7=22,'Bahan Pakan'!N$28,IF($B7=23,'Bahan Pakan'!N$29,IF($B7=24,'Bahan Pakan'!N$30,IF($B7=25,'Bahan Pakan'!N$31,IF($B7=26,'Bahan Pakan'!N$32,IF($B7=27,'Bahan Pakan'!N$33,IF($B7=28,'Bahan Pakan'!N$34,IF($B7=29,'Bahan Pakan'!N$35,IF($B7=30,'Bahan Pakan'!N$36,IF($B7=31,'Bahan Pakan'!N$37,IF($B7=32,'Bahan Pakan'!N$38,IF($B7=33,'Bahan Pakan'!N$39,IF($B7=34,'Bahan Pakan'!N$40,IF($B7=35,'Bahan Pakan'!N$41,IF($B7=36,'Bahan Pakan'!N$42,IF($B7=37,'Bahan Pakan'!N$43,IF($B7=38,'Bahan Pakan'!N$44,IF($B7=39,'Bahan Pakan'!N$45,IF($B7=40,'Bahan Pakan'!N$46,IF($B7=41,'Bahan Pakan'!N$47,IF($B7=42,'Bahan Pakan'!N$48,IF($B7=43,'Bahan Pakan'!N$49,IF($B7=44,'Bahan Pakan'!N$50,IF($B7=45,'Bahan Pakan'!N$51,IF($B7=46,'Bahan Pakan'!N$52,IF($B7=47,'Bahan Pakan'!N$53,IF($B7=48,'Bahan Pakan'!N$54,IF($B7=49,'Bahan Pakan'!N$55,IF($B7=50,'Bahan Pakan'!N$56,0)))))))))))))))))))))))))))))))))))))))))))))))))) -> 80.8 | S7: =IF($B7=1,'Bahan Pakan'!O$7,IF($B7=2,'Bahan Pakan'!O$8,IF($B7=3,'Bahan Pakan'!O$9,IF($B7=4,'Bahan Pakan'!O$10,IF($B7=5,'Bahan Pakan'!O$11,IF($B7=6,'Bahan Pakan'!O$12,IF($B7=7,'Bahan Pakan'!O$13,IF($B7=8,'Bahan Pakan'!O$14,IF($B7=9,'Bahan Pakan'!O$15,IF($B7=10,'Bahan Pakan'!O$16,IF($B7=11,'Bahan Pakan'!O$17,IF($B7=12,'Bahan Pakan'!O$18,IF($B7=13,'Bahan Pakan'!O$19,IF($B7=14,'Bahan Pakan'!O$20,IF($B7=15,'Bahan Pakan'!O$21,IF($B7=16,'Bahan Pakan'!O$22,IF($B7=17,'Bahan Pakan'!O$23,IF($B7=18,'Bahan Pakan'!O$24,IF($B7=19,'Bahan Pakan'!O$25,IF($B7=20,'Bahan Pakan'!O$26,IF($B7=21,'Bahan Pakan'!O$27,IF($B7=22,'Bahan Pakan'!O$28,IF($B7=23,'Bahan Pakan'!O$29,IF($B7=24,'Bahan Pakan'!O$30,IF($B7=25,'Bahan Pakan'!O$31,IF($B7=26,'Bahan Pakan'!O$32,IF($B7=27,'Bahan Pakan'!O$33,IF($B7=28,'Bahan Pakan'!O$34,IF($B7=29,'Bahan Pakan'!O$35,IF($B7=30,'Bahan Pakan'!O$36,IF($B7=31,'Bahan Pakan'!O$37,IF($B7=32,'Bahan Pakan'!O$38,IF($B7=33,'Bahan Pakan'!O$39,IF($B7=34,'Bahan Pakan'!O$40,IF($B7=35,'Bahan Pakan'!O$41,IF($B7=36,'Bahan Pakan'!O$42,IF($B7=37,'Bahan Pakan'!O$43,IF($B7=38,'Bahan Pakan'!O$44,IF($B7=39,'Bahan Pakan'!O$45,IF($B7=40,'Bahan Pakan'!O$46,IF($B7=41,'Bahan Pakan'!O$47,IF($B7=42,'Bahan Pakan'!O$48,IF($B7=43,'Bahan Pakan'!O$49,IF($B7=44,'Bahan Pakan'!O$50,IF($B7=45,'Bahan Pakan'!O$51,IF($B7=46,'Bahan Pakan'!O$52,IF($B7=47,'Bahan Pakan'!O$53,IF($B7=48,'Bahan Pakan'!O$54,IF($B7=49,'Bahan Pakan'!O$55,IF($B7=50,'Bahan Pakan'!O$56,0)))))))))))))))))))))))))))))))))))))))))))))))))) -> 0.234 | T7: =IF($B7=1,'Bahan Pakan'!P$7,IF($B7=2,'Bahan Pakan'!P$8,IF($B7=3,'Bahan Pakan'!P$9,IF($B7=4,'Bahan Pakan'!P$10,IF($B7=5,'Bahan Pakan'!P$11,IF($B7=6,'Bahan Pakan'!P$12,IF($B7=7,'Bahan Pakan'!P$13,IF($B7=8,'Bahan Pakan'!P$14,IF($B7=9,'Bahan Pakan'!P$15,IF($B7=10,'Bahan Pakan'!P$16,IF($B7=11,'Bahan Pakan'!P$17,IF($B7=12,'Bahan Pakan'!P$18,IF($B7=13,'Bahan Pakan'!P$19,IF($B7=14,'Bahan Pakan'!P$20,IF($B7=15,'Bahan Pakan'!P$21,IF($B7=16,'Bahan Pakan'!P$22,IF($B7=17,'Bahan Pakan'!P$23,IF($B7=18,'Bahan Pakan'!P$24,IF($B7=19,'Bahan Pakan'!P$25,IF($B7=20,'Bahan Pakan'!P$26,IF($B7=21,'Bahan Pakan'!P$27,IF($B7=22,'Bahan Pakan'!P$28,IF($B7=23,'Bahan Pakan'!P$29,IF($B7=24,'Bahan Pakan'!P$30,IF($B7=25,'Bahan Pakan'!P$31,IF($B7=26,'Bahan Pakan'!P$32,IF($B7=27,'Bahan Pakan'!P$33,IF($B7=28,'Bahan Pakan'!P$34,IF($B7=29,'Bahan Pakan'!P$35,IF($B7=30,'Bahan Pakan'!P$36,IF($B7=31,'Bahan Pakan'!P$37,IF($B7=32,'Bahan Pakan'!P$38,IF($B7=33,'Bahan Pakan'!P$39,IF($B7=34,'Bahan Pakan'!P$40,IF($B7=35,'Bahan Pakan'!P$41,IF($B7=36,'Bahan Pakan'!P$42,IF($B7=37,'Bahan Pakan'!P$43,IF($B7=38,'Bahan Pakan'!P$44,IF($B7=39,'Bahan Pakan'!P$45,IF($B7=40,'Bahan Pakan'!P$46,IF($B7=41,'Bahan Pakan'!P$47,IF($B7=42,'Bahan Pakan'!P$48,IF($B7=43,'Bahan Pakan'!P$49,IF($B7=44,'Bahan Pakan'!P$50,IF($B7=45,'Bahan Pakan'!P$51,IF($B7=46,'Bahan Pakan'!P$52,IF($B7=47,'Bahan Pakan'!P$53,IF($B7=48,'Bahan Pakan'!P$54,IF($B7=49,'Bahan Pakan'!P$55,IF($B7=50,'Bahan Pakan'!P$56,0)))))))))))))))))))))))))))))))))))))))))))))))))) -> 0.414 | Y7: Bahan Kering | Z7: % | AA7: 86 | AB7: - | AC7: =G45 -> 84.457
B8: =IF($D8='Bahan Pakan'!D$7,1,IF($D8='Bahan Pakan'!D$8,2,IF($D8='Bahan Pakan'!D$9,3,IF($D8='Bahan Pakan'!D$10,4,IF($D8='Bahan Pakan'!D$11,5,IF($D8='Bahan Pakan'!D$12,6,IF($D8='Bahan Pakan'!D$13,7,IF($D8='Bahan Pakan'!D$14,8,IF($D8='Bahan Pakan'!D$15,9,IF($D8='Bahan Pakan'!D$16,10,IF($D8='Bahan Pakan'!D$17,11,IF($D8='Bahan Pakan'!D$18,12,IF($D8='Bahan Pakan'!D$19,13,IF($D8='Bahan Pakan'!D$20,14,IF($D8='Bahan Pakan'!D$21,15,IF($D8='Bahan Pakan'!D$22,16,IF($D8='Bahan Pakan'!D$23,17,IF($D8='Bahan Pakan'!D$24,18,IF($D8='Bahan Pakan'!D$25,19,IF($D8='Bahan Pakan'!D$26,20,IF($D8='Bahan Pakan'!D$27,21,IF($D8='Bahan Pakan'!D$28,22,IF($D8='Bahan Pakan'!D$29,23,IF($D8='Bahan Pakan'!D$30,24,IF($D8='Bahan Pakan'!D$31,25,IF($D8='Bahan Pakan'!D$32,26,IF($D8='Bahan Pakan'!D$33,27,IF($D8='Bahan Pakan'!D$34,28,IF($D8='Bahan Pakan'!D$35,29,IF($D8='Bahan Pakan'!D$36,30,IF($D8='Bahan Pakan'!D$37,31,IF($D8='Bahan Pakan'!D$38,32,IF($D8='Bahan Pakan'!D$39,33,IF($D8='Bahan Pakan'!D$40,34,IF($D8='Bahan Pakan'!D$41,35,IF($D8='Bahan Pakan'!D$42,36,IF($D8='Bahan Pakan'!D$43,37,IF($D8='Bahan Pakan'!D$44,38,IF($D8='Bahan Pakan'!D$45,39,IF($D8='Bahan Pakan'!D$46,40,IF($D8='Bahan Pakan'!D$47,41,IF($D8='Bahan Pakan'!D$48,42,IF($D8='Bahan Pakan'!D$49,43,IF($D8='Bahan Pakan'!D$50,44,IF($D8='Bahan Pakan'!D$51,45,IF($D8='Bahan Pakan'!D$52,46,IF($D8='Bahan Pakan'!D$53,47,IF($D8='Bahan Pakan'!D$54,48,IF($D8='Bahan Pakan'!D$55,49,IF($D8='Bahan Pakan'!D$56,50,0)))))))))))))))))))))))))))))))))))))))))))))))))) -> 9 | C8: 2 | D8: Dedak Padi Halus | E8: =IF($B8=1,'Bahan Pakan'!E$7,IF($B8=2,'Bahan Pakan'!E$8,IF($B8=3,'Bahan Pakan'!E$9,IF($B8=4,'Bahan Pakan'!E$10,IF($B8=5,'Bahan Pakan'!E$11,IF($B8=6,'Bahan Pakan'!E$12,IF($B8=7,'Bahan Pakan'!E$13,IF($B8=8,'Bahan Pakan'!E$14,IF($B8=9,'Bahan Pakan'!E$15,IF($B8=10,'Bahan Pakan'!E$16,IF($B8=11,'Bahan Pakan'!E$17,IF($B8=12,'Bahan Pakan'!E$18,IF($B8=13,'Bahan Pakan'!E$19,IF($B8=14,'Bahan Pakan'!E$20,IF($B8=15,'Bahan Pakan'!E$21,IF($B8=16,'Bahan Pakan'!E$22,IF($B8=17,'Bahan Pakan'!E$23,IF($B8=18,'Bahan Pakan'!E$24,IF($B8=19,'Bahan Pakan'!E$25,IF($B8=20,'Bahan Pakan'!E$26,IF($B8=21,'Bahan Pakan'!E$27,IF($B8=22,'Bahan Pakan'!E$28,IF($B8=23,'Bahan Pakan'!E$29,IF($B8=24,'Bahan Pakan'!E$30,IF($B8=25,'Bahan Pakan'!E$31,IF($B8=26,'Bahan Pakan'!E$32,IF($B8=27,'Bahan Pakan'!E$33,IF($B8=28,'Bahan Pakan'!E$34,IF($B8=29,'Bahan Pakan'!E$35,IF($B8=30,'Bahan Pakan'!E$36,IF($B8=31,'Bahan Pakan'!E$37,IF($B8=32,'Bahan Pakan'!E$38,IF($B8=33,'Bahan Pakan'!E$39,IF($B8=34,'Bahan Pakan'!E$40,IF($B8=35,'Bahan Pakan'!E$41,IF($B8=36,'Bahan Pakan'!E$42,IF($B8=37,'Bahan Pakan'!E$43,IF($B8=38,'Bahan Pakan'!E$44,IF($B8=39,'Bahan Pakan'!E$45,IF($B8=40,'Bahan Pakan'!E$46,IF($B8=41,'Bahan Pakan'!E$47,IF($B8=42,'Bahan Pakan'!E$48,IF($B8=43,'Bahan Pakan'!E$49,IF($B8=44,'Bahan Pakan'!E$50,IF($B8=45,'Bahan Pakan'!E$51,IF($B8=46,'Bahan Pakan'!E$52,IF($B8=47,'Bahan Pakan'!E$53,IF($B8=48,'Bahan Pakan'!E$54,IF($B8=49,'Bahan Pakan'!E$55,IF($B8=50,'Bahan Pakan'!E$56,0)))))))))))))))))))))))))))))))))))))))))))))))))) -> 0 | F8: =IF($B8=1,'Bahan Pakan'!F$7,IF($B8=2,'Bahan Pakan'!F$8,IF($B8=3,'Bahan Pakan'!F$9,IF($B8=4,'Bahan Pakan'!F$10,IF($B8=5,'Bahan Pakan'!F$11,IF($B8=6,'Bahan Pakan'!F$12,IF($B8=7,'Bahan Pakan'!F$13,IF($B8=8,'Bahan Pakan'!F$14,IF($B8=9,'Bahan Pakan'!F$15,IF($B8=10,'Bahan Pakan'!F$16,IF($B8=11,'Bahan Pakan'!F$17,IF($B8=12,'Bahan Pakan'!F$18,IF($B8=13,'Bahan Pakan'!F$19,IF($B8=14,'Bahan Pakan'!F$20,IF($B8=15,'Bahan Pakan'!F$21,IF($B8=16,'Bahan Pakan'!F$22,IF($B8=17,'Bahan Pakan'!F$23,IF($B8=18,'Bahan Pakan'!F$24,IF($B8=19,'Bahan Pakan'!F$25,IF($B8=20,'Bahan Pakan'!F$26,IF($B8=21,'Bahan Pakan'!F$27,IF($B8=22,'Bahan Pakan'!F$28,IF($B8=23,'Bahan Pakan'!F$29,IF($B8=24,'Bahan Pakan'!F$30,IF($B8=25,'Bahan Pakan'!F$31,IF($B8=26,'Bahan Pakan'!F$32,IF($B8=27,'Bahan Pakan'!F$33,IF($B8=28,'Bahan Pakan'!F$34,IF($B8=29,'Bahan Pakan'!F$35,IF($B8=30,'Bahan Pakan'!F$36,IF($B8=31,'Bahan Pakan'!F$37,IF($B8=32,'Bahan Pakan'!F$38,IF($B8=33,'Bahan Pakan'!F$39,IF($B8=34,'Bahan Pakan'!F$40,IF($B8=35,'Bahan Pakan'!F$41,IF($B8=36,'Bahan Pakan'!F$42,IF($B8=37,'Bahan Pakan'!F$43,IF($B8=38,'Bahan Pakan'!F$44,IF($B8=39,'Bahan Pakan'!F$45,IF($B8=40,'Bahan Pakan'!F$46,IF($B8=41,'Bahan Pakan'!F$47,IF($B8=42,'Bahan Pakan'!F$48,IF($B8=43,'Bahan Pakan'!F$49,IF($B8=44,'Bahan Pakan'!F$50,IF($B8=45,'Bahan Pakan'!F$51,IF($B8=46,'Bahan Pakan'!F$52,IF($B8=47,'Bahan Pakan'!F$53,IF($B8=48,'Bahan Pakan'!F$54,IF($B8=49,'Bahan Pakan'!F$55,IF($B8=50,'Bahan Pakan'!F$56,0)))))))))))))))))))))))))))))))))))))))))))))))))) -> 40 | G8: 25 | H8: 28.50627138 | I8: =H8/$H$22*100 -> 23.83589654 | J8: =I8/100*$J$22 -> 238.3589654 | K8: =IF($B8=1,'Bahan Pakan'!G$7,IF($B8=2,'Bahan Pakan'!G$8,IF($B8=3,'Bahan Pakan'!G$9,IF($B8=4,'Bahan Pakan'!G$10,IF($B8=5,'Bahan Pakan'!G$11,IF($B8=6,'Bahan Pakan'!G$12,IF($B8=7,'Bahan Pakan'!G$13,IF($B8=8,'Bahan Pakan'!G$14,IF($B8=9,'Bahan Pakan'!G$15,IF($B8=10,'Bahan Pakan'!G$16,IF($B8=11,'Bahan Pakan'!G$17,IF($B8=12,'Bahan Pakan'!G$18,IF($B8=13,'Bahan Pakan'!G$19,IF($B8=14,'Bahan Pakan'!G$20,IF($B8=15,'Bahan Pakan'!G$21,IF($B8=16,'Bahan Pakan'!G$22,IF($B8=17,'Bahan Pakan'!G$23,IF($B8=18,'Bahan Pakan'!G$24,IF($B8=19,'Bahan Pakan'!G$25,IF($B8=20,'Bahan Pakan'!G$26,IF($B8=21,'Bahan Pakan'!G$27,IF($B8=22,'Bahan Pakan'!G$28,IF($B8=23,'Bahan Pakan'!G$29,IF($B8=24,'Bahan Pakan'!G$30,IF($B8=25,'Bahan Pakan'!G$31,IF($B8=26,'Bahan Pakan'!G$32,IF($B8=27,'Bahan Pakan'!G$33,IF($B8=28,'Bahan Pakan'!G$34,IF($B8=29,'Bahan Pakan'!G$35,IF($B8=30,'Bahan Pakan'!G$36,IF($B8=31,'Bahan Pakan'!G$37,IF($B8=32,'Bahan Pakan'!G$38,IF($B8=33,'Bahan Pakan'!G$39,IF($B8=34,'Bahan Pakan'!G$40,IF($B8=35,'Bahan Pakan'!G$41,IF($B8=36,'Bahan Pakan'!G$42,IF($B8=37,'Bahan Pakan'!G$43,IF($B8=38,'Bahan Pakan'!G$44,IF($B8=39,'Bahan Pakan'!G$45,IF($B8=40,'Bahan Pakan'!G$46,IF($B8=41,'Bahan Pakan'!G$47,IF($B8=42,'Bahan Pakan'!G$48,IF($B8=43,'Bahan Pakan'!G$49,IF($B8=44,'Bahan Pakan'!G$50,IF($B8=45,'Bahan Pakan'!G$51,IF($B8=46,'Bahan Pakan'!G$52,IF($B8=47,'Bahan Pakan'!G$53,IF($B8=48,'Bahan Pakan'!G$54,IF($B8=49,'Bahan Pakan'!G$55,IF($B8=50,'Bahan Pakan'!G$56,0)))))))))))))))))))))))))))))))))))))))))))))))))) -> 1800 | L8: =IF($B8=1,'Bahan Pakan'!H$7,IF($B8=2,'Bahan Pakan'!H$8,IF($B8=3,'Bahan Pakan'!H$9,IF($B8=4,'Bahan Pakan'!H$10,IF($B8=5,'Bahan Pakan'!H$11,IF($B8=6,'Bahan Pakan'!H$12,IF($B8=7,'Bahan Pakan'!H$13,IF($B8=8,'Bahan Pakan'!H$14,IF($B8=9,'Bahan Pakan'!H$15,IF($B8=10,'Bahan Pakan'!H$16,IF($B8=11,'Bahan Pakan'!H$17,IF($B8=12,'Bahan Pakan'!H$18,IF($B8=13,'Bahan Pakan'!H$19,IF($B8=14,'Bahan Pakan'!H$20,IF($B8=15,'Bahan Pakan'!H$21,IF($B8=16,'Bahan Pakan'!H$22,IF($B8=17,'Bahan Pakan'!H$23,IF($B8=18,'Bahan Pakan'!H$24,IF($B8=19,'Bahan Pakan'!H$25,IF($B8=20,'Bahan Pakan'!H$26,IF($B8=21,'Bahan Pakan'!H$27,IF($B8=22,'Bahan Pakan'!H$28,IF($B8=23,'Bahan Pakan'!H$29,IF($B8=24,'Bahan Pakan'!H$30,IF($B8=25,'Bahan Pakan'!H$31,IF($B8=26,'Bahan Pakan'!H$32,IF($B8=27,'Bahan Pakan'!H$33,IF($B8=28,'Bahan Pakan'!H$34,IF($B8=29,'Bahan Pakan'!H$35,IF($B8=30,'Bahan Pakan'!H$36,IF($B8=31,'Bahan Pakan'!H$37,IF($B8=32,'Bahan Pakan'!H$38,IF($B8=33,'Bahan Pakan'!H$39,IF($B8=34,'Bahan Pakan'!H$40,IF($B8=35,'Bahan Pakan'!H$41,IF($B8=36,'Bahan Pakan'!H$42,IF($B8=37,'Bahan Pakan'!H$43,IF($B8=38,'Bahan Pakan'!H$44,IF($B8=39,'Bahan Pakan'!H$45,IF($B8=40,'Bahan Pakan'!H$46,IF($B8=41,'Bahan Pakan'!H$47,IF($B8=42,'Bahan Pakan'!H$48,IF($B8=43,'Bahan Pakan'!H$49,IF($B8=44,'Bahan Pakan'!H$50,IF($B8=45,'Bahan Pakan'!H$51,IF($B8=46,'Bahan Pakan'!H$52,IF($B8=47,'Bahan Pakan'!H$53,IF($B8=48,'Bahan Pakan'!H$54,IF($B8=49,'Bahan Pakan'!H$55,IF($B8=50,'Bahan Pakan'!H$56,0)))))))))))))))))))))))))))))))))))))))))))))))))) -> 87.7 | M8: =IF($B8=1,'Bahan Pakan'!I$7,IF($B8=2,'Bahan Pakan'!I$8,IF($B8=3,'Bahan Pakan'!I$9,IF($B8=4,'Bahan Pakan'!I$10,IF($B8=5,'Bahan Pakan'!I$11,IF($B8=6,'Bahan Pakan'!I$12,IF($B8=7,'Bahan Pakan'!I$13,IF($B8=8,'Bahan Pakan'!I$14,IF($B8=9,'Bahan Pakan'!I$15,IF($B8=10,'Bahan Pakan'!I$16,IF($B8=11,'Bahan Pakan'!I$17,IF($B8=12,'Bahan Pakan'!I$18,IF($B8=13,'Bahan Pakan'!I$19,IF($B8=14,'Bahan Pakan'!I$20,IF($B8=15,'Bahan Pakan'!I$21,IF($B8=16,'Bahan Pakan'!I$22,IF($B8=17,'Bahan Pakan'!I$23,IF($B8=18,'Bahan Pakan'!I$24,IF($B8=19,'Bahan Pakan'!I$25,IF($B8=20,'Bahan Pakan'!I$26,IF($B8=21,'Bahan Pakan'!I$27,IF($B8=22,'Bahan Pakan'!I$28,IF($B8=23,'Bahan Pakan'!I$29,IF($B8=24,'Bahan Pakan'!I$30,IF($B8=25,'Bahan Pakan'!I$31,IF($B8=26,'Bahan Pakan'!I$32,IF($B8=27,'Bahan Pakan'!I$33,IF($B8=28,'Bahan Pakan'!I$34,IF($B8=29,'Bahan Pakan'!I$35,IF($B8=30,'Bahan Pakan'!I$36,IF($B8=31,'Bahan Pakan'!I$37,IF($B8=32,'Bahan Pakan'!I$38,IF($B8=33,'Bahan Pakan'!I$39,IF($B8=34,'Bahan Pakan'!I$40,IF($B8=35,'Bahan Pakan'!I$41,IF($B8=36,'Bahan Pakan'!I$42,IF($B8=37,'Bahan Pakan'!I$43,IF($B8=38,'Bahan Pakan'!I$44,IF($B8=39,'Bahan Pakan'!I$45,IF($B8=40,'Bahan Pakan'!I$46,IF($B8=41,'Bahan Pakan'!I$47,IF($B8=42,'Bahan Pakan'!I$48,IF($B8=43,'Bahan Pakan'!I$49,IF($B8=44,'Bahan Pakan'!I$50,IF($B8=45,'Bahan Pakan'!I$51,IF($B8=46,'Bahan Pakan'!I$52,IF($B8=47,'Bahan Pakan'!I$53,IF($B8=48,'Bahan Pakan'!I$54,IF($B8=49,'Bahan Pakan'!I$55,IF($B8=50,'Bahan Pakan'!I$56,0)))))))))))))))))))))))))))))))))))))))))))))))))) -> 13.6 | N8: =IF($B8=1,'Bahan Pakan'!J$7,IF($B8=2,'Bahan Pakan'!J$8,IF($B8=3,'Bahan Pakan'!J$9,IF($B8=4,'Bahan Pakan'!J$10,IF($B8=5,'Bahan Pakan'!J$11,IF($B8=6,'Bahan Pakan'!J$12,IF($B8=7,'Bahan Pakan'!J$13,IF($B8=8,'Bahan Pakan'!J$14,IF($B8=9,'Bahan Pakan'!J$15,IF($B8=10,'Bahan Pakan'!J$16,IF($B8=11,'Bahan Pakan'!J$17,IF($B8=12,'Bahan Pakan'!J$18,IF($B8=13,'Bahan Pakan'!J$19,IF($B8=14,'Bahan Pakan'!J$20,IF($B8=15,'Bahan Pakan'!J$21,IF($B8=16,'Bahan Pakan'!J$22,IF($B8=17,'Bahan Pakan'!J$23,IF($B8=18,'Bahan Pakan'!J$24,IF($B8=19,'Bahan Pakan'!J$25,IF($B8=20,'Bahan Pakan'!J$26,IF($B8=21,'Bahan Pakan'!J$27,IF($B8=22,'Bahan Pakan'!J$28,IF($B8=23,'Bahan Pakan'!J$29,IF($B8=24,'Bahan Pakan'!J$30,IF($B8=25,'Bahan Pakan'!J$31,IF($B8=26,'Bahan Pakan'!J$32,IF($B8=27,'Bahan Pakan'!J$33,IF($B8=28,'Bahan Pakan'!J$34,IF($B8=29,'Bahan Pakan'!J$35,IF($B8=30,'Bahan Pakan'!J$36,IF($B8=31,'Bahan Pakan'!J$37,IF($B8=32,'Bahan Pakan'!J$38,IF($B8=33,'Bahan Pakan'!J$39,IF($B8=34,'Bahan Pakan'!J$40,IF($B8=35,'Bahan Pakan'!J$41,IF($B8=36,'Bahan Pakan'!J$42,IF($B8=37,'Bahan Pakan'!J$43,IF($B8=38,'Bahan Pakan'!J$44,IF($B8=39,'Bahan Pakan'!J$45,IF($B8=40,'Bahan Pakan'!J$46,IF($B8=41,'Bahan Pakan'!J$47,IF($B8=42,'Bahan Pakan'!J$48,IF($B8=43,'Bahan Pakan'!J$49,IF($B8=44,'Bahan Pakan'!J$50,IF($B8=45,'Bahan Pakan'!J$51,IF($B8=46,'Bahan Pakan'!J$52,IF($B8=47,'Bahan Pakan'!J$53,IF($B8=48,'Bahan Pakan'!J$54,IF($B8=49,'Bahan Pakan'!J$55,IF($B8=50,'Bahan Pakan'!J$56,0)))))))))))))))))))))))))))))))))))))))))))))))))) -> 12 | O8: =IF($B8=1,'Bahan Pakan'!K$7,IF($B8=2,'Bahan Pakan'!K$8,IF($B8=3,'Bahan Pakan'!K$9,IF($B8=4,'Bahan Pakan'!K$10,IF($B8=5,'Bahan Pakan'!K$11,IF($B8=6,'Bahan Pakan'!K$12,IF($B8=7,'Bahan Pakan'!K$13,IF($B8=8,'Bahan Pakan'!K$14,IF($B8=9,'Bahan Pakan'!K$15,IF($B8=10,'Bahan Pakan'!K$16,IF($B8=11,'Bahan Pakan'!K$17,IF($B8=12,'Bahan Pakan'!K$18,IF($B8=13,'Bahan Pakan'!K$19,IF($B8=14,'Bahan Pakan'!K$20,IF($B8=15,'Bahan Pakan'!K$21,IF($B8=16,'Bahan Pakan'!K$22,IF($B8=17,'Bahan Pakan'!K$23,IF($B8=18,'Bahan Pakan'!K$24,IF($B8=19,'Bahan Pakan'!K$25,IF($B8=20,'Bahan Pakan'!K$26,IF($B8=21,'Bahan Pakan'!K$27,IF($B8=22,'Bahan Pakan'!K$28,IF($B8=23,'Bahan Pakan'!K$29,IF($B8=24,'Bahan Pakan'!K$30,IF($B8=25,'Bahan Pakan'!K$31,IF($B8=26,'Bahan Pakan'!K$32,IF($B8=27,'Bahan Pakan'!K$33,IF($B8=28,'Bahan Pakan'!K$34,IF($B8=29,'Bahan Pakan'!K$35,IF($B8=30,'Bahan Pakan'!K$36,IF($B8=31,'Bahan Pakan'!K$37,IF($B8=32,'Bahan Pakan'!K$38,IF($B8=33,'Bahan Pakan'!K$39,IF($B8=34,'Bahan Pakan'!K$40,IF($B8=35,'Bahan Pakan'!K$41,IF($B8=36,'Bahan Pakan'!K$42,IF($B8=37,'Bahan Pakan'!K$43,IF($B8=38,'Bahan Pakan'!K$44,IF($B8=39,'Bahan Pakan'!K$45,IF($B8=40,'Bahan Pakan'!K$46,IF($B8=41,'Bahan Pakan'!K$47,IF($B8=42,'Bahan Pakan'!K$48,IF($B8=43,'Bahan Pakan'!K$49,IF($B8=44,'Bahan Pakan'!K$50,IF($B8=45,'Bahan Pakan'!K$51,IF($B8=46,'Bahan Pakan'!K$52,IF($B8=47,'Bahan Pakan'!K$53,IF($B8=48,'Bahan Pakan'!K$54,IF($B8=49,'Bahan Pakan'!K$55,IF($B8=50,'Bahan Pakan'!K$56,0)))))))))))))))))))))))))))))))))))))))))))))))))) -> 8.64 | P8: =IF($B8=1,'Bahan Pakan'!L$7,IF($B8=2,'Bahan Pakan'!L$8,IF($B8=3,'Bahan Pakan'!L$9,IF($B8=4,'Bahan Pakan'!L$10,IF($B8=5,'Bahan Pakan'!L$11,IF($B8=6,'Bahan Pakan'!L$12,IF($B8=7,'Bahan Pakan'!L$13,IF($B8=8,'Bahan Pakan'!L$14,IF($B8=9,'Bahan Pakan'!L$15,IF($B8=10,'Bahan Pakan'!L$16,IF($B8=11,'Bahan Pakan'!L$17,IF($B8=12,'Bahan Pakan'!L$18,IF($B8=13,'Bahan Pakan'!L$19,IF($B8=14,'Bahan Pakan'!L$20,IF($B8=15,'Bahan Pakan'!L$21,IF($B8=16,'Bahan Pakan'!L$22,IF($B8=17,'Bahan Pakan'!L$23,IF($B8=18,'Bahan Pakan'!L$24,IF($B8=19,'Bahan Pakan'!L$25,IF($B8=20,'Bahan Pakan'!L$26,IF($B8=21,'Bahan Pakan'!L$27,IF($B8=22,'Bahan Pakan'!L$28,IF($B8=23,'Bahan Pakan'!L$29,IF($B8=24,'Bahan Pakan'!L$30,IF($B8=25,'Bahan Pakan'!L$31,IF($B8=26,'Bahan Pakan'!L$32,IF($B8=27,'Bahan Pakan'!L$33,IF($B8=28,'Bahan Pakan'!L$34,IF($B8=29,'Bahan Pakan'!L$35,IF($B8=30,'Bahan Pakan'!L$36,IF($B8=31,'Bahan Pakan'!L$37,IF($B8=32,'Bahan Pakan'!L$38,IF($B8=33,'Bahan Pakan'!L$39,IF($B8=34,'Bahan Pakan'!L$40,IF($B8=35,'Bahan Pakan'!L$41,IF($B8=36,'Bahan Pakan'!L$42,IF($B8=37,'Bahan Pakan'!L$43,IF($B8=38,'Bahan Pakan'!L$44,IF($B8=39,'Bahan Pakan'!L$45,IF($B8=40,'Bahan Pakan'!L$46,IF($B8=41,'Bahan Pakan'!L$47,IF($B8=42,'Bahan Pakan'!L$48,IF($B8=43,'Bahan Pakan'!L$49,IF($B8=44,'Bahan Pakan'!L$50,IF($B8=45,'Bahan Pakan'!L$51,IF($B8=46,'Bahan Pakan'!L$52,IF($B8=47,'Bahan Pakan'!L$53,IF($B8=48,'Bahan Pakan'!L$54,IF($B8=49,'Bahan Pakan'!L$55,IF($B8=50,'Bahan Pakan'!L$56,0)))))))))))))))))))))))))))))))))))))))))))))))))) -> 13.9 | Q8: =IF($B8=1,'Bahan Pakan'!M$7,IF($B8=2,'Bahan Pakan'!M$8,IF($B8=3,'Bahan Pakan'!M$9,IF($B8=4,'Bahan Pakan'!M$10,IF($B8=5,'Bahan Pakan'!M$11,IF($B8=6,'Bahan Pakan'!M$12,IF($B8=7,'Bahan Pakan'!M$13,IF($B8=8,'Bahan Pakan'!M$14,IF($B8=9,'Bahan Pakan'!M$15,IF($B8=10,'Bahan Pakan'!M$16,IF($B8=11,'Bahan Pakan'!M$17,IF($B8=12,'Bahan Pakan'!M$18,IF($B8=13,'Bahan Pakan'!M$19,IF($B8=14,'Bahan Pakan'!M$20,IF($B8=15,'Bahan Pakan'!M$21,IF($B8=16,'Bahan Pakan'!M$22,IF($B8=17,'Bahan Pakan'!M$23,IF($B8=18,'Bahan Pakan'!M$24,IF($B8=19,'Bahan Pakan'!M$25,IF($B8=20,'Bahan Pakan'!M$26,IF($B8=21,'Bahan Pakan'!M$27,IF($B8=22,'Bahan Pakan'!M$28,IF($B8=23,'Bahan Pakan'!M$29,IF($B8=24,'Bahan Pakan'!M$30,IF($B8=25,'Bahan Pakan'!M$31,IF($B8=26,'Bahan Pakan'!M$32,IF($B8=27,'Bahan Pakan'!M$33,IF($B8=28,'Bahan Pakan'!M$34,IF($B8=29,'Bahan Pakan'!M$35,IF($B8=30,'Bahan Pakan'!M$36,IF($B8=31,'Bahan Pakan'!M$37,IF($B8=32,'Bahan Pakan'!M$38,IF($B8=33,'Bahan Pakan'!M$39,IF($B8=34,'Bahan Pakan'!M$40,IF($B8=35,'Bahan Pakan'!M$41,IF($B8=36,'Bahan Pakan'!M$42,IF($B8=37,'Bahan Pakan'!M$43,IF($B8=38,'Bahan Pakan'!M$44,IF($B8=39,'Bahan Pakan'!M$45,IF($B8=40,'Bahan Pakan'!M$46,IF($B8=41,'Bahan Pakan'!M$47,IF($B8=42,'Bahan Pakan'!M$48,IF($B8=43,'Bahan Pakan'!M$49,IF($B8=44,'Bahan Pakan'!M$50,IF($B8=45,'Bahan Pakan'!M$51,IF($B8=46,'Bahan Pakan'!M$52,IF($B8=47,'Bahan Pakan'!M$53,IF($B8=48,'Bahan Pakan'!M$54,IF($B8=49,'Bahan Pakan'!M$55,IF($B8=50,'Bahan Pakan'!M$56,0)))))))))))))))))))))))))))))))))))))))))))))))))) -> 50.9 | R8: =IF($B8=1,'Bahan Pakan'!N$7,IF($B8=2,'Bahan Pakan'!N$8,IF($B8=3,'Bahan Pakan'!N$9,IF($B8=4,'Bahan Pakan'!N$10,IF($B8=5,'Bahan Pakan'!N$11,IF($B8=6,'Bahan Pakan'!N$12,IF($B8=7,'Bahan Pakan'!N$13,IF($B8=8,'Bahan Pakan'!N$14,IF($B8=9,'Bahan Pakan'!N$15,IF($B8=10,'Bahan Pakan'!N$16,IF($B8=11,'Bahan Pakan'!N$17,IF($B8=12,'Bahan Pakan'!N$18,IF($B8=13,'Bahan Pakan'!N$19,IF($B8=14,'Bahan Pakan'!N$20,IF($B8=15,'Bahan Pakan'!N$21,IF($B8=16,'Bahan Pakan'!N$22,IF($B8=17,'Bahan Pakan'!N$23,IF($B8=18,'Bahan Pakan'!N$24,IF($B8=19,'Bahan Pakan'!N$25,IF($B8=20,'Bahan Pakan'!N$26,IF($B8=21,'Bahan Pakan'!N$27,IF($B8=22,'Bahan Pakan'!N$28,IF($B8=23,'Bahan Pakan'!N$29,IF($B8=24,'Bahan Pakan'!N$30,IF($B8=25,'Bahan Pakan'!N$31,IF($B8=26,'Bahan Pakan'!N$32,IF($B8=27,'Bahan Pakan'!N$33,IF($B8=28,'Bahan Pakan'!N$34,IF($B8=29,'Bahan Pakan'!N$35,IF($B8=30,'Bahan Pakan'!N$36,IF($B8=31,'Bahan Pakan'!N$37,IF($B8=32,'Bahan Pakan'!N$38,IF($B8=33,'Bahan Pakan'!N$39,IF($B8=34,'Bahan Pakan'!N$40,IF($B8=35,'Bahan Pakan'!N$41,IF($B8=36,'Bahan Pakan'!N$42,IF($B8=37,'Bahan Pakan'!N$43,IF($B8=38,'Bahan Pakan'!N$44,IF($B8=39,'Bahan Pakan'!N$45,IF($B8=40,'Bahan Pakan'!N$46,IF($B8=41,'Bahan Pakan'!N$47,IF($B8=42,'Bahan Pakan'!N$48,IF($B8=43,'Bahan Pakan'!N$49,IF($B8=44,'Bahan Pakan'!N$50,IF($B8=45,'Bahan Pakan'!N$51,IF($B8=46,'Bahan Pakan'!N$52,IF($B8=47,'Bahan Pakan'!N$53,IF($B8=48,'Bahan Pakan'!N$54,IF($B8=49,'Bahan Pakan'!N$55,IF($B8=50,'Bahan Pakan'!N$56,0)))))))))))))))))))))))))))))))))))))))))))))))))) -> 67.9 | S8: =IF($B8=1,'Bahan Pakan'!O$7,IF($B8=2,'Bahan Pakan'!O$8,IF($B8=3,'Bahan Pakan'!O$9,IF($B8=4,'Bahan Pakan'!O$10,IF($B8=5,'Bahan Pakan'!O$11,IF($B8=6,'Bahan Pakan'!O$12,IF($B8=7,'Bahan Pakan'!O$13,IF($B8=8,'Bahan Pakan'!O$14,IF($B8=9,'Bahan Pakan'!O$15,IF($B8=10,'Bahan Pakan'!O$16,IF($B8=11,'Bahan Pakan'!O$17,IF($B8=12,'Bahan Pakan'!O$18,IF($B8=13,'Bahan Pakan'!O$19,IF($B8=14,'Bahan Pakan'!O$20,IF($B8=15,'Bahan Pakan'!O$21,IF($B8=16,'Bahan Pakan'!O$22,IF($B8=17,'Bahan Pakan'!O$23,IF($B8=18,'Bahan Pakan'!O$24,IF($B8=19,'Bahan Pakan'!O$25,IF($B8=20,'Bahan Pakan'!O$26,IF($B8=21,'Bahan Pakan'!O$27,IF($B8=22,'Bahan Pakan'!O$28,IF($B8=23,'Bahan Pakan'!O$29,IF($B8=24,'Bahan Pakan'!O$30,IF($B8=25,'Bahan Pakan'!O$31,IF($B8=26,'Bahan Pakan'!O$32,IF($B8=27,'Bahan Pakan'!O$33,IF($B8=28,'Bahan Pakan'!O$34,IF($B8=29,'Bahan Pakan'!O$35,IF($B8=30,'Bahan Pakan'!O$36,IF($B8=31,'Bahan Pakan'!O$37,IF($B8=32,'Bahan Pakan'!O$38,IF($B8=33,'Bahan Pakan'!O$39,IF($B8=34,'Bahan Pakan'!O$40,IF($B8=35,'Bahan Pakan'!O$41,IF($B8=36,'Bahan Pakan'!O$42,IF($B8=37,'Bahan Pakan'!O$43,IF($B8=38,'Bahan Pakan'!O$44,IF($B8=39,'Bahan Pakan'!O$45,IF($B8=40,'Bahan Pakan'!O$46,IF($B8=41,'Bahan Pakan'!O$47,IF($B8=42,'Bahan Pakan'!O$48,IF($B8=43,'Bahan Pakan'!O$49,IF($B8=44,'Bahan Pakan'!O$50,IF($B8=45,'Bahan Pakan'!O$51,IF($B8=46,'Bahan Pakan'!O$52,IF($B8=47,'Bahan Pakan'!O$53,IF($B8=48,'Bahan Pakan'!O$54,IF($B8=49,'Bahan Pakan'!O$55,IF($B8=50,'Bahan Pakan'!O$56,0)))))))))))))))))))))))))))))))))))))))))))))))))) -> 0.0856 | T8: =IF($B8=1,'Bahan Pakan'!P$7,IF($B8=2,'Bahan Pakan'!P$8,IF($B8=3,'Bahan Pakan'!P$9,IF($B8=4,'Bahan Pakan'!P$10,IF($B8=5,'Bahan Pakan'!P$11,IF($B8=6,'Bahan Pakan'!P$12,IF($B8=7,'Bahan Pakan'!P$13,IF($B8=8,'Bahan Pakan'!P$14,IF($B8=9,'Bahan Pakan'!P$15,IF($B8=10,'Bahan Pakan'!P$16,IF($B8=11,'Bahan Pakan'!P$17,IF($B8=12,'Bahan Pakan'!P$18,IF($B8=13,'Bahan Pakan'!P$19,IF($B8=14,'Bahan Pakan'!P$20,IF($B8=15,'Bahan Pakan'!P$21,IF($B8=16,'Bahan Pakan'!P$22,IF($B8=17,'Bahan Pakan'!P$23,IF($B8=18,'Bahan Pakan'!P$24,IF($B8=19,'Bahan Pakan'!P$25,IF($B8=20,'Bahan Pakan'!P$26,IF($B8=21,'Bahan Pakan'!P$27,IF($B8=22,'Bahan Pakan'!P$28,IF($B8=23,'Bahan Pakan'!P$29,IF($B8=24,'Bahan Pakan'!P$30,IF($B8=25,'Bahan Pakan'!P$31,IF($B8=26,'Bahan Pakan'!P$32,IF($B8=27,'Bahan Pakan'!P$33,IF($B8=28,'Bahan Pakan'!P$34,IF($B8=29,'Bahan Pakan'!P$35,IF($B8=30,'Bahan Pakan'!P$36,IF($B8=31,'Bahan Pakan'!P$37,IF($B8=32,'Bahan Pakan'!P$38,IF($B8=33,'Bahan Pakan'!P$39,IF($B8=34,'Bahan Pakan'!P$40,IF($B8=35,'Bahan Pakan'!P$41,IF($B8=36,'Bahan Pakan'!P$42,IF($B8=37,'Bahan Pakan'!P$43,IF($B8=38,'Bahan Pakan'!P$44,IF($B8=39,'Bahan Pakan'!P$45,IF($B8=40,'Bahan Pakan'!P$46,IF($B8=41,'Bahan Pakan'!P$47,IF($B8=42,'Bahan Pakan'!P$48,IF($B8=43,'Bahan Pakan'!P$49,IF($B8=44,'Bahan Pakan'!P$50,IF($B8=45,'Bahan Pakan'!P$51,IF($B8=46,'Bahan Pakan'!P$52,IF($B8=47,'Bahan Pakan'!P$53,IF($B8=48,'Bahan Pakan'!P$54,IF($B8=49,'Bahan Pakan'!P$55,IF($B8=50,'Bahan Pakan'!P$56,0)))))))))))))))))))))))))))))))))))))))))))))))))) -> 1.39 | Y8: Abu | Z8: % | AA8: - | AB8: - | AC8: =K45 -> 30.72423
B9: =IF($D9='Bahan Pakan'!D$7,1,IF($D9='Bahan Pakan'!D$8,2,IF($D9='Bahan Pakan'!D$9,3,IF($D9='Bahan Pakan'!D$10,4,IF($D9='Bahan Pakan'!D$11,5,IF($D9='Bahan Pakan'!D$12,6,IF($D9='Bahan Pakan'!D$13,7,IF($D9='Bahan Pakan'!D$14,8,IF($D9='Bahan Pakan'!D$15,9,IF($D9='Bahan Pakan'!D$16,10,IF($D9='Bahan Pakan'!D$17,11,IF($D9='Bahan Pakan'!D$18,12,IF($D9='Bahan Pakan'!D$19,13,IF($D9='Bahan Pakan'!D$20,14,IF($D9='Bahan Pakan'!D$21,15,IF($D9='Bahan Pakan'!D$22,16,IF($D9='Bahan Pakan'!D$23,17,IF($D9='Bahan Pakan'!D$24,18,IF($D9='Bahan Pakan'!D$25,19,IF($D9='Bahan Pakan'!D$26,20,IF($D9='Bahan Pakan'!D$27,21,IF($D9='Bahan Pakan'!D$28,22,IF($D9='Bahan Pakan'!D$29,23,IF($D9='Bahan Pakan'!D$30,24,IF($D9='Bahan Pakan'!D$31,25,IF($D9='Bahan Pakan'!D$32,26,IF($D9='Bahan Pakan'!D$33,27,IF($D9='Bahan Pakan'!D$34,28,IF($D9='Bahan Pakan'!D$35,29,IF($D9='Bahan Pakan'!D$36,30,IF($D9='Bahan Pakan'!D$37,31,IF($D9='Bahan Pakan'!D$38,32,IF($D9='Bahan Pakan'!D$39,33,IF($D9='Bahan Pakan'!D$40,34,IF($D9='Bahan Pakan'!D$41,35,IF($D9='Bahan Pakan'!D$42,36,IF($D9='Bahan Pakan'!D$43,37,IF($D9='Bahan Pakan'!D$44,38,IF($D9='Bahan Pakan'!D$45,39,IF($D9='Bahan Pakan'!D$46,40,IF($D9='Bahan Pakan'!D$47,41,IF($D9='Bahan Pakan'!D$48,42,IF($D9='Bahan Pakan'!D$49,43,IF($D9='Bahan Pakan'!D$50,44,IF($D9='Bahan Pakan'!D$51,45,IF($D9='Bahan Pakan'!D$52,46,IF($D9='Bahan Pakan'!D$53,47,IF($D9='Bahan Pakan'!D$54,48,IF($D9='Bahan Pakan'!D$55,49,IF($D9='Bahan Pakan'!D$56,50,0)))))))))))))))))))))))))))))))))))))))))))))))))) -> 19 | C9: 3 | D9: Bungkil Kelapa Sawit | E9: =IF($B9=1,'Bahan Pakan'!E$7,IF($B9=2,'Bahan Pakan'!E$8,IF($B9=3,'Bahan Pakan'!E$9,IF($B9=4,'Bahan Pakan'!E$10,IF($B9=5,'Bahan Pakan'!E$11,IF($B9=6,'Bahan Pakan'!E$12,IF($B9=7,'Bahan Pakan'!E$13,IF($B9=8,'Bahan Pakan'!E$14,IF($B9=9,'Bahan Pakan'!E$15,IF($B9=10,'Bahan Pakan'!E$16,IF($B9=11,'Bahan Pakan'!E$17,IF($B9=12,'Bahan Pakan'!E$18,IF($B9=13,'Bahan Pakan'!E$19,IF($B9=14,'Bahan Pakan'!E$20,IF($B9=15,'Bahan Pakan'!E$21,IF($B9=16,'Bahan Pakan'!E$22,IF($B9=17,'Bahan Pakan'!E$23,IF($B9=18,'Bahan Pakan'!E$24,IF($B9=19,'Bahan Pakan'!E$25,IF($B9=20,'Bahan Pakan'!E$26,IF($B9=21,'Bahan Pakan'!E$27,IF($B9=22,'Bahan Pakan'!E$28,IF($B9=23,'Bahan Pakan'!E$29,IF($B9=24,'Bahan Pakan'!E$30,IF($B9=25,'Bahan Pakan'!E$31,IF($B9=26,'Bahan Pakan'!E$32,IF($B9=27,'Bahan Pakan'!E$33,IF($B9=28,'Bahan Pakan'!E$34,IF($B9=29,'Bahan Pakan'!E$35,IF($B9=30,'Bahan Pakan'!E$36,IF($B9=31,'Bahan Pakan'!E$37,IF($B9=32,'Bahan Pakan'!E$38,IF($B9=33,'Bahan Pakan'!E$39,IF($B9=34,'Bahan Pakan'!E$40,IF($B9=35,'Bahan Pakan'!E$41,IF($B9=36,'Bahan Pakan'!E$42,IF($B9=37,'Bahan Pakan'!E$43,IF($B9=38,'Bahan Pakan'!E$44,IF($B9=39,'Bahan Pakan'!E$45,IF($B9=40,'Bahan Pakan'!E$46,IF($B9=41,'Bahan Pakan'!E$47,IF($B9=42,'Bahan Pakan'!E$48,IF($B9=43,'Bahan Pakan'!E$49,IF($B9=44,'Bahan Pakan'!E$50,IF($B9=45,'Bahan Pakan'!E$51,IF($B9=46,'Bahan Pakan'!E$52,IF($B9=47,'Bahan Pakan'!E$53,IF($B9=48,'Bahan Pakan'!E$54,IF($B9=49,'Bahan Pakan'!E$55,IF($B9=50,'Bahan Pakan'!E$56,0)))))))))))))))))))))))))))))))))))))))))))))))))) -> 0 | F9: =IF($B9=1,'Bahan Pakan'!F$7,IF($B9=2,'Bahan Pakan'!F$8,IF($B9=3,'Bahan Pakan'!F$9,IF($B9=4,'Bahan Pakan'!F$10,IF($B9=5,'Bahan Pakan'!F$11,IF($B9=6,'Bahan Pakan'!F$12,IF($B9=7,'Bahan Pakan'!F$13,IF($B9=8,'Bahan Pakan'!F$14,IF($B9=9,'Bahan Pakan'!F$15,IF($B9=10,'Bahan Pakan'!F$16,IF($B9=11,'Bahan Pakan'!F$17,IF($B9=12,'Bahan Pakan'!F$18,IF($B9=13,'Bahan Pakan'!F$19,IF($B9=14,'Bahan Pakan'!F$20,IF($B9=15,'Bahan Pakan'!F$21,IF($B9=16,'Bahan Pakan'!F$22,IF($B9=17,'Bahan Pakan'!F$23,IF($B9=18,'Bahan Pakan'!F$24,IF($B9=19,'Bahan Pakan'!F$25,IF($B9=20,'Bahan Pakan'!F$26,IF($B9=21,'Bahan Pakan'!F$27,IF($B9=22,'Bahan Pakan'!F$28,IF($B9=23,'Bahan Pakan'!F$29,IF($B9=24,'Bahan Pakan'!F$30,IF($B9=25,'Bahan Pakan'!F$31,IF($B9=26,'Bahan Pakan'!F$32,IF($B9=27,'Bahan Pakan'!F$33,IF($B9=28,'Bahan Pakan'!F$34,IF($B9=29,'Bahan Pakan'!F$35,IF($B9=30,'Bahan Pakan'!F$36,IF($B9=31,'Bahan Pakan'!F$37,IF($B9=32,'Bahan Pakan'!F$38,IF($B9=33,'Bahan Pakan'!F$39,IF($B9=34,'Bahan Pakan'!F$40,IF($B9=35,'Bahan Pakan'!F$41,IF($B9=36,'Bahan Pakan'!F$42,IF($B9=37,'Bahan Pakan'!F$43,IF($B9=38,'Bahan Pakan'!F$44,IF($B9=39,'Bahan Pakan'!F$45,IF($B9=40,'Bahan Pakan'!F$46,IF($B9=41,'Bahan Pakan'!F$47,IF($B9=42,'Bahan Pakan'!F$48,IF($B9=43,'Bahan Pakan'!F$49,IF($B9=44,'Bahan Pakan'!F$50,IF($B9=45,'Bahan Pakan'!F$51,IF($B9=46,'Bahan Pakan'!F$52,IF($B9=47,'Bahan Pakan'!F$53,IF($B9=48,'Bahan Pakan'!F$54,IF($B9=49,'Bahan Pakan'!F$55,IF($B9=50,'Bahan Pakan'!F$56,0)))))))))))))))))))))))))))))))))))))))))))))))))) -> 30 | G9: 30 | H9: 33.22259136 | I9: 27.77950999 | J9: 277.7950999 | K9: =IF($B9=1,'Bahan Pakan'!G$7,IF($B9=2,'Bahan Pakan'!G$8,IF($B9=3,'Bahan Pakan'!G$9,IF($B9=4,'Bahan Pakan'!G$10,IF($B9=5,'Bahan Pakan'!G$11,IF($B9=6,'Bahan Pakan'!G$12,IF($B9=7,'Bahan Pakan'!G$13,IF($B9=8,'Bahan Pakan'!G$14,IF($B9=9,'Bahan Pakan'!G$15,IF($B9=10,'Bahan Pakan'!G$16,IF($B9=11,'Bahan Pakan'!G$17,IF($B9=12,'Bahan Pakan'!G$18,IF($B9=13,'Bahan Pakan'!G$19,IF($B9=14,'Bahan Pakan'!G$20,IF($B9=15,'Bahan Pakan'!G$21,IF($B9=16,'Bahan Pakan'!G$22,IF($B9=17,'Bahan Pakan'!G$23,IF($B9=18,'Bahan Pakan'!G$24,IF($B9=19,'Bahan Pakan'!G$25,IF($B9=20,'Bahan Pakan'!G$26,IF($B9=21,'Bahan Pakan'!G$27,IF($B9=22,'Bahan Pakan'!G$28,IF($B9=23,'Bahan Pakan'!G$29,IF($B9=24,'Bahan Pakan'!G$30,IF($B9=25,'Bahan Pakan'!G$31,IF($B9=26,'Bahan Pakan'!G$32,IF($B9=27,'Bahan Pakan'!G$33,IF($B9=28,'Bahan Pakan'!G$34,IF($B9=29,'Bahan Pakan'!G$35,IF($B9=30,'Bahan Pakan'!G$36,IF($B9=31,'Bahan Pakan'!G$37,IF($B9=32,'Bahan Pakan'!G$38,IF($B9=33,'Bahan Pakan'!G$39,IF($B9=34,'Bahan Pakan'!G$40,IF($B9=35,'Bahan Pakan'!G$41,IF($B9=36,'Bahan Pakan'!G$42,IF($B9=37,'Bahan Pakan'!G$43,IF($B9=38,'Bahan Pakan'!G$44,IF($B9=39,'Bahan Pakan'!G$45,IF($B9=40,'Bahan Pakan'!G$46,IF($B9=41,'Bahan Pakan'!G$47,IF($B9=42,'Bahan Pakan'!G$48,IF($B9=43,'Bahan Pakan'!G$49,IF($B9=44,'Bahan Pakan'!G$50,IF($B9=45,'Bahan Pakan'!G$51,IF($B9=46,'Bahan Pakan'!G$52,IF($B9=47,'Bahan Pakan'!G$53,IF($B9=48,'Bahan Pakan'!G$54,IF($B9=49,'Bahan Pakan'!G$55,IF($B9=50,'Bahan Pakan'!G$56,0)))))))))))))))))))))))))))))))))))))))))))))))))) -> 1400 | L9: =IF($B9=1,'Bahan Pakan'!H$7,IF($B9=2,'Bahan Pakan'!H$8,IF($B9=3,'Bahan Pakan'!H$9,IF($B9=4,'Bahan Pakan'!H$10,IF($B9=5,'Bahan Pakan'!H$11,IF($B9=6,'Bahan Pakan'!H$12,IF($B9=7,'Bahan Pakan'!H$13,IF($B9=8,'Bahan Pakan'!H$14,IF($B9=9,'Bahan Pakan'!H$15,IF($B9=10,'Bahan Pakan'!H$16,IF($B9=11,'Bahan Pakan'!H$17,IF($B9=12,'Bahan Pakan'!H$18,IF($B9=13,'Bahan Pakan'!H$19,IF($B9=14,'Bahan Pakan'!H$20,IF($B9=15,'Bahan Pakan'!H$21,IF($B9=16,'Bahan Pakan'!H$22,IF($B9=17,'Bahan Pakan'!H$23,IF($B9=18,'Bahan Pakan'!H$24,IF($B9=19,'Bahan Pakan'!H$25,IF($B9=20,'Bahan Pakan'!H$26,IF($B9=21,'Bahan Pakan'!H$27,IF($B9=22,'Bahan Pakan'!H$28,IF($B9=23,'Bahan Pakan'!H$29,IF($B9=24,'Bahan Pakan'!H$30,IF($B9=25,'Bahan Pakan'!H$31,IF($B9=26,'Bahan Pakan'!H$32,IF($B9=27,'Bahan Pakan'!H$33,IF($B9=28,'Bahan Pakan'!H$34,IF($B9=29,'Bahan Pakan'!H$35,IF($B9=30,'Bahan Pakan'!H$36,IF($B9=31,'Bahan Pakan'!H$37,IF($B9=32,'Bahan Pakan'!H$38,IF($B9=33,'Bahan Pakan'!H$39,IF($B9=34,'Bahan Pakan'!H$40,IF($B9=35,'Bahan Pakan'!H$41,IF($B9=36,'Bahan Pakan'!H$42,IF($B9=37,'Bahan Pakan'!H$43,IF($B9=38,'Bahan Pakan'!H$44,IF($B9=39,'Bahan Pakan'!H$45,IF($B9=40,'Bahan Pakan'!H$46,IF($B9=41,'Bahan Pakan'!H$47,IF($B9=42,'Bahan Pakan'!H$48,IF($B9=43,'Bahan Pakan'!H$49,IF($B9=44,'Bahan Pakan'!H$50,IF($B9=45,'Bahan Pakan'!H$51,IF($B9=46,'Bahan Pakan'!H$52,IF($B9=47,'Bahan Pakan'!H$53,IF($B9=48,'Bahan Pakan'!H$54,IF($B9=49,'Bahan Pakan'!H$55,IF($B9=50,'Bahan Pakan'!H$56,0)))))))))))))))))))))))))))))))))))))))))))))))))) -> 90.3 | M9: 70 | N9: =IF($B9=1,'Bahan Pakan'!J$7,IF($B9=2,'Bahan Pakan'!J$8,IF($B9=3,'Bahan Pakan'!J$9,IF($B9=4,'Bahan Pakan'!J$10,IF($B9=5,'Bahan Pakan'!J$11,IF($B9=6,'Bahan Pakan'!J$12,IF($B9=7,'Bahan Pakan'!J$13,IF($B9=8,'Bahan Pakan'!J$14,IF($B9=9,'Bahan Pakan'!J$15,IF($B9=10,'Bahan Pakan'!J$16,IF($B9=11,'Bahan Pakan'!J$17,IF($B9=12,'Bahan Pakan'!J$18,IF($B9=13,'Bahan Pakan'!J$19,IF($B9=14,'Bahan Pakan'!J$20,IF($B9=15,'Bahan Pakan'!J$21,IF($B9=16,'Bahan Pakan'!J$22,IF($B9=17,'Bahan Pakan'!J$23,IF($B9=18,'Bahan Pakan'!J$24,IF($B9=19,'Bahan Pakan'!J$25,IF($B9=20,'Bahan Pakan'!J$26,IF($B9=21,'Bahan Pakan'!J$27,IF($B9=22,'Bahan Pakan'!J$28,IF($B9=23,'Bahan Pakan'!J$29,IF($B9=24,'Bahan Pakan'!J$30,IF($B9=25,'Bahan Pakan'!J$31,IF($B9=26,'Bahan Pakan'!J$32,IF($B9=27,'Bahan Pakan'!J$33,IF($B9=28,'Bahan Pakan'!J$34,IF($B9=29,'Bahan Pakan'!J$35,IF($B9=30,'Bahan Pakan'!J$36,IF($B9=31,'Bahan Pakan'!J$37,IF($B9=32,'Bahan Pakan'!J$38,IF($B9=33,'Bahan Pakan'!J$39,IF($B9=34,'Bahan Pakan'!J$40,IF($B9=35,'Bahan Pakan'!J$41,IF($B9=36,'Bahan Pakan'!J$42,IF($B9=37,'Bahan Pakan'!J$43,IF($B9=38,'Bahan Pakan'!J$44,IF($B9=39,'Bahan Pakan'!J$45,IF($B9=40,'Bahan Pakan'!J$46,IF($B9=41,'Bahan Pakan'!J$47,IF($B9=42,'Bahan Pakan'!J$48,IF($B9=43,'Bahan Pakan'!J$49,IF($B9=44,'Bahan Pakan'!J$50,IF($B9=45,'Bahan Pakan'!J$51,IF($B9=46,'Bahan Pakan'!J$52,IF($B9=47,'Bahan Pakan'!J$53,IF($B9=48,'Bahan Pakan'!J$54,IF($B9=49,'Bahan Pakan'!J$55,IF($B9=50,'Bahan Pakan'!J$56,0)))))))))))))))))))))))))))))))))))))))))))))))))) -> 16.8 | O9: =IF($B9=1,'Bahan Pakan'!K$7,IF($B9=2,'Bahan Pakan'!K$8,IF($B9=3,'Bahan Pakan'!K$9,IF($B9=4,'Bahan Pakan'!K$10,IF($B9=5,'Bahan Pakan'!K$11,IF($B9=6,'Bahan Pakan'!K$12,IF($B9=7,'Bahan Pakan'!K$13,IF($B9=8,'Bahan Pakan'!K$14,IF($B9=9,'Bahan Pakan'!K$15,IF($B9=10,'Bahan Pakan'!K$16,IF($B9=11,'Bahan Pakan'!K$17,IF($B9=12,'Bahan Pakan'!K$18,IF($B9=13,'Bahan Pakan'!K$19,IF($B9=14,'Bahan Pakan'!K$20,IF($B9=15,'Bahan Pakan'!K$21,IF($B9=16,'Bahan Pakan'!K$22,IF($B9=17,'Bahan Pakan'!K$23,IF($B9=18,'Bahan Pakan'!K$24,IF($B9=19,'Bahan Pakan'!K$25,IF($B9=20,'Bahan Pakan'!K$26,IF($B9=21,'Bahan Pakan'!K$27,IF($B9=22,'Bahan Pakan'!K$28,IF($B9=23,'Bahan Pakan'!K$29,IF($B9=24,'Bahan Pakan'!K$30,IF($B9=25,'Bahan Pakan'!K$31,IF($B9=26,'Bahan Pakan'!K$32,IF($B9=27,'Bahan Pakan'!K$33,IF($B9=28,'Bahan Pakan'!K$34,IF($B9=29,'Bahan Pakan'!K$35,IF($B9=30,'Bahan Pakan'!K$36,IF($B9=31,'Bahan Pakan'!K$37,IF($B9=32,'Bahan Pakan'!K$38,IF($B9=33,'Bahan Pakan'!K$39,IF($B9=34,'Bahan Pakan'!K$40,IF($B9=35,'Bahan Pakan'!K$41,IF($B9=36,'Bahan Pakan'!K$42,IF($B9=37,'Bahan Pakan'!K$43,IF($B9=38,'Bahan Pakan'!K$44,IF($B9=39,'Bahan Pakan'!K$45,IF($B9=40,'Bahan Pakan'!K$46,IF($B9=41,'Bahan Pakan'!K$47,IF($B9=42,'Bahan Pakan'!K$48,IF($B9=43,'Bahan Pakan'!K$49,IF($B9=44,'Bahan Pakan'!K$50,IF($B9=45,'Bahan Pakan'!K$51,IF($B9=46,'Bahan Pakan'!K$52,IF($B9=47,'Bahan Pakan'!K$53,IF($B9=48,'Bahan Pakan'!K$54,IF($B9=49,'Bahan Pakan'!K$55,IF($B9=50,'Bahan Pakan'!K$56,0)))))))))))))))))))))))))))))))))))))))))))))))))) -> 11.9 | P9: =IF($B9=1,'Bahan Pakan'!L$7,IF($B9=2,'Bahan Pakan'!L$8,IF($B9=3,'Bahan Pakan'!L$9,IF($B9=4,'Bahan Pakan'!L$10,IF($B9=5,'Bahan Pakan'!L$11,IF($B9=6,'Bahan Pakan'!L$12,IF($B9=7,'Bahan Pakan'!L$13,IF($B9=8,'Bahan Pakan'!L$14,IF($B9=9,'Bahan Pakan'!L$15,IF($B9=10,'Bahan Pakan'!L$16,IF($B9=11,'Bahan Pakan'!L$17,IF($B9=12,'Bahan Pakan'!L$18,IF($B9=13,'Bahan Pakan'!L$19,IF($B9=14,'Bahan Pakan'!L$20,IF($B9=15,'Bahan Pakan'!L$21,IF($B9=16,'Bahan Pakan'!L$22,IF($B9=17,'Bahan Pakan'!L$23,IF($B9=18,'Bahan Pakan'!L$24,IF($B9=19,'Bahan Pakan'!L$25,IF($B9=20,'Bahan Pakan'!L$26,IF($B9=21,'Bahan Pakan'!L$27,IF($B9=22,'Bahan Pakan'!L$28,IF($B9=23,'Bahan Pakan'!L$29,IF($B9=24,'Bahan Pakan'!L$30,IF($B9=25,'Bahan Pakan'!L$31,IF($B9=26,'Bahan Pakan'!L$32,IF($B9=27,'Bahan Pakan'!L$33,IF($B9=28,'Bahan Pakan'!L$34,IF($B9=29,'Bahan Pakan'!L$35,IF($B9=30,'Bahan Pakan'!L$36,IF($B9=31,'Bahan Pakan'!L$37,IF($B9=32,'Bahan Pakan'!L$38,IF($B9=33,'Bahan Pakan'!L$39,IF($B9=34,'Bahan Pakan'!L$40,IF($B9=35,'Bahan Pakan'!L$41,IF($B9=36,'Bahan Pakan'!L$42,IF($B9=37,'Bahan Pakan'!L$43,IF($B9=38,'Bahan Pakan'!L$44,IF($B9=39,'Bahan Pakan'!L$45,IF($B9=40,'Bahan Pakan'!L$46,IF($B9=41,'Bahan Pakan'!L$47,IF($B9=42,'Bahan Pakan'!L$48,IF($B9=43,'Bahan Pakan'!L$49,IF($B9=44,'Bahan Pakan'!L$50,IF($B9=45,'Bahan Pakan'!L$51,IF($B9=46,'Bahan Pakan'!L$52,IF($B9=47,'Bahan Pakan'!L$53,IF($B9=48,'Bahan Pakan'!L$54,IF($B9=49,'Bahan Pakan'!L$55,IF($B9=50,'Bahan Pakan'!L$56,0)))))))))))))))))))))))))))))))))))))))))))))))))) -> 22.6 | Q9: =IF($B9=1,'Bahan Pakan'!M$7,IF($B9=2,'Bahan Pakan'!M$8,IF($B9=3,'Bahan Pakan'!M$9,IF($B9=4,'Bahan Pakan'!M$10,IF($B9=5,'Bahan Pakan'!M$11,IF($B9=6,'Bahan Pakan'!M$12,IF($B9=7,'Bahan Pakan'!M$13,IF($B9=8,'Bahan Pakan'!M$14,IF($B9=9,'Bahan Pakan'!M$15,IF($B9=10,'Bahan Pakan'!M$16,IF($B9=11,'Bahan Pakan'!M$17,IF($B9=12,'Bahan Pakan'!M$18,IF($B9=13,'Bahan Pakan'!M$19,IF($B9=14,'Bahan Pakan'!M$20,IF($B9=15,'Bahan Pakan'!M$21,IF($B9=16,'Bahan Pakan'!M$22,IF($B9=17,'Bahan Pakan'!M$23,IF($B9=18,'Bahan Pakan'!M$24,IF($B9=19,'Bahan Pakan'!M$25,IF($B9=20,'Bahan Pakan'!M$26,IF($B9=21,'Bahan Pakan'!M$27,IF($B9=22,'Bahan Pakan'!M$28,IF($B9=23,'Bahan Pakan'!M$29,IF($B9=24,'Bahan Pakan'!M$30,IF($B9=25,'Bahan Pakan'!M$31,IF($B9=26,'Bahan Pakan'!M$32,IF($B9=27,'Bahan Pakan'!M$33,IF($B9=28,'Bahan Pakan'!M$34,IF($B9=29,'Bahan Pakan'!M$35,IF($B9=30,'Bahan Pakan'!M$36,IF($B9=31,'Bahan Pakan'!M$37,IF($B9=32,'Bahan Pakan'!M$38,IF($B9=33,'Bahan Pakan'!M$39,IF($B9=34,'Bahan Pakan'!M$40,IF($B9=35,'Bahan Pakan'!M$41,IF($B9=36,'Bahan Pakan'!M$42,IF($B9=37,'Bahan Pakan'!M$43,IF($B9=38,'Bahan Pakan'!M$44,IF($B9=39,'Bahan Pakan'!M$45,IF($B9=40,'Bahan Pakan'!M$46,IF($B9=41,'Bahan Pakan'!M$47,IF($B9=42,'Bahan Pakan'!M$48,IF($B9=43,'Bahan Pakan'!M$49,IF($B9=44,'Bahan Pakan'!M$50,IF($B9=45,'Bahan Pakan'!M$51,IF($B9=46,'Bahan Pakan'!M$52,IF($B9=47,'Bahan Pakan'!M$53,IF($B9=48,'Bahan Pakan'!M$54,IF($B9=49,'Bahan Pakan'!M$55,IF($B9=50,'Bahan Pakan'!M$56,0)))))))))))))))))))))))))))))))))))))))))))))))))) -> 44.6 | R9: =IF($B9=1,'Bahan Pakan'!N$7,IF($B9=2,'Bahan Pakan'!N$8,IF($B9=3,'Bahan Pakan'!N$9,IF($B9=4,'Bahan Pakan'!N$10,IF($B9=5,'Bahan Pakan'!N$11,IF($B9=6,'Bahan Pakan'!N$12,IF($B9=7,'Bahan Pakan'!N$13,IF($B9=8,'Bahan Pakan'!N$14,IF($B9=9,'Bahan Pakan'!N$15,IF($B9=10,'Bahan Pakan'!N$16,IF($B9=11,'Bahan Pakan'!N$17,IF($B9=12,'Bahan Pakan'!N$18,IF($B9=13,'Bahan Pakan'!N$19,IF($B9=14,'Bahan Pakan'!N$20,IF($B9=15,'Bahan Pakan'!N$21,IF($B9=16,'Bahan Pakan'!N$22,IF($B9=17,'Bahan Pakan'!N$23,IF($B9=18,'Bahan Pakan'!N$24,IF($B9=19,'Bahan Pakan'!N$25,IF($B9=20,'Bahan Pakan'!N$26,IF($B9=21,'Bahan Pakan'!N$27,IF($B9=22,'Bahan Pakan'!N$28,IF($B9=23,'Bahan Pakan'!N$29,IF($B9=24,'Bahan Pakan'!N$30,IF($B9=25,'Bahan Pakan'!N$31,IF($B9=26,'Bahan Pakan'!N$32,IF($B9=27,'Bahan Pakan'!N$33,IF($B9=28,'Bahan Pakan'!N$34,IF($B9=29,'Bahan Pakan'!N$35,IF($B9=30,'Bahan Pakan'!N$36,IF($B9=31,'Bahan Pakan'!N$37,IF($B9=32,'Bahan Pakan'!N$38,IF($B9=33,'Bahan Pakan'!N$39,IF($B9=34,'Bahan Pakan'!N$40,IF($B9=35,'Bahan Pakan'!N$41,IF($B9=36,'Bahan Pakan'!N$42,IF($B9=37,'Bahan Pakan'!N$43,IF($B9=38,'Bahan Pakan'!N$44,IF($B9=39,'Bahan Pakan'!N$45,IF($B9=40,'Bahan Pakan'!N$46,IF($B9=41,'Bahan Pakan'!N$47,IF($B9=42,'Bahan Pakan'!N$48,IF($B9=43,'Bahan Pakan'!N$49,IF($B9=44,'Bahan Pakan'!N$50,IF($B9=45,'Bahan Pakan'!N$51,IF($B9=46,'Bahan Pakan'!N$52,IF($B9=47,'Bahan Pakan'!N$53,IF($B9=48,'Bahan Pakan'!N$54,IF($B9=49,'Bahan Pakan'!N$55,IF($B9=50,'Bahan Pakan'!N$56,0)))))))))))))))))))))))))))))))))))))))))))))))))) -> 79 | S9: =IF($B9=1,'Bahan Pakan'!O$7,IF($B9=2,'Bahan Pakan'!O$8,IF($B9=3,'Bahan Pakan'!O$9,IF($B9=4,'Bahan Pakan'!O$10,IF($B9=5,'Bahan Pakan'!O$11,IF($B9=6,'Bahan Pakan'!O$12,IF($B9=7,'Bahan Pakan'!O$13,IF($B9=8,'Bahan Pakan'!O$14,IF($B9=9,'Bahan Pakan'!O$15,IF($B9=10,'Bahan Pakan'!O$16,IF($B9=11,'Bahan Pakan'!O$17,IF($B9=12,'Bahan Pakan'!O$18,IF($B9=13,'Bahan Pakan'!O$19,IF($B9=14,'Bahan Pakan'!O$20,IF($B9=15,'Bahan Pakan'!O$21,IF($B9=16,'Bahan Pakan'!O$22,IF($B9=17,'Bahan Pakan'!O$23,IF($B9=18,'Bahan Pakan'!O$24,IF($B9=19,'Bahan Pakan'!O$25,IF($B9=20,'Bahan Pakan'!O$26,IF($B9=21,'Bahan Pakan'!O$27,IF($B9=22,'Bahan Pakan'!O$28,IF($B9=23,'Bahan Pakan'!O$29,IF($B9=24,'Bahan Pakan'!O$30,IF($B9=25,'Bahan Pakan'!O$31,IF($B9=26,'Bahan Pakan'!O$32,IF($B9=27,'Bahan Pakan'!O$33,IF($B9=28,'Bahan Pakan'!O$34,IF($B9=29,'Bahan Pakan'!O$35,IF($B9=30,'Bahan Pakan'!O$36,IF($B9=31,'Bahan Pakan'!O$37,IF($B9=32,'Bahan Pakan'!O$38,IF($B9=33,'Bahan Pakan'!O$39,IF($B9=34,'Bahan Pakan'!O$40,IF($B9=35,'Bahan Pakan'!O$41,IF($B9=36,'Bahan Pakan'!O$42,IF($B9=37,'Bahan Pakan'!O$43,IF($B9=38,'Bahan Pakan'!O$44,IF($B9=39,'Bahan Pakan'!O$45,IF($B9=40,'Bahan Pakan'!O$46,IF($B9=41,'Bahan Pakan'!O$47,IF($B9=42,'Bahan Pakan'!O$48,IF($B9=43,'Bahan Pakan'!O$49,IF($B9=44,'Bahan Pakan'!O$50,IF($B9=45,'Bahan Pakan'!O$51,IF($B9=46,'Bahan Pakan'!O$52,IF($B9=47,'Bahan Pakan'!O$53,IF($B9=48,'Bahan Pakan'!O$54,IF($B9=49,'Bahan Pakan'!O$55,IF($B9=50,'Bahan Pakan'!O$56,0)))))))))))))))))))))))))))))))))))))))))))))))))) -> 0.165 | T9: =IF($B9=1,'Bahan Pakan'!P$7,IF($B9=2,'Bahan Pakan'!P$8,IF($B9=3,'Bahan Pakan'!P$9,IF($B9=4,'Bahan Pakan'!P$10,IF($B9=5,'Bahan Pakan'!P$11,IF($B9=6,'Bahan Pakan'!P$12,IF($B9=7,'Bahan Pakan'!P$13,IF($B9=8,'Bahan Pakan'!P$14,IF($B9=9,'Bahan Pakan'!P$15,IF($B9=10,'Bahan Pakan'!P$16,IF($B9=11,'Bahan Pakan'!P$17,IF($B9=12,'Bahan Pakan'!P$18,IF($B9=13,'Bahan Pakan'!P$19,IF($B9=14,'Bahan Pakan'!P$20,IF($B9=15,'Bahan Pakan'!P$21,IF($B9=16,'Bahan Pakan'!P$22,IF($B9=17,'Bahan Pakan'!P$23,IF($B9=18,'Bahan Pakan'!P$24,IF($B9=19,'Bahan Pakan'!P$25,IF($B9=20,'Bahan Pakan'!P$26,IF($B9=21,'Bahan Pakan'!P$27,IF($B9=22,'Bahan Pakan'!P$28,IF($B9=23,'Bahan Pakan'!P$29,IF($B9=24,'Bahan Pakan'!P$30,IF($B9=25,'Bahan Pakan'!P$31,IF($B9=26,'Bahan Pakan'!P$32,IF($B9=27,'Bahan Pakan'!P$33,IF($B9=28,'Bahan Pakan'!P$34,IF($B9=29,'Bahan Pakan'!P$35,IF($B9=30,'Bahan Pakan'!P$36,IF($B9=31,'Bahan Pakan'!P$37,IF($B9=32,'Bahan Pakan'!P$38,IF($B9=33,'Bahan Pakan'!P$39,IF($B9=34,'Bahan Pakan'!P$40,IF($B9=35,'Bahan Pakan'!P$41,IF($B9=36,'Bahan Pakan'!P$42,IF($B9=37,'Bahan Pakan'!P$43,IF($B9=38,'Bahan Pakan'!P$44,IF($B9=39,'Bahan Pakan'!P$45,IF($B9=40,'Bahan Pakan'!P$46,IF($B9=41,'Bahan Pakan'!P$47,IF($B9=42,'Bahan Pakan'!P$48,IF($B9=43,'Bahan Pakan'!P$49,IF($B9=44,'Bahan Pakan'!P$50,IF($B9=45,'Bahan Pakan'!P$51,IF($B9=46,'Bahan Pakan'!P$52,IF($B9=47,'Bahan Pakan'!P$53,IF($B9=48,'Bahan Pakan'!P$54,IF($B9=49,'Bahan Pakan'!P$55,IF($B9=50,'Bahan Pakan'!P$56,0)))))))))))))))))))))))))))))))))))))))))))))))))) -> 0.616 | Y9: Protein Kasar | Z9: % | AA9: 13 | AB9: 15 | AC9: =L45 -> 12.48461
B10: =IF($D10='Bahan Pakan'!D$7,1,IF($D10='Bahan Pakan'!D$8,2,IF($D10='Bahan Pakan'!D$9,3,IF($D10='Bahan Pakan'!D$10,4,IF($D10='Bahan Pakan'!D$11,5,IF($D10='Bahan Pakan'!D$12,6,IF($D10='Bahan Pakan'!D$13,7,IF($D10='Bahan Pakan'!D$14,8,IF($D10='Bahan Pakan'!D$15,9,IF($D10='Bahan Pakan'!D$16,10,IF($D10='Bahan Pakan'!D$17,11,IF($D10='Bahan Pakan'!D$18,12,IF($D10='Bahan Pakan'!D$19,13,IF($D10='Bahan Pakan'!D$20,14,IF($D10='Bahan Pakan'!D$21,15,IF($D10='Bahan Pakan'!D$22,16,IF($D10='Bahan Pakan'!D$23,17,IF($D10='Bahan Pakan'!D$24,18,IF($D10='Bahan Pakan'!D$25,19,IF($D10='Bahan Pakan'!D$26,20,IF($D10='Bahan Pakan'!D$27,21,IF($D10='Bahan Pakan'!D$28,22,IF($D10='Bahan Pakan'!D$29,23,IF($D10='Bahan Pakan'!D$30,24,IF($D10='Bahan Pakan'!D$31,25,IF($D10='Bahan Pakan'!D$32,26,IF($D10='Bahan Pakan'!D$33,27,IF($D10='Bahan Pakan'!D$34,28,IF($D10='Bahan Pakan'!D$35,29,IF($D10='Bahan Pakan'!D$36,30,IF($D10='Bahan Pakan'!D$37,31,IF($D10='Bahan Pakan'!D$38,32,IF($D10='Bahan Pakan'!D$39,33,IF($D10='Bahan Pakan'!D$40,34,IF($D10='Bahan Pakan'!D$41,35,IF($D10='Bahan Pakan'!D$42,36,IF($D10='Bahan Pakan'!D$43,37,IF($D10='Bahan Pakan'!D$44,38,IF($D10='Bahan Pakan'!D$45,39,IF($D10='Bahan Pakan'!D$46,40,IF($D10='Bahan Pakan'!D$47,41,IF($D10='Bahan Pakan'!D$48,42,IF($D10='Bahan Pakan'!D$49,43,IF($D10='Bahan Pakan'!D$50,44,IF($D10='Bahan Pakan'!D$51,45,IF($D10='Bahan Pakan'!D$52,46,IF($D10='Bahan Pakan'!D$53,47,IF($D10='Bahan Pakan'!D$54,48,IF($D10='Bahan Pakan'!D$55,49,IF($D10='Bahan Pakan'!D$56,50,0)))))))))))))))))))))))))))))))))))))))))))))))))) -> 28 | C10: 4 | D10: Molases | E10: =IF($B10=1,'Bahan Pakan'!E$7,IF($B10=2,'Bahan Pakan'!E$8,IF($B10=3,'Bahan Pakan'!E$9,IF($B10=4,'Bahan Pakan'!E$10,IF($B10=5,'Bahan Pakan'!E$11,IF($B10=6,'Bahan Pakan'!E$12,IF($B10=7,'Bahan Pakan'!E$13,IF($B10=8,'Bahan Pakan'!E$14,IF($B10=9,'Bahan Pakan'!E$15,IF($B10=10,'Bahan Pakan'!E$16,IF($B10=11,'Bahan Pakan'!E$17,IF($B10=12,'Bahan Pakan'!E$18,IF($B10=13,'Bahan Pakan'!E$19,IF($B10=14,'Bahan Pakan'!E$20,IF($B10=15,'Bahan Pakan'!E$21,IF($B10=16,'Bahan Pakan'!E$22,IF($B10=17,'Bahan Pakan'!E$23,IF($B10=18,'Bahan Pakan'!E$24,IF($B10=19,'Bahan Pakan'!E$25,IF($B10=20,'Bahan Pakan'!E$26,IF($B10=21,'Bahan Pakan'!E$27,IF($B10=22,'Bahan Pakan'!E$28,IF($B10=23,'Bahan Pakan'!E$29,IF($B10=24,'Bahan Pakan'!E$30,IF($B10=25,'Bahan Pakan'!E$31,IF($B10=26,'Bahan Pakan'!E$32,IF($B10=27,'Bahan Pakan'!E$33,IF($B10=28,'Bahan Pakan'!E$34,IF($B10=29,'Bahan Pakan'!E$35,IF($B10=30,'Bahan Pakan'!E$36,IF($B10=31,'Bahan Pakan'!E$37,IF($B10=32,'Bahan Pakan'!E$38,IF($B10=33,'Bahan Pakan'!E$39,IF($B10=34,'Bahan Pakan'!E$40,IF($B10=35,'Bahan Pakan'!E$41,IF($B10=36,'Bahan Pakan'!E$42,IF($B10=37,'Bahan Pakan'!E$43,IF($B10=38,'Bahan Pakan'!E$44,IF($B10=39,'Bahan Pakan'!E$45,IF($B10=40,'Bahan Pakan'!E$46,IF($B10=41,'Bahan Pakan'!E$47,IF($B10=42,'Bahan Pakan'!E$48,IF($B10=43,'Bahan Pakan'!E$49,IF($B10=44,'Bahan Pakan'!E$50,IF($B10=45,'Bahan Pakan'!E$51,IF($B10=46,'Bahan Pakan'!E$52,IF($B10=47,'Bahan Pakan'!E$53,IF($B10=48,'Bahan Pakan'!E$54,IF($B10=49,'Bahan Pakan'!E$55,IF($B10=50,'Bahan Pakan'!E$56,0)))))))))))))))))))))))))))))))))))))))))))))))))) -> 5 | F10: 15 | G10: 10 | H10: 14.10636197 | I10: 11.79522148 | J10: 117.9522148 | K10: =IF($B10=1,'Bahan Pakan'!G$7,IF($B10=2,'Bahan Pakan'!G$8,IF($B10=3,'Bahan Pakan'!G$9,IF($B10=4,'Bahan Pakan'!G$10,IF($B10=5,'Bahan Pakan'!G$11,IF($B10=6,'Bahan Pakan'!G$12,IF($B10=7,'Bahan Pakan'!G$13,IF($B10=8,'Bahan Pakan'!G$14,IF($B10=9,'Bahan Pakan'!G$15,IF($B10=10,'Bahan Pakan'!G$16,IF($B10=11,'Bahan Pakan'!G$17,IF($B10=12,'Bahan Pakan'!G$18,IF($B10=13,'Bahan Pakan'!G$19,IF($B10=14,'Bahan Pakan'!G$20,IF($B10=15,'Bahan Pakan'!G$21,IF($B10=16,'Bahan Pakan'!G$22,IF($B10=17,'Bahan Pakan'!G$23,IF($B10=18,'Bahan Pakan'!G$24,IF($B10=19,'Bahan Pakan'!G$25,IF($B10=20,'Bahan Pakan'!G$26,IF($B10=21,'Bahan Pakan'!G$27,IF($B10=22,'Bahan Pakan'!G$28,IF($B10=23,'Bahan Pakan'!G$29,IF($B10=24,'Bahan Pakan'!G$30,IF($B10=25,'Bahan Pakan'!G$31,IF($B10=26,'Bahan Pakan'!G$32,IF($B10=27,'Bahan Pakan'!G$33,IF($B10=28,'Bahan Pakan'!G$34,IF($B10=29,'Bahan Pakan'!G$35,IF($B10=30,'Bahan Pakan'!G$36,IF($B10=31,'Bahan Pakan'!G$37,IF($B10=32,'Bahan Pakan'!G$38,IF($B10=33,'Bahan Pakan'!G$39,IF($B10=34,'Bahan Pakan'!G$40,IF($B10=35,'Bahan Pakan'!G$41,IF($B10=36,'Bahan Pakan'!G$42,IF($B10=37,'Bahan Pakan'!G$43,IF($B10=38,'Bahan Pakan'!G$44,IF($B10=39,'Bahan Pakan'!G$45,IF($B10=40,'Bahan Pakan'!G$46,IF($B10=41,'Bahan Pakan'!G$47,IF($B10=42,'Bahan Pakan'!G$48,IF($B10=43,'Bahan Pakan'!G$49,IF($B10=44,'Bahan Pakan'!G$50,IF($B10=45,'Bahan Pakan'!G$51,IF($B10=46,'Bahan Pakan'!G$52,IF($B10=47,'Bahan Pakan'!G$53,IF($B10=48,'Bahan Pakan'!G$54,IF($B10=49,'Bahan Pakan'!G$55,IF($B10=50,'Bahan Pakan'!G$56,0)))))))))))))))))))))))))))))))))))))))))))))))))) -> 3000 | L10: =IF($B10=1,'Bahan Pakan'!H$7,IF($B10=2,'Bahan Pakan'!H$8,IF($B10=3,'Bahan Pakan'!H$9,IF($B10=4,'Bahan Pakan'!H$10,IF($B10=5,'Bahan Pakan'!H$11,IF($B10=6,'Bahan Pakan'!H$12,IF($B10=7,'Bahan Pakan'!H$13,IF($B10=8,'Bahan Pakan'!H$14,IF($B10=9,'Bahan Pakan'!H$15,IF($B10=10,'Bahan Pakan'!H$16,IF($B10=11,'Bahan Pakan'!H$17,IF($B10=12,'Bahan Pakan'!H$18,IF($B10=13,'Bahan Pakan'!H$19,IF($B10=14,'Bahan Pakan'!H$20,IF($B10=15,'Bahan Pakan'!H$21,IF($B10=16,'Bahan Pakan'!H$22,IF($B10=17,'Bahan Pakan'!H$23,IF($B10=18,'Bahan Pakan'!H$24,IF($B10=19,'Bahan Pakan'!H$25,IF($B10=20,'Bahan Pakan'!H$26,IF($B10=21,'Bahan Pakan'!H$27,IF($B10=22,'Bahan Pakan'!H$28,IF($B10=23,'Bahan Pakan'!H$29,IF($B10=24,'Bahan Pakan'!H$30,IF($B10=25,'Bahan Pakan'!H$31,IF($B10=26,'Bahan Pakan'!H$32,IF($B10=27,'Bahan Pakan'!H$33,IF($B10=28,'Bahan Pakan'!H$34,IF($B10=29,'Bahan Pakan'!H$35,IF($B10=30,'Bahan Pakan'!H$36,IF($B10=31,'Bahan Pakan'!H$37,IF($B10=32,'Bahan Pakan'!H$38,IF($B10=33,'Bahan Pakan'!H$39,IF($B10=34,'Bahan Pakan'!H$40,IF($B10=35,'Bahan Pakan'!H$41,IF($B10=36,'Bahan Pakan'!H$42,IF($B10=37,'Bahan Pakan'!H$43,IF($B10=38,'Bahan Pakan'!H$44,IF($B10=39,'Bahan Pakan'!H$45,IF($B10=40,'Bahan Pakan'!H$46,IF($B10=41,'Bahan Pakan'!H$47,IF($B10=42,'Bahan Pakan'!H$48,IF($B10=43,'Bahan Pakan'!H$49,IF($B10=44,'Bahan Pakan'!H$50,IF($B10=45,'Bahan Pakan'!H$51,IF($B10=46,'Bahan Pakan'!H$52,IF($B10=47,'Bahan Pakan'!H$53,IF($B10=48,'Bahan Pakan'!H$54,IF($B10=49,'Bahan Pakan'!H$55,IF($B10=50,'Bahan Pakan'!H$56,0)))))))))))))))))))))))))))))))))))))))))))))))))) -> 70.89 | M10: =IF($B10=1,'Bahan Pakan'!I$7,IF($B10=2,'Bahan Pakan'!I$8,IF($B10=3,'Bahan Pakan'!I$9,IF($B10=4,'Bahan Pakan'!I$10,IF($B10=5,'Bahan Pakan'!I$11,IF($B10=6,'Bahan Pakan'!I$12,IF($B10=7,'Bahan Pakan'!I$13,IF($B10=8,'Bahan Pakan'!I$14,IF($B10=9,'Bahan Pakan'!I$15,IF($B10=10,'Bahan Pakan'!I$16,IF($B10=11,'Bahan Pakan'!I$17,IF($B10=12,'Bahan Pakan'!I$18,IF($B10=13,'Bahan Pakan'!I$19,IF($B10=14,'Bahan Pakan'!I$20,IF($B10=15,'Bahan Pakan'!I$21,IF($B10=16,'Bahan Pakan'!I$22,IF($B10=17,'Bahan Pakan'!I$23,IF($B10=18,'Bahan Pakan'!I$24,IF($B10=19,'Bahan Pakan'!I$25,IF($B10=20,'Bahan Pakan'!I$26,IF($B10=21,'Bahan Pakan'!I$27,IF($B10=22,'Bahan Pakan'!I$28,IF($B10=23,'Bahan Pakan'!I$29,IF($B10=24,'Bahan Pakan'!I$30,IF($B10=25,'Bahan Pakan'!I$31,IF($B10=26,'Bahan Pakan'!I$32,IF($B10=27,'Bahan Pakan'!I$33,IF($B10=28,'Bahan Pakan'!I$34,IF($B10=29,'Bahan Pakan'!I$35,IF($B10=30,'Bahan Pakan'!I$36,IF($B10=31,'Bahan Pakan'!I$37,IF($B10=32,'Bahan Pakan'!I$38,IF($B10=33,'Bahan Pakan'!I$39,IF($B10=34,'Bahan Pakan'!I$40,IF($B10=35,'Bahan Pakan'!I$41,IF($B10=36,'Bahan Pakan'!I$42,IF($B10=37,'Bahan Pakan'!I$43,IF($B10=38,'Bahan Pakan'!I$44,IF($B10=39,'Bahan Pakan'!I$45,IF($B10=40,'Bahan Pakan'!I$46,IF($B10=41,'Bahan Pakan'!I$47,IF($B10=42,'Bahan Pakan'!I$48,IF($B10=43,'Bahan Pakan'!I$49,IF($B10=44,'Bahan Pakan'!I$50,IF($B10=45,'Bahan Pakan'!I$51,IF($B10=46,'Bahan Pakan'!I$52,IF($B10=47,'Bahan Pakan'!I$53,IF($B10=48,'Bahan Pakan'!I$54,IF($B10=49,'Bahan Pakan'!I$55,IF($B10=50,'Bahan Pakan'!I$56,0)))))))))))))))))))))))))))))))))))))))))))))))))) -> 4 | N10: =IF($B10=1,'Bahan Pakan'!J$7,IF($B10=2,'Bahan Pakan'!J$8,IF($B10=3,'Bahan Pakan'!J$9,IF($B10=4,'Bahan Pakan'!J$10,IF($B10=5,'Bahan Pakan'!J$11,IF($B10=6,'Bahan Pakan'!J$12,IF($B10=7,'Bahan Pakan'!J$13,IF($B10=8,'Bahan Pakan'!J$14,IF($B10=9,'Bahan Pakan'!J$15,IF($B10=10,'Bahan Pakan'!J$16,IF($B10=11,'Bahan Pakan'!J$17,IF($B10=12,'Bahan Pakan'!J$18,IF($B10=13,'Bahan Pakan'!J$19,IF($B10=14,'Bahan Pakan'!J$20,IF($B10=15,'Bahan Pakan'!J$21,IF($B10=16,'Bahan Pakan'!J$22,IF($B10=17,'Bahan Pakan'!J$23,IF($B10=18,'Bahan Pakan'!J$24,IF($B10=19,'Bahan Pakan'!J$25,IF($B10=20,'Bahan Pakan'!J$26,IF($B10=21,'Bahan Pakan'!J$27,IF($B10=22,'Bahan Pakan'!J$28,IF($B10=23,'Bahan Pakan'!J$29,IF($B10=24,'Bahan Pakan'!J$30,IF($B10=25,'Bahan Pakan'!J$31,IF($B10=26,'Bahan Pakan'!J$32,IF($B10=27,'Bahan Pakan'!J$33,IF($B10=28,'Bahan Pakan'!J$34,IF($B10=29,'Bahan Pakan'!J$35,IF($B10=30,'Bahan Pakan'!J$36,IF($B10=31,'Bahan Pakan'!J$37,IF($B10=32,'Bahan Pakan'!J$38,IF($B10=33,'Bahan Pakan'!J$39,IF($B10=34,'Bahan Pakan'!J$40,IF($B10=35,'Bahan Pakan'!J$41,IF($B10=36,'Bahan Pakan'!J$42,IF($B10=37,'Bahan Pakan'!J$43,IF($B10=38,'Bahan Pakan'!J$44,IF($B10=39,'Bahan Pakan'!J$45,IF($B10=40,'Bahan Pakan'!J$46,IF($B10=41,'Bahan Pakan'!J$47,IF($B10=42,'Bahan Pakan'!J$48,IF($B10=43,'Bahan Pakan'!J$49,IF($B10=44,'Bahan Pakan'!J$50,IF($B10=45,'Bahan Pakan'!J$51,IF($B10=46,'Bahan Pakan'!J$52,IF($B10=47,'Bahan Pakan'!J$53,IF($B10=48,'Bahan Pakan'!J$54,IF($B10=49,'Bahan Pakan'!J$55,IF($B10=50,'Bahan Pakan'!J$56,0)))))))))))))))))))))))))))))))))))))))))))))))))) -> 4 | O10: =IF($B10=1,'Bahan Pakan'!K$7,IF($B10=2,'Bahan Pakan'!K$8,IF($B10=3,'Bahan Pakan'!K$9,IF($B10=4,'Bahan Pakan'!K$10,IF($B10=5,'Bahan Pakan'!K$11,IF($B10=6,'Bahan Pakan'!K$12,IF($B10=7,'Bahan Pakan'!K$13,IF($B10=8,'Bahan Pakan'!K$14,IF($B10=9,'Bahan Pakan'!K$15,IF($B10=10,'Bahan Pakan'!K$16,IF($B10=11,'Bahan Pakan'!K$17,IF($B10=12,'Bahan Pakan'!K$18,IF($B10=13,'Bahan Pakan'!K$19,IF($B10=14,'Bahan Pakan'!K$20,IF($B10=15,'Bahan Pakan'!K$21,IF($B10=16,'Bahan Pakan'!K$22,IF($B10=17,'Bahan Pakan'!K$23,IF($B10=18,'Bahan Pakan'!K$24,IF($B10=19,'Bahan Pakan'!K$25,IF($B10=20,'Bahan Pakan'!K$26,IF($B10=21,'Bahan Pakan'!K$27,IF($B10=22,'Bahan Pakan'!K$28,IF($B10=23,'Bahan Pakan'!K$29,IF($B10=24,'Bahan Pakan'!K$30,IF($B10=25,'Bahan Pakan'!K$31,IF($B10=26,'Bahan Pakan'!K$32,IF($B10=27,'Bahan Pakan'!K$33,IF($B10=28,'Bahan Pakan'!K$34,IF($B10=29,'Bahan Pakan'!K$35,IF($B10=30,'Bahan Pakan'!K$36,IF($B10=31,'Bahan Pakan'!K$37,IF($B10=32,'Bahan Pakan'!K$38,IF($B10=33,'Bahan Pakan'!K$39,IF($B10=34,'Bahan Pakan'!K$40,IF($B10=35,'Bahan Pakan'!K$41,IF($B10=36,'Bahan Pakan'!K$42,IF($B10=37,'Bahan Pakan'!K$43,IF($B10=38,'Bahan Pakan'!K$44,IF($B10=39,'Bahan Pakan'!K$45,IF($B10=40,'Bahan Pakan'!K$46,IF($B10=41,'Bahan Pakan'!K$47,IF($B10=42,'Bahan Pakan'!K$48,IF($B10=43,'Bahan Pakan'!K$49,IF($B10=44,'Bahan Pakan'!K$50,IF($B10=45,'Bahan Pakan'!K$51,IF($B10=46,'Bahan Pakan'!K$52,IF($B10=47,'Bahan Pakan'!K$53,IF($B10=48,'Bahan Pakan'!K$54,IF($B10=49,'Bahan Pakan'!K$55,IF($B10=50,'Bahan Pakan'!K$56,0)))))))))))))))))))))))))))))))))))))))))))))))))) -> 0.1 | P10: =IF($B10=1,'Bahan Pakan'!L$7,IF($B10=2,'Bahan Pakan'!L$8,IF($B10=3,'Bahan Pakan'!L$9,IF($B10=4,'Bahan Pakan'!L$10,IF($B10=5,'Bahan Pakan'!L$11,IF($B10=6,'Bahan Pakan'!L$12,IF($B10=7,'Bahan Pakan'!L$13,IF($B10=8,'Bahan Pakan'!L$14,IF($B10=9,'Bahan Pakan'!L$15,IF($B10=10,'Bahan Pakan'!L$16,IF($B10=11,'Bahan Pakan'!L$17,IF($B10=12,'Bahan Pakan'!L$18,IF($B10=13,'Bahan Pakan'!L$19,IF($B10=14,'Bahan Pakan'!L$20,IF($B10=15,'Bahan Pakan'!L$21,IF($B10=16,'Bahan Pakan'!L$22,IF($B10=17,'Bahan Pakan'!L$23,IF($B10=18,'Bahan Pakan'!L$24,IF($B10=19,'Bahan Pakan'!L$25,IF($B10=20,'Bahan Pakan'!L$26,IF($B10=21,'Bahan Pakan'!L$27,IF($B10=22,'Bahan Pakan'!L$28,IF($B10=23,'Bahan Pakan'!L$29,IF($B10=24,'Bahan Pakan'!L$30,IF($B10=25,'Bahan Pakan'!L$31,IF($B10=26,'Bahan Pakan'!L$32,IF($B10=27,'Bahan Pakan'!L$33,IF($B10=28,'Bahan Pakan'!L$34,IF($B10=29,'Bahan Pakan'!L$35,IF($B10=30,'Bahan Pakan'!L$36,IF($B10=31,'Bahan Pakan'!L$37,IF($B10=32,'Bahan Pakan'!L$38,IF($B10=33,'Bahan Pakan'!L$39,IF($B10=34,'Bahan Pakan'!L$40,IF($B10=35,'Bahan Pakan'!L$41,IF($B10=36,'Bahan Pakan'!L$42,IF($B10=37,'Bahan Pakan'!L$43,IF($B10=38,'Bahan Pakan'!L$44,IF($B10=39,'Bahan Pakan'!L$45,IF($B10=40,'Bahan Pakan'!L$46,IF($B10=41,'Bahan Pakan'!L$47,IF($B10=42,'Bahan Pakan'!L$48,IF($B10=43,'Bahan Pakan'!L$49,IF($B10=44,'Bahan Pakan'!L$50,IF($B10=45,'Bahan Pakan'!L$51,IF($B10=46,'Bahan Pakan'!L$52,IF($B10=47,'Bahan Pakan'!L$53,IF($B10=48,'Bahan Pakan'!L$54,IF($B10=49,'Bahan Pakan'!L$55,IF($B10=50,'Bahan Pakan'!L$56,0)))))))))))))))))))))))))))))))))))))))))))))))))) -> 1 | Q10: =IF($B10=1,'Bahan Pakan'!M$7,IF($B10=2,'Bahan Pakan'!M$8,IF($B10=3,'Bahan Pakan'!M$9,IF($B10=4,'Bahan Pakan'!M$10,IF($B10=5,'Bahan Pakan'!M$11,IF($B10=6,'Bahan Pakan'!M$12,IF($B10=7,'Bahan Pakan'!M$13,IF($B10=8,'Bahan Pakan'!M$14,IF($B10=9,'Bahan Pakan'!M$15,IF($B10=10,'Bahan Pakan'!M$16,IF($B10=11,'Bahan Pakan'!M$17,IF($B10=12,'Bahan Pakan'!M$18,IF($B10=13,'Bahan Pakan'!M$19,IF($B10=14,'Bahan Pakan'!M$20,IF($B10=15,'Bahan Pakan'!M$21,IF($B10=16,'Bahan Pakan'!M$22,IF($B10=17,'Bahan Pakan'!M$23,IF($B10=18,'Bahan Pakan'!M$24,IF($B10=19,'Bahan Pakan'!M$25,IF($B10=20,'Bahan Pakan'!M$26,IF($B10=21,'Bahan Pakan'!M$27,IF($B10=22,'Bahan Pakan'!M$28,IF($B10=23,'Bahan Pakan'!M$29,IF($B10=24,'Bahan Pakan'!M$30,IF($B10=25,'Bahan Pakan'!M$31,IF($B10=26,'Bahan Pakan'!M$32,IF($B10=27,'Bahan Pakan'!M$33,IF($B10=28,'Bahan Pakan'!M$34,IF($B10=29,'Bahan Pakan'!M$35,IF($B10=30,'Bahan Pakan'!M$36,IF($B10=31,'Bahan Pakan'!M$37,IF($B10=32,'Bahan Pakan'!M$38,IF($B10=33,'Bahan Pakan'!M$39,IF($B10=34,'Bahan Pakan'!M$40,IF($B10=35,'Bahan Pakan'!M$41,IF($B10=36,'Bahan Pakan'!M$42,IF($B10=37,'Bahan Pakan'!M$43,IF($B10=38,'Bahan Pakan'!M$44,IF($B10=39,'Bahan Pakan'!M$45,IF($B10=40,'Bahan Pakan'!M$46,IF($B10=41,'Bahan Pakan'!M$47,IF($B10=42,'Bahan Pakan'!M$48,IF($B10=43,'Bahan Pakan'!M$49,IF($B10=44,'Bahan Pakan'!M$50,IF($B10=45,'Bahan Pakan'!M$51,IF($B10=46,'Bahan Pakan'!M$52,IF($B10=47,'Bahan Pakan'!M$53,IF($B10=48,'Bahan Pakan'!M$54,IF($B10=49,'Bahan Pakan'!M$55,IF($B10=50,'Bahan Pakan'!M$56,0)))))))))))))))))))))))))))))))))))))))))))))))))) -> 90.9 | R10: =IF($B10=1,'Bahan Pakan'!N$7,IF($B10=2,'Bahan Pakan'!N$8,IF($B10=3,'Bahan Pakan'!N$9,IF($B10=4,'Bahan Pakan'!N$10,IF($B10=5,'Bahan Pakan'!N$11,IF($B10=6,'Bahan Pakan'!N$12,IF($B10=7,'Bahan Pakan'!N$13,IF($B10=8,'Bahan Pakan'!N$14,IF($B10=9,'Bahan Pakan'!N$15,IF($B10=10,'Bahan Pakan'!N$16,IF($B10=11,'Bahan Pakan'!N$17,IF($B10=12,'Bahan Pakan'!N$18,IF($B10=13,'Bahan Pakan'!N$19,IF($B10=14,'Bahan Pakan'!N$20,IF($B10=15,'Bahan Pakan'!N$21,IF($B10=16,'Bahan Pakan'!N$22,IF($B10=17,'Bahan Pakan'!N$23,IF($B10=18,'Bahan Pakan'!N$24,IF($B10=19,'Bahan Pakan'!N$25,IF($B10=20,'Bahan Pakan'!N$26,IF($B10=21,'Bahan Pakan'!N$27,IF($B10=22,'Bahan Pakan'!N$28,IF($B10=23,'Bahan Pakan'!N$29,IF($B10=24,'Bahan Pakan'!N$30,IF($B10=25,'Bahan Pakan'!N$31,IF($B10=26,'Bahan Pakan'!N$32,IF($B10=27,'Bahan Pakan'!N$33,IF($B10=28,'Bahan Pakan'!N$34,IF($B10=29,'Bahan Pakan'!N$35,IF($B10=30,'Bahan Pakan'!N$36,IF($B10=31,'Bahan Pakan'!N$37,IF($B10=32,'Bahan Pakan'!N$38,IF($B10=33,'Bahan Pakan'!N$39,IF($B10=34,'Bahan Pakan'!N$40,IF($B10=35,'Bahan Pakan'!N$41,IF($B10=36,'Bahan Pakan'!N$42,IF($B10=37,'Bahan Pakan'!N$43,IF($B10=38,'Bahan Pakan'!N$44,IF($B10=39,'Bahan Pakan'!N$45,IF($B10=40,'Bahan Pakan'!N$46,IF($B10=41,'Bahan Pakan'!N$47,IF($B10=42,'Bahan Pakan'!N$48,IF($B10=43,'Bahan Pakan'!N$49,IF($B10=44,'Bahan Pakan'!N$50,IF($B10=45,'Bahan Pakan'!N$51,IF($B10=46,'Bahan Pakan'!N$52,IF($B10=47,'Bahan Pakan'!N$53,IF($B10=48,'Bahan Pakan'!N$54,IF($B10=49,'Bahan Pakan'!N$55,IF($B10=50,'Bahan Pakan'!N$56,0)))))))))))))))))))))))))))))))))))))))))))))))))) -> 80 | S10: =IF($B10=1,'Bahan Pakan'!O$7,IF($B10=2,'Bahan Pakan'!O$8,IF($B10=3,'Bahan Pakan'!O$9,IF($B10=4,'Bahan Pakan'!O$10,IF($B10=5,'Bahan Pakan'!O$11,IF($B10=6,'Bahan Pakan'!O$12,IF($B10=7,'Bahan Pakan'!O$13,IF($B10=8,'Bahan Pakan'!O$14,IF($B10=9,'Bahan Pakan'!O$15,IF($B10=10,'Bahan Pakan'!O$16,IF($B10=11,'Bahan Pakan'!O$17,IF($B10=12,'Bahan Pakan'!O$18,IF($B10=13,'Bahan Pakan'!O$19,IF($B10=14,'Bahan Pakan'!O$20,IF($B10=15,'Bahan Pakan'!O$21,IF($B10=16,'Bahan Pakan'!O$22,IF($B10=17,'Bahan Pakan'!O$23,IF($B10=18,'Bahan Pakan'!O$24,IF($B10=19,'Bahan Pakan'!O$25,IF($B10=20,'Bahan Pakan'!O$26,IF($B10=21,'Bahan Pakan'!O$27,IF($B10=22,'Bahan Pakan'!O$28,IF($B10=23,'Bahan Pakan'!O$29,IF($B10=24,'Bahan Pakan'!O$30,IF($B10=25,'Bahan Pakan'!O$31,IF($B10=26,'Bahan Pakan'!O$32,IF($B10=27,'Bahan Pakan'!O$33,IF($B10=28,'Bahan Pakan'!O$34,IF($B10=29,'Bahan Pakan'!O$35,IF($B10=30,'Bahan Pakan'!O$36,IF($B10=31,'Bahan Pakan'!O$37,IF($B10=32,'Bahan Pakan'!O$38,IF($B10=33,'Bahan Pakan'!O$39,IF($B10=34,'Bahan Pakan'!O$40,IF($B10=35,'Bahan Pakan'!O$41,IF($B10=36,'Bahan Pakan'!O$42,IF($B10=37,'Bahan Pakan'!O$43,IF($B10=38,'Bahan Pakan'!O$44,IF($B10=39,'Bahan Pakan'!O$45,IF($B10=40,'Bahan Pakan'!O$46,IF($B10=41,'Bahan Pakan'!O$47,IF($B10=42,'Bahan Pakan'!O$48,IF($B10=43,'Bahan Pakan'!O$49,IF($B10=44,'Bahan Pakan'!O$50,IF($B10=45,'Bahan Pakan'!O$51,IF($B10=46,'Bahan Pakan'!O$52,IF($B10=47,'Bahan Pakan'!O$53,IF($B10=48,'Bahan Pakan'!O$54,IF($B10=49,'Bahan Pakan'!O$55,IF($B10=50,'Bahan Pakan'!O$56,0)))))))))))))))))))))))))))))))))))))))))))))))))) -> 0.8 | T10: =IF($B10=1,'Bahan Pakan'!P$7,IF($B10=2,'Bahan Pakan'!P$8,IF($B10=3,'Bahan Pakan'!P$9,IF($B10=4,'Bahan Pakan'!P$10,IF($B10=5,'Bahan Pakan'!P$11,IF($B10=6,'Bahan Pakan'!P$12,IF($B10=7,'Bahan Pakan'!P$13,IF($B10=8,'Bahan Pakan'!P$14,IF($B10=9,'Bahan Pakan'!P$15,IF($B10=10,'Bahan Pakan'!P$16,IF($B10=11,'Bahan Pakan'!P$17,IF($B10=12,'Bahan Pakan'!P$18,IF($B10=13,'Bahan Pakan'!P$19,IF($B10=14,'Bahan Pakan'!P$20,IF($B10=15,'Bahan Pakan'!P$21,IF($B10=16,'Bahan Pakan'!P$22,IF($B10=17,'Bahan Pakan'!P$23,IF($B10=18,'Bahan Pakan'!P$24,IF($B10=19,'Bahan Pakan'!P$25,IF($B10=20,'Bahan Pakan'!P$26,IF($B10=21,'Bahan Pakan'!P$27,IF($B10=22,'Bahan Pakan'!P$28,IF($B10=23,'Bahan Pakan'!P$29,IF($B10=24,'Bahan Pakan'!P$30,IF($B10=25,'Bahan Pakan'!P$31,IF($B10=26,'Bahan Pakan'!P$32,IF($B10=27,'Bahan Pakan'!P$33,IF($B10=28,'Bahan Pakan'!P$34,IF($B10=29,'Bahan Pakan'!P$35,IF($B10=30,'Bahan Pakan'!P$36,IF($B10=31,'Bahan Pakan'!P$37,IF($B10=32,'Bahan Pakan'!P$38,IF($B10=33,'Bahan Pakan'!P$39,IF($B10=34,'Bahan Pakan'!P$40,IF($B10=35,'Bahan Pakan'!P$41,IF($B10=36,'Bahan Pakan'!P$42,IF($B10=37,'Bahan Pakan'!P$43,IF($B10=38,'Bahan Pakan'!P$44,IF($B10=39,'Bahan Pakan'!P$45,IF($B10=40,'Bahan Pakan'!P$46,IF($B10=41,'Bahan Pakan'!P$47,IF($B10=42,'Bahan Pakan'!P$48,IF($B10=43,'Bahan Pakan'!P$49,IF($B10=44,'Bahan Pakan'!P$50,IF($B10=45,'Bahan Pakan'!P$51,IF($B10=46,'Bahan Pakan'!P$52,IF($B10=47,'Bahan Pakan'!P$53,IF($B10=48,'Bahan Pakan'!P$54,IF($B10=49,'Bahan Pakan'!P$55,IF($B10=50,'Bahan Pakan'!P$56,0)))))))))))))))))))))))))))))))))))))))))))))))))) -> 0 | Y10: Lemak Kasar | Z10: % | AA10: 7 | AB10: - | AC10: =M45 -> 14.09475
B11: =IF($D11='Bahan Pakan'!D$7,1,IF($D11='Bahan Pakan'!D$8,2,IF($D11='Bahan Pakan'!D$9,3,IF($D11='Bahan Pakan'!D$10,4,IF($D11='Bahan Pakan'!D$11,5,IF($D11='Bahan Pakan'!D$12,6,IF($D11='Bahan Pakan'!D$13,7,IF($D11='Bahan Pakan'!D$14,8,IF($D11='Bahan Pakan'!D$15,9,IF($D11='Bahan Pakan'!D$16,10,IF($D11='Bahan Pakan'!D$17,11,IF($D11='Bahan Pakan'!D$18,12,IF($D11='Bahan Pakan'!D$19,13,IF($D11='Bahan Pakan'!D$20,14,IF($D11='Bahan Pakan'!D$21,15,IF($D11='Bahan Pakan'!D$22,16,IF($D11='Bahan Pakan'!D$23,17,IF($D11='Bahan Pakan'!D$24,18,IF($D11='Bahan Pakan'!D$25,19,IF($D11='Bahan Pakan'!D$26,20,IF($D11='Bahan Pakan'!D$27,21,IF($D11='Bahan Pakan'!D$28,22,IF($D11='Bahan Pakan'!D$29,23,IF($D11='Bahan Pakan'!D$30,24,IF($D11='Bahan Pakan'!D$31,25,IF($D11='Bahan Pakan'!D$32,26,IF($D11='Bahan Pakan'!D$33,27,IF($D11='Bahan Pakan'!D$34,28,IF($D11='Bahan Pakan'!D$35,29,IF($D11='Bahan Pakan'!D$36,30,IF($D11='Bahan Pakan'!D$37,31,IF($D11='Bahan Pakan'!D$38,32,IF($D11='Bahan Pakan'!D$39,33,IF($D11='Bahan Pakan'!D$40,34,IF($D11='Bahan Pakan'!D$41,35,IF($D11='Bahan Pakan'!D$42,36,IF($D11='Bahan Pakan'!D$43,37,IF($D11='Bahan Pakan'!D$44,38,IF($D11='Bahan Pakan'!D$45,39,IF($D11='Bahan Pakan'!D$46,40,IF($D11='Bahan Pakan'!D$47,41,IF($D11='Bahan Pakan'!D$48,42,IF($D11='Bahan Pakan'!D$49,43,IF($D11='Bahan Pakan'!D$50,44,IF($D11='Bahan Pakan'!D$51,45,IF($D11='Bahan Pakan'!D$52,46,IF($D11='Bahan Pakan'!D$53,47,IF($D11='Bahan Pakan'!D$54,48,IF($D11='Bahan Pakan'!D$55,49,IF($D11='Bahan Pakan'!D$56,50,0)))))))))))))))))))))))))))))))))))))))))))))))))) -> 43 | C11: 5 | D11: Lumpur Sawit | E11: =IF($B11=1,'Bahan Pakan'!E$7,IF($B11=2,'Bahan Pakan'!E$8,IF($B11=3,'Bahan Pakan'!E$9,IF($B11=4,'Bahan Pakan'!E$10,IF($B11=5,'Bahan Pakan'!E$11,IF($B11=6,'Bahan Pakan'!E$12,IF($B11=7,'Bahan Pakan'!E$13,IF($B11=8,'Bahan Pakan'!E$14,IF($B11=9,'Bahan Pakan'!E$15,IF($B11=10,'Bahan Pakan'!E$16,IF($B11=11,'Bahan Pakan'!E$17,IF($B11=12,'Bahan Pakan'!E$18,IF($B11=13,'Bahan Pakan'!E$19,IF($B11=14,'Bahan Pakan'!E$20,IF($B11=15,'Bahan Pakan'!E$21,IF($B11=16,'Bahan Pakan'!E$22,IF($B11=17,'Bahan Pakan'!E$23,IF($B11=18,'Bahan Pakan'!E$24,IF($B11=19,'Bahan Pakan'!E$25,IF($B11=20,'Bahan Pakan'!E$26,IF($B11=21,'Bahan Pakan'!E$27,IF($B11=22,'Bahan Pakan'!E$28,IF($B11=23,'Bahan Pakan'!E$29,IF($B11=24,'Bahan Pakan'!E$30,IF($B11=25,'Bahan Pakan'!E$31,IF($B11=26,'Bahan Pakan'!E$32,IF($B11=27,'Bahan Pakan'!E$33,IF($B11=28,'Bahan Pakan'!E$34,IF($B11=29,'Bahan Pakan'!E$35,IF($B11=30,'Bahan Pakan'!E$36,IF($B11=31,'Bahan Pakan'!E$37,IF($B11=32,'Bahan Pakan'!E$38,IF($B11=33,'Bahan Pakan'!E$39,IF($B11=34,'Bahan Pakan'!E$40,IF($B11=35,'Bahan Pakan'!E$41,IF($B11=36,'Bahan Pakan'!E$42,IF($B11=37,'Bahan Pakan'!E$43,IF($B11=38,'Bahan Pakan'!E$44,IF($B11=39,'Bahan Pakan'!E$45,IF($B11=40,'Bahan Pakan'!E$46,IF($B11=41,'Bahan Pakan'!E$47,IF($B11=42,'Bahan Pakan'!E$48,IF($B11=43,'Bahan Pakan'!E$49,IF($B11=44,'Bahan Pakan'!E$50,IF($B11=45,'Bahan Pakan'!E$51,IF($B11=46,'Bahan Pakan'!E$52,IF($B11=47,'Bahan Pakan'!E$53,IF($B11=48,'Bahan Pakan'!E$54,IF($B11=49,'Bahan Pakan'!E$55,IF($B11=50,'Bahan Pakan'!E$56,0)))))))))))))))))))))))))))))))))))))))))))))))))) -> 0 | F11: =IF($B11=1,'Bahan Pakan'!F$7,IF($B11=2,'Bahan Pakan'!F$8,IF($B11=3,'Bahan Pakan'!F$9,IF($B11=4,'Bahan Pakan'!F$10,IF($B11=5,'Bahan Pakan'!F$11,IF($B11=6,'Bahan Pakan'!F$12,IF($B11=7,'Bahan Pakan'!F$13,IF($B11=8,'Bahan Pakan'!F$14,IF($B11=9,'Bahan Pakan'!F$15,IF($B11=10,'Bahan Pakan'!F$16,IF($B11=11,'Bahan Pakan'!F$17,IF($B11=12,'Bahan Pakan'!F$18,IF($B11=13,'Bahan Pakan'!F$19,IF($B11=14,'Bahan Pakan'!F$20,IF($B11=15,'Bahan Pakan'!F$21,IF($B11=16,'Bahan Pakan'!F$22,IF($B11=17,'Bahan Pakan'!F$23,IF($B11=18,'Bahan Pakan'!F$24,IF($B11=19,'Bahan Pakan'!F$25,IF($B11=20,'Bahan Pakan'!F$26,IF($B11=21,'Bahan Pakan'!F$27,IF($B11=22,'Bahan Pakan'!F$28,IF($B11=23,'Bahan Pakan'!F$29,IF($B11=24,'Bahan Pakan'!F$30,IF($B11=25,'Bahan Pakan'!F$31,IF($B11=26,'Bahan Pakan'!F$32,IF($B11=27,'Bahan Pakan'!F$33,IF($B11=28,'Bahan Pakan'!F$34,IF($B11=29,'Bahan Pakan'!F$35,IF($B11=30,'Bahan Pakan'!F$36,IF($B11=31,'Bahan Pakan'!F$37,IF($B11=32,'Bahan Pakan'!F$38,IF($B11=33,'Bahan Pakan'!F$39,IF($B11=34,'Bahan Pakan'!F$40,IF($B11=35,'Bahan Pakan'!F$41,IF($B11=36,'Bahan Pakan'!F$42,IF($B11=37,'Bahan Pakan'!F$43,IF($B11=38,'Bahan Pakan'!F$44,IF($B11=39,'Bahan Pakan'!F$45,IF($B11=40,'Bahan Pakan'!F$46,IF($B11=41,'Bahan Pakan'!F$47,IF($B11=42,'Bahan Pakan'!F$48,IF($B11=43,'Bahan Pakan'!F$49,IF($B11=44,'Bahan Pakan'!F$50,IF($B11=45,'Bahan Pakan'!F$51,IF($B11=46,'Bahan Pakan'!F$52,IF($B11=47,'Bahan Pakan'!F$53,IF($B11=48,'Bahan Pakan'!F$54,IF($B11=49,'Bahan Pakan'!F$55,IF($B11=50,'Bahan Pakan'!F$56,0)))))))))))))))))))))))))))))))))))))))))))))))))) -> 20 | G11: 13.3 | H11: 19 | I11: 15.88710176 | J11: 158.8710176 | K11: =IF($B11=1,'Bahan Pakan'!G$7,IF($B11=2,'Bahan Pakan'!G$8,IF($B11=3,'Bahan Pakan'!G$9,IF($B11=4,'Bahan Pakan'!G$10,IF($B11=5,'Bahan Pakan'!G$11,IF($B11=6,'Bahan Pakan'!G$12,IF($B11=7,'Bahan Pakan'!G$13,IF($B11=8,'Bahan Pakan'!G$14,IF($B11=9,'Bahan Pakan'!G$15,IF($B11=10,'Bahan Pakan'!G$16,IF($B11=11,'Bahan Pakan'!G$17,IF($B11=12,'Bahan Pakan'!G$18,IF($B11=13,'Bahan Pakan'!G$19,IF($B11=14,'Bahan Pakan'!G$20,IF($B11=15,'Bahan Pakan'!G$21,IF($B11=16,'Bahan Pakan'!G$22,IF($B11=17,'Bahan Pakan'!G$23,IF($B11=18,'Bahan Pakan'!G$24,IF($B11=19,'Bahan Pakan'!G$25,IF($B11=20,'Bahan Pakan'!G$26,IF($B11=21,'Bahan Pakan'!G$27,IF($B11=22,'Bahan Pakan'!G$28,IF($B11=23,'Bahan Pakan'!G$29,IF($B11=24,'Bahan Pakan'!G$30,IF($B11=25,'Bahan Pakan'!G$31,IF($B11=26,'Bahan Pakan'!G$32,IF($B11=27,'Bahan Pakan'!G$33,IF($B11=28,'Bahan Pakan'!G$34,IF($B11=29,'Bahan Pakan'!G$35,IF($B11=30,'Bahan Pakan'!G$36,IF($B11=31,'Bahan Pakan'!G$37,IF($B11=32,'Bahan Pakan'!G$38,IF($B11=33,'Bahan Pakan'!G$39,IF($B11=34,'Bahan Pakan'!G$40,IF($B11=35,'Bahan Pakan'!G$41,IF($B11=36,'Bahan Pakan'!G$42,IF($B11=37,'Bahan Pakan'!G$43,IF($B11=38,'Bahan Pakan'!G$44,IF($B11=39,'Bahan Pakan'!G$45,IF($B11=40,'Bahan Pakan'!G$46,IF($B11=41,'Bahan Pakan'!G$47,IF($B11=42,'Bahan Pakan'!G$48,IF($B11=43,'Bahan Pakan'!G$49,IF($B11=44,'Bahan Pakan'!G$50,IF($B11=45,'Bahan Pakan'!G$51,IF($B11=46,'Bahan Pakan'!G$52,IF($B11=47,'Bahan Pakan'!G$53,IF($B11=48,'Bahan Pakan'!G$54,IF($B11=49,'Bahan Pakan'!G$55,IF($B11=50,'Bahan Pakan'!G$56,0)))))))))))))))))))))))))))))))))))))))))))))))))) -> 1000 | L11: =IF($B11=1,'Bahan Pakan'!H$7,IF($B11=2,'Bahan Pakan'!H$8,IF($B11=3,'Bahan Pakan'!H$9,IF($B11=4,'Bahan Pakan'!H$10,IF($B11=5,'Bahan Pakan'!H$11,IF($B11=6,'Bahan Pakan'!H$12,IF($B11=7,'Bahan Pakan'!H$13,IF($B11=8,'Bahan Pakan'!H$14,IF($B11=9,'Bahan Pakan'!H$15,IF($B11=10,'Bahan Pakan'!H$16,IF($B11=11,'Bahan Pakan'!H$17,IF($B11=12,'Bahan Pakan'!H$18,IF($B11=13,'Bahan Pakan'!H$19,IF($B11=14,'Bahan Pakan'!H$20,IF($B11=15,'Bahan Pakan'!H$21,IF($B11=16,'Bahan Pakan'!H$22,IF($B11=17,'Bahan Pakan'!H$23,IF($B11=18,'Bahan Pakan'!H$24,IF($B11=19,'Bahan Pakan'!H$25,IF($B11=20,'Bahan Pakan'!H$26,IF($B11=21,'Bahan Pakan'!H$27,IF($B11=22,'Bahan Pakan'!H$28,IF($B11=23,'Bahan Pakan'!H$29,IF($B11=24,'Bahan Pakan'!H$30,IF($B11=25,'Bahan Pakan'!H$31,IF($B11=26,'Bahan Pakan'!H$32,IF($B11=27,'Bahan Pakan'!H$33,IF($B11=28,'Bahan Pakan'!H$34,IF($B11=29,'Bahan Pakan'!H$35,IF($B11=30,'Bahan Pakan'!H$36,IF($B11=31,'Bahan Pakan'!H$37,IF($B11=32,'Bahan Pakan'!H$38,IF($B11=33,'Bahan Pakan'!H$39,IF($B11=34,'Bahan Pakan'!H$40,IF($B11=35,'Bahan Pakan'!H$41,IF($B11=36,'Bahan Pakan'!H$42,IF($B11=37,'Bahan Pakan'!H$43,IF($B11=38,'Bahan Pakan'!H$44,IF($B11=39,'Bahan Pakan'!H$45,IF($B11=40,'Bahan Pakan'!H$46,IF($B11=41,'Bahan Pakan'!H$47,IF($B11=42,'Bahan Pakan'!H$48,IF($B11=43,'Bahan Pakan'!H$49,IF($B11=44,'Bahan Pakan'!H$50,IF($B11=45,'Bahan Pakan'!H$51,IF($B11=46,'Bahan Pakan'!H$52,IF($B11=47,'Bahan Pakan'!H$53,IF($B11=48,'Bahan Pakan'!H$54,IF($B11=49,'Bahan Pakan'!H$55,IF($B11=50,'Bahan Pakan'!H$56,0)))))))))))))))))))))))))))))))))))))))))))))))))) -> 70 | M11: =IF($B11=1,'Bahan Pakan'!I$7,IF($B11=2,'Bahan Pakan'!I$8,IF($B11=3,'Bahan Pakan'!I$9,IF($B11=4,'Bahan Pakan'!I$10,IF($B11=5,'Bahan Pakan'!I$11,IF($B11=6,'Bahan Pakan'!I$12,IF($B11=7,'Bahan Pakan'!I$13,IF($B11=8,'Bahan Pakan'!I$14,IF($B11=9,'Bahan Pakan'!I$15,IF($B11=10,'Bahan Pakan'!I$16,IF($B11=11,'Bahan Pakan'!I$17,IF($B11=12,'Bahan Pakan'!I$18,IF($B11=13,'Bahan Pakan'!I$19,IF($B11=14,'Bahan Pakan'!I$20,IF($B11=15,'Bahan Pakan'!I$21,IF($B11=16,'Bahan Pakan'!I$22,IF($B11=17,'Bahan Pakan'!I$23,IF($B11=18,'Bahan Pakan'!I$24,IF($B11=19,'Bahan Pakan'!I$25,IF($B11=20,'Bahan Pakan'!I$26,IF($B11=21,'Bahan Pakan'!I$27,IF($B11=22,'Bahan Pakan'!I$28,IF($B11=23,'Bahan Pakan'!I$29,IF($B11=24,'Bahan Pakan'!I$30,IF($B11=25,'Bahan Pakan'!I$31,IF($B11=26,'Bahan Pakan'!I$32,IF($B11=27,'Bahan Pakan'!I$33,IF($B11=28,'Bahan Pakan'!I$34,IF($B11=29,'Bahan Pakan'!I$35,IF($B11=30,'Bahan Pakan'!I$36,IF($B11=31,'Bahan Pakan'!I$37,IF($B11=32,'Bahan Pakan'!I$38,IF($B11=33,'Bahan Pakan'!I$39,IF($B11=34,'Bahan Pakan'!I$40,IF($B11=35,'Bahan Pakan'!I$41,IF($B11=36,'Bahan Pakan'!I$42,IF($B11=37,'Bahan Pakan'!I$43,IF($B11=38,'Bahan Pakan'!I$44,IF($B11=39,'Bahan Pakan'!I$45,IF($B11=40,'Bahan Pakan'!I$46,IF($B11=41,'Bahan Pakan'!I$47,IF($B11=42,'Bahan Pakan'!I$48,IF($B11=43,'Bahan Pakan'!I$49,IF($B11=44,'Bahan Pakan'!I$50,IF($B11=45,'Bahan Pakan'!I$51,IF($B11=46,'Bahan Pakan'!I$52,IF($B11=47,'Bahan Pakan'!I$53,IF($B11=48,'Bahan Pakan'!I$54,IF($B11=49,'Bahan Pakan'!I$55,IF($B11=50,'Bahan Pakan'!I$56,0)))))))))))))))))))))))))))))))))))))))))))))))))) -> 41.31 | N11: =IF($B11=1,'Bahan Pakan'!J$7,IF($B11=2,'Bahan Pakan'!J$8,IF($B11=3,'Bahan Pakan'!J$9,IF($B11=4,'Bahan Pakan'!J$10,IF($B11=5,'Bahan Pakan'!J$11,IF($B11=6,'Bahan Pakan'!J$12,IF($B11=7,'Bahan Pakan'!J$13,IF($B11=8,'Bahan Pakan'!J$14,IF($B11=9,'Bahan Pakan'!J$15,IF($B11=10,'Bahan Pakan'!J$16,IF($B11=11,'Bahan Pakan'!J$17,IF($B11=12,'Bahan Pakan'!J$18,IF($B11=13,'Bahan Pakan'!J$19,IF($B11=14,'Bahan Pakan'!J$20,IF($B11=15,'Bahan Pakan'!J$21,IF($B11=16,'Bahan Pakan'!J$22,IF($B11=17,'Bahan Pakan'!J$23,IF($B11=18,'Bahan Pakan'!J$24,IF($B11=19,'Bahan Pakan'!J$25,IF($B11=20,'Bahan Pakan'!J$26,IF($B11=21,'Bahan Pakan'!J$27,IF($B11=22,'Bahan Pakan'!J$28,IF($B11=23,'Bahan Pakan'!J$29,IF($B11=24,'Bahan Pakan'!J$30,IF($B11=25,'Bahan Pakan'!J$31,IF($B11=26,'Bahan Pakan'!J$32,IF($B11=27,'Bahan Pakan'!J$33,IF($B11=28,'Bahan Pakan'!J$34,IF($B11=29,'Bahan Pakan'!J$35,IF($B11=30,'Bahan Pakan'!J$36,IF($B11=31,'Bahan Pakan'!J$37,IF($B11=32,'Bahan Pakan'!J$38,IF($B11=33,'Bahan Pakan'!J$39,IF($B11=34,'Bahan Pakan'!J$40,IF($B11=35,'Bahan Pakan'!J$41,IF($B11=36,'Bahan Pakan'!J$42,IF($B11=37,'Bahan Pakan'!J$43,IF($B11=38,'Bahan Pakan'!J$44,IF($B11=39,'Bahan Pakan'!J$45,IF($B11=40,'Bahan Pakan'!J$46,IF($B11=41,'Bahan Pakan'!J$47,IF($B11=42,'Bahan Pakan'!J$48,IF($B11=43,'Bahan Pakan'!J$49,IF($B11=44,'Bahan Pakan'!J$50,IF($B11=45,'Bahan Pakan'!J$51,IF($B11=46,'Bahan Pakan'!J$52,IF($B11=47,'Bahan Pakan'!J$53,IF($B11=48,'Bahan Pakan'!J$54,IF($B11=49,'Bahan Pakan'!J$55,IF($B11=50,'Bahan Pakan'!J$56,0)))))))))))))))))))))))))))))))))))))))))))))))))) -> 14.17 | O11: =IF($B11=1,'Bahan Pakan'!K$7,IF($B11=2,'Bahan Pakan'!K$8,IF($B11=3,'Bahan Pakan'!K$9,IF($B11=4,'Bahan Pakan'!K$10,IF($B11=5,'Bahan Pakan'!K$11,IF($B11=6,'Bahan Pakan'!K$12,IF($B11=7,'Bahan Pakan'!K$13,IF($B11=8,'Bahan Pakan'!K$14,IF($B11=9,'Bahan Pakan'!K$15,IF($B11=10,'Bahan Pakan'!K$16,IF($B11=11,'Bahan Pakan'!K$17,IF($B11=12,'Bahan Pakan'!K$18,IF($B11=13,'Bahan Pakan'!K$19,IF($B11=14,'Bahan Pakan'!K$20,IF($B11=15,'Bahan Pakan'!K$21,IF($B11=16,'Bahan Pakan'!K$22,IF($B11=17,'Bahan Pakan'!K$23,IF($B11=18,'Bahan Pakan'!K$24,IF($B11=19,'Bahan Pakan'!K$25,IF($B11=20,'Bahan Pakan'!K$26,IF($B11=21,'Bahan Pakan'!K$27,IF($B11=22,'Bahan Pakan'!K$28,IF($B11=23,'Bahan Pakan'!K$29,IF($B11=24,'Bahan Pakan'!K$30,IF($B11=25,'Bahan Pakan'!K$31,IF($B11=26,'Bahan Pakan'!K$32,IF($B11=27,'Bahan Pakan'!K$33,IF($B11=28,'Bahan Pakan'!K$34,IF($B11=29,'Bahan Pakan'!K$35,IF($B11=30,'Bahan Pakan'!K$36,IF($B11=31,'Bahan Pakan'!K$37,IF($B11=32,'Bahan Pakan'!K$38,IF($B11=33,'Bahan Pakan'!K$39,IF($B11=34,'Bahan Pakan'!K$40,IF($B11=35,'Bahan Pakan'!K$41,IF($B11=36,'Bahan Pakan'!K$42,IF($B11=37,'Bahan Pakan'!K$43,IF($B11=38,'Bahan Pakan'!K$44,IF($B11=39,'Bahan Pakan'!K$45,IF($B11=40,'Bahan Pakan'!K$46,IF($B11=41,'Bahan Pakan'!K$47,IF($B11=42,'Bahan Pakan'!K$48,IF($B11=43,'Bahan Pakan'!K$49,IF($B11=44,'Bahan Pakan'!K$50,IF($B11=45,'Bahan Pakan'!K$51,IF($B11=46,'Bahan Pakan'!K$52,IF($B11=47,'Bahan Pakan'!K$53,IF($B11=48,'Bahan Pakan'!K$54,IF($B11=49,'Bahan Pakan'!K$55,IF($B11=50,'Bahan Pakan'!K$56,0)))))))))))))))))))))))))))))))))))))))))))))))))) -> 3.75 | P11: =IF($B11=1,'Bahan Pakan'!L$7,IF($B11=2,'Bahan Pakan'!L$8,IF($B11=3,'Bahan Pakan'!L$9,IF($B11=4,'Bahan Pakan'!L$10,IF($B11=5,'Bahan Pakan'!L$11,IF($B11=6,'Bahan Pakan'!L$12,IF($B11=7,'Bahan Pakan'!L$13,IF($B11=8,'Bahan Pakan'!L$14,IF($B11=9,'Bahan Pakan'!L$15,IF($B11=10,'Bahan Pakan'!L$16,IF($B11=11,'Bahan Pakan'!L$17,IF($B11=12,'Bahan Pakan'!L$18,IF($B11=13,'Bahan Pakan'!L$19,IF($B11=14,'Bahan Pakan'!L$20,IF($B11=15,'Bahan Pakan'!L$21,IF($B11=16,'Bahan Pakan'!L$22,IF($B11=17,'Bahan Pakan'!L$23,IF($B11=18,'Bahan Pakan'!L$24,IF($B11=19,'Bahan Pakan'!L$25,IF($B11=20,'Bahan Pakan'!L$26,IF($B11=21,'Bahan Pakan'!L$27,IF($B11=22,'Bahan Pakan'!L$28,IF($B11=23,'Bahan Pakan'!L$29,IF($B11=24,'Bahan Pakan'!L$30,IF($B11=25,'Bahan Pakan'!L$31,IF($B11=26,'Bahan Pakan'!L$32,IF($B11=27,'Bahan Pakan'!L$33,IF($B11=28,'Bahan Pakan'!L$34,IF($B11=29,'Bahan Pakan'!L$35,IF($B11=30,'Bahan Pakan'!L$36,IF($B11=31,'Bahan Pakan'!L$37,IF($B11=32,'Bahan Pakan'!L$38,IF($B11=33,'Bahan Pakan'!L$39,IF($B11=34,'Bahan Pakan'!L$40,IF($B11=35,'Bahan Pakan'!L$41,IF($B11=36,'Bahan Pakan'!L$42,IF($B11=37,'Bahan Pakan'!L$43,IF($B11=38,'Bahan Pakan'!L$44,IF($B11=39,'Bahan Pakan'!L$45,IF($B11=40,'Bahan Pakan'!L$46,IF($B11=41,'Bahan Pakan'!L$47,IF($B11=42,'Bahan Pakan'!L$48,IF($B11=43,'Bahan Pakan'!L$49,IF($B11=44,'Bahan Pakan'!L$50,IF($B11=45,'Bahan Pakan'!L$51,IF($B11=46,'Bahan Pakan'!L$52,IF($B11=47,'Bahan Pakan'!L$53,IF($B11=48,'Bahan Pakan'!L$54,IF($B11=49,'Bahan Pakan'!L$55,IF($B11=50,'Bahan Pakan'!L$56,0)))))))))))))))))))))))))))))))))))))))))))))))))) -> 34.82 | Q11: =IF($B11=1,'Bahan Pakan'!M$7,IF($B11=2,'Bahan Pakan'!M$8,IF($B11=3,'Bahan Pakan'!M$9,IF($B11=4,'Bahan Pakan'!M$10,IF($B11=5,'Bahan Pakan'!M$11,IF($B11=6,'Bahan Pakan'!M$12,IF($B11=7,'Bahan Pakan'!M$13,IF($B11=8,'Bahan Pakan'!M$14,IF($B11=9,'Bahan Pakan'!M$15,IF($B11=10,'Bahan Pakan'!M$16,IF($B11=11,'Bahan Pakan'!M$17,IF($B11=12,'Bahan Pakan'!M$18,IF($B11=13,'Bahan Pakan'!M$19,IF($B11=14,'Bahan Pakan'!M$20,IF($B11=15,'Bahan Pakan'!M$21,IF($B11=16,'Bahan Pakan'!M$22,IF($B11=17,'Bahan Pakan'!M$23,IF($B11=18,'Bahan Pakan'!M$24,IF($B11=19,'Bahan Pakan'!M$25,IF($B11=20,'Bahan Pakan'!M$26,IF($B11=21,'Bahan Pakan'!M$27,IF($B11=22,'Bahan Pakan'!M$28,IF($B11=23,'Bahan Pakan'!M$29,IF($B11=24,'Bahan Pakan'!M$30,IF($B11=25,'Bahan Pakan'!M$31,IF($B11=26,'Bahan Pakan'!M$32,IF($B11=27,'Bahan Pakan'!M$33,IF($B11=28,'Bahan Pakan'!M$34,IF($B11=29,'Bahan Pakan'!M$35,IF($B11=30,'Bahan Pakan'!M$36,IF($B11=31,'Bahan Pakan'!M$37,IF($B11=32,'Bahan Pakan'!M$38,IF($B11=33,'Bahan Pakan'!M$39,IF($B11=34,'Bahan Pakan'!M$40,IF($B11=35,'Bahan Pakan'!M$41,IF($B11=36,'Bahan Pakan'!M$42,IF($B11=37,'Bahan Pakan'!M$43,IF($B11=38,'Bahan Pakan'!M$44,IF($B11=39,'Bahan Pakan'!M$45,IF($B11=40,'Bahan Pakan'!M$46,IF($B11=41,'Bahan Pakan'!M$47,IF($B11=42,'Bahan Pakan'!M$48,IF($B11=43,'Bahan Pakan'!M$49,IF($B11=44,'Bahan Pakan'!M$50,IF($B11=45,'Bahan Pakan'!M$51,IF($B11=46,'Bahan Pakan'!M$52,IF($B11=47,'Bahan Pakan'!M$53,IF($B11=48,'Bahan Pakan'!M$54,IF($B11=49,'Bahan Pakan'!M$55,IF($B11=50,'Bahan Pakan'!M$56,0)))))))))))))))))))))))))))))))))))))))))))))))))) -> 16.28 | R11: =IF($B11=1,'Bahan Pakan'!N$7,IF($B11=2,'Bahan Pakan'!N$8,IF($B11=3,'Bahan Pakan'!N$9,IF($B11=4,'Bahan Pakan'!N$10,IF($B11=5,'Bahan Pakan'!N$11,IF($B11=6,'Bahan Pakan'!N$12,IF($B11=7,'Bahan Pakan'!N$13,IF($B11=8,'Bahan Pakan'!N$14,IF($B11=9,'Bahan Pakan'!N$15,IF($B11=10,'Bahan Pakan'!N$16,IF($B11=11,'Bahan Pakan'!N$17,IF($B11=12,'Bahan Pakan'!N$18,IF($B11=13,'Bahan Pakan'!N$19,IF($B11=14,'Bahan Pakan'!N$20,IF($B11=15,'Bahan Pakan'!N$21,IF($B11=16,'Bahan Pakan'!N$22,IF($B11=17,'Bahan Pakan'!N$23,IF($B11=18,'Bahan Pakan'!N$24,IF($B11=19,'Bahan Pakan'!N$25,IF($B11=20,'Bahan Pakan'!N$26,IF($B11=21,'Bahan Pakan'!N$27,IF($B11=22,'Bahan Pakan'!N$28,IF($B11=23,'Bahan Pakan'!N$29,IF($B11=24,'Bahan Pakan'!N$30,IF($B11=25,'Bahan Pakan'!N$31,IF($B11=26,'Bahan Pakan'!N$32,IF($B11=27,'Bahan Pakan'!N$33,IF($B11=28,'Bahan Pakan'!N$34,IF($B11=29,'Bahan Pakan'!N$35,IF($B11=30,'Bahan Pakan'!N$36,IF($B11=31,'Bahan Pakan'!N$37,IF($B11=32,'Bahan Pakan'!N$38,IF($B11=33,'Bahan Pakan'!N$39,IF($B11=34,'Bahan Pakan'!N$40,IF($B11=35,'Bahan Pakan'!N$41,IF($B11=36,'Bahan Pakan'!N$42,IF($B11=37,'Bahan Pakan'!N$43,IF($B11=38,'Bahan Pakan'!N$44,IF($B11=39,'Bahan Pakan'!N$45,IF($B11=40,'Bahan Pakan'!N$46,IF($B11=41,'Bahan Pakan'!N$47,IF($B11=42,'Bahan Pakan'!N$48,IF($B11=43,'Bahan Pakan'!N$49,IF($B11=44,'Bahan Pakan'!N$50,IF($B11=45,'Bahan Pakan'!N$51,IF($B11=46,'Bahan Pakan'!N$52,IF($B11=47,'Bahan Pakan'!N$53,IF($B11=48,'Bahan Pakan'!N$54,IF($B11=49,'Bahan Pakan'!N$55,IF($B11=50,'Bahan Pakan'!N$56,0)))))))))))))))))))))))))))))))))))))))))))))))))) -> 50 | S11: =IF($B11=1,'Bahan Pakan'!O$7,IF($B11=2,'Bahan Pakan'!O$8,IF($B11=3,'Bahan Pakan'!O$9,IF($B11=4,'Bahan Pakan'!O$10,IF($B11=5,'Bahan Pakan'!O$11,IF($B11=6,'Bahan Pakan'!O$12,IF($B11=7,'Bahan Pakan'!O$13,IF($B11=8,'Bahan Pakan'!O$14,IF($B11=9,'Bahan Pakan'!O$15,IF($B11=10,'Bahan Pakan'!O$16,IF($B11=11,'Bahan Pakan'!O$17,IF($B11=12,'Bahan Pakan'!O$18,IF($B11=13,'Bahan Pakan'!O$19,IF($B11=14,'Bahan Pakan'!O$20,IF($B11=15,'Bahan Pakan'!O$21,IF($B11=16,'Bahan Pakan'!O$22,IF($B11=17,'Bahan Pakan'!O$23,IF($B11=18,'Bahan Pakan'!O$24,IF($B11=19,'Bahan Pakan'!O$25,IF($B11=20,'Bahan Pakan'!O$26,IF($B11=21,'Bahan Pakan'!O$27,IF($B11=22,'Bahan Pakan'!O$28,IF($B11=23,'Bahan Pakan'!O$29,IF($B11=24,'Bahan Pakan'!O$30,IF($B11=25,'Bahan Pakan'!O$31,IF($B11=26,'Bahan Pakan'!O$32,IF($B11=27,'Bahan Pakan'!O$33,IF($B11=28,'Bahan Pakan'!O$34,IF($B11=29,'Bahan Pakan'!O$35,IF($B11=30,'Bahan Pakan'!O$36,IF($B11=31,'Bahan Pakan'!O$37,IF($B11=32,'Bahan Pakan'!O$38,IF($B11=33,'Bahan Pakan'!O$39,IF($B11=34,'Bahan Pakan'!O$40,IF($B11=35,'Bahan Pakan'!O$41,IF($B11=36,'Bahan Pakan'!O$42,IF($B11=37,'Bahan Pakan'!O$43,IF($B11=38,'Bahan Pakan'!O$44,IF($B11=39,'Bahan Pakan'!O$45,IF($B11=40,'Bahan Pakan'!O$46,IF($B11=41,'Bahan Pakan'!O$47,IF($B11=42,'Bahan Pakan'!O$48,IF($B11=43,'Bahan Pakan'!O$49,IF($B11=44,'Bahan Pakan'!O$50,IF($B11=45,'Bahan Pakan'!O$51,IF($B11=46,'Bahan Pakan'!O$52,IF($B11=47,'Bahan Pakan'!O$53,IF($B11=48,'Bahan Pakan'!O$54,IF($B11=49,'Bahan Pakan'!O$55,IF($B11=50,'Bahan Pakan'!O$56,0)))))))))))))))))))))))))))))))))))))))))))))))))) -> 0 | T11: =IF($B11=1,'Bahan Pakan'!P$7,IF($B11=2,'Bahan Pakan'!P$8,IF($B11=3,'Bahan Pakan'!P$9,IF($B11=4,'Bahan Pakan'!P$10,IF($B11=5,'Bahan Pakan'!P$11,IF($B11=6,'Bahan Pakan'!P$12,IF($B11=7,'Bahan Pakan'!P$13,IF($B11=8,'Bahan Pakan'!P$14,IF($B11=9,'Bahan Pakan'!P$15,IF($B11=10,'Bahan Pakan'!P$16,IF($B11=11,'Bahan Pakan'!P$17,IF($B11=12,'Bahan Pakan'!P$18,IF($B11=13,'Bahan Pakan'!P$19,IF($B11=14,'Bahan Pakan'!P$20,IF($B11=15,'Bahan Pakan'!P$21,IF($B11=16,'Bahan Pakan'!P$22,IF($B11=17,'Bahan Pakan'!P$23,IF($B11=18,'Bahan Pakan'!P$24,IF($B11=19,'Bahan Pakan'!P$25,IF($B11=20,'Bahan Pakan'!P$26,IF($B11=21,'Bahan Pakan'!P$27,IF($B11=22,'Bahan Pakan'!P$28,IF($B11=23,'Bahan Pakan'!P$29,IF($B11=24,'Bahan Pakan'!P$30,IF($B11=25,'Bahan Pakan'!P$31,IF($B11=26,'Bahan Pakan'!P$32,IF($B11=27,'Bahan Pakan'!P$33,IF($B11=28,'Bahan Pakan'!P$34,IF($B11=29,'Bahan Pakan'!P$35,IF($B11=30,'Bahan Pakan'!P$36,IF($B11=31,'Bahan Pakan'!P$37,IF($B11=32,'Bahan Pakan'!P$38,IF($B11=33,'Bahan Pakan'!P$39,IF($B11=34,'Bahan Pakan'!P$40,IF($B11=35,'Bahan Pakan'!P$41,IF($B11=36,'Bahan Pakan'!P$42,IF($B11=37,'Bahan Pakan'!P$43,IF($B11=38,'Bahan Pakan'!P$44,IF($B11=39,'Bahan Pakan'!P$45,IF($B11=40,'Bahan Pakan'!P$46,IF($B11=41,'Bahan Pakan'!P$47,IF($B11=42,'Bahan Pakan'!P$48,IF($B11=43,'Bahan Pakan'!P$49,IF($B11=44,'Bahan Pakan'!P$50,IF($B11=45,'Bahan Pakan'!P$51,IF($B11=46,'Bahan Pakan'!P$52,IF($B11=47,'Bahan Pakan'!P$53,IF($B11=48,'Bahan Pakan'!P$54,IF($B11=49,'Bahan Pakan'!P$55,IF($B11=50,'Bahan Pakan'!P$56,0)))))))))))))))))))))))))))))))))))))))))))))))))) -> 0 | Y11: Serat Kasar | Z11: % | AA11: - | AB11: - | AC11: =N45 -> 15.69206
B12: =IF($D12='Bahan Pakan'!D$7,1,IF($D12='Bahan Pakan'!D$8,2,IF($D12='Bahan Pakan'!D$9,3,IF($D12='Bahan Pakan'!D$10,4,IF($D12='Bahan Pakan'!D$11,5,IF($D12='Bahan Pakan'!D$12,6,IF($D12='Bahan Pakan'!D$13,7,IF($D12='Bahan Pakan'!D$14,8,IF($D12='Bahan Pakan'!D$15,9,IF($D12='Bahan Pakan'!D$16,10,IF($D12='Bahan Pakan'!D$17,11,IF($D12='Bahan Pakan'!D$18,12,IF($D12='Bahan Pakan'!D$19,13,IF($D12='Bahan Pakan'!D$20,14,IF($D12='Bahan Pakan'!D$21,15,IF($D12='Bahan Pakan'!D$22,16,IF($D12='Bahan Pakan'!D$23,17,IF($D12='Bahan Pakan'!D$24,18,IF($D12='Bahan Pakan'!D$25,19,IF($D12='Bahan Pakan'!D$26,20,IF($D12='Bahan Pakan'!D$27,21,IF($D12='Bahan Pakan'!D$28,22,IF($D12='Bahan Pakan'!D$29,23,IF($D12='Bahan Pakan'!D$30,24,IF($D12='Bahan Pakan'!D$31,25,IF($D12='Bahan Pakan'!D$32,26,IF($D12='Bahan Pakan'!D$33,27,IF($D12='Bahan Pakan'!D$34,28,IF($D12='Bahan Pakan'!D$35,29,IF($D12='Bahan Pakan'!D$36,30,IF($D12='Bahan Pakan'!D$37,31,IF($D12='Bahan Pakan'!D$38,32,IF($D12='Bahan Pakan'!D$39,33,IF($D12='Bahan Pakan'!D$40,34,IF($D12='Bahan Pakan'!D$41,35,IF($D12='Bahan Pakan'!D$42,36,IF($D12='Bahan Pakan'!D$43,37,IF($D12='Bahan Pakan'!D$44,38,IF($D12='Bahan Pakan'!D$45,39,IF($D12='Bahan Pakan'!D$46,40,IF($D12='Bahan Pakan'!D$47,41,IF($D12='Bahan Pakan'!D$48,42,IF($D12='Bahan Pakan'!D$49,43,IF($D12='Bahan Pakan'!D$50,44,IF($D12='Bahan Pakan'!D$51,45,IF($D12='Bahan Pakan'!D$52,46,IF($D12='Bahan Pakan'!D$53,47,IF($D12='Bahan Pakan'!D$54,48,IF($D12='Bahan Pakan'!D$55,49,IF($D12='Bahan Pakan'!D$56,50,0)))))))))))))))))))))))))))))))))))))))))))))))))) -> 30 | C12: 6 | D12: Kapur | E12: =IF($B12=1,'Bahan Pakan'!E$7,IF($B12=2,'Bahan Pakan'!E$8,IF($B12=3,'Bahan Pakan'!E$9,IF($B12=4,'Bahan Pakan'!E$10,IF($B12=5,'Bahan Pakan'!E$11,IF($B12=6,'Bahan Pakan'!E$12,IF($B12=7,'Bahan Pakan'!E$13,IF($B12=8,'Bahan Pakan'!E$14,IF($B12=9,'Bahan Pakan'!E$15,IF($B12=10,'Bahan Pakan'!E$16,IF($B12=11,'Bahan Pakan'!E$17,IF($B12=12,'Bahan Pakan'!E$18,IF($B12=13,'Bahan Pakan'!E$19,IF($B12=14,'Bahan Pakan'!E$20,IF($B12=15,'Bahan Pakan'!E$21,IF($B12=16,'Bahan Pakan'!E$22,IF($B12=17,'Bahan Pakan'!E$23,IF($B12=18,'Bahan Pakan'!E$24,IF($B12=19,'Bahan Pakan'!E$25,IF($B12=20,'Bahan Pakan'!E$26,IF($B12=21,'Bahan Pakan'!E$27,IF($B12=22,'Bahan Pakan'!E$28,IF($B12=23,'Bahan Pakan'!E$29,IF($B12=24,'Bahan Pakan'!E$30,IF($B12=25,'Bahan Pakan'!E$31,IF($B12=26,'Bahan Pakan'!E$32,IF($B12=27,'Bahan Pakan'!E$33,IF($B12=28,'Bahan Pakan'!E$34,IF($B12=29,'Bahan Pakan'!E$35,IF($B12=30,'Bahan Pakan'!E$36,IF($B12=31,'Bahan Pakan'!E$37,IF($B12=32,'Bahan Pakan'!E$38,IF($B12=33,'Bahan Pakan'!E$39,IF($B12=34,'Bahan Pakan'!E$40,IF($B12=35,'Bahan Pakan'!E$41,IF($B12=36,'Bahan Pakan'!E$42,IF($B12=37,'Bahan Pakan'!E$43,IF($B12=38,'Bahan Pakan'!E$44,IF($B12=39,'Bahan Pakan'!E$45,IF($B12=40,'Bahan Pakan'!E$46,IF($B12=41,'Bahan Pakan'!E$47,IF($B12=42,'Bahan Pakan'!E$48,IF($B12=43,'Bahan Pakan'!E$49,IF($B12=44,'Bahan Pakan'!E$50,IF($B12=45,'Bahan Pakan'!E$51,IF($B12=46,'Bahan Pakan'!E$52,IF($B12=47,'Bahan Pakan'!E$53,IF($B12=48,'Bahan Pakan'!E$54,IF($B12=49,'Bahan Pakan'!E$55,IF($B12=50,'Bahan Pakan'!E$56,0)))))))))))))))))))))))))))))))))))))))))))))))))) -> 0 | F12: =IF($B12=1,'Bahan Pakan'!F$7,IF($B12=2,'Bahan Pakan'!F$8,IF($B12=3,'Bahan Pakan'!F$9,IF($B12=4,'Bahan Pakan'!F$10,IF($B12=5,'Bahan Pakan'!F$11,IF($B12=6,'Bahan Pakan'!F$12,IF($B12=7,'Bahan Pakan'!F$13,IF($B12=8,'Bahan Pakan'!F$14,IF($B12=9,'Bahan Pakan'!F$15,IF($B12=10,'Bahan Pakan'!F$16,IF($B12=11,'Bahan Pakan'!F$17,IF($B12=12,'Bahan Pakan'!F$18,IF($B12=13,'Bahan Pakan'!F$19,IF($B12=14,'Bahan Pakan'!F$20,IF($B12=15,'Bahan Pakan'!F$21,IF($B12=16,'Bahan Pakan'!F$22,IF($B12=17,'Bahan Pakan'!F$23,IF($B12=18,'Bahan Pakan'!F$24,IF($B12=19,'Bahan Pakan'!F$25,IF($B12=20,'Bahan Pakan'!F$26,IF($B12=21,'Bahan Pakan'!F$27,IF($B12=22,'Bahan Pakan'!F$28,IF($B12=23,'Bahan Pakan'!F$29,IF($B12=24,'Bahan Pakan'!F$30,IF($B12=25,'Bahan Pakan'!F$31,IF($B12=26,'Bahan Pakan'!F$32,IF($B12=27,'Bahan Pakan'!F$33,IF($B12=28,'Bahan Pakan'!F$34,IF($B12=29,'Bahan Pakan'!F$35,IF($B12=30,'Bahan Pakan'!F$36,IF($B12=31,'Bahan Pakan'!F$37,IF($B12=32,'Bahan Pakan'!F$38,IF($B12=33,'Bahan Pakan'!F$39,IF($B12=34,'Bahan Pakan'!F$40,IF($B12=35,'Bahan Pakan'!F$41,IF($B12=36,'Bahan Pakan'!F$42,IF($B12=37,'Bahan Pakan'!F$43,IF($B12=38,'Bahan Pakan'!F$44,IF($B12=39,'Bahan Pakan'!F$45,IF($B12=40,'Bahan Pakan'!F$46,IF($B12=41,'Bahan Pakan'!F$47,IF($B12=42,'Bahan Pakan'!F$48,IF($B12=43,'Bahan Pakan'!F$49,IF($B12=44,'Bahan Pakan'!F$50,IF($B12=45,'Bahan Pakan'!F$51,IF($B12=46,'Bahan Pakan'!F$52,IF($B12=47,'Bahan Pakan'!F$53,IF($B12=48,'Bahan Pakan'!F$54,IF($B12=49,'Bahan Pakan'!F$55,IF($B12=50,'Bahan Pakan'!F$56,0)))))))))))))))))))))))))))))))))))))))))))))))))) -> 2 | G12: 1.2 | H12: =IF(G12>0,(G12*100/L12),0) -> 1.212121212 | I12: 1.013531213 | J12: 10.13531213 | K12: =IF($B12=1,'Bahan Pakan'!G$7,IF($B12=2,'Bahan Pakan'!G$8,IF($B12=3,'Bahan Pakan'!G$9,IF($B12=4,'Bahan Pakan'!G$10,IF($B12=5,'Bahan Pakan'!G$11,IF($B12=6,'Bahan Pakan'!G$12,IF($B12=7,'Bahan Pakan'!G$13,IF($B12=8,'Bahan Pakan'!G$14,IF($B12=9,'Bahan Pakan'!G$15,IF($B12=10,'Bahan Pakan'!G$16,IF($B12=11,'Bahan Pakan'!G$17,IF($B12=12,'Bahan Pakan'!G$18,IF($B12=13,'Bahan Pakan'!G$19,IF($B12=14,'Bahan Pakan'!G$20,IF($B12=15,'Bahan Pakan'!G$21,IF($B12=16,'Bahan Pakan'!G$22,IF($B12=17,'Bahan Pakan'!G$23,IF($B12=18,'Bahan Pakan'!G$24,IF($B12=19,'Bahan Pakan'!G$25,IF($B12=20,'Bahan Pakan'!G$26,IF($B12=21,'Bahan Pakan'!G$27,IF($B12=22,'Bahan Pakan'!G$28,IF($B12=23,'Bahan Pakan'!G$29,IF($B12=24,'Bahan Pakan'!G$30,IF($B12=25,'Bahan Pakan'!G$31,IF($B12=26,'Bahan Pakan'!G$32,IF($B12=27,'Bahan Pakan'!G$33,IF($B12=28,'Bahan Pakan'!G$34,IF($B12=29,'Bahan Pakan'!G$35,IF($B12=30,'Bahan Pakan'!G$36,IF($B12=31,'Bahan Pakan'!G$37,IF($B12=32,'Bahan Pakan'!G$38,IF($B12=33,'Bahan Pakan'!G$39,IF($B12=34,'Bahan Pakan'!G$40,IF($B12=35,'Bahan Pakan'!G$41,IF($B12=36,'Bahan Pakan'!G$42,IF($B12=37,'Bahan Pakan'!G$43,IF($B12=38,'Bahan Pakan'!G$44,IF($B12=39,'Bahan Pakan'!G$45,IF($B12=40,'Bahan Pakan'!G$46,IF($B12=41,'Bahan Pakan'!G$47,IF($B12=42,'Bahan Pakan'!G$48,IF($B12=43,'Bahan Pakan'!G$49,IF($B12=44,'Bahan Pakan'!G$50,IF($B12=45,'Bahan Pakan'!G$51,IF($B12=46,'Bahan Pakan'!G$52,IF($B12=47,'Bahan Pakan'!G$53,IF($B12=48,'Bahan Pakan'!G$54,IF($B12=49,'Bahan Pakan'!G$55,IF($B12=50,'Bahan Pakan'!G$56,0)))))))))))))))))))))))))))))))))))))))))))))))))) -> 500 | L12: =IF($B12=1,'Bahan Pakan'!H$7,IF($B12=2,'Bahan Pakan'!H$8,IF($B12=3,'Bahan Pakan'!H$9,IF($B12=4,'Bahan Pakan'!H$10,IF($B12=5,'Bahan Pakan'!H$11,IF($B12=6,'Bahan Pakan'!H$12,IF($B12=7,'Bahan Pakan'!H$13,IF($B12=8,'Bahan Pakan'!H$14,IF($B12=9,'Bahan Pakan'!H$15,IF($B12=10,'Bahan Pakan'!H$16,IF($B12=11,'Bahan Pakan'!H$17,IF($B12=12,'Bahan Pakan'!H$18,IF($B12=13,'Bahan Pakan'!H$19,IF($B12=14,'Bahan Pakan'!H$20,IF($B12=15,'Bahan Pakan'!H$21,IF($B12=16,'Bahan Pakan'!H$22,IF($B12=17,'Bahan Pakan'!H$23,IF($B12=18,'Bahan Pakan'!H$24,IF($B12=19,'Bahan Pakan'!H$25,IF($B12=20,'Bahan Pakan'!H$26,IF($B12=21,'Bahan Pakan'!H$27,IF($B12=22,'Bahan Pakan'!H$28,IF($B12=23,'Bahan Pakan'!H$29,IF($B12=24,'Bahan Pakan'!H$30,IF($B12=25,'Bahan Pakan'!H$31,IF($B12=26,'Bahan Pakan'!H$32,IF($B12=27,'Bahan Pakan'!H$33,IF($B12=28,'Bahan Pakan'!H$34,IF($B12=29,'Bahan Pakan'!H$35,IF($B12=30,'Bahan Pakan'!H$36,IF($B12=31,'Bahan Pakan'!H$37,IF($B12=32,'Bahan Pakan'!H$38,IF($B12=33,'Bahan Pakan'!H$39,IF($B12=34,'Bahan Pakan'!H$40,IF($B12=35,'Bahan Pakan'!H$41,IF($B12=36,'Bahan Pakan'!H$42,IF($B12=37,'Bahan Pakan'!H$43,IF($B12=38,'Bahan Pakan'!H$44,IF($B12=39,'Bahan Pakan'!H$45,IF($B12=40,'Bahan Pakan'!H$46,IF($B12=41,'Bahan Pakan'!H$47,IF($B12=42,'Bahan Pakan'!H$48,IF($B12=43,'Bahan Pakan'!H$49,IF($B12=44,'Bahan Pakan'!H$50,IF($B12=45,'Bahan Pakan'!H$51,IF($B12=46,'Bahan Pakan'!H$52,IF($B12=47,'Bahan Pakan'!H$53,IF($B12=48,'Bahan Pakan'!H$54,IF($B12=49,'Bahan Pakan'!H$55,IF($B12=50,'Bahan Pakan'!H$56,0)))))))))))))))))))))))))))))))))))))))))))))))))) -> 99 | M12: =IF($B12=1,'Bahan Pakan'!I$7,IF($B12=2,'Bahan Pakan'!I$8,IF($B12=3,'Bahan Pakan'!I$9,IF($B12=4,'Bahan Pakan'!I$10,IF($B12=5,'Bahan Pakan'!I$11,IF($B12=6,'Bahan Pakan'!I$12,IF($B12=7,'Bahan Pakan'!I$13,IF($B12=8,'Bahan Pakan'!I$14,IF($B12=9,'Bahan Pakan'!I$15,IF($B12=10,'Bahan Pakan'!I$16,IF($B12=11,'Bahan Pakan'!I$17,IF($B12=12,'Bahan Pakan'!I$18,IF($B12=13,'Bahan Pakan'!I$19,IF($B12=14,'Bahan Pakan'!I$20,IF($B12=15,'Bahan Pakan'!I$21,IF($B12=16,'Bahan Pakan'!I$22,IF($B12=17,'Bahan Pakan'!I$23,IF($B12=18,'Bahan Pakan'!I$24,IF($B12=19,'Bahan Pakan'!I$25,IF($B12=20,'Bahan Pakan'!I$26,IF($B12=21,'Bahan Pakan'!I$27,IF($B12=22,'Bahan Pakan'!I$28,IF($B12=23,'Bahan Pakan'!I$29,IF($B12=24,'Bahan Pakan'!I$30,IF($B12=25,'Bahan Pakan'!I$31,IF($B12=26,'Bahan Pakan'!I$32,IF($B12=27,'Bahan Pakan'!I$33,IF($B12=28,'Bahan Pakan'!I$34,IF($B12=29,'Bahan Pakan'!I$35,IF($B12=30,'Bahan Pakan'!I$36,IF($B12=31,'Bahan Pakan'!I$37,IF($B12=32,'Bahan Pakan'!I$38,IF($B12=33,'Bahan Pakan'!I$39,IF($B12=34,'Bahan Pakan'!I$40,IF($B12=35,'Bahan Pakan'!I$41,IF($B12=36,'Bahan Pakan'!I$42,IF($B12=37,'Bahan Pakan'!I$43,IF($B12=38,'Bahan Pakan'!I$44,IF($B12=39,'Bahan Pakan'!I$45,IF($B12=40,'Bahan Pakan'!I$46,IF($B12=41,'Bahan Pakan'!I$47,IF($B12=42,'Bahan Pakan'!I$48,IF($B12=43,'Bahan Pakan'!I$49,IF($B12=44,'Bahan Pakan'!I$50,IF($B12=45,'Bahan Pakan'!I$51,IF($B12=46,'Bahan Pakan'!I$52,IF($B12=47,'Bahan Pakan'!I$53,IF($B12=48,'Bahan Pakan'!I$54,IF($B12=49,'Bahan Pakan'!I$55,IF($B12=50,'Bahan Pakan'!I$56,0)))))))))))))))))))))))))))))))))))))))))))))))))) -> 0 | N12: =IF($B12=1,'Bahan Pakan'!J$7,IF($B12=2,'Bahan Pakan'!J$8,IF($B12=3,'Bahan Pakan'!J$9,IF($B12=4,'Bahan Pakan'!J$10,IF($B12=5,'Bahan Pakan'!J$11,IF($B12=6,'Bahan Pakan'!J$12,IF($B12=7,'Bahan Pakan'!J$13,IF($B12=8,'Bahan Pakan'!J$14,IF($B12=9,'Bahan Pakan'!J$15,IF($B12=10,'Bahan Pakan'!J$16,IF($B12=11,'Bahan Pakan'!J$17,IF($B12=12,'Bahan Pakan'!J$18,IF($B12=13,'Bahan Pakan'!J$19,IF($B12=14,'Bahan Pakan'!J$20,IF($B12=15,'Bahan Pakan'!J$21,IF($B12=16,'Bahan Pakan'!J$22,IF($B12=17,'Bahan Pakan'!J$23,IF($B12=18,'Bahan Pakan'!J$24,IF($B12=19,'Bahan Pakan'!J$25,IF($B12=20,'Bahan Pakan'!J$26,IF($B12=21,'Bahan Pakan'!J$27,IF($B12=22,'Bahan Pakan'!J$28,IF($B12=23,'Bahan Pakan'!J$29,IF($B12=24,'Bahan Pakan'!J$30,IF($B12=25,'Bahan Pakan'!J$31,IF($B12=26,'Bahan Pakan'!J$32,IF($B12=27,'Bahan Pakan'!J$33,IF($B12=28,'Bahan Pakan'!J$34,IF($B12=29,'Bahan Pakan'!J$35,IF($B12=30,'Bahan Pakan'!J$36,IF($B12=31,'Bahan Pakan'!J$37,IF($B12=32,'Bahan Pakan'!J$38,IF($B12=33,'Bahan Pakan'!J$39,IF($B12=34,'Bahan Pakan'!J$40,IF($B12=35,'Bahan Pakan'!J$41,IF($B12=36,'Bahan Pakan'!J$42,IF($B12=37,'Bahan Pakan'!J$43,IF($B12=38,'Bahan Pakan'!J$44,IF($B12=39,'Bahan Pakan'!J$45,IF($B12=40,'Bahan Pakan'!J$46,IF($B12=41,'Bahan Pakan'!J$47,IF($B12=42,'Bahan Pakan'!J$48,IF($B12=43,'Bahan Pakan'!J$49,IF($B12=44,'Bahan Pakan'!J$50,IF($B12=45,'Bahan Pakan'!J$51,IF($B12=46,'Bahan Pakan'!J$52,IF($B12=47,'Bahan Pakan'!J$53,IF($B12=48,'Bahan Pakan'!J$54,IF($B12=49,'Bahan Pakan'!J$55,IF($B12=50,'Bahan Pakan'!J$56,0)))))))))))))))))))))))))))))))))))))))))))))))))) -> 0 | O12: =IF($B12=1,'Bahan Pakan'!K$7,IF($B12=2,'Bahan Pakan'!K$8,IF($B12=3,'Bahan Pakan'!K$9,IF($B12=4,'Bahan Pakan'!K$10,IF($B12=5,'Bahan Pakan'!K$11,IF($B12=6,'Bahan Pakan'!K$12,IF($B12=7,'Bahan Pakan'!K$13,IF($B12=8,'Bahan Pakan'!K$14,IF($B12=9,'Bahan Pakan'!K$15,IF($B12=10,'Bahan Pakan'!K$16,IF($B12=11,'Bahan Pakan'!K$17,IF($B12=12,'Bahan Pakan'!K$18,IF($B12=13,'Bahan Pakan'!K$19,IF($B12=14,'Bahan Pakan'!K$20,IF($B12=15,'Bahan Pakan'!K$21,IF($B12=16,'Bahan Pakan'!K$22,IF($B12=17,'Bahan Pakan'!K$23,IF($B12=18,'Bahan Pakan'!K$24,IF($B12=19,'Bahan Pakan'!K$25,IF($B12=20,'Bahan Pakan'!K$26,IF($B12=21,'Bahan Pakan'!K$27,IF($B12=22,'Bahan Pakan'!K$28,IF($B12=23,'Bahan Pakan'!K$29,IF($B12=24,'Bahan Pakan'!K$30,IF($B12=25,'Bahan Pakan'!K$31,IF($B12=26,'Bahan Pakan'!K$32,IF($B12=27,'Bahan Pakan'!K$33,IF($B12=28,'Bahan Pakan'!K$34,IF($B12=29,'Bahan Pakan'!K$35,IF($B12=30,'Bahan Pakan'!K$36,IF($B12=31,'Bahan Pakan'!K$37,IF($B12=32,'Bahan Pakan'!K$38,IF($B12=33,'Bahan Pakan'!K$39,IF($B12=34,'Bahan Pakan'!K$40,IF($B12=35,'Bahan Pakan'!K$41,IF($B12=36,'Bahan Pakan'!K$42,IF($B12=37,'Bahan Pakan'!K$43,IF($B12=38,'Bahan Pakan'!K$44,IF($B12=39,'Bahan Pakan'!K$45,IF($B12=40,'Bahan Pakan'!K$46,IF($B12=41,'Bahan Pakan'!K$47,IF($B12=42,'Bahan Pakan'!K$48,IF($B12=43,'Bahan Pakan'!K$49,IF($B12=44,'Bahan Pakan'!K$50,IF($B12=45,'Bahan Pakan'!K$51,IF($B12=46,'Bahan Pakan'!K$52,IF($B12=47,'Bahan Pakan'!K$53,IF($B12=48,'Bahan Pakan'!K$54,IF($B12=49,'Bahan Pakan'!K$55,IF($B12=50,'Bahan Pakan'!K$56,0)))))))))))))))))))))))))))))))))))))))))))))))))) -> 0 | P12: =IF($B12=1,'Bahan Pakan'!L$7,IF($B12=2,'Bahan Pakan'!L$8,IF($B12=3,'Bahan Pakan'!L$9,IF($B12=4,'Bahan Pakan'!L$10,IF($B12=5,'Bahan Pakan'!L$11,IF($B12=6,'Bahan Pakan'!L$12,IF($B12=7,'Bahan Pakan'!L$13,IF($B12=8,'Bahan Pakan'!L$14,IF($B12=9,'Bahan Pakan'!L$15,IF($B12=10,'Bahan Pakan'!L$16,IF($B12=11,'Bahan Pakan'!L$17,IF($B12=12,'Bahan Pakan'!L$18,IF($B12=13,'Bahan Pakan'!L$19,IF($B12=14,'Bahan Pakan'!L$20,IF($B12=15,'Bahan Pakan'!L$21,IF($B12=16,'Bahan Pakan'!L$22,IF($B12=17,'Bahan Pakan'!L$23,IF($B12=18,'Bahan Pakan'!L$24,IF($B12=19,'Bahan Pakan'!L$25,IF($B12=20,'Bahan Pakan'!L$26,IF($B12=21,'Bahan Pakan'!L$27,IF($B12=22,'Bahan Pakan'!L$28,IF($B12=23,'Bahan Pakan'!L$29,IF($B12=24,'Bahan Pakan'!L$30,IF($B12=25,'Bahan Pakan'!L$31,IF($B12=26,'Bahan Pakan'!L$32,IF($B12=27,'Bahan Pakan'!L$33,IF($B12=28,'Bahan Pakan'!L$34,IF($B12=29,'Bahan Pakan'!L$35,IF($B12=30,'Bahan Pakan'!L$36,IF($B12=31,'Bahan Pakan'!L$37,IF($B12=32,'Bahan Pakan'!L$38,IF($B12=33,'Bahan Pakan'!L$39,IF($B12=34,'Bahan Pakan'!L$40,IF($B12=35,'Bahan Pakan'!L$41,IF($B12=36,'Bahan Pakan'!L$42,IF($B12=37,'Bahan Pakan'!L$43,IF($B12=38,'Bahan Pakan'!L$44,IF($B12=39,'Bahan Pakan'!L$45,IF($B12=40,'Bahan Pakan'!L$46,IF($B12=41,'Bahan Pakan'!L$47,IF($B12=42,'Bahan Pakan'!L$48,IF($B12=43,'Bahan Pakan'!L$49,IF($B12=44,'Bahan Pakan'!L$50,IF($B12=45,'Bahan Pakan'!L$51,IF($B12=46,'Bahan Pakan'!L$52,IF($B12=47,'Bahan Pakan'!L$53,IF($B12=48,'Bahan Pakan'!L$54,IF($B12=49,'Bahan Pakan'!L$55,IF($B12=50,'Bahan Pakan'!L$56,0)))))))))))))))))))))))))))))))))))))))))))))))))) -> 0 | Q12: =IF($B12=1,'Bahan Pakan'!M$7,IF($B12=2,'Bahan Pakan'!M$8,IF($B12=3,'Bahan Pakan'!M$9,IF($B12=4,'Bahan Pakan'!M$10,IF($B12=5,'Bahan Pakan'!M$11,IF($B12=6,'Bahan Pakan'!M$12,IF($B12=7,'Bahan Pakan'!M$13,IF($B12=8,'Bahan Pakan'!M$14,IF($B12=9,'Bahan Pakan'!M$15,IF($B12=10,'Bahan Pakan'!M$16,IF($B12=11,'Bahan Pakan'!M$17,IF($B12=12,'Bahan Pakan'!M$18,IF($B12=13,'Bahan Pakan'!M$19,IF($B12=14,'Bahan Pakan'!M$20,IF($B12=15,'Bahan Pakan'!M$21,IF($B12=16,'Bahan Pakan'!M$22,IF($B12=17,'Bahan Pakan'!M$23,IF($B12=18,'Bahan Pakan'!M$24,IF($B12=19,'Bahan Pakan'!M$25,IF($B12=20,'Bahan Pakan'!M$26,IF($B12=21,'Bahan Pakan'!M$27,IF($B12=22,'Bahan Pakan'!M$28,IF($B12=23,'Bahan Pakan'!M$29,IF($B12=24,'Bahan Pakan'!M$30,IF($B12=25,'Bahan Pakan'!M$31,IF($B12=26,'Bahan Pakan'!M$32,IF($B12=27,'Bahan Pakan'!M$33,IF($B12=28,'Bahan Pakan'!M$34,IF($B12=29,'Bahan Pakan'!M$35,IF($B12=30,'Bahan Pakan'!M$36,IF($B12=31,'Bahan Pakan'!M$37,IF($B12=32,'Bahan Pakan'!M$38,IF($B12=33,'Bahan Pakan'!M$39,IF($B12=34,'Bahan Pakan'!M$40,IF($B12=35,'Bahan Pakan'!M$41,IF($B12=36,'Bahan Pakan'!M$42,IF($B12=37,'Bahan Pakan'!M$43,IF($B12=38,'Bahan Pakan'!M$44,IF($B12=39,'Bahan Pakan'!M$45,IF($B12=40,'Bahan Pakan'!M$46,IF($B12=41,'Bahan Pakan'!M$47,IF($B12=42,'Bahan Pakan'!M$48,IF($B12=43,'Bahan Pakan'!M$49,IF($B12=44,'Bahan Pakan'!M$50,IF($B12=45,'Bahan Pakan'!M$51,IF($B12=46,'Bahan Pakan'!M$52,IF($B12=47,'Bahan Pakan'!M$53,IF($B12=48,'Bahan Pakan'!M$54,IF($B12=49,'Bahan Pakan'!M$55,IF($B12=50,'Bahan Pakan'!M$56,0)))))))))))))))))))))))))))))))))))))))))))))))))) -> 0 | R12: =IF($B12=1,'Bahan Pakan'!N$7,IF($B12=2,'Bahan Pakan'!N$8,IF($B12=3,'Bahan Pakan'!N$9,IF($B12=4,'Bahan Pakan'!N$10,IF($B12=5,'Bahan Pakan'!N$11,IF($B12=6,'Bahan Pakan'!N$12,IF($B12=7,'Bahan Pakan'!N$13,IF($B12=8,'Bahan Pakan'!N$14,IF($B12=9,'Bahan Pakan'!N$15,IF($B12=10,'Bahan Pakan'!N$16,IF($B12=11,'Bahan Pakan'!N$17,IF($B12=12,'Bahan Pakan'!N$18,IF($B12=13,'Bahan Pakan'!N$19,IF($B12=14,'Bahan Pakan'!N$20,IF($B12=15,'Bahan Pakan'!N$21,IF($B12=16,'Bahan Pakan'!N$22,IF($B12=17,'Bahan Pakan'!N$23,IF($B12=18,'Bahan Pakan'!N$24,IF($B12=19,'Bahan Pakan'!N$25,IF($B12=20,'Bahan Pakan'!N$26,IF($B12=21,'Bahan Pakan'!N$27,IF($B12=22,'Bahan Pakan'!N$28,IF($B12=23,'Bahan Pakan'!N$29,IF($B12=24,'Bahan Pakan'!N$30,IF($B12=25,'Bahan Pakan'!N$31,IF($B12=26,'Bahan Pakan'!N$32,IF($B12=27,'Bahan Pakan'!N$33,IF($B12=28,'Bahan Pakan'!N$34,IF($B12=29,'Bahan Pakan'!N$35,IF($B12=30,'Bahan Pakan'!N$36,IF($B12=31,'Bahan Pakan'!N$37,IF($B12=32,'Bahan Pakan'!N$38,IF($B12=33,'Bahan Pakan'!N$39,IF($B12=34,'Bahan Pakan'!N$40,IF($B12=35,'Bahan Pakan'!N$41,IF($B12=36,'Bahan Pakan'!N$42,IF($B12=37,'Bahan Pakan'!N$43,IF($B12=38,'Bahan Pakan'!N$44,IF($B12=39,'Bahan Pakan'!N$45,IF($B12=40,'Bahan Pakan'!N$46,IF($B12=41,'Bahan Pakan'!N$47,IF($B12=42,'Bahan Pakan'!N$48,IF($B12=43,'Bahan Pakan'!N$49,IF($B12=44,'Bahan Pakan'!N$50,IF($B12=45,'Bahan Pakan'!N$51,IF($B12=46,'Bahan Pakan'!N$52,IF($B12=47,'Bahan Pakan'!N$53,IF($B12=48,'Bahan Pakan'!N$54,IF($B12=49,'Bahan Pakan'!N$55,IF($B12=50,'Bahan Pakan'!N$56,0)))))))))))))))))))))))))))))))))))))))))))))))))) -> 0 | S12: =IF($B12=1,'Bahan Pakan'!O$7,IF($B12=2,'Bahan Pakan'!O$8,IF($B12=3,'Bahan Pakan'!O$9,IF($B12=4,'Bahan Pakan'!O$10,IF($B12=5,'Bahan Pakan'!O$11,IF($B12=6,'Bahan Pakan'!O$12,IF($B12=7,'Bahan Pakan'!O$13,IF($B12=8,'Bahan Pakan'!O$14,IF($B12=9,'Bahan Pakan'!O$15,IF($B12=10,'Bahan Pakan'!O$16,IF($B12=11,'Bahan Pakan'!O$17,IF($B12=12,'Bahan Pakan'!O$18,IF($B12=13,'Bahan Pakan'!O$19,IF($B12=14,'Bahan Pakan'!O$20,IF($B12=15,'Bahan Pakan'!O$21,IF($B12=16,'Bahan Pakan'!O$22,IF($B12=17,'Bahan Pakan'!O$23,IF($B12=18,'Bahan Pakan'!O$24,IF($B12=19,'Bahan Pakan'!O$25,IF($B12=20,'Bahan Pakan'!O$26,IF($B12=21,'Bahan Pakan'!O$27,IF($B12=22,'Bahan Pakan'!O$28,IF($B12=23,'Bahan Pakan'!O$29,IF($B12=24,'Bahan Pakan'!O$30,IF($B12=25,'Bahan Pakan'!O$31,IF($B12=26,'Bahan Pakan'!O$32,IF($B12=27,'Bahan Pakan'!O$33,IF($B12=28,'Bahan Pakan'!O$34,IF($B12=29,'Bahan Pakan'!O$35,IF($B12=30,'Bahan Pakan'!O$36,IF($B12=31,'Bahan Pakan'!O$37,IF($B12=32,'Bahan Pakan'!O$38,IF($B12=33,'Bahan Pakan'!O$39,IF($B12=34,'Bahan Pakan'!O$40,IF($B12=35,'Bahan Pakan'!O$41,IF($B12=36,'Bahan Pakan'!O$42,IF($B12=37,'Bahan Pakan'!O$43,IF($B12=38,'Bahan Pakan'!O$44,IF($B12=39,'Bahan Pakan'!O$45,IF($B12=40,'Bahan Pakan'!O$46,IF($B12=41,'Bahan Pakan'!O$47,IF($B12=42,'Bahan Pakan'!O$48,IF($B12=43,'Bahan Pakan'!O$49,IF($B12=44,'Bahan Pakan'!O$50,IF($B12=45,'Bahan Pakan'!O$51,IF($B12=46,'Bahan Pakan'!O$52,IF($B12=47,'Bahan Pakan'!O$53,IF($B12=48,'Bahan Pakan'!O$54,IF($B12=49,'Bahan Pakan'!O$55,IF($B12=50,'Bahan Pakan'!O$56,0)))))))))))))))))))))))))))))))))))))))))))))))))) -> 38 | T12: =IF($B12=1,'Bahan Pakan'!P$7,IF($B12=2,'Bahan Pakan'!P$8,IF($B12=3,'Bahan Pakan'!P$9,IF($B12=4,'Bahan Pakan'!P$10,IF($B12=5,'Bahan Pakan'!P$11,IF($B12=6,'Bahan Pakan'!P$12,IF($B12=7,'Bahan Pakan'!P$13,IF($B12=8,'Bahan Pakan'!P$14,IF($B12=9,'Bahan Pakan'!P$15,IF($B12=10,'Bahan Pakan'!P$16,IF($B12=11,'Bahan Pakan'!P$17,IF($B12=12,'Bahan Pakan'!P$18,IF($B12=13,'Bahan Pakan'!P$19,IF($B12=14,'Bahan Pakan'!P$20,IF($B12=15,'Bahan Pakan'!P$21,IF($B12=16,'Bahan Pakan'!P$22,IF($B12=17,'Bahan Pakan'!P$23,IF($B12=18,'Bahan Pakan'!P$24,IF($B12=19,'Bahan Pakan'!P$25,IF($B12=20,'Bahan Pakan'!P$26,IF($B12=21,'Bahan Pakan'!P$27,IF($B12=22,'Bahan Pakan'!P$28,IF($B12=23,'Bahan Pakan'!P$29,IF($B12=24,'Bahan Pakan'!P$30,IF($B12=25,'Bahan Pakan'!P$31,IF($B12=26,'Bahan Pakan'!P$32,IF($B12=27,'Bahan Pakan'!P$33,IF($B12=28,'Bahan Pakan'!P$34,IF($B12=29,'Bahan Pakan'!P$35,IF($B12=30,'Bahan Pakan'!P$36,IF($B12=31,'Bahan Pakan'!P$37,IF($B12=32,'Bahan Pakan'!P$38,IF($B12=33,'Bahan Pakan'!P$39,IF($B12=34,'Bahan Pakan'!P$40,IF($B12=35,'Bahan Pakan'!P$41,IF($B12=36,'Bahan Pakan'!P$42,IF($B12=37,'Bahan Pakan'!P$43,IF($B12=38,'Bahan Pakan'!P$44,IF($B12=39,'Bahan Pakan'!P$45,IF($B12=40,'Bahan Pakan'!P$46,IF($B12=41,'Bahan Pakan'!P$47,IF($B12=42,'Bahan Pakan'!P$48,IF($B12=43,'Bahan Pakan'!P$49,IF($B12=44,'Bahan Pakan'!P$50,IF($B12=45,'Bahan Pakan'!P$51,IF($B12=46,'Bahan Pakan'!P$52,IF($B12=47,'Bahan Pakan'!P$53,IF($B12=48,'Bahan Pakan'!P$54,IF($B12=49,'Bahan Pakan'!P$55,IF($B12=50,'Bahan Pakan'!P$56,0)))))))))))))))))))))))))))))))))))))))))))))))))) -> 0 | Y12: BetaN | Z12: % | AA12: - | AB12: - | AC12: =O45 -> 53.40024
B13: =IF($D13='Bahan Pakan'!D$7,1,IF($D13='Bahan Pakan'!D$8,2,IF($D13='Bahan Pakan'!D$9,3,IF($D13='Bahan Pakan'!D$10,4,IF($D13='Bahan Pakan'!D$11,5,IF($D13='Bahan Pakan'!D$12,6,IF($D13='Bahan Pakan'!D$13,7,IF($D13='Bahan Pakan'!D$14,8,IF($D13='Bahan Pakan'!D$15,9,IF($D13='Bahan Pakan'!D$16,10,IF($D13='Bahan Pakan'!D$17,11,IF($D13='Bahan Pakan'!D$18,12,IF($D13='Bahan Pakan'!D$19,13,IF($D13='Bahan Pakan'!D$20,14,IF($D13='Bahan Pakan'!D$21,15,IF($D13='Bahan Pakan'!D$22,16,IF($D13='Bahan Pakan'!D$23,17,IF($D13='Bahan Pakan'!D$24,18,IF($D13='Bahan Pakan'!D$25,19,IF($D13='Bahan Pakan'!D$26,20,IF($D13='Bahan Pakan'!D$27,21,IF($D13='Bahan Pakan'!D$28,22,IF($D13='Bahan Pakan'!D$29,23,IF($D13='Bahan Pakan'!D$30,24,IF($D13='Bahan Pakan'!D$31,25,IF($D13='Bahan Pakan'!D$32,26,IF($D13='Bahan Pakan'!D$33,27,IF($D13='Bahan Pakan'!D$34,28,IF($D13='Bahan Pakan'!D$35,29,IF($D13='Bahan Pakan'!D$36,30,IF($D13='Bahan Pakan'!D$37,31,IF($D13='Bahan Pakan'!D$38,32,IF($D13='Bahan Pakan'!D$39,33,IF($D13='Bahan Pakan'!D$40,34,IF($D13='Bahan Pakan'!D$41,35,IF($D13='Bahan Pakan'!D$42,36,IF($D13='Bahan Pakan'!D$43,37,IF($D13='Bahan Pakan'!D$44,38,IF($D13='Bahan Pakan'!D$45,39,IF($D13='Bahan Pakan'!D$46,40,IF($D13='Bahan Pakan'!D$47,41,IF($D13='Bahan Pakan'!D$48,42,IF($D13='Bahan Pakan'!D$49,43,IF($D13='Bahan Pakan'!D$50,44,IF($D13='Bahan Pakan'!D$51,45,IF($D13='Bahan Pakan'!D$52,46,IF($D13='Bahan Pakan'!D$53,47,IF($D13='Bahan Pakan'!D$54,48,IF($D13='Bahan Pakan'!D$55,49,IF($D13='Bahan Pakan'!D$56,50,0)))))))))))))))))))))))))))))))))))))))))))))))))) -> 31 | C13: 7 | D13: Kalsium Karbonat | E13: =IF($B13=1,'Bahan Pakan'!E$7,IF($B13=2,'Bahan Pakan'!E$8,IF($B13=3,'Bahan Pakan'!E$9,IF($B13=4,'Bahan Pakan'!E$10,IF($B13=5,'Bahan Pakan'!E$11,IF($B13=6,'Bahan Pakan'!E$12,IF($B13=7,'Bahan Pakan'!E$13,IF($B13=8,'Bahan Pakan'!E$14,IF($B13=9,'Bahan Pakan'!E$15,IF($B13=10,'Bahan Pakan'!E$16,IF($B13=11,'Bahan Pakan'!E$17,IF($B13=12,'Bahan Pakan'!E$18,IF($B13=13,'Bahan Pakan'!E$19,IF($B13=14,'Bahan Pakan'!E$20,IF($B13=15,'Bahan Pakan'!E$21,IF($B13=16,'Bahan Pakan'!E$22,IF($B13=17,'Bahan Pakan'!E$23,IF($B13=18,'Bahan Pakan'!E$24,IF($B13=19,'Bahan Pakan'!E$25,IF($B13=20,'Bahan Pakan'!E$26,IF($B13=21,'Bahan Pakan'!E$27,IF($B13=22,'Bahan Pakan'!E$28,IF($B13=23,'Bahan Pakan'!E$29,IF($B13=24,'Bahan Pakan'!E$30,IF($B13=25,'Bahan Pakan'!E$31,IF($B13=26,'Bahan Pakan'!E$32,IF($B13=27,'Bahan Pakan'!E$33,IF($B13=28,'Bahan Pakan'!E$34,IF($B13=29,'Bahan Pakan'!E$35,IF($B13=30,'Bahan Pakan'!E$36,IF($B13=31,'Bahan Pakan'!E$37,IF($B13=32,'Bahan Pakan'!E$38,IF($B13=33,'Bahan Pakan'!E$39,IF($B13=34,'Bahan Pakan'!E$40,IF($B13=35,'Bahan Pakan'!E$41,IF($B13=36,'Bahan Pakan'!E$42,IF($B13=37,'Bahan Pakan'!E$43,IF($B13=38,'Bahan Pakan'!E$44,IF($B13=39,'Bahan Pakan'!E$45,IF($B13=40,'Bahan Pakan'!E$46,IF($B13=41,'Bahan Pakan'!E$47,IF($B13=42,'Bahan Pakan'!E$48,IF($B13=43,'Bahan Pakan'!E$49,IF($B13=44,'Bahan Pakan'!E$50,IF($B13=45,'Bahan Pakan'!E$51,IF($B13=46,'Bahan Pakan'!E$52,IF($B13=47,'Bahan Pakan'!E$53,IF($B13=48,'Bahan Pakan'!E$54,IF($B13=49,'Bahan Pakan'!E$55,IF($B13=50,'Bahan Pakan'!E$56,0)))))))))))))))))))))))))))))))))))))))))))))))))) -> 0 | F13: =IF($B13=1,'Bahan Pakan'!F$7,IF($B13=2,'Bahan Pakan'!F$8,IF($B13=3,'Bahan Pakan'!F$9,IF($B13=4,'Bahan Pakan'!F$10,IF($B13=5,'Bahan Pakan'!F$11,IF($B13=6,'Bahan Pakan'!F$12,IF($B13=7,'Bahan Pakan'!F$13,IF($B13=8,'Bahan Pakan'!F$14,IF($B13=9,'Bahan Pakan'!F$15,IF($B13=10,'Bahan Pakan'!F$16,IF($B13=11,'Bahan Pakan'!F$17,IF($B13=12,'Bahan Pakan'!F$18,IF($B13=13,'Bahan Pakan'!F$19,IF($B13=14,'Bahan Pakan'!F$20,IF($B13=15,'Bahan Pakan'!F$21,IF($B13=16,'Bahan Pakan'!F$22,IF($B13=17,'Bahan Pakan'!F$23,IF($B13=18,'Bahan Pakan'!F$24,IF($B13=19,'Bahan Pakan'!F$25,IF($B13=20,'Bahan Pakan'!F$26,IF($B13=21,'Bahan Pakan'!F$27,IF($B13=22,'Bahan Pakan'!F$28,IF($B13=23,'Bahan Pakan'!F$29,IF($B13=24,'Bahan Pakan'!F$30,IF($B13=25,'Bahan Pakan'!F$31,IF($B13=26,'Bahan Pakan'!F$32,IF($B13=27,'Bahan Pakan'!F$33,IF($B13=28,'Bahan Pakan'!F$34,IF($B13=29,'Bahan Pakan'!F$35,IF($B13=30,'Bahan Pakan'!F$36,IF($B13=31,'Bahan Pakan'!F$37,IF($B13=32,'Bahan Pakan'!F$38,IF($B13=33,'Bahan Pakan'!F$39,IF($B13=34,'Bahan Pakan'!F$40,IF($B13=35,'Bahan Pakan'!F$41,IF($B13=36,'Bahan Pakan'!F$42,IF($B13=37,'Bahan Pakan'!F$43,IF($B13=38,'Bahan Pakan'!F$44,IF($B13=39,'Bahan Pakan'!F$45,IF($B13=40,'Bahan Pakan'!F$46,IF($B13=41,'Bahan Pakan'!F$47,IF($B13=42,'Bahan Pakan'!F$48,IF($B13=43,'Bahan Pakan'!F$49,IF($B13=44,'Bahan Pakan'!F$50,IF($B13=45,'Bahan Pakan'!F$51,IF($B13=46,'Bahan Pakan'!F$52,IF($B13=47,'Bahan Pakan'!F$53,IF($B13=48,'Bahan Pakan'!F$54,IF($B13=49,'Bahan Pakan'!F$55,IF($B13=50,'Bahan Pakan'!F$56,0)))))))))))))))))))))))))))))))))))))))))))))))))) -> 2 | G13: 0.5 | H13: =IF(G13>0,(G13*100/L13),0) -> 0.5050505051 | I13: 0.422304672 | J13: 4.22304672 | K13: =IF($B13=1,'Bahan Pakan'!G$7,IF($B13=2,'Bahan Pakan'!G$8,IF($B13=3,'Bahan Pakan'!G$9,IF($B13=4,'Bahan Pakan'!G$10,IF($B13=5,'Bahan Pakan'!G$11,IF($B13=6,'Bahan Pakan'!G$12,IF($B13=7,'Bahan Pakan'!G$13,IF($B13=8,'Bahan Pakan'!G$14,IF($B13=9,'Bahan Pakan'!G$15,IF($B13=10,'Bahan Pakan'!G$16,IF($B13=11,'Bahan Pakan'!G$17,IF($B13=12,'Bahan Pakan'!G$18,IF($B13=13,'Bahan Pakan'!G$19,IF($B13=14,'Bahan Pakan'!G$20,IF($B13=15,'Bahan Pakan'!G$21,IF($B13=16,'Bahan Pakan'!G$22,IF($B13=17,'Bahan Pakan'!G$23,IF($B13=18,'Bahan Pakan'!G$24,IF($B13=19,'Bahan Pakan'!G$25,IF($B13=20,'Bahan Pakan'!G$26,IF($B13=21,'Bahan Pakan'!G$27,IF($B13=22,'Bahan Pakan'!G$28,IF($B13=23,'Bahan Pakan'!G$29,IF($B13=24,'Bahan Pakan'!G$30,IF($B13=25,'Bahan Pakan'!G$31,IF($B13=26,'Bahan Pakan'!G$32,IF($B13=27,'Bahan Pakan'!G$33,IF($B13=28,'Bahan Pakan'!G$34,IF($B13=29,'Bahan Pakan'!G$35,IF($B13=30,'Bahan Pakan'!G$36,IF($B13=31,'Bahan Pakan'!G$37,IF($B13=32,'Bahan Pakan'!G$38,IF($B13=33,'Bahan Pakan'!G$39,IF($B13=34,'Bahan Pakan'!G$40,IF($B13=35,'Bahan Pakan'!G$41,IF($B13=36,'Bahan Pakan'!G$42,IF($B13=37,'Bahan Pakan'!G$43,IF($B13=38,'Bahan Pakan'!G$44,IF($B13=39,'Bahan Pakan'!G$45,IF($B13=40,'Bahan Pakan'!G$46,IF($B13=41,'Bahan Pakan'!G$47,IF($B13=42,'Bahan Pakan'!G$48,IF($B13=43,'Bahan Pakan'!G$49,IF($B13=44,'Bahan Pakan'!G$50,IF($B13=45,'Bahan Pakan'!G$51,IF($B13=46,'Bahan Pakan'!G$52,IF($B13=47,'Bahan Pakan'!G$53,IF($B13=48,'Bahan Pakan'!G$54,IF($B13=49,'Bahan Pakan'!G$55,IF($B13=50,'Bahan Pakan'!G$56,0)))))))))))))))))))))))))))))))))))))))))))))))))) -> 750 | L13: =IF($B13=1,'Bahan Pakan'!H$7,IF($B13=2,'Bahan Pakan'!H$8,IF($B13=3,'Bahan Pakan'!H$9,IF($B13=4,'Bahan Pakan'!H$10,IF($B13=5,'Bahan Pakan'!H$11,IF($B13=6,'Bahan Pakan'!H$12,IF($B13=7,'Bahan Pakan'!H$13,IF($B13=8,'Bahan Pakan'!H$14,IF($B13=9,'Bahan Pakan'!H$15,IF($B13=10,'Bahan Pakan'!H$16,IF($B13=11,'Bahan Pakan'!H$17,IF($B13=12,'Bahan Pakan'!H$18,IF($B13=13,'Bahan Pakan'!H$19,IF($B13=14,'Bahan Pakan'!H$20,IF($B13=15,'Bahan Pakan'!H$21,IF($B13=16,'Bahan Pakan'!H$22,IF($B13=17,'Bahan Pakan'!H$23,IF($B13=18,'Bahan Pakan'!H$24,IF($B13=19,'Bahan Pakan'!H$25,IF($B13=20,'Bahan Pakan'!H$26,IF($B13=21,'Bahan Pakan'!H$27,IF($B13=22,'Bahan Pakan'!H$28,IF($B13=23,'Bahan Pakan'!H$29,IF($B13=24,'Bahan Pakan'!H$30,IF($B13=25,'Bahan Pakan'!H$31,IF($B13=26,'Bahan Pakan'!H$32,IF($B13=27,'Bahan Pakan'!H$33,IF($B13=28,'Bahan Pakan'!H$34,IF($B13=29,'Bahan Pakan'!H$35,IF($B13=30,'Bahan Pakan'!H$36,IF($B13=31,'Bahan Pakan'!H$37,IF($B13=32,'Bahan Pakan'!H$38,IF($B13=33,'Bahan Pakan'!H$39,IF($B13=34,'Bahan Pakan'!H$40,IF($B13=35,'Bahan Pakan'!H$41,IF($B13=36,'Bahan Pakan'!H$42,IF($B13=37,'Bahan Pakan'!H$43,IF($B13=38,'Bahan Pakan'!H$44,IF($B13=39,'Bahan Pakan'!H$45,IF($B13=40,'Bahan Pakan'!H$46,IF($B13=41,'Bahan Pakan'!H$47,IF($B13=42,'Bahan Pakan'!H$48,IF($B13=43,'Bahan Pakan'!H$49,IF($B13=44,'Bahan Pakan'!H$50,IF($B13=45,'Bahan Pakan'!H$51,IF($B13=46,'Bahan Pakan'!H$52,IF($B13=47,'Bahan Pakan'!H$53,IF($B13=48,'Bahan Pakan'!H$54,IF($B13=49,'Bahan Pakan'!H$55,IF($B13=50,'Bahan Pakan'!H$56,0)))))))))))))))))))))))))))))))))))))))))))))))))) -> 99 | M13: =IF($B13=1,'Bahan Pakan'!I$7,IF($B13=2,'Bahan Pakan'!I$8,IF($B13=3,'Bahan Pakan'!I$9,IF($B13=4,'Bahan Pakan'!I$10,IF($B13=5,'Bahan Pakan'!I$11,IF($B13=6,'Bahan Pakan'!I$12,IF($B13=7,'Bahan Pakan'!I$13,IF($B13=8,'Bahan Pakan'!I$14,IF($B13=9,'Bahan Pakan'!I$15,IF($B13=10,'Bahan Pakan'!I$16,IF($B13=11,'Bahan Pakan'!I$17,IF($B13=12,'Bahan Pakan'!I$18,IF($B13=13,'Bahan Pakan'!I$19,IF($B13=14,'Bahan Pakan'!I$20,IF($B13=15,'Bahan Pakan'!I$21,IF($B13=16,'Bahan Pakan'!I$22,IF($B13=17,'Bahan Pakan'!I$23,IF($B13=18,'Bahan Pakan'!I$24,IF($B13=19,'Bahan Pakan'!I$25,IF($B13=20,'Bahan Pakan'!I$26,IF($B13=21,'Bahan Pakan'!I$27,IF($B13=22,'Bahan Pakan'!I$28,IF($B13=23,'Bahan Pakan'!I$29,IF($B13=24,'Bahan Pakan'!I$30,IF($B13=25,'Bahan Pakan'!I$31,IF($B13=26,'Bahan Pakan'!I$32,IF($B13=27,'Bahan Pakan'!I$33,IF($B13=28,'Bahan Pakan'!I$34,IF($B13=29,'Bahan Pakan'!I$35,IF($B13=30,'Bahan Pakan'!I$36,IF($B13=31,'Bahan Pakan'!I$37,IF($B13=32,'Bahan Pakan'!I$38,IF($B13=33,'Bahan Pakan'!I$39,IF($B13=34,'Bahan Pakan'!I$40,IF($B13=35,'Bahan Pakan'!I$41,IF($B13=36,'Bahan Pakan'!I$42,IF($B13=37,'Bahan Pakan'!I$43,IF($B13=38,'Bahan Pakan'!I$44,IF($B13=39,'Bahan Pakan'!I$45,IF($B13=40,'Bahan Pakan'!I$46,IF($B13=41,'Bahan Pakan'!I$47,IF($B13=42,'Bahan Pakan'!I$48,IF($B13=43,'Bahan Pakan'!I$49,IF($B13=44,'Bahan Pakan'!I$50,IF($B13=45,'Bahan Pakan'!I$51,IF($B13=46,'Bahan Pakan'!I$52,IF($B13=47,'Bahan Pakan'!I$53,IF($B13=48,'Bahan Pakan'!I$54,IF($B13=49,'Bahan Pakan'!I$55,IF($B13=50,'Bahan Pakan'!I$56,0)))))))))))))))))))))))))))))))))))))))))))))))))) -> 0 | N13: =IF($B13=1,'Bahan Pakan'!J$7,IF($B13=2,'Bahan Pakan'!J$8,IF($B13=3,'Bahan Pakan'!J$9,IF($B13=4,'Bahan Pakan'!J$10,IF($B13=5,'Bahan Pakan'!J$11,IF($B13=6,'Bahan Pakan'!J$12,IF($B13=7,'Bahan Pakan'!J$13,IF($B13=8,'Bahan Pakan'!J$14,IF($B13=9,'Bahan Pakan'!J$15,IF($B13=10,'Bahan Pakan'!J$16,IF($B13=11,'Bahan Pakan'!J$17,IF($B13=12,'Bahan Pakan'!J$18,IF($B13=13,'Bahan Pakan'!J$19,IF($B13=14,'Bahan Pakan'!J$20,IF($B13=15,'Bahan Pakan'!J$21,IF($B13=16,'Bahan Pakan'!J$22,IF($B13=17,'Bahan Pakan'!J$23,IF($B13=18,'Bahan Pakan'!J$24,IF($B13=19,'Bahan Pakan'!J$25,IF($B13=20,'Bahan Pakan'!J$26,IF($B13=21,'Bahan Pakan'!J$27,IF($B13=22,'Bahan Pakan'!J$28,IF($B13=23,'Bahan Pakan'!J$29,IF($B13=24,'Bahan Pakan'!J$30,IF($B13=25,'Bahan Pakan'!J$31,IF($B13=26,'Bahan Pakan'!J$32,IF($B13=27,'Bahan Pakan'!J$33,IF($B13=28,'Bahan Pakan'!J$34,IF($B13=29,'Bahan Pakan'!J$35,IF($B13=30,'Bahan Pakan'!J$36,IF($B13=31,'Bahan Pakan'!J$37,IF($B13=32,'Bahan Pakan'!J$38,IF($B13=33,'Bahan Pakan'!J$39,IF($B13=34,'Bahan Pakan'!J$40,IF($B13=35,'Bahan Pakan'!J$41,IF($B13=36,'Bahan Pakan'!J$42,IF($B13=37,'Bahan Pakan'!J$43,IF($B13=38,'Bahan Pakan'!J$44,IF($B13=39,'Bahan Pakan'!J$45,IF($B13=40,'Bahan Pakan'!J$46,IF($B13=41,'Bahan Pakan'!J$47,IF($B13=42,'Bahan Pakan'!J$48,IF($B13=43,'Bahan Pakan'!J$49,IF($B13=44,'Bahan Pakan'!J$50,IF($B13=45,'Bahan Pakan'!J$51,IF($B13=46,'Bahan Pakan'!J$52,IF($B13=47,'Bahan Pakan'!J$53,IF($B13=48,'Bahan Pakan'!J$54,IF($B13=49,'Bahan Pakan'!J$55,IF($B13=50,'Bahan Pakan'!J$56,0)))))))))))))))))))))))))))))))))))))))))))))))))) -> 0 | O13: =IF($B13=1,'Bahan Pakan'!K$7,IF($B13=2,'Bahan Pakan'!K$8,IF($B13=3,'Bahan Pakan'!K$9,IF($B13=4,'Bahan Pakan'!K$10,IF($B13=5,'Bahan Pakan'!K$11,IF($B13=6,'Bahan Pakan'!K$12,IF($B13=7,'Bahan Pakan'!K$13,IF($B13=8,'Bahan Pakan'!K$14,IF($B13=9,'Bahan Pakan'!K$15,IF($B13=10,'Bahan Pakan'!K$16,IF($B13=11,'Bahan Pakan'!K$17,IF($B13=12,'Bahan Pakan'!K$18,IF($B13=13,'Bahan Pakan'!K$19,IF($B13=14,'Bahan Pakan'!K$20,IF($B13=15,'Bahan Pakan'!K$21,IF($B13=16,'Bahan Pakan'!K$22,IF($B13=17,'Bahan Pakan'!K$23,IF($B13=18,'Bahan Pakan'!K$24,IF($B13=19,'Bahan Pakan'!K$25,IF($B13=20,'Bahan Pakan'!K$26,IF($B13=21,'Bahan Pakan'!K$27,IF($B13=22,'Bahan Pakan'!K$28,IF($B13=23,'Bahan Pakan'!K$29,IF($B13=24,'Bahan Pakan'!K$30,IF($B13=25,'Bahan Pakan'!K$31,IF($B13=26,'Bahan Pakan'!K$32,IF($B13=27,'Bahan Pakan'!K$33,IF($B13=28,'Bahan Pakan'!K$34,IF($B13=29,'Bahan Pakan'!K$35,IF($B13=30,'Bahan Pakan'!K$36,IF($B13=31,'Bahan Pakan'!K$37,IF($B13=32,'Bahan Pakan'!K$38,IF($B13=33,'Bahan Pakan'!K$39,IF($B13=34,'Bahan Pakan'!K$40,IF($B13=35,'Bahan Pakan'!K$41,IF($B13=36,'Bahan Pakan'!K$42,IF($B13=37,'Bahan Pakan'!K$43,IF($B13=38,'Bahan Pakan'!K$44,IF($B13=39,'Bahan Pakan'!K$45,IF($B13=40,'Bahan Pakan'!K$46,IF($B13=41,'Bahan Pakan'!K$47,IF($B13=42,'Bahan Pakan'!K$48,IF($B13=43,'Bahan Pakan'!K$49,IF($B13=44,'Bahan Pakan'!K$50,IF($B13=45,'Bahan Pakan'!K$51,IF($B13=46,'Bahan Pakan'!K$52,IF($B13=47,'Bahan Pakan'!K$53,IF($B13=48,'Bahan Pakan'!K$54,IF($B13=49,'Bahan Pakan'!K$55,IF($B13=50,'Bahan Pakan'!K$56,0)))))))))))))))))))))))))))))))))))))))))))))))))) -> 0 | P13: =IF($B13=1,'Bahan Pakan'!L$7,IF($B13=2,'Bahan Pakan'!L$8,IF($B13=3,'Bahan Pakan'!L$9,IF($B13=4,'Bahan Pakan'!L$10,IF($B13=5,'Bahan Pakan'!L$11,IF($B13=6,'Bahan Pakan'!L$12,IF($B13=7,'Bahan Pakan'!L$13,IF($B13=8,'Bahan Pakan'!L$14,IF($B13=9,'Bahan Pakan'!L$15,IF($B13=10,'Bahan Pakan'!L$16,IF($B13=11,'Bahan Pakan'!L$17,IF($B13=12,'Bahan Pakan'!L$18,IF($B13=13,'Bahan Pakan'!L$19,IF($B13=14,'Bahan Pakan'!L$20,IF($B13=15,'Bahan Pakan'!L$21,IF($B13=16,'Bahan Pakan'!L$22,IF($B13=17,'Bahan Pakan'!L$23,IF($B13=18,'Bahan Pakan'!L$24,IF($B13=19,'Bahan Pakan'!L$25,IF($B13=20,'Bahan Pakan'!L$26,IF($B13=21,'Bahan Pakan'!L$27,IF($B13=22,'Bahan Pakan'!L$28,IF($B13=23,'Bahan Pakan'!L$29,IF($B13=24,'Bahan Pakan'!L$30,IF($B13=25,'Bahan Pakan'!L$31,IF($B13=26,'Bahan Pakan'!L$32,IF($B13=27,'Bahan Pakan'!L$33,IF($B13=28,'Bahan Pakan'!L$34,IF($B13=29,'Bahan Pakan'!L$35,IF($B13=30,'Bahan Pakan'!L$36,IF($B13=31,'Bahan Pakan'!L$37,IF($B13=32,'Bahan Pakan'!L$38,IF($B13=33,'Bahan Pakan'!L$39,IF($B13=34,'Bahan Pakan'!L$40,IF($B13=35,'Bahan Pakan'!L$41,IF($B13=36,'Bahan Pakan'!L$42,IF($B13=37,'Bahan Pakan'!L$43,IF($B13=38,'Bahan Pakan'!L$44,IF($B13=39,'Bahan Pakan'!L$45,IF($B13=40,'Bahan Pakan'!L$46,IF($B13=41,'Bahan Pakan'!L$47,IF($B13=42,'Bahan Pakan'!L$48,IF($B13=43,'Bahan Pakan'!L$49,IF($B13=44,'Bahan Pakan'!L$50,IF($B13=45,'Bahan Pakan'!L$51,IF($B13=46,'Bahan Pakan'!L$52,IF($B13=47,'Bahan Pakan'!L$53,IF($B13=48,'Bahan Pakan'!L$54,IF($B13=49,'Bahan Pakan'!L$55,IF($B13=50,'Bahan Pakan'!L$56,0)))))))))))))))))))))))))))))))))))))))))))))))))) -> 0 | Q13: =IF($B13=1,'Bahan Pakan'!M$7,IF($B13=2,'Bahan Pakan'!M$8,IF($B13=3,'Bahan Pakan'!M$9,IF($B13=4,'Bahan Pakan'!M$10,IF($B13=5,'Bahan Pakan'!M$11,IF($B13=6,'Bahan Pakan'!M$12,IF($B13=7,'Bahan Pakan'!M$13,IF($B13=8,'Bahan Pakan'!M$14,IF($B13=9,'Bahan Pakan'!M$15,IF($B13=10,'Bahan Pakan'!M$16,IF($B13=11,'Bahan Pakan'!M$17,IF($B13=12,'Bahan Pakan'!M$18,IF($B13=13,'Bahan Pakan'!M$19,IF($B13=14,'Bahan Pakan'!M$20,IF($B13=15,'Bahan Pakan'!M$21,IF($B13=16,'Bahan Pakan'!M$22,IF($B13=17,'Bahan Pakan'!M$23,IF($B13=18,'Bahan Pakan'!M$24,IF($B13=19,'Bahan Pakan'!M$25,IF($B13=20,'Bahan Pakan'!M$26,IF($B13=21,'Bahan Pakan'!M$27,IF($B13=22,'Bahan Pakan'!M$28,IF($B13=23,'Bahan Pakan'!M$29,IF($B13=24,'Bahan Pakan'!M$30,IF($B13=25,'Bahan Pakan'!M$31,IF($B13=26,'Bahan Pakan'!M$32,IF($B13=27,'Bahan Pakan'!M$33,IF($B13=28,'Bahan Pakan'!M$34,IF($B13=29,'Bahan Pakan'!M$35,IF($B13=30,'Bahan Pakan'!M$36,IF($B13=31,'Bahan Pakan'!M$37,IF($B13=32,'Bahan Pakan'!M$38,IF($B13=33,'Bahan Pakan'!M$39,IF($B13=34,'Bahan Pakan'!M$40,IF($B13=35,'Bahan Pakan'!M$41,IF($B13=36,'Bahan Pakan'!M$42,IF($B13=37,'Bahan Pakan'!M$43,IF($B13=38,'Bahan Pakan'!M$44,IF($B13=39,'Bahan Pakan'!M$45,IF($B13=40,'Bahan Pakan'!M$46,IF($B13=41,'Bahan Pakan'!M$47,IF($B13=42,'Bahan Pakan'!M$48,IF($B13=43,'Bahan Pakan'!M$49,IF($B13=44,'Bahan Pakan'!M$50,IF($B13=45,'Bahan Pakan'!M$51,IF($B13=46,'Bahan Pakan'!M$52,IF($B13=47,'Bahan Pakan'!M$53,IF($B13=48,'Bahan Pakan'!M$54,IF($B13=49,'Bahan Pakan'!M$55,IF($B13=50,'Bahan Pakan'!M$56,0)))))))))))))))))))))))))))))))))))))))))))))))))) -> 0 | R13: =IF($B13=1,'Bahan Pakan'!N$7,IF($B13=2,'Bahan Pakan'!N$8,IF($B13=3,'Bahan Pakan'!N$9,IF($B13=4,'Bahan Pakan'!N$10,IF($B13=5,'Bahan Pakan'!N$11,IF($B13=6,'Bahan Pakan'!N$12,IF($B13=7,'Bahan Pakan'!N$13,IF($B13=8,'Bahan Pakan'!N$14,IF($B13=9,'Bahan Pakan'!N$15,IF($B13=10,'Bahan Pakan'!N$16,IF($B13=11,'Bahan Pakan'!N$17,IF($B13=12,'Bahan Pakan'!N$18,IF($B13=13,'Bahan Pakan'!N$19,IF($B13=14,'Bahan Pakan'!N$20,IF($B13=15,'Bahan Pakan'!N$21,IF($B13=16,'Bahan Pakan'!N$22,IF($B13=17,'Bahan Pakan'!N$23,IF($B13=18,'Bahan Pakan'!N$24,IF($B13=19,'Bahan Pakan'!N$25,IF($B13=20,'Bahan Pakan'!N$26,IF($B13=21,'Bahan Pakan'!N$27,IF($B13=22,'Bahan Pakan'!N$28,IF($B13=23,'Bahan Pakan'!N$29,IF($B13=24,'Bahan Pakan'!N$30,IF($B13=25,'Bahan Pakan'!N$31,IF($B13=26,'Bahan Pakan'!N$32,IF($B13=27,'Bahan Pakan'!N$33,IF($B13=28,'Bahan Pakan'!N$34,IF($B13=29,'Bahan Pakan'!N$35,IF($B13=30,'Bahan Pakan'!N$36,IF($B13=31,'Bahan Pakan'!N$37,IF($B13=32,'Bahan Pakan'!N$38,IF($B13=33,'Bahan Pakan'!N$39,IF($B13=34,'Bahan Pakan'!N$40,IF($B13=35,'Bahan Pakan'!N$41,IF($B13=36,'Bahan Pakan'!N$42,IF($B13=37,'Bahan Pakan'!N$43,IF($B13=38,'Bahan Pakan'!N$44,IF($B13=39,'Bahan Pakan'!N$45,IF($B13=40,'Bahan Pakan'!N$46,IF($B13=41,'Bahan Pakan'!N$47,IF($B13=42,'Bahan Pakan'!N$48,IF($B13=43,'Bahan Pakan'!N$49,IF($B13=44,'Bahan Pakan'!N$50,IF($B13=45,'Bahan Pakan'!N$51,IF($B13=46,'Bahan Pakan'!N$52,IF($B13=47,'Bahan Pakan'!N$53,IF($B13=48,'Bahan Pakan'!N$54,IF($B13=49,'Bahan Pakan'!N$55,IF($B13=50,'Bahan Pakan'!N$56,0)))))))))))))))))))))))))))))))))))))))))))))))))) -> 0 | S13: =IF($B13=1,'Bahan Pakan'!O$7,IF($B13=2,'Bahan Pakan'!O$8,IF($B13=3,'Bahan Pakan'!O$9,IF($B13=4,'Bahan Pakan'!O$10,IF($B13=5,'Bahan Pakan'!O$11,IF($B13=6,'Bahan Pakan'!O$12,IF($B13=7,'Bahan Pakan'!O$13,IF($B13=8,'Bahan Pakan'!O$14,IF($B13=9,'Bahan Pakan'!O$15,IF($B13=10,'Bahan Pakan'!O$16,IF($B13=11,'Bahan Pakan'!O$17,IF($B13=12,'Bahan Pakan'!O$18,IF($B13=13,'Bahan Pakan'!O$19,IF($B13=14,'Bahan Pakan'!O$20,IF($B13=15,'Bahan Pakan'!O$21,IF($B13=16,'Bahan Pakan'!O$22,IF($B13=17,'Bahan Pakan'!O$23,IF($B13=18,'Bahan Pakan'!O$24,IF($B13=19,'Bahan Pakan'!O$25,IF($B13=20,'Bahan Pakan'!O$26,IF($B13=21,'Bahan Pakan'!O$27,IF($B13=22,'Bahan Pakan'!O$28,IF($B13=23,'Bahan Pakan'!O$29,IF($B13=24,'Bahan Pakan'!O$30,IF($B13=25,'Bahan Pakan'!O$31,IF($B13=26,'Bahan Pakan'!O$32,IF($B13=27,'Bahan Pakan'!O$33,IF($B13=28,'Bahan Pakan'!O$34,IF($B13=29,'Bahan Pakan'!O$35,IF($B13=30,'Bahan Pakan'!O$36,IF($B13=31,'Bahan Pakan'!O$37,IF($B13=32,'Bahan Pakan'!O$38,IF($B13=33,'Bahan Pakan'!O$39,IF($B13=34,'Bahan Pakan'!O$40,IF($B13=35,'Bahan Pakan'!O$41,IF($B13=36,'Bahan Pakan'!O$42,IF($B13=37,'Bahan Pakan'!O$43,IF($B13=38,'Bahan Pakan'!O$44,IF($B13=39,'Bahan Pakan'!O$45,IF($B13=40,'Bahan Pakan'!O$46,IF($B13=41,'Bahan Pakan'!O$47,IF($B13=42,'Bahan Pakan'!O$48,IF($B13=43,'Bahan Pakan'!O$49,IF($B13=44,'Bahan Pakan'!O$50,IF($B13=45,'Bahan Pakan'!O$51,IF($B13=46,'Bahan Pakan'!O$52,IF($B13=47,'Bahan Pakan'!O$53,IF($B13=48,'Bahan Pakan'!O$54,IF($B13=49,'Bahan Pakan'!O$55,IF($B13=50,'Bahan Pakan'!O$56,0)))))))))))))))))))))))))))))))))))))))))))))))))) -> 40 | T13: =IF($B13=1,'Bahan Pakan'!P$7,IF($B13=2,'Bahan Pakan'!P$8,IF($B13=3,'Bahan Pakan'!P$9,IF($B13=4,'Bahan Pakan'!P$10,IF($B13=5,'Bahan Pakan'!P$11,IF($B13=6,'Bahan Pakan'!P$12,IF($B13=7,'Bahan Pakan'!P$13,IF($B13=8,'Bahan Pakan'!P$14,IF($B13=9,'Bahan Pakan'!P$15,IF($B13=10,'Bahan Pakan'!P$16,IF($B13=11,'Bahan Pakan'!P$17,IF($B13=12,'Bahan Pakan'!P$18,IF($B13=13,'Bahan Pakan'!P$19,IF($B13=14,'Bahan Pakan'!P$20,IF($B13=15,'Bahan Pakan'!P$21,IF($B13=16,'Bahan Pakan'!P$22,IF($B13=17,'Bahan Pakan'!P$23,IF($B13=18,'Bahan Pakan'!P$24,IF($B13=19,'Bahan Pakan'!P$25,IF($B13=20,'Bahan Pakan'!P$26,IF($B13=21,'Bahan Pakan'!P$27,IF($B13=22,'Bahan Pakan'!P$28,IF($B13=23,'Bahan Pakan'!P$29,IF($B13=24,'Bahan Pakan'!P$30,IF($B13=25,'Bahan Pakan'!P$31,IF($B13=26,'Bahan Pakan'!P$32,IF($B13=27,'Bahan Pakan'!P$33,IF($B13=28,'Bahan Pakan'!P$34,IF($B13=29,'Bahan Pakan'!P$35,IF($B13=30,'Bahan Pakan'!P$36,IF($B13=31,'Bahan Pakan'!P$37,IF($B13=32,'Bahan Pakan'!P$38,IF($B13=33,'Bahan Pakan'!P$39,IF($B13=34,'Bahan Pakan'!P$40,IF($B13=35,'Bahan Pakan'!P$41,IF($B13=36,'Bahan Pakan'!P$42,IF($B13=37,'Bahan Pakan'!P$43,IF($B13=38,'Bahan Pakan'!P$44,IF($B13=39,'Bahan Pakan'!P$45,IF($B13=40,'Bahan Pakan'!P$46,IF($B13=41,'Bahan Pakan'!P$47,IF($B13=42,'Bahan Pakan'!P$48,IF($B13=43,'Bahan Pakan'!P$49,IF($B13=44,'Bahan Pakan'!P$50,IF($B13=45,'Bahan Pakan'!P$51,IF($B13=46,'Bahan Pakan'!P$52,IF($B13=47,'Bahan Pakan'!P$53,IF($B13=48,'Bahan Pakan'!P$54,IF($B13=49,'Bahan Pakan'!P$55,IF($B13=50,'Bahan Pakan'!P$56,0)))))))))))))))))))))))))))))))))))))))))))))))))) -> 0 | Y13: TDN | Z13: % | AA13: 70 | AB13: 72 | AC13: =P45 -> 71.485
B14: =IF($D14='Bahan Pakan'!D$7,1,IF($D14='Bahan Pakan'!D$8,2,IF($D14='Bahan Pakan'!D$9,3,IF($D14='Bahan Pakan'!D$10,4,IF($D14='Bahan Pakan'!D$11,5,IF($D14='Bahan Pakan'!D$12,6,IF($D14='Bahan Pakan'!D$13,7,IF($D14='Bahan Pakan'!D$14,8,IF($D14='Bahan Pakan'!D$15,9,IF($D14='Bahan Pakan'!D$16,10,IF($D14='Bahan Pakan'!D$17,11,IF($D14='Bahan Pakan'!D$18,12,IF($D14='Bahan Pakan'!D$19,13,IF($D14='Bahan Pakan'!D$20,14,IF($D14='Bahan Pakan'!D$21,15,IF($D14='Bahan Pakan'!D$22,16,IF($D14='Bahan Pakan'!D$23,17,IF($D14='Bahan Pakan'!D$24,18,IF($D14='Bahan Pakan'!D$25,19,IF($D14='Bahan Pakan'!D$26,20,IF($D14='Bahan Pakan'!D$27,21,IF($D14='Bahan Pakan'!D$28,22,IF($D14='Bahan Pakan'!D$29,23,IF($D14='Bahan Pakan'!D$30,24,IF($D14='Bahan Pakan'!D$31,25,IF($D14='Bahan Pakan'!D$32,26,IF($D14='Bahan Pakan'!D$33,27,IF($D14='Bahan Pakan'!D$34,28,IF($D14='Bahan Pakan'!D$35,29,IF($D14='Bahan Pakan'!D$36,30,IF($D14='Bahan Pakan'!D$37,31,IF($D14='Bahan Pakan'!D$38,32,IF($D14='Bahan Pakan'!D$39,33,IF($D14='Bahan Pakan'!D$40,34,IF($D14='Bahan Pakan'!D$41,35,IF($D14='Bahan Pakan'!D$42,36,IF($D14='Bahan Pakan'!D$43,37,IF($D14='Bahan Pakan'!D$44,38,IF($D14='Bahan Pakan'!D$45,39,IF($D14='Bahan Pakan'!D$46,40,IF($D14='Bahan Pakan'!D$47,41,IF($D14='Bahan Pakan'!D$48,42,IF($D14='Bahan Pakan'!D$49,43,IF($D14='Bahan Pakan'!D$50,44,IF($D14='Bahan Pakan'!D$51,45,IF($D14='Bahan Pakan'!D$52,46,IF($D14='Bahan Pakan'!D$53,47,IF($D14='Bahan Pakan'!D$54,48,IF($D14='Bahan Pakan'!D$55,49,IF($D14='Bahan Pakan'!D$56,50,0)))))))))))))))))))))))))))))))))))))))))))))))))) -> 44 | C14: 8 | E14: =IF($B14=1,'Bahan Pakan'!E$7,IF($B14=2,'Bahan Pakan'!E$8,IF($B14=3,'Bahan Pakan'!E$9,IF($B14=4,'Bahan Pakan'!E$10,IF($B14=5,'Bahan Pakan'!E$11,IF($B14=6,'Bahan Pakan'!E$12,IF($B14=7,'Bahan Pakan'!E$13,IF($B14=8,'Bahan Pakan'!E$14,IF($B14=9,'Bahan Pakan'!E$15,IF($B14=10,'Bahan Pakan'!E$16,IF($B14=11,'Bahan Pakan'!E$17,IF($B14=12,'Bahan Pakan'!E$18,IF($B14=13,'Bahan Pakan'!E$19,IF($B14=14,'Bahan Pakan'!E$20,IF($B14=15,'Bahan Pakan'!E$21,IF($B14=16,'Bahan Pakan'!E$22,IF($B14=17,'Bahan Pakan'!E$23,IF($B14=18,'Bahan Pakan'!E$24,IF($B14=19,'Bahan Pakan'!E$25,IF($B14=20,'Bahan Pakan'!E$26,IF($B14=21,'Bahan Pakan'!E$27,IF($B14=22,'Bahan Pakan'!E$28,IF($B14=23,'Bahan Pakan'!E$29,IF($B14=24,'Bahan Pakan'!E$30,IF($B14=25,'Bahan Pakan'!E$31,IF($B14=26,'Bahan Pakan'!E$32,IF($B14=27,'Bahan Pakan'!E$33,IF($B14=28,'Bahan Pakan'!E$34,IF($B14=29,'Bahan Pakan'!E$35,IF($B14=30,'Bahan Pakan'!E$36,IF($B14=31,'Bahan Pakan'!E$37,IF($B14=32,'Bahan Pakan'!E$38,IF($B14=33,'Bahan Pakan'!E$39,IF($B14=34,'Bahan Pakan'!E$40,IF($B14=35,'Bahan Pakan'!E$41,IF($B14=36,'Bahan Pakan'!E$42,IF($B14=37,'Bahan Pakan'!E$43,IF($B14=38,'Bahan Pakan'!E$44,IF($B14=39,'Bahan Pakan'!E$45,IF($B14=40,'Bahan Pakan'!E$46,IF($B14=41,'Bahan Pakan'!E$47,IF($B14=42,'Bahan Pakan'!E$48,IF($B14=43,'Bahan Pakan'!E$49,IF($B14=44,'Bahan Pakan'!E$50,IF($B14=45,'Bahan Pakan'!E$51,IF($B14=46,'Bahan Pakan'!E$52,IF($B14=47,'Bahan Pakan'!E$53,IF($B14=48,'Bahan Pakan'!E$54,IF($B14=49,'Bahan Pakan'!E$55,IF($B14=50,'Bahan Pakan'!E$56,0)))))))))))))))))))))))))))))))))))))))))))))))))) -> 0 | F14: =IF($B14=1,'Bahan Pakan'!F$7,IF($B14=2,'Bahan Pakan'!F$8,IF($B14=3,'Bahan Pakan'!F$9,IF($B14=4,'Bahan Pakan'!F$10,IF($B14=5,'Bahan Pakan'!F$11,IF($B14=6,'Bahan Pakan'!F$12,IF($B14=7,'Bahan Pakan'!F$13,IF($B14=8,'Bahan Pakan'!F$14,IF($B14=9,'Bahan Pakan'!F$15,IF($B14=10,'Bahan Pakan'!F$16,IF($B14=11,'Bahan Pakan'!F$17,IF($B14=12,'Bahan Pakan'!F$18,IF($B14=13,'Bahan Pakan'!F$19,IF($B14=14,'Bahan Pakan'!F$20,IF($B14=15,'Bahan Pakan'!F$21,IF($B14=16,'Bahan Pakan'!F$22,IF($B14=17,'Bahan Pakan'!F$23,IF($B14=18,'Bahan Pakan'!F$24,IF($B14=19,'Bahan Pakan'!F$25,IF($B14=20,'Bahan Pakan'!F$26,IF($B14=21,'Bahan Pakan'!F$27,IF($B14=22,'Bahan Pakan'!F$28,IF($B14=23,'Bahan Pakan'!F$29,IF($B14=24,'Bahan Pakan'!F$30,IF($B14=25,'Bahan Pakan'!F$31,IF($B14=26,'Bahan Pakan'!F$32,IF($B14=27,'Bahan Pakan'!F$33,IF($B14=28,'Bahan Pakan'!F$34,IF($B14=29,'Bahan Pakan'!F$35,IF($B14=30,'Bahan Pakan'!F$36,IF($B14=31,'Bahan Pakan'!F$37,IF($B14=32,'Bahan Pakan'!F$38,IF($B14=33,'Bahan Pakan'!F$39,IF($B14=34,'Bahan Pakan'!F$40,IF($B14=35,'Bahan Pakan'!F$41,IF($B14=36,'Bahan Pakan'!F$42,IF($B14=37,'Bahan Pakan'!F$43,IF($B14=38,'Bahan Pakan'!F$44,IF($B14=39,'Bahan Pakan'!F$45,IF($B14=40,'Bahan Pakan'!F$46,IF($B14=41,'Bahan Pakan'!F$47,IF($B14=42,'Bahan Pakan'!F$48,IF($B14=43,'Bahan Pakan'!F$49,IF($B14=44,'Bahan Pakan'!F$50,IF($B14=45,'Bahan Pakan'!F$51,IF($B14=46,'Bahan Pakan'!F$52,IF($B14=47,'Bahan Pakan'!F$53,IF($B14=48,'Bahan Pakan'!F$54,IF($B14=49,'Bahan Pakan'!F$55,IF($B14=50,'Bahan Pakan'!F$56,0)))))))))))))))))))))))))))))))))))))))))))))))))) -> 0 | H14: 0 | I14: 0 | J14: 0 | K14: =IF($B14=1,'Bahan Pakan'!G$7,IF($B14=2,'Bahan Pakan'!G$8,IF($B14=3,'Bahan Pakan'!G$9,IF($B14=4,'Bahan Pakan'!G$10,IF($B14=5,'Bahan Pakan'!G$11,IF($B14=6,'Bahan Pakan'!G$12,IF($B14=7,'Bahan Pakan'!G$13,IF($B14=8,'Bahan Pakan'!G$14,IF($B14=9,'Bahan Pakan'!G$15,IF($B14=10,'Bahan Pakan'!G$16,IF($B14=11,'Bahan Pakan'!G$17,IF($B14=12,'Bahan Pakan'!G$18,IF($B14=13,'Bahan Pakan'!G$19,IF($B14=14,'Bahan Pakan'!G$20,IF($B14=15,'Bahan Pakan'!G$21,IF($B14=16,'Bahan Pakan'!G$22,IF($B14=17,'Bahan Pakan'!G$23,IF($B14=18,'Bahan Pakan'!G$24,IF($B14=19,'Bahan Pakan'!G$25,IF($B14=20,'Bahan Pakan'!G$26,IF($B14=21,'Bahan Pakan'!G$27,IF($B14=22,'Bahan Pakan'!G$28,IF($B14=23,'Bahan Pakan'!G$29,IF($B14=24,'Bahan Pakan'!G$30,IF($B14=25,'Bahan Pakan'!G$31,IF($B14=26,'Bahan Pakan'!G$32,IF($B14=27,'Bahan Pakan'!G$33,IF($B14=28,'Bahan Pakan'!G$34,IF($B14=29,'Bahan Pakan'!G$35,IF($B14=30,'Bahan Pakan'!G$36,IF($B14=31,'Bahan Pakan'!G$37,IF($B14=32,'Bahan Pakan'!G$38,IF($B14=33,'Bahan Pakan'!G$39,IF($B14=34,'Bahan Pakan'!G$40,IF($B14=35,'Bahan Pakan'!G$41,IF($B14=36,'Bahan Pakan'!G$42,IF($B14=37,'Bahan Pakan'!G$43,IF($B14=38,'Bahan Pakan'!G$44,IF($B14=39,'Bahan Pakan'!G$45,IF($B14=40,'Bahan Pakan'!G$46,IF($B14=41,'Bahan Pakan'!G$47,IF($B14=42,'Bahan Pakan'!G$48,IF($B14=43,'Bahan Pakan'!G$49,IF($B14=44,'Bahan Pakan'!G$50,IF($B14=45,'Bahan Pakan'!G$51,IF($B14=46,'Bahan Pakan'!G$52,IF($B14=47,'Bahan Pakan'!G$53,IF($B14=48,'Bahan Pakan'!G$54,IF($B14=49,'Bahan Pakan'!G$55,IF($B14=50,'Bahan Pakan'!G$56,0)))))))))))))))))))))))))))))))))))))))))))))))))) -> 0 | L14: =IF($B14=1,'Bahan Pakan'!H$7,IF($B14=2,'Bahan Pakan'!H$8,IF($B14=3,'Bahan Pakan'!H$9,IF($B14=4,'Bahan Pakan'!H$10,IF($B14=5,'Bahan Pakan'!H$11,IF($B14=6,'Bahan Pakan'!H$12,IF($B14=7,'Bahan Pakan'!H$13,IF($B14=8,'Bahan Pakan'!H$14,IF($B14=9,'Bahan Pakan'!H$15,IF($B14=10,'Bahan Pakan'!H$16,IF($B14=11,'Bahan Pakan'!H$17,IF($B14=12,'Bahan Pakan'!H$18,IF($B14=13,'Bahan Pakan'!H$19,IF($B14=14,'Bahan Pakan'!H$20,IF($B14=15,'Bahan Pakan'!H$21,IF($B14=16,'Bahan Pakan'!H$22,IF($B14=17,'Bahan Pakan'!H$23,IF($B14=18,'Bahan Pakan'!H$24,IF($B14=19,'Bahan Pakan'!H$25,IF($B14=20,'Bahan Pakan'!H$26,IF($B14=21,'Bahan Pakan'!H$27,IF($B14=22,'Bahan Pakan'!H$28,IF($B14=23,'Bahan Pakan'!H$29,IF($B14=24,'Bahan Pakan'!H$30,IF($B14=25,'Bahan Pakan'!H$31,IF($B14=26,'Bahan Pakan'!H$32,IF($B14=27,'Bahan Pakan'!H$33,IF($B14=28,'Bahan Pakan'!H$34,IF($B14=29,'Bahan Pakan'!H$35,IF($B14=30,'Bahan Pakan'!H$36,IF($B14=31,'Bahan Pakan'!H$37,IF($B14=32,'Bahan Pakan'!H$38,IF($B14=33,'Bahan Pakan'!H$39,IF($B14=34,'Bahan Pakan'!H$40,IF($B14=35,'Bahan Pakan'!H$41,IF($B14=36,'Bahan Pakan'!H$42,IF($B14=37,'Bahan Pakan'!H$43,IF($B14=38,'Bahan Pakan'!H$44,IF($B14=39,'Bahan Pakan'!H$45,IF($B14=40,'Bahan Pakan'!H$46,IF($B14=41,'Bahan Pakan'!H$47,IF($B14=42,'Bahan Pakan'!H$48,IF($B14=43,'Bahan Pakan'!H$49,IF($B14=44,'Bahan Pakan'!H$50,IF($B14=45,'Bahan Pakan'!H$51,IF($B14=46,'Bahan Pakan'!H$52,IF($B14=47,'Bahan Pakan'!H$53,IF($B14=48,'Bahan Pakan'!H$54,IF($B14=49,'Bahan Pakan'!H$55,IF($B14=50,'Bahan Pakan'!H$56,0)))))))))))))))))))))))))))))))))))))))))))))))))) -> 0 | M14: =IF($B14=1,'Bahan Pakan'!I$7,IF($B14=2,'Bahan Pakan'!I$8,IF($B14=3,'Bahan Pakan'!I$9,IF($B14=4,'Bahan Pakan'!I$10,IF($B14=5,'Bahan Pakan'!I$11,IF($B14=6,'Bahan Pakan'!I$12,IF($B14=7,'Bahan Pakan'!I$13,IF($B14=8,'Bahan Pakan'!I$14,IF($B14=9,'Bahan Pakan'!I$15,IF($B14=10,'Bahan Pakan'!I$16,IF($B14=11,'Bahan Pakan'!I$17,IF($B14=12,'Bahan Pakan'!I$18,IF($B14=13,'Bahan Pakan'!I$19,IF($B14=14,'Bahan Pakan'!I$20,IF($B14=15,'Bahan Pakan'!I$21,IF($B14=16,'Bahan Pakan'!I$22,IF($B14=17,'Bahan Pakan'!I$23,IF($B14=18,'Bahan Pakan'!I$24,IF($B14=19,'Bahan Pakan'!I$25,IF($B14=20,'Bahan Pakan'!I$26,IF($B14=21,'Bahan Pakan'!I$27,IF($B14=22,'Bahan Pakan'!I$28,IF($B14=23,'Bahan Pakan'!I$29,IF($B14=24,'Bahan Pakan'!I$30,IF($B14=25,'Bahan Pakan'!I$31,IF($B14=26,'Bahan Pakan'!I$32,IF($B14=27,'Bahan Pakan'!I$33,IF($B14=28,'Bahan Pakan'!I$34,IF($B14=29,'Bahan Pakan'!I$35,IF($B14=30,'Bahan Pakan'!I$36,IF($B14=31,'Bahan Pakan'!I$37,IF($B14=32,'Bahan Pakan'!I$38,IF($B14=33,'Bahan Pakan'!I$39,IF($B14=34,'Bahan Pakan'!I$40,IF($B14=35,'Bahan Pakan'!I$41,IF($B14=36,'Bahan Pakan'!I$42,IF($B14=37,'Bahan Pakan'!I$43,IF($B14=38,'Bahan Pakan'!I$44,IF($B14=39,'Bahan Pakan'!I$45,IF($B14=40,'Bahan Pakan'!I$46,IF($B14=41,'Bahan Pakan'!I$47,IF($B14=42,'Bahan Pakan'!I$48,IF($B14=43,'Bahan Pakan'!I$49,IF($B14=44,'Bahan Pakan'!I$50,IF($B14=45,'Bahan Pakan'!I$51,IF($B14=46,'Bahan Pakan'!I$52,IF($B14=47,'Bahan Pakan'!I$53,IF($B14=48,'Bahan Pakan'!I$54,IF($B14=49,'Bahan Pakan'!I$55,IF($B14=50,'Bahan Pakan'!I$56,0)))))))))))))))))))))))))))))))))))))))))))))))))) -> 0 | N14: =IF($B14=1,'Bahan Pakan'!J$7,IF($B14=2,'Bahan Pakan'!J$8,IF($B14=3,'Bahan Pakan'!J$9,IF($B14=4,'Bahan Pakan'!J$10,IF($B14=5,'Bahan Pakan'!J$11,IF($B14=6,'Bahan Pakan'!J$12,IF($B14=7,'Bahan Pakan'!J$13,IF($B14=8,'Bahan Pakan'!J$14,IF($B14=9,'Bahan Pakan'!J$15,IF($B14=10,'Bahan Pakan'!J$16,IF($B14=11,'Bahan Pakan'!J$17,IF($B14=12,'Bahan Pakan'!J$18,IF($B14=13,'Bahan Pakan'!J$19,IF($B14=14,'Bahan Pakan'!J$20,IF($B14=15,'Bahan Pakan'!J$21,IF($B14=16,'Bahan Pakan'!J$22,IF($B14=17,'Bahan Pakan'!J$23,IF($B14=18,'Bahan Pakan'!J$24,IF($B14=19,'Bahan Pakan'!J$25,IF($B14=20,'Bahan Pakan'!J$26,IF($B14=21,'Bahan Pakan'!J$27,IF($B14=22,'Bahan Pakan'!J$28,IF($B14=23,'Bahan Pakan'!J$29,IF($B14=24,'Bahan Pakan'!J$30,IF($B14=25,'Bahan Pakan'!J$31,IF($B14=26,'Bahan Pakan'!J$32,IF($B14=27,'Bahan Pakan'!J$33,IF($B14=28,'Bahan Pakan'!J$34,IF($B14=29,'Bahan Pakan'!J$35,IF($B14=30,'Bahan Pakan'!J$36,IF($B14=31,'Bahan Pakan'!J$37,IF($B14=32,'Bahan Pakan'!J$38,IF($B14=33,'Bahan Pakan'!J$39,IF($B14=34,'Bahan Pakan'!J$40,IF($B14=35,'Bahan Pakan'!J$41,IF($B14=36,'Bahan Pakan'!J$42,IF($B14=37,'Bahan Pakan'!J$43,IF($B14=38,'Bahan Pakan'!J$44,IF($B14=39,'Bahan Pakan'!J$45,IF($B14=40,'Bahan Pakan'!J$46,IF($B14=41,'Bahan Pakan'!J$47,IF($B14=42,'Bahan Pakan'!J$48,IF($B14=43,'Bahan Pakan'!J$49,IF($B14=44,'Bahan Pakan'!J$50,IF($B14=45,'Bahan Pakan'!J$51,IF($B14=46,'Bahan Pakan'!J$52,IF($B14=47,'Bahan Pakan'!J$53,IF($B14=48,'Bahan Pakan'!J$54,IF($B14=49,'Bahan Pakan'!J$55,IF($B14=50,'Bahan Pakan'!J$56,0)))))))))))))))))))))))))))))))))))))))))))))))))) -> 0 | O14: =IF($B14=1,'Bahan Pakan'!K$7,IF($B14=2,'Bahan Pakan'!K$8,IF($B14=3,'Bahan Pakan'!K$9,IF($B14=4,'Bahan Pakan'!K$10,IF($B14=5,'Bahan Pakan'!K$11,IF($B14=6,'Bahan Pakan'!K$12,IF($B14=7,'Bahan Pakan'!K$13,IF($B14=8,'Bahan Pakan'!K$14,IF($B14=9,'Bahan Pakan'!K$15,IF($B14=10,'Bahan Pakan'!K$16,IF($B14=11,'Bahan Pakan'!K$17,IF($B14=12,'Bahan Pakan'!K$18,IF($B14=13,'Bahan Pakan'!K$19,IF($B14=14,'Bahan Pakan'!K$20,IF($B14=15,'Bahan Pakan'!K$21,IF($B14=16,'Bahan Pakan'!K$22,IF($B14=17,'Bahan Pakan'!K$23,IF($B14=18,'Bahan Pakan'!K$24,IF($B14=19,'Bahan Pakan'!K$25,IF($B14=20,'Bahan Pakan'!K$26,IF($B14=21,'Bahan Pakan'!K$27,IF($B14=22,'Bahan Pakan'!K$28,IF($B14=23,'Bahan Pakan'!K$29,IF($B14=24,'Bahan Pakan'!K$30,IF($B14=25,'Bahan Pakan'!K$31,IF($B14=26,'Bahan Pakan'!K$32,IF($B14=27,'Bahan Pakan'!K$33,IF($B14=28,'Bahan Pakan'!K$34,IF($B14=29,'Bahan Pakan'!K$35,IF($B14=30,'Bahan Pakan'!K$36,IF($B14=31,'Bahan Pakan'!K$37,IF($B14=32,'Bahan Pakan'!K$38,IF($B14=33,'Bahan Pakan'!K$39,IF($B14=34,'Bahan Pakan'!K$40,IF($B14=35,'Bahan Pakan'!K$41,IF($B14=36,'Bahan Pakan'!K$42,IF($B14=37,'Bahan Pakan'!K$43,IF($B14=38,'Bahan Pakan'!K$44,IF($B14=39,'Bahan Pakan'!K$45,IF($B14=40,'Bahan Pakan'!K$46,IF($B14=41,'Bahan Pakan'!K$47,IF($B14=42,'Bahan Pakan'!K$48,IF($B14=43,'Bahan Pakan'!K$49,IF($B14=44,'Bahan Pakan'!K$50,IF($B14=45,'Bahan Pakan'!K$51,IF($B14=46,'Bahan Pakan'!K$52,IF($B14=47,'Bahan Pakan'!K$53,IF($B14=48,'Bahan Pakan'!K$54,IF($B14=49,'Bahan Pakan'!K$55,IF($B14=50,'Bahan Pakan'!K$56,0)))))))))))))))))))))))))))))))))))))))))))))))))) -> 0 | P14: =IF($B14=1,'Bahan Pakan'!L$7,IF($B14=2,'Bahan Pakan'!L$8,IF($B14=3,'Bahan Pakan'!L$9,IF($B14=4,'Bahan Pakan'!L$10,IF($B14=5,'Bahan Pakan'!L$11,IF($B14=6,'Bahan Pakan'!L$12,IF($B14=7,'Bahan Pakan'!L$13,IF($B14=8,'Bahan Pakan'!L$14,IF($B14=9,'Bahan Pakan'!L$15,IF($B14=10,'Bahan Pakan'!L$16,IF($B14=11,'Bahan Pakan'!L$17,IF($B14=12,'Bahan Pakan'!L$18,IF($B14=13,'Bahan Pakan'!L$19,IF($B14=14,'Bahan Pakan'!L$20,IF($B14=15,'Bahan Pakan'!L$21,IF($B14=16,'Bahan Pakan'!L$22,IF($B14=17,'Bahan Pakan'!L$23,IF($B14=18,'Bahan Pakan'!L$24,IF($B14=19,'Bahan Pakan'!L$25,IF($B14=20,'Bahan Pakan'!L$26,IF($B14=21,'Bahan Pakan'!L$27,IF($B14=22,'Bahan Pakan'!L$28,IF($B14=23,'Bahan Pakan'!L$29,IF($B14=24,'Bahan Pakan'!L$30,IF($B14=25,'Bahan Pakan'!L$31,IF($B14=26,'Bahan Pakan'!L$32,IF($B14=27,'Bahan Pakan'!L$33,IF($B14=28,'Bahan Pakan'!L$34,IF($B14=29,'Bahan Pakan'!L$35,IF($B14=30,'Bahan Pakan'!L$36,IF($B14=31,'Bahan Pakan'!L$37,IF($B14=32,'Bahan Pakan'!L$38,IF($B14=33,'Bahan Pakan'!L$39,IF($B14=34,'Bahan Pakan'!L$40,IF($B14=35,'Bahan Pakan'!L$41,IF($B14=36,'Bahan Pakan'!L$42,IF($B14=37,'Bahan Pakan'!L$43,IF($B14=38,'Bahan Pakan'!L$44,IF($B14=39,'Bahan Pakan'!L$45,IF($B14=40,'Bahan Pakan'!L$46,IF($B14=41,'Bahan Pakan'!L$47,IF($B14=42,'Bahan Pakan'!L$48,IF($B14=43,'Bahan Pakan'!L$49,IF($B14=44,'Bahan Pakan'!L$50,IF($B14=45,'Bahan Pakan'!L$51,IF($B14=46,'Bahan Pakan'!L$52,IF($B14=47,'Bahan Pakan'!L$53,IF($B14=48,'Bahan Pakan'!L$54,IF($B14=49,'Bahan Pakan'!L$55,IF($B14=50,'Bahan Pakan'!L$56,0)))))))))))))))))))))))))))))))))))))))))))))))))) -> 0 | Q14: =IF($B14=1,'Bahan Pakan'!M$7,IF($B14=2,'Bahan Pakan'!M$8,IF($B14=3,'Bahan Pakan'!M$9,IF($B14=4,'Bahan Pakan'!M$10,IF($B14=5,'Bahan Pakan'!M$11,IF($B14=6,'Bahan Pakan'!M$12,IF($B14=7,'Bahan Pakan'!M$13,IF($B14=8,'Bahan Pakan'!M$14,IF($B14=9,'Bahan Pakan'!M$15,IF($B14=10,'Bahan Pakan'!M$16,IF($B14=11,'Bahan Pakan'!M$17,IF($B14=12,'Bahan Pakan'!M$18,IF($B14=13,'Bahan Pakan'!M$19,IF($B14=14,'Bahan Pakan'!M$20,IF($B14=15,'Bahan Pakan'!M$21,IF($B14=16,'Bahan Pakan'!M$22,IF($B14=17,'Bahan Pakan'!M$23,IF($B14=18,'Bahan Pakan'!M$24,IF($B14=19,'Bahan Pakan'!M$25,IF($B14=20,'Bahan Pakan'!M$26,IF($B14=21,'Bahan Pakan'!M$27,IF($B14=22,'Bahan Pakan'!M$28,IF($B14=23,'Bahan Pakan'!M$29,IF($B14=24,'Bahan Pakan'!M$30,IF($B14=25,'Bahan Pakan'!M$31,IF($B14=26,'Bahan Pakan'!M$32,IF($B14=27,'Bahan Pakan'!M$33,IF($B14=28,'Bahan Pakan'!M$34,IF($B14=29,'Bahan Pakan'!M$35,IF($B14=30,'Bahan Pakan'!M$36,IF($B14=31,'Bahan Pakan'!M$37,IF($B14=32,'Bahan Pakan'!M$38,IF($B14=33,'Bahan Pakan'!M$39,IF($B14=34,'Bahan Pakan'!M$40,IF($B14=35,'Bahan Pakan'!M$41,IF($B14=36,'Bahan Pakan'!M$42,IF($B14=37,'Bahan Pakan'!M$43,IF($B14=38,'Bahan Pakan'!M$44,IF($B14=39,'Bahan Pakan'!M$45,IF($B14=40,'Bahan Pakan'!M$46,IF($B14=41,'Bahan Pakan'!M$47,IF($B14=42,'Bahan Pakan'!M$48,IF($B14=43,'Bahan Pakan'!M$49,IF($B14=44,'Bahan Pakan'!M$50,IF($B14=45,'Bahan Pakan'!M$51,IF($B14=46,'Bahan Pakan'!M$52,IF($B14=47,'Bahan Pakan'!M$53,IF($B14=48,'Bahan Pakan'!M$54,IF($B14=49,'Bahan Pakan'!M$55,IF($B14=50,'Bahan Pakan'!M$56,0)))))))))))))))))))))))))))))))))))))))))))))))))) -> 0 | R14: =IF($B14=1,'Bahan Pakan'!N$7,IF($B14=2,'Bahan Pakan'!N$8,IF($B14=3,'Bahan Pakan'!N$9,IF($B14=4,'Bahan Pakan'!N$10,IF($B14=5,'Bahan Pakan'!N$11,IF($B14=6,'Bahan Pakan'!N$12,IF($B14=7,'Bahan Pakan'!N$13,IF($B14=8,'Bahan Pakan'!N$14,IF($B14=9,'Bahan Pakan'!N$15,IF($B14=10,'Bahan Pakan'!N$16,IF($B14=11,'Bahan Pakan'!N$17,IF($B14=12,'Bahan Pakan'!N$18,IF($B14=13,'Bahan Pakan'!N$19,IF($B14=14,'Bahan Pakan'!N$20,IF($B14=15,'Bahan Pakan'!N$21,IF($B14=16,'Bahan Pakan'!N$22,IF($B14=17,'Bahan Pakan'!N$23,IF($B14=18,'Bahan Pakan'!N$24,IF($B14=19,'Bahan Pakan'!N$25,IF($B14=20,'Bahan Pakan'!N$26,IF($B14=21,'Bahan Pakan'!N$27,IF($B14=22,'Bahan Pakan'!N$28,IF($B14=23,'Bahan Pakan'!N$29,IF($B14=24,'Bahan Pakan'!N$30,IF($B14=25,'Bahan Pakan'!N$31,IF($B14=26,'Bahan Pakan'!N$32,IF($B14=27,'Bahan Pakan'!N$33,IF($B14=28,'Bahan Pakan'!N$34,IF($B14=29,'Bahan Pakan'!N$35,IF($B14=30,'Bahan Pakan'!N$36,IF($B14=31,'Bahan Pakan'!N$37,IF($B14=32,'Bahan Pakan'!N$38,IF($B14=33,'Bahan Pakan'!N$39,IF($B14=34,'Bahan Pakan'!N$40,IF($B14=35,'Bahan Pakan'!N$41,IF($B14=36,'Bahan Pakan'!N$42,IF($B14=37,'Bahan Pakan'!N$43,IF($B14=38,'Bahan Pakan'!N$44,IF($B14=39,'Bahan Pakan'!N$45,IF($B14=40,'Bahan Pakan'!N$46,IF($B14=41,'Bahan Pakan'!N$47,IF($B14=42,'Bahan Pakan'!N$48,IF($B14=43,'Bahan Pakan'!N$49,IF($B14=44,'Bahan Pakan'!N$50,IF($B14=45,'Bahan Pakan'!N$51,IF($B14=46,'Bahan Pakan'!N$52,IF($B14=47,'Bahan Pakan'!N$53,IF($B14=48,'Bahan Pakan'!N$54,IF($B14=49,'Bahan Pakan'!N$55,IF($B14=50,'Bahan Pakan'!N$56,0)))))))))))))))))))))))))))))))))))))))))))))))))) -> 0 | S14: =IF($B14=1,'Bahan Pakan'!O$7,IF($B14=2,'Bahan Pakan'!O$8,IF($B14=3,'Bahan Pakan'!O$9,IF($B14=4,'Bahan Pakan'!O$10,IF($B14=5,'Bahan Pakan'!O$11,IF($B14=6,'Bahan Pakan'!O$12,IF($B14=7,'Bahan Pakan'!O$13,IF($B14=8,'Bahan Pakan'!O$14,IF($B14=9,'Bahan Pakan'!O$15,IF($B14=10,'Bahan Pakan'!O$16,IF($B14=11,'Bahan Pakan'!O$17,IF($B14=12,'Bahan Pakan'!O$18,IF($B14=13,'Bahan Pakan'!O$19,IF($B14=14,'Bahan Pakan'!O$20,IF($B14=15,'Bahan Pakan'!O$21,IF($B14=16,'Bahan Pakan'!O$22,IF($B14=17,'Bahan Pakan'!O$23,IF($B14=18,'Bahan Pakan'!O$24,IF($B14=19,'Bahan Pakan'!O$25,IF($B14=20,'Bahan Pakan'!O$26,IF($B14=21,'Bahan Pakan'!O$27,IF($B14=22,'Bahan Pakan'!O$28,IF($B14=23,'Bahan Pakan'!O$29,IF($B14=24,'Bahan Pakan'!O$30,IF($B14=25,'Bahan Pakan'!O$31,IF($B14=26,'Bahan Pakan'!O$32,IF($B14=27,'Bahan Pakan'!O$33,IF($B14=28,'Bahan Pakan'!O$34,IF($B14=29,'Bahan Pakan'!O$35,IF($B14=30,'Bahan Pakan'!O$36,IF($B14=31,'Bahan Pakan'!O$37,IF($B14=32,'Bahan Pakan'!O$38,IF($B14=33,'Bahan Pakan'!O$39,IF($B14=34,'Bahan Pakan'!O$40,IF($B14=35,'Bahan Pakan'!O$41,IF($B14=36,'Bahan Pakan'!O$42,IF($B14=37,'Bahan Pakan'!O$43,IF($B14=38,'Bahan Pakan'!O$44,IF($B14=39,'Bahan Pakan'!O$45,IF($B14=40,'Bahan Pakan'!O$46,IF($B14=41,'Bahan Pakan'!O$47,IF($B14=42,'Bahan Pakan'!O$48,IF($B14=43,'Bahan Pakan'!O$49,IF($B14=44,'Bahan Pakan'!O$50,IF($B14=45,'Bahan Pakan'!O$51,IF($B14=46,'Bahan Pakan'!O$52,IF($B14=47,'Bahan Pakan'!O$53,IF($B14=48,'Bahan Pakan'!O$54,IF($B14=49,'Bahan Pakan'!O$55,IF($B14=50,'Bahan Pakan'!O$56,0)))))))))))))))))))))))))))))))))))))))))))))))))) -> 0 | T14: =IF($B14=1,'Bahan Pakan'!P$7,IF($B14=2,'Bahan Pakan'!P$8,IF($B14=3,'Bahan Pakan'!P$9,IF($B14=4,'Bahan Pakan'!P$10,IF($B14=5,'Bahan Pakan'!P$11,IF($B14=6,'Bahan Pakan'!P$12,IF($B14=7,'Bahan Pakan'!P$13,IF($B14=8,'Bahan Pakan'!P$14,IF($B14=9,'Bahan Pakan'!P$15,IF($B14=10,'Bahan Pakan'!P$16,IF($B14=11,'Bahan Pakan'!P$17,IF($B14=12,'Bahan Pakan'!P$18,IF($B14=13,'Bahan Pakan'!P$19,IF($B14=14,'Bahan Pakan'!P$20,IF($B14=15,'Bahan Pakan'!P$21,IF($B14=16,'Bahan Pakan'!P$22,IF($B14=17,'Bahan Pakan'!P$23,IF($B14=18,'Bahan Pakan'!P$24,IF($B14=19,'Bahan Pakan'!P$25,IF($B14=20,'Bahan Pakan'!P$26,IF($B14=21,'Bahan Pakan'!P$27,IF($B14=22,'Bahan Pakan'!P$28,IF($B14=23,'Bahan Pakan'!P$29,IF($B14=24,'Bahan Pakan'!P$30,IF($B14=25,'Bahan Pakan'!P$31,IF($B14=26,'Bahan Pakan'!P$32,IF($B14=27,'Bahan Pakan'!P$33,IF($B14=28,'Bahan Pakan'!P$34,IF($B14=29,'Bahan Pakan'!P$35,IF($B14=30,'Bahan Pakan'!P$36,IF($B14=31,'Bahan Pakan'!P$37,IF($B14=32,'Bahan Pakan'!P$38,IF($B14=33,'Bahan Pakan'!P$39,IF($B14=34,'Bahan Pakan'!P$40,IF($B14=35,'Bahan Pakan'!P$41,IF($B14=36,'Bahan Pakan'!P$42,IF($B14=37,'Bahan Pakan'!P$43,IF($B14=38,'Bahan Pakan'!P$44,IF($B14=39,'Bahan Pakan'!P$45,IF($B14=40,'Bahan Pakan'!P$46,IF($B14=41,'Bahan Pakan'!P$47,IF($B14=42,'Bahan Pakan'!P$48,IF($B14=43,'Bahan Pakan'!P$49,IF($B14=44,'Bahan Pakan'!P$50,IF($B14=45,'Bahan Pakan'!P$51,IF($B14=46,'Bahan Pakan'!P$52,IF($B14=47,'Bahan Pakan'!P$53,IF($B14=48,'Bahan Pakan'!P$54,IF($B14=49,'Bahan Pakan'!P$55,IF($B14=50,'Bahan Pakan'!P$56,0)))))))))))))))))))))))))))))))))))))))))))))))))) -> 0 | Y14: Kalsium | Z14: % | AA14: 0.8 | AB14: 1 | AC14: =Q45 -> 0.8537
B15: =IF($D15='Bahan Pakan'!D$7,1,IF($D15='Bahan Pakan'!D$8,2,IF($D15='Bahan Pakan'!D$9,3,IF($D15='Bahan Pakan'!D$10,4,IF($D15='Bahan Pakan'!D$11,5,IF($D15='Bahan Pakan'!D$12,6,IF($D15='Bahan Pakan'!D$13,7,IF($D15='Bahan Pakan'!D$14,8,IF($D15='Bahan Pakan'!D$15,9,IF($D15='Bahan Pakan'!D$16,10,IF($D15='Bahan Pakan'!D$17,11,IF($D15='Bahan Pakan'!D$18,12,IF($D15='Bahan Pakan'!D$19,13,IF($D15='Bahan Pakan'!D$20,14,IF($D15='Bahan Pakan'!D$21,15,IF($D15='Bahan Pakan'!D$22,16,IF($D15='Bahan Pakan'!D$23,17,IF($D15='Bahan Pakan'!D$24,18,IF($D15='Bahan Pakan'!D$25,19,IF($D15='Bahan Pakan'!D$26,20,IF($D15='Bahan Pakan'!D$27,21,IF($D15='Bahan Pakan'!D$28,22,IF($D15='Bahan Pakan'!D$29,23,IF($D15='Bahan Pakan'!D$30,24,IF($D15='Bahan Pakan'!D$31,25,IF($D15='Bahan Pakan'!D$32,26,IF($D15='Bahan Pakan'!D$33,27,IF($D15='Bahan Pakan'!D$34,28,IF($D15='Bahan Pakan'!D$35,29,IF($D15='Bahan Pakan'!D$36,30,IF($D15='Bahan Pakan'!D$37,31,IF($D15='Bahan Pakan'!D$38,32,IF($D15='Bahan Pakan'!D$39,33,IF($D15='Bahan Pakan'!D$40,34,IF($D15='Bahan Pakan'!D$41,35,IF($D15='Bahan Pakan'!D$42,36,IF($D15='Bahan Pakan'!D$43,37,IF($D15='Bahan Pakan'!D$44,38,IF($D15='Bahan Pakan'!D$45,39,IF($D15='Bahan Pakan'!D$46,40,IF($D15='Bahan Pakan'!D$47,41,IF($D15='Bahan Pakan'!D$48,42,IF($D15='Bahan Pakan'!D$49,43,IF($D15='Bahan Pakan'!D$50,44,IF($D15='Bahan Pakan'!D$51,45,IF($D15='Bahan Pakan'!D$52,46,IF($D15='Bahan Pakan'!D$53,47,IF($D15='Bahan Pakan'!D$54,48,IF($D15='Bahan Pakan'!D$55,49,IF($D15='Bahan Pakan'!D$56,50,0)))))))))))))))))))))))))))))))))))))))))))))))))) -> 44 | C15: 9 | E15: =IF($B15=1,'Bahan Pakan'!E$7,IF($B15=2,'Bahan Pakan'!E$8,IF($B15=3,'Bahan Pakan'!E$9,IF($B15=4,'Bahan Pakan'!E$10,IF($B15=5,'Bahan Pakan'!E$11,IF($B15=6,'Bahan Pakan'!E$12,IF($B15=7,'Bahan Pakan'!E$13,IF($B15=8,'Bahan Pakan'!E$14,IF($B15=9,'Bahan Pakan'!E$15,IF($B15=10,'Bahan Pakan'!E$16,IF($B15=11,'Bahan Pakan'!E$17,IF($B15=12,'Bahan Pakan'!E$18,IF($B15=13,'Bahan Pakan'!E$19,IF($B15=14,'Bahan Pakan'!E$20,IF($B15=15,'Bahan Pakan'!E$21,IF($B15=16,'Bahan Pakan'!E$22,IF($B15=17,'Bahan Pakan'!E$23,IF($B15=18,'Bahan Pakan'!E$24,IF($B15=19,'Bahan Pakan'!E$25,IF($B15=20,'Bahan Pakan'!E$26,IF($B15=21,'Bahan Pakan'!E$27,IF($B15=22,'Bahan Pakan'!E$28,IF($B15=23,'Bahan Pakan'!E$29,IF($B15=24,'Bahan Pakan'!E$30,IF($B15=25,'Bahan Pakan'!E$31,IF($B15=26,'Bahan Pakan'!E$32,IF($B15=27,'Bahan Pakan'!E$33,IF($B15=28,'Bahan Pakan'!E$34,IF($B15=29,'Bahan Pakan'!E$35,IF($B15=30,'Bahan Pakan'!E$36,IF($B15=31,'Bahan Pakan'!E$37,IF($B15=32,'Bahan Pakan'!E$38,IF($B15=33,'Bahan Pakan'!E$39,IF($B15=34,'Bahan Pakan'!E$40,IF($B15=35,'Bahan Pakan'!E$41,IF($B15=36,'Bahan Pakan'!E$42,IF($B15=37,'Bahan Pakan'!E$43,IF($B15=38,'Bahan Pakan'!E$44,IF($B15=39,'Bahan Pakan'!E$45,IF($B15=40,'Bahan Pakan'!E$46,IF($B15=41,'Bahan Pakan'!E$47,IF($B15=42,'Bahan Pakan'!E$48,IF($B15=43,'Bahan Pakan'!E$49,IF($B15=44,'Bahan Pakan'!E$50,IF($B15=45,'Bahan Pakan'!E$51,IF($B15=46,'Bahan Pakan'!E$52,IF($B15=47,'Bahan Pakan'!E$53,IF($B15=48,'Bahan Pakan'!E$54,IF($B15=49,'Bahan Pakan'!E$55,IF($B15=50,'Bahan Pakan'!E$56,0)))))))))))))))))))))))))))))))))))))))))))))))))) -> 0 | F15: =IF($B15=1,'Bahan Pakan'!F$7,IF($B15=2,'Bahan Pakan'!F$8,IF($B15=3,'Bahan Pakan'!F$9,IF($B15=4,'Bahan Pakan'!F$10,IF($B15=5,'Bahan Pakan'!F$11,IF($B15=6,'Bahan Pakan'!F$12,IF($B15=7,'Bahan Pakan'!F$13,IF($B15=8,'Bahan Pakan'!F$14,IF($B15=9,'Bahan Pakan'!F$15,IF($B15=10,'Bahan Pakan'!F$16,IF($B15=11,'Bahan Pakan'!F$17,IF($B15=12,'Bahan Pakan'!F$18,IF($B15=13,'Bahan Pakan'!F$19,IF($B15=14,'Bahan Pakan'!F$20,IF($B15=15,'Bahan Pakan'!F$21,IF($B15=16,'Bahan Pakan'!F$22,IF($B15=17,'Bahan Pakan'!F$23,IF($B15=18,'Bahan Pakan'!F$24,IF($B15=19,'Bahan Pakan'!F$25,IF($B15=20,'Bahan Pakan'!F$26,IF($B15=21,'Bahan Pakan'!F$27,IF($B15=22,'Bahan Pakan'!F$28,IF($B15=23,'Bahan Pakan'!F$29,IF($B15=24,'Bahan Pakan'!F$30,IF($B15=25,'Bahan Pakan'!F$31,IF($B15=26,'Bahan Pakan'!F$32,IF($B15=27,'Bahan Pakan'!F$33,IF($B15=28,'Bahan Pakan'!F$34,IF($B15=29,'Bahan Pakan'!F$35,IF($B15=30,'Bahan Pakan'!F$36,IF($B15=31,'Bahan Pakan'!F$37,IF($B15=32,'Bahan Pakan'!F$38,IF($B15=33,'Bahan Pakan'!F$39,IF($B15=34,'Bahan Pakan'!F$40,IF($B15=35,'Bahan Pakan'!F$41,IF($B15=36,'Bahan Pakan'!F$42,IF($B15=37,'Bahan Pakan'!F$43,IF($B15=38,'Bahan Pakan'!F$44,IF($B15=39,'Bahan Pakan'!F$45,IF($B15=40,'Bahan Pakan'!F$46,IF($B15=41,'Bahan Pakan'!F$47,IF($B15=42,'Bahan Pakan'!F$48,IF($B15=43,'Bahan Pakan'!F$49,IF($B15=44,'Bahan Pakan'!F$50,IF($B15=45,'Bahan Pakan'!F$51,IF($B15=46,'Bahan Pakan'!F$52,IF($B15=47,'Bahan Pakan'!F$53,IF($B15=48,'Bahan Pakan'!F$54,IF($B15=49,'Bahan Pakan'!F$55,IF($B15=50,'Bahan Pakan'!F$56,0)))))))))))))))))))))))))))))))))))))))))))))))))) -> 0 | H15: 0 | I15: 0 | J15: 0 | K15: =IF($B15=1,'Bahan Pakan'!G$7,IF($B15=2,'Bahan Pakan'!G$8,IF($B15=3,'Bahan Pakan'!G$9,IF($B15=4,'Bahan Pakan'!G$10,IF($B15=5,'Bahan Pakan'!G$11,IF($B15=6,'Bahan Pakan'!G$12,IF($B15=7,'Bahan Pakan'!G$13,IF($B15=8,'Bahan Pakan'!G$14,IF($B15=9,'Bahan Pakan'!G$15,IF($B15=10,'Bahan Pakan'!G$16,IF($B15=11,'Bahan Pakan'!G$17,IF($B15=12,'Bahan Pakan'!G$18,IF($B15=13,'Bahan Pakan'!G$19,IF($B15=14,'Bahan Pakan'!G$20,IF($B15=15,'Bahan Pakan'!G$21,IF($B15=16,'Bahan Pakan'!G$22,IF($B15=17,'Bahan Pakan'!G$23,IF($B15=18,'Bahan Pakan'!G$24,IF($B15=19,'Bahan Pakan'!G$25,IF($B15=20,'Bahan Pakan'!G$26,IF($B15=21,'Bahan Pakan'!G$27,IF($B15=22,'Bahan Pakan'!G$28,IF($B15=23,'Bahan Pakan'!G$29,IF($B15=24,'Bahan Pakan'!G$30,IF($B15=25,'Bahan Pakan'!G$31,IF($B15=26,'Bahan Pakan'!G$32,IF($B15=27,'Bahan Pakan'!G$33,IF($B15=28,'Bahan Pakan'!G$34,IF($B15=29,'Bahan Pakan'!G$35,IF($B15=30,'Bahan Pakan'!G$36,IF($B15=31,'Bahan Pakan'!G$37,IF($B15=32,'Bahan Pakan'!G$38,IF($B15=33,'Bahan Pakan'!G$39,IF($B15=34,'Bahan Pakan'!G$40,IF($B15=35,'Bahan Pakan'!G$41,IF($B15=36,'Bahan Pakan'!G$42,IF($B15=37,'Bahan Pakan'!G$43,IF($B15=38,'Bahan Pakan'!G$44,IF($B15=39,'Bahan Pakan'!G$45,IF($B15=40,'Bahan Pakan'!G$46,IF($B15=41,'Bahan Pakan'!G$47,IF($B15=42,'Bahan Pakan'!G$48,IF($B15=43,'Bahan Pakan'!G$49,IF($B15=44,'Bahan Pakan'!G$50,IF($B15=45,'Bahan Pakan'!G$51,IF($B15=46,'Bahan Pakan'!G$52,IF($B15=47,'Bahan Pakan'!G$53,IF($B15=48,'Bahan Pakan'!G$54,IF($B15=49,'Bahan Pakan'!G$55,IF($B15=50,'Bahan Pakan'!G$56,0)))))))))))))))))))))))))))))))))))))))))))))))))) -> 0 | L15: =IF($B15=1,'Bahan Pakan'!H$7,IF($B15=2,'Bahan Pakan'!H$8,IF($B15=3,'Bahan Pakan'!H$9,IF($B15=4,'Bahan Pakan'!H$10,IF($B15=5,'Bahan Pakan'!H$11,IF($B15=6,'Bahan Pakan'!H$12,IF($B15=7,'Bahan Pakan'!H$13,IF($B15=8,'Bahan Pakan'!H$14,IF($B15=9,'Bahan Pakan'!H$15,IF($B15=10,'Bahan Pakan'!H$16,IF($B15=11,'Bahan Pakan'!H$17,IF($B15=12,'Bahan Pakan'!H$18,IF($B15=13,'Bahan Pakan'!H$19,IF($B15=14,'Bahan Pakan'!H$20,IF($B15=15,'Bahan Pakan'!H$21,IF($B15=16,'Bahan Pakan'!H$22,IF($B15=17,'Bahan Pakan'!H$23,IF($B15=18,'Bahan Pakan'!H$24,IF($B15=19,'Bahan Pakan'!H$25,IF($B15=20,'Bahan Pakan'!H$26,IF($B15=21,'Bahan Pakan'!H$27,IF($B15=22,'Bahan Pakan'!H$28,IF($B15=23,'Bahan Pakan'!H$29,IF($B15=24,'Bahan Pakan'!H$30,IF($B15=25,'Bahan Pakan'!H$31,IF($B15=26,'Bahan Pakan'!H$32,IF($B15=27,'Bahan Pakan'!H$33,IF($B15=28,'Bahan Pakan'!H$34,IF($B15=29,'Bahan Pakan'!H$35,IF($B15=30,'Bahan Pakan'!H$36,IF($B15=31,'Bahan Pakan'!H$37,IF($B15=32,'Bahan Pakan'!H$38,IF($B15=33,'Bahan Pakan'!H$39,IF($B15=34,'Bahan Pakan'!H$40,IF($B15=35,'Bahan Pakan'!H$41,IF($B15=36,'Bahan Pakan'!H$42,IF($B15=37,'Bahan Pakan'!H$43,IF($B15=38,'Bahan Pakan'!H$44,IF($B15=39,'Bahan Pakan'!H$45,IF($B15=40,'Bahan Pakan'!H$46,IF($B15=41,'Bahan Pakan'!H$47,IF($B15=42,'Bahan Pakan'!H$48,IF($B15=43,'Bahan Pakan'!H$49,IF($B15=44,'Bahan Pakan'!H$50,IF($B15=45,'Bahan Pakan'!H$51,IF($B15=46,'Bahan Pakan'!H$52,IF($B15=47,'Bahan Pakan'!H$53,IF($B15=48,'Bahan Pakan'!H$54,IF($B15=49,'Bahan Pakan'!H$55,IF($B15=50,'Bahan Pakan'!H$56,0)))))))))))))))))))))))))))))))))))))))))))))))))) -> 0 | M15: =IF($B15=1,'Bahan Pakan'!I$7,IF($B15=2,'Bahan Pakan'!I$8,IF($B15=3,'Bahan Pakan'!I$9,IF($B15=4,'Bahan Pakan'!I$10,IF($B15=5,'Bahan Pakan'!I$11,IF($B15=6,'Bahan Pakan'!I$12,IF($B15=7,'Bahan Pakan'!I$13,IF($B15=8,'Bahan Pakan'!I$14,IF($B15=9,'Bahan Pakan'!I$15,IF($B15=10,'Bahan Pakan'!I$16,IF($B15=11,'Bahan Pakan'!I$17,IF($B15=12,'Bahan Pakan'!I$18,IF($B15=13,'Bahan Pakan'!I$19,IF($B15=14,'Bahan Pakan'!I$20,IF($B15=15,'Bahan Pakan'!I$21,IF($B15=16,'Bahan Pakan'!I$22,IF($B15=17,'Bahan Pakan'!I$23,IF($B15=18,'Bahan Pakan'!I$24,IF($B15=19,'Bahan Pakan'!I$25,IF($B15=20,'Bahan Pakan'!I$26,IF($B15=21,'Bahan Pakan'!I$27,IF($B15=22,'Bahan Pakan'!I$28,IF($B15=23,'Bahan Pakan'!I$29,IF($B15=24,'Bahan Pakan'!I$30,IF($B15=25,'Bahan Pakan'!I$31,IF($B15=26,'Bahan Pakan'!I$32,IF($B15=27,'Bahan Pakan'!I$33,IF($B15=28,'Bahan Pakan'!I$34,IF($B15=29,'Bahan Pakan'!I$35,IF($B15=30,'Bahan Pakan'!I$36,IF($B15=31,'Bahan Pakan'!I$37,IF($B15=32,'Bahan Pakan'!I$38,IF($B15=33,'Bahan Pakan'!I$39,IF($B15=34,'Bahan Pakan'!I$40,IF($B15=35,'Bahan Pakan'!I$41,IF($B15=36,'Bahan Pakan'!I$42,IF($B15=37,'Bahan Pakan'!I$43,IF($B15=38,'Bahan Pakan'!I$44,IF($B15=39,'Bahan Pakan'!I$45,IF($B15=40,'Bahan Pakan'!I$46,IF($B15=41,'Bahan Pakan'!I$47,IF($B15=42,'Bahan Pakan'!I$48,IF($B15=43,'Bahan Pakan'!I$49,IF($B15=44,'Bahan Pakan'!I$50,IF($B15=45,'Bahan Pakan'!I$51,IF($B15=46,'Bahan Pakan'!I$52,IF($B15=47,'Bahan Pakan'!I$53,IF($B15=48,'Bahan Pakan'!I$54,IF($B15=49,'Bahan Pakan'!I$55,IF($B15=50,'Bahan Pakan'!I$56,0)))))))))))))))))))))))))))))))))))))))))))))))))) -> 0 | N15: =IF($B15=1,'Bahan Pakan'!J$7,IF($B15=2,'Bahan Pakan'!J$8,IF($B15=3,'Bahan Pakan'!J$9,IF($B15=4,'Bahan Pakan'!J$10,IF($B15=5,'Bahan Pakan'!J$11,IF($B15=6,'Bahan Pakan'!J$12,IF($B15=7,'Bahan Pakan'!J$13,IF($B15=8,'Bahan Pakan'!J$14,IF($B15=9,'Bahan Pakan'!J$15,IF($B15=10,'Bahan Pakan'!J$16,IF($B15=11,'Bahan Pakan'!J$17,IF($B15=12,'Bahan Pakan'!J$18,IF($B15=13,'Bahan Pakan'!J$19,IF($B15=14,'Bahan Pakan'!J$20,IF($B15=15,'Bahan Pakan'!J$21,IF($B15=16,'Bahan Pakan'!J$22,IF($B15=17,'Bahan Pakan'!J$23,IF($B15=18,'Bahan Pakan'!J$24,IF($B15=19,'Bahan Pakan'!J$25,IF($B15=20,'Bahan Pakan'!J$26,IF($B15=21,'Bahan Pakan'!J$27,IF($B15=22,'Bahan Pakan'!J$28,IF($B15=23,'Bahan Pakan'!J$29,IF($B15=24,'Bahan Pakan'!J$30,IF($B15=25,'Bahan Pakan'!J$31,IF($B15=26,'Bahan Pakan'!J$32,IF($B15=27,'Bahan Pakan'!J$33,IF($B15=28,'Bahan Pakan'!J$34,IF($B15=29,'Bahan Pakan'!J$35,IF($B15=30,'Bahan Pakan'!J$36,IF($B15=31,'Bahan Pakan'!J$37,IF($B15=32,'Bahan Pakan'!J$38,IF($B15=33,'Bahan Pakan'!J$39,IF($B15=34,'Bahan Pakan'!J$40,IF($B15=35,'Bahan Pakan'!J$41,IF($B15=36,'Bahan Pakan'!J$42,IF($B15=37,'Bahan Pakan'!J$43,IF($B15=38,'Bahan Pakan'!J$44,IF($B15=39,'Bahan Pakan'!J$45,IF($B15=40,'Bahan Pakan'!J$46,IF($B15=41,'Bahan Pakan'!J$47,IF($B15=42,'Bahan Pakan'!J$48,IF($B15=43,'Bahan Pakan'!J$49,IF($B15=44,'Bahan Pakan'!J$50,IF($B15=45,'Bahan Pakan'!J$51,IF($B15=46,'Bahan Pakan'!J$52,IF($B15=47,'Bahan Pakan'!J$53,IF($B15=48,'Bahan Pakan'!J$54,IF($B15=49,'Bahan Pakan'!J$55,IF($B15=50,'Bahan Pakan'!J$56,0)))))))))))))))))))))))))))))))))))))))))))))))))) -> 0 | O15: =IF($B15=1,'Bahan Pakan'!K$7,IF($B15=2,'Bahan Pakan'!K$8,IF($B15=3,'Bahan Pakan'!K$9,IF($B15=4,'Bahan Pakan'!K$10,IF($B15=5,'Bahan Pakan'!K$11,IF($B15=6,'Bahan Pakan'!K$12,IF($B15=7,'Bahan Pakan'!K$13,IF($B15=8,'Bahan Pakan'!K$14,IF($B15=9,'Bahan Pakan'!K$15,IF($B15=10,'Bahan Pakan'!K$16,IF($B15=11,'Bahan Pakan'!K$17,IF($B15=12,'Bahan Pakan'!K$18,IF($B15=13,'Bahan Pakan'!K$19,IF($B15=14,'Bahan Pakan'!K$20,IF($B15=15,'Bahan Pakan'!K$21,IF($B15=16,'Bahan Pakan'!K$22,IF($B15=17,'Bahan Pakan'!K$23,IF($B15=18,'Bahan Pakan'!K$24,IF($B15=19,'Bahan Pakan'!K$25,IF($B15=20,'Bahan Pakan'!K$26,IF($B15=21,'Bahan Pakan'!K$27,IF($B15=22,'Bahan Pakan'!K$28,IF($B15=23,'Bahan Pakan'!K$29,IF($B15=24,'Bahan Pakan'!K$30,IF($B15=25,'Bahan Pakan'!K$31,IF($B15=26,'Bahan Pakan'!K$32,IF($B15=27,'Bahan Pakan'!K$33,IF($B15=28,'Bahan Pakan'!K$34,IF($B15=29,'Bahan Pakan'!K$35,IF($B15=30,'Bahan Pakan'!K$36,IF($B15=31,'Bahan Pakan'!K$37,IF($B15=32,'Bahan Pakan'!K$38,IF($B15=33,'Bahan Pakan'!K$39,IF($B15=34,'Bahan Pakan'!K$40,IF($B15=35,'Bahan Pakan'!K$41,IF($B15=36,'Bahan Pakan'!K$42,IF($B15=37,'Bahan Pakan'!K$43,IF($B15=38,'Bahan Pakan'!K$44,IF($B15=39,'Bahan Pakan'!K$45,IF($B15=40,'Bahan Pakan'!K$46,IF($B15=41,'Bahan Pakan'!K$47,IF($B15=42,'Bahan Pakan'!K$48,IF($B15=43,'Bahan Pakan'!K$49,IF($B15=44,'Bahan Pakan'!K$50,IF($B15=45,'Bahan Pakan'!K$51,IF($B15=46,'Bahan Pakan'!K$52,IF($B15=47,'Bahan Pakan'!K$53,IF($B15=48,'Bahan Pakan'!K$54,IF($B15=49,'Bahan Pakan'!K$55,IF($B15=50,'Bahan Pakan'!K$56,0)))))))))))))))))))))))))))))))))))))))))))))))))) -> 0 | P15: =IF($B15=1,'Bahan Pakan'!L$7,IF($B15=2,'Bahan Pakan'!L$8,IF($B15=3,'Bahan Pakan'!L$9,IF($B15=4,'Bahan Pakan'!L$10,IF($B15=5,'Bahan Pakan'!L$11,IF($B15=6,'Bahan Pakan'!L$12,IF($B15=7,'Bahan Pakan'!L$13,IF($B15=8,'Bahan Pakan'!L$14,IF($B15=9,'Bahan Pakan'!L$15,IF($B15=10,'Bahan Pakan'!L$16,IF($B15=11,'Bahan Pakan'!L$17,IF($B15=12,'Bahan Pakan'!L$18,IF($B15=13,'Bahan Pakan'!L$19,IF($B15=14,'Bahan Pakan'!L$20,IF($B15=15,'Bahan Pakan'!L$21,IF($B15=16,'Bahan Pakan'!L$22,IF($B15=17,'Bahan Pakan'!L$23,IF($B15=18,'Bahan Pakan'!L$24,IF($B15=19,'Bahan Pakan'!L$25,IF($B15=20,'Bahan Pakan'!L$26,IF($B15=21,'Bahan Pakan'!L$27,IF($B15=22,'Bahan Pakan'!L$28,IF($B15=23,'Bahan Pakan'!L$29,IF($B15=24,'Bahan Pakan'!L$30,IF($B15=25,'Bahan Pakan'!L$31,IF($B15=26,'Bahan Pakan'!L$32,IF($B15=27,'Bahan Pakan'!L$33,IF($B15=28,'Bahan Pakan'!L$34,IF($B15=29,'Bahan Pakan'!L$35,IF($B15=30,'Bahan Pakan'!L$36,IF($B15=31,'Bahan Pakan'!L$37,IF($B15=32,'Bahan Pakan'!L$38,IF($B15=33,'Bahan Pakan'!L$39,IF($B15=34,'Bahan Pakan'!L$40,IF($B15=35,'Bahan Pakan'!L$41,IF($B15=36,'Bahan Pakan'!L$42,IF($B15=37,'Bahan Pakan'!L$43,IF($B15=38,'Bahan Pakan'!L$44,IF($B15=39,'Bahan Pakan'!L$45,IF($B15=40,'Bahan Pakan'!L$46,IF($B15=41,'Bahan Pakan'!L$47,IF($B15=42,'Bahan Pakan'!L$48,IF($B15=43,'Bahan Pakan'!L$49,IF($B15=44,'Bahan Pakan'!L$50,IF($B15=45,'Bahan Pakan'!L$51,IF($B15=46,'Bahan Pakan'!L$52,IF($B15=47,'Bahan Pakan'!L$53,IF($B15=48,'Bahan Pakan'!L$54,IF($B15=49,'Bahan Pakan'!L$55,IF($B15=50,'Bahan Pakan'!L$56,0)))))))))))))))))))))))))))))))))))))))))))))))))) -> 0 | Q15: =IF($B15=1,'Bahan Pakan'!M$7,IF($B15=2,'Bahan Pakan'!M$8,IF($B15=3,'Bahan Pakan'!M$9,IF($B15=4,'Bahan Pakan'!M$10,IF($B15=5,'Bahan Pakan'!M$11,IF($B15=6,'Bahan Pakan'!M$12,IF($B15=7,'Bahan Pakan'!M$13,IF($B15=8,'Bahan Pakan'!M$14,IF($B15=9,'Bahan Pakan'!M$15,IF($B15=10,'Bahan Pakan'!M$16,IF($B15=11,'Bahan Pakan'!M$17,IF($B15=12,'Bahan Pakan'!M$18,IF($B15=13,'Bahan Pakan'!M$19,IF($B15=14,'Bahan Pakan'!M$20,IF($B15=15,'Bahan Pakan'!M$21,IF($B15=16,'Bahan Pakan'!M$22,IF($B15=17,'Bahan Pakan'!M$23,IF($B15=18,'Bahan Pakan'!M$24,IF($B15=19,'Bahan Pakan'!M$25,IF($B15=20,'Bahan Pakan'!M$26,IF($B15=21,'Bahan Pakan'!M$27,IF($B15=22,'Bahan Pakan'!M$28,IF($B15=23,'Bahan Pakan'!M$29,IF($B15=24,'Bahan Pakan'!M$30,IF($B15=25,'Bahan Pakan'!M$31,IF($B15=26,'Bahan Pakan'!M$32,IF($B15=27,'Bahan Pakan'!M$33,IF($B15=28,'Bahan Pakan'!M$34,IF($B15=29,'Bahan Pakan'!M$35,IF($B15=30,'Bahan Pakan'!M$36,IF($B15=31,'Bahan Pakan'!M$37,IF($B15=32,'Bahan Pakan'!M$38,IF($B15=33,'Bahan Pakan'!M$39,IF($B15=34,'Bahan Pakan'!M$40,IF($B15=35,'Bahan Pakan'!M$41,IF($B15=36,'Bahan Pakan'!M$42,IF($B15=37,'Bahan Pakan'!M$43,IF($B15=38,'Bahan Pakan'!M$44,IF($B15=39,'Bahan Pakan'!M$45,IF($B15=40,'Bahan Pakan'!M$46,IF($B15=41,'Bahan Pakan'!M$47,IF($B15=42,'Bahan Pakan'!M$48,IF($B15=43,'Bahan Pakan'!M$49,IF($B15=44,'Bahan Pakan'!M$50,IF($B15=45,'Bahan Pakan'!M$51,IF($B15=46,'Bahan Pakan'!M$52,IF($B15=47,'Bahan Pakan'!M$53,IF($B15=48,'Bahan Pakan'!M$54,IF($B15=49,'Bahan Pakan'!M$55,IF($B15=50,'Bahan Pakan'!M$56,0)))))))))))))))))))))))))))))))))))))))))))))))))) -> 0 | R15: =IF($B15=1,'Bahan Pakan'!N$7,IF($B15=2,'Bahan Pakan'!N$8,IF($B15=3,'Bahan Pakan'!N$9,IF($B15=4,'Bahan Pakan'!N$10,IF($B15=5,'Bahan Pakan'!N$11,IF($B15=6,'Bahan Pakan'!N$12,IF($B15=7,'Bahan Pakan'!N$13,IF($B15=8,'Bahan Pakan'!N$14,IF($B15=9,'Bahan Pakan'!N$15,IF($B15=10,'Bahan Pakan'!N$16,IF($B15=11,'Bahan Pakan'!N$17,IF($B15=12,'Bahan Pakan'!N$18,IF($B15=13,'Bahan Pakan'!N$19,IF($B15=14,'Bahan Pakan'!N$20,IF($B15=15,'Bahan Pakan'!N$21,IF($B15=16,'Bahan Pakan'!N$22,IF($B15=17,'Bahan Pakan'!N$23,IF($B15=18,'Bahan Pakan'!N$24,IF($B15=19,'Bahan Pakan'!N$25,IF($B15=20,'Bahan Pakan'!N$26,IF($B15=21,'Bahan Pakan'!N$27,IF($B15=22,'Bahan Pakan'!N$28,IF($B15=23,'Bahan Pakan'!N$29,IF($B15=24,'Bahan Pakan'!N$30,IF($B15=25,'Bahan Pakan'!N$31,IF($B15=26,'Bahan Pakan'!N$32,IF($B15=27,'Bahan Pakan'!N$33,IF($B15=28,'Bahan Pakan'!N$34,IF($B15=29,'Bahan Pakan'!N$35,IF($B15=30,'Bahan Pakan'!N$36,IF($B15=31,'Bahan Pakan'!N$37,IF($B15=32,'Bahan Pakan'!N$38,IF($B15=33,'Bahan Pakan'!N$39,IF($B15=34,'Bahan Pakan'!N$40,IF($B15=35,'Bahan Pakan'!N$41,IF($B15=36,'Bahan Pakan'!N$42,IF($B15=37,'Bahan Pakan'!N$43,IF($B15=38,'Bahan Pakan'!N$44,IF($B15=39,'Bahan Pakan'!N$45,IF($B15=40,'Bahan Pakan'!N$46,IF($B15=41,'Bahan Pakan'!N$47,IF($B15=42,'Bahan Pakan'!N$48,IF($B15=43,'Bahan Pakan'!N$49,IF($B15=44,'Bahan Pakan'!N$50,IF($B15=45,'Bahan Pakan'!N$51,IF($B15=46,'Bahan Pakan'!N$52,IF($B15=47,'Bahan Pakan'!N$53,IF($B15=48,'Bahan Pakan'!N$54,IF($B15=49,'Bahan Pakan'!N$55,IF($B15=50,'Bahan Pakan'!N$56,0)))))))))))))))))))))))))))))))))))))))))))))))))) -> 0 | S15: =IF($B15=1,'Bahan Pakan'!O$7,IF($B15=2,'Bahan Pakan'!O$8,IF($B15=3,'Bahan Pakan'!O$9,IF($B15=4,'Bahan Pakan'!O$10,IF($B15=5,'Bahan Pakan'!O$11,IF($B15=6,'Bahan Pakan'!O$12,IF($B15=7,'Bahan Pakan'!O$13,IF($B15=8,'Bahan Pakan'!O$14,IF($B15=9,'Bahan Pakan'!O$15,IF($B15=10,'Bahan Pakan'!O$16,IF($B15=11,'Bahan Pakan'!O$17,IF($B15=12,'Bahan Pakan'!O$18,IF($B15=13,'Bahan Pakan'!O$19,IF($B15=14,'Bahan Pakan'!O$20,IF($B15=15,'Bahan Pakan'!O$21,IF($B15=16,'Bahan Pakan'!O$22,IF($B15=17,'Bahan Pakan'!O$23,IF($B15=18,'Bahan Pakan'!O$24,IF($B15=19,'Bahan Pakan'!O$25,IF($B15=20,'Bahan Pakan'!O$26,IF($B15=21,'Bahan Pakan'!O$27,IF($B15=22,'Bahan Pakan'!O$28,IF($B15=23,'Bahan Pakan'!O$29,IF($B15=24,'Bahan Pakan'!O$30,IF($B15=25,'Bahan Pakan'!O$31,IF($B15=26,'Bahan Pakan'!O$32,IF($B15=27,'Bahan Pakan'!O$33,IF($B15=28,'Bahan Pakan'!O$34,IF($B15=29,'Bahan Pakan'!O$35,IF($B15=30,'Bahan Pakan'!O$36,IF($B15=31,'Bahan Pakan'!O$37,IF($B15=32,'Bahan Pakan'!O$38,IF($B15=33,'Bahan Pakan'!O$39,IF($B15=34,'Bahan Pakan'!O$40,IF($B15=35,'Bahan Pakan'!O$41,IF($B15=36,'Bahan Pakan'!O$42,IF($B15=37,'Bahan Pakan'!O$43,IF($B15=38,'Bahan Pakan'!O$44,IF($B15=39,'Bahan Pakan'!O$45,IF($B15=40,'Bahan Pakan'!O$46,IF($B15=41,'Bahan Pakan'!O$47,IF($B15=42,'Bahan Pakan'!O$48,IF($B15=43,'Bahan Pakan'!O$49,IF($B15=44,'Bahan Pakan'!O$50,IF($B15=45,'Bahan Pakan'!O$51,IF($B15=46,'Bahan Pakan'!O$52,IF($B15=47,'Bahan Pakan'!O$53,IF($B15=48,'Bahan Pakan'!O$54,IF($B15=49,'Bahan Pakan'!O$55,IF($B15=50,'Bahan Pakan'!O$56,0)))))))))))))))))))))))))))))))))))))))))))))))))) -> 0 | T15: =IF($B15=1,'Bahan Pakan'!P$7,IF($B15=2,'Bahan Pakan'!P$8,IF($B15=3,'Bahan Pakan'!P$9,IF($B15=4,'Bahan Pakan'!P$10,IF($B15=5,'Bahan Pakan'!P$11,IF($B15=6,'Bahan Pakan'!P$12,IF($B15=7,'Bahan Pakan'!P$13,IF($B15=8,'Bahan Pakan'!P$14,IF($B15=9,'Bahan Pakan'!P$15,IF($B15=10,'Bahan Pakan'!P$16,IF($B15=11,'Bahan Pakan'!P$17,IF($B15=12,'Bahan Pakan'!P$18,IF($B15=13,'Bahan Pakan'!P$19,IF($B15=14,'Bahan Pakan'!P$20,IF($B15=15,'Bahan Pakan'!P$21,IF($B15=16,'Bahan Pakan'!P$22,IF($B15=17,'Bahan Pakan'!P$23,IF($B15=18,'Bahan Pakan'!P$24,IF($B15=19,'Bahan Pakan'!P$25,IF($B15=20,'Bahan Pakan'!P$26,IF($B15=21,'Bahan Pakan'!P$27,IF($B15=22,'Bahan Pakan'!P$28,IF($B15=23,'Bahan Pakan'!P$29,IF($B15=24,'Bahan Pakan'!P$30,IF($B15=25,'Bahan Pakan'!P$31,IF($B15=26,'Bahan Pakan'!P$32,IF($B15=27,'Bahan Pakan'!P$33,IF($B15=28,'Bahan Pakan'!P$34,IF($B15=29,'Bahan Pakan'!P$35,IF($B15=30,'Bahan Pakan'!P$36,IF($B15=31,'Bahan Pakan'!P$37,IF($B15=32,'Bahan Pakan'!P$38,IF($B15=33,'Bahan Pakan'!P$39,IF($B15=34,'Bahan Pakan'!P$40,IF($B15=35,'Bahan Pakan'!P$41,IF($B15=36,'Bahan Pakan'!P$42,IF($B15=37,'Bahan Pakan'!P$43,IF($B15=38,'Bahan Pakan'!P$44,IF($B15=39,'Bahan Pakan'!P$45,IF($B15=40,'Bahan Pakan'!P$46,IF($B15=41,'Bahan Pakan'!P$47,IF($B15=42,'Bahan Pakan'!P$48,IF($B15=43,'Bahan Pakan'!P$49,IF($B15=44,'Bahan Pakan'!P$50,IF($B15=45,'Bahan Pakan'!P$51,IF($B15=46,'Bahan Pakan'!P$52,IF($B15=47,'Bahan Pakan'!P$53,IF($B15=48,'Bahan Pakan'!P$54,IF($B15=49,'Bahan Pakan'!P$55,IF($B15=50,'Bahan Pakan'!P$56,0)))))))))))))))))))))))))))))))))))))))))))))))))) -> 0 | Y15: Phospor | Z15: % | AA15: 0.6 | AB15: 0.8 | AC15: =R45 -> 0.6151
B16: =IF($D16='Bahan Pakan'!D$7,1,IF($D16='Bahan Pakan'!D$8,2,IF($D16='Bahan Pakan'!D$9,3,IF($D16='Bahan Pakan'!D$10,4,IF($D16='Bahan Pakan'!D$11,5,IF($D16='Bahan Pakan'!D$12,6,IF($D16='Bahan Pakan'!D$13,7,IF($D16='Bahan Pakan'!D$14,8,IF($D16='Bahan Pakan'!D$15,9,IF($D16='Bahan Pakan'!D$16,10,IF($D16='Bahan Pakan'!D$17,11,IF($D16='Bahan Pakan'!D$18,12,IF($D16='Bahan Pakan'!D$19,13,IF($D16='Bahan Pakan'!D$20,14,IF($D16='Bahan Pakan'!D$21,15,IF($D16='Bahan Pakan'!D$22,16,IF($D16='Bahan Pakan'!D$23,17,IF($D16='Bahan Pakan'!D$24,18,IF($D16='Bahan Pakan'!D$25,19,IF($D16='Bahan Pakan'!D$26,20,IF($D16='Bahan Pakan'!D$27,21,IF($D16='Bahan Pakan'!D$28,22,IF($D16='Bahan Pakan'!D$29,23,IF($D16='Bahan Pakan'!D$30,24,IF($D16='Bahan Pakan'!D$31,25,IF($D16='Bahan Pakan'!D$32,26,IF($D16='Bahan Pakan'!D$33,27,IF($D16='Bahan Pakan'!D$34,28,IF($D16='Bahan Pakan'!D$35,29,IF($D16='Bahan Pakan'!D$36,30,IF($D16='Bahan Pakan'!D$37,31,IF($D16='Bahan Pakan'!D$38,32,IF($D16='Bahan Pakan'!D$39,33,IF($D16='Bahan Pakan'!D$40,34,IF($D16='Bahan Pakan'!D$41,35,IF($D16='Bahan Pakan'!D$42,36,IF($D16='Bahan Pakan'!D$43,37,IF($D16='Bahan Pakan'!D$44,38,IF($D16='Bahan Pakan'!D$45,39,IF($D16='Bahan Pakan'!D$46,40,IF($D16='Bahan Pakan'!D$47,41,IF($D16='Bahan Pakan'!D$48,42,IF($D16='Bahan Pakan'!D$49,43,IF($D16='Bahan Pakan'!D$50,44,IF($D16='Bahan Pakan'!D$51,45,IF($D16='Bahan Pakan'!D$52,46,IF($D16='Bahan Pakan'!D$53,47,IF($D16='Bahan Pakan'!D$54,48,IF($D16='Bahan Pakan'!D$55,49,IF($D16='Bahan Pakan'!D$56,50,0)))))))))))))))))))))))))))))))))))))))))))))))))) -> 44 | C16: 10 | E16: =IF($B16=1,'Bahan Pakan'!E$7,IF($B16=2,'Bahan Pakan'!E$8,IF($B16=3,'Bahan Pakan'!E$9,IF($B16=4,'Bahan Pakan'!E$10,IF($B16=5,'Bahan Pakan'!E$11,IF($B16=6,'Bahan Pakan'!E$12,IF($B16=7,'Bahan Pakan'!E$13,IF($B16=8,'Bahan Pakan'!E$14,IF($B16=9,'Bahan Pakan'!E$15,IF($B16=10,'Bahan Pakan'!E$16,IF($B16=11,'Bahan Pakan'!E$17,IF($B16=12,'Bahan Pakan'!E$18,IF($B16=13,'Bahan Pakan'!E$19,IF($B16=14,'Bahan Pakan'!E$20,IF($B16=15,'Bahan Pakan'!E$21,IF($B16=16,'Bahan Pakan'!E$22,IF($B16=17,'Bahan Pakan'!E$23,IF($B16=18,'Bahan Pakan'!E$24,IF($B16=19,'Bahan Pakan'!E$25,IF($B16=20,'Bahan Pakan'!E$26,IF($B16=21,'Bahan Pakan'!E$27,IF($B16=22,'Bahan Pakan'!E$28,IF($B16=23,'Bahan Pakan'!E$29,IF($B16=24,'Bahan Pakan'!E$30,IF($B16=25,'Bahan Pakan'!E$31,IF($B16=26,'Bahan Pakan'!E$32,IF($B16=27,'Bahan Pakan'!E$33,IF($B16=28,'Bahan Pakan'!E$34,IF($B16=29,'Bahan Pakan'!E$35,IF($B16=30,'Bahan Pakan'!E$36,IF($B16=31,'Bahan Pakan'!E$37,IF($B16=32,'Bahan Pakan'!E$38,IF($B16=33,'Bahan Pakan'!E$39,IF($B16=34,'Bahan Pakan'!E$40,IF($B16=35,'Bahan Pakan'!E$41,IF($B16=36,'Bahan Pakan'!E$42,IF($B16=37,'Bahan Pakan'!E$43,IF($B16=38,'Bahan Pakan'!E$44,IF($B16=39,'Bahan Pakan'!E$45,IF($B16=40,'Bahan Pakan'!E$46,IF($B16=41,'Bahan Pakan'!E$47,IF($B16=42,'Bahan Pakan'!E$48,IF($B16=43,'Bahan Pakan'!E$49,IF($B16=44,'Bahan Pakan'!E$50,IF($B16=45,'Bahan Pakan'!E$51,IF($B16=46,'Bahan Pakan'!E$52,IF($B16=47,'Bahan Pakan'!E$53,IF($B16=48,'Bahan Pakan'!E$54,IF($B16=49,'Bahan Pakan'!E$55,IF($B16=50,'Bahan Pakan'!E$56,0)))))))))))))))))))))))))))))))))))))))))))))))))) -> 0 | F16: =IF($B16=1,'Bahan Pakan'!F$7,IF($B16=2,'Bahan Pakan'!F$8,IF($B16=3,'Bahan Pakan'!F$9,IF($B16=4,'Bahan Pakan'!F$10,IF($B16=5,'Bahan Pakan'!F$11,IF($B16=6,'Bahan Pakan'!F$12,IF($B16=7,'Bahan Pakan'!F$13,IF($B16=8,'Bahan Pakan'!F$14,IF($B16=9,'Bahan Pakan'!F$15,IF($B16=10,'Bahan Pakan'!F$16,IF($B16=11,'Bahan Pakan'!F$17,IF($B16=12,'Bahan Pakan'!F$18,IF($B16=13,'Bahan Pakan'!F$19,IF($B16=14,'Bahan Pakan'!F$20,IF($B16=15,'Bahan Pakan'!F$21,IF($B16=16,'Bahan Pakan'!F$22,IF($B16=17,'Bahan Pakan'!F$23,IF($B16=18,'Bahan Pakan'!F$24,IF($B16=19,'Bahan Pakan'!F$25,IF($B16=20,'Bahan Pakan'!F$26,IF($B16=21,'Bahan Pakan'!F$27,IF($B16=22,'Bahan Pakan'!F$28,IF($B16=23,'Bahan Pakan'!F$29,IF($B16=24,'Bahan Pakan'!F$30,IF($B16=25,'Bahan Pakan'!F$31,IF($B16=26,'Bahan Pakan'!F$32,IF($B16=27,'Bahan Pakan'!F$33,IF($B16=28,'Bahan Pakan'!F$34,IF($B16=29,'Bahan Pakan'!F$35,IF($B16=30,'Bahan Pakan'!F$36,IF($B16=31,'Bahan Pakan'!F$37,IF($B16=32,'Bahan Pakan'!F$38,IF($B16=33,'Bahan Pakan'!F$39,IF($B16=34,'Bahan Pakan'!F$40,IF($B16=35,'Bahan Pakan'!F$41,IF($B16=36,'Bahan Pakan'!F$42,IF($B16=37,'Bahan Pakan'!F$43,IF($B16=38,'Bahan Pakan'!F$44,IF($B16=39,'Bahan Pakan'!F$45,IF($B16=40,'Bahan Pakan'!F$46,IF($B16=41,'Bahan Pakan'!F$47,IF($B16=42,'Bahan Pakan'!F$48,IF($B16=43,'Bahan Pakan'!F$49,IF($B16=44,'Bahan Pakan'!F$50,IF($B16=45,'Bahan Pakan'!F$51,IF($B16=46,'Bahan Pakan'!F$52,IF($B16=47,'Bahan Pakan'!F$53,IF($B16=48,'Bahan Pakan'!F$54,IF($B16=49,'Bahan Pakan'!F$55,IF($B16=50,'Bahan Pakan'!F$56,0)))))))))))))))))))))))))))))))))))))))))))))))))) -> 0 | H16: 0 | I16: 0 | J16: 0 | K16: =IF($B16=1,'Bahan Pakan'!G$7,IF($B16=2,'Bahan Pakan'!G$8,IF($B16=3,'Bahan Pakan'!G$9,IF($B16=4,'Bahan Pakan'!G$10,IF($B16=5,'Bahan Pakan'!G$11,IF($B16=6,'Bahan Pakan'!G$12,IF($B16=7,'Bahan Pakan'!G$13,IF($B16=8,'Bahan Pakan'!G$14,IF($B16=9,'Bahan Pakan'!G$15,IF($B16=10,'Bahan Pakan'!G$16,IF($B16=11,'Bahan Pakan'!G$17,IF($B16=12,'Bahan Pakan'!G$18,IF($B16=13,'Bahan Pakan'!G$19,IF($B16=14,'Bahan Pakan'!G$20,IF($B16=15,'Bahan Pakan'!G$21,IF($B16=16,'Bahan Pakan'!G$22,IF($B16=17,'Bahan Pakan'!G$23,IF($B16=18,'Bahan Pakan'!G$24,IF($B16=19,'Bahan Pakan'!G$25,IF($B16=20,'Bahan Pakan'!G$26,IF($B16=21,'Bahan Pakan'!G$27,IF($B16=22,'Bahan Pakan'!G$28,IF($B16=23,'Bahan Pakan'!G$29,IF($B16=24,'Bahan Pakan'!G$30,IF($B16=25,'Bahan Pakan'!G$31,IF($B16=26,'Bahan Pakan'!G$32,IF($B16=27,'Bahan Pakan'!G$33,IF($B16=28,'Bahan Pakan'!G$34,IF($B16=29,'Bahan Pakan'!G$35,IF($B16=30,'Bahan Pakan'!G$36,IF($B16=31,'Bahan Pakan'!G$37,IF($B16=32,'Bahan Pakan'!G$38,IF($B16=33,'Bahan Pakan'!G$39,IF($B16=34,'Bahan Pakan'!G$40,IF($B16=35,'Bahan Pakan'!G$41,IF($B16=36,'Bahan Pakan'!G$42,IF($B16=37,'Bahan Pakan'!G$43,IF($B16=38,'Bahan Pakan'!G$44,IF($B16=39,'Bahan Pakan'!G$45,IF($B16=40,'Bahan Pakan'!G$46,IF($B16=41,'Bahan Pakan'!G$47,IF($B16=42,'Bahan Pakan'!G$48,IF($B16=43,'Bahan Pakan'!G$49,IF($B16=44,'Bahan Pakan'!G$50,IF($B16=45,'Bahan Pakan'!G$51,IF($B16=46,'Bahan Pakan'!G$52,IF($B16=47,'Bahan Pakan'!G$53,IF($B16=48,'Bahan Pakan'!G$54,IF($B16=49,'Bahan Pakan'!G$55,IF($B16=50,'Bahan Pakan'!G$56,0)))))))))))))))))))))))))))))))))))))))))))))))))) -> 0 | L16: =IF($B16=1,'Bahan Pakan'!H$7,IF($B16=2,'Bahan Pakan'!H$8,IF($B16=3,'Bahan Pakan'!H$9,IF($B16=4,'Bahan Pakan'!H$10,IF($B16=5,'Bahan Pakan'!H$11,IF($B16=6,'Bahan Pakan'!H$12,IF($B16=7,'Bahan Pakan'!H$13,IF($B16=8,'Bahan Pakan'!H$14,IF($B16=9,'Bahan Pakan'!H$15,IF($B16=10,'Bahan Pakan'!H$16,IF($B16=11,'Bahan Pakan'!H$17,IF($B16=12,'Bahan Pakan'!H$18,IF($B16=13,'Bahan Pakan'!H$19,IF($B16=14,'Bahan Pakan'!H$20,IF($B16=15,'Bahan Pakan'!H$21,IF($B16=16,'Bahan Pakan'!H$22,IF($B16=17,'Bahan Pakan'!H$23,IF($B16=18,'Bahan Pakan'!H$24,IF($B16=19,'Bahan Pakan'!H$25,IF($B16=20,'Bahan Pakan'!H$26,IF($B16=21,'Bahan Pakan'!H$27,IF($B16=22,'Bahan Pakan'!H$28,IF($B16=23,'Bahan Pakan'!H$29,IF($B16=24,'Bahan Pakan'!H$30,IF($B16=25,'Bahan Pakan'!H$31,IF($B16=26,'Bahan Pakan'!H$32,IF($B16=27,'Bahan Pakan'!H$33,IF($B16=28,'Bahan Pakan'!H$34,IF($B16=29,'Bahan Pakan'!H$35,IF($B16=30,'Bahan Pakan'!H$36,IF($B16=31,'Bahan Pakan'!H$37,IF($B16=32,'Bahan Pakan'!H$38,IF($B16=33,'Bahan Pakan'!H$39,IF($B16=34,'Bahan Pakan'!H$40,IF($B16=35,'Bahan Pakan'!H$41,IF($B16=36,'Bahan Pakan'!H$42,IF($B16=37,'Bahan Pakan'!H$43,IF($B16=38,'Bahan Pakan'!H$44,IF($B16=39,'Bahan Pakan'!H$45,IF($B16=40,'Bahan Pakan'!H$46,IF($B16=41,'Bahan Pakan'!H$47,IF($B16=42,'Bahan Pakan'!H$48,IF($B16=43,'Bahan Pakan'!H$49,IF($B16=44,'Bahan Pakan'!H$50,IF($B16=45,'Bahan Pakan'!H$51,IF($B16=46,'Bahan Pakan'!H$52,IF($B16=47,'Bahan Pakan'!H$53,IF($B16=48,'Bahan Pakan'!H$54,IF($B16=49,'Bahan Pakan'!H$55,IF($B16=50,'Bahan Pakan'!H$56,0)))))))))))))))))))))))))))))))))))))))))))))))))) -> 0 | M16: =IF($B16=1,'Bahan Pakan'!I$7,IF($B16=2,'Bahan Pakan'!I$8,IF($B16=3,'Bahan Pakan'!I$9,IF($B16=4,'Bahan Pakan'!I$10,IF($B16=5,'Bahan Pakan'!I$11,IF($B16=6,'Bahan Pakan'!I$12,IF($B16=7,'Bahan Pakan'!I$13,IF($B16=8,'Bahan Pakan'!I$14,IF($B16=9,'Bahan Pakan'!I$15,IF($B16=10,'Bahan Pakan'!I$16,IF($B16=11,'Bahan Pakan'!I$17,IF($B16=12,'Bahan Pakan'!I$18,IF($B16=13,'Bahan Pakan'!I$19,IF($B16=14,'Bahan Pakan'!I$20,IF($B16=15,'Bahan Pakan'!I$21,IF($B16=16,'Bahan Pakan'!I$22,IF($B16=17,'Bahan Pakan'!I$23,IF($B16=18,'Bahan Pakan'!I$24,IF($B16=19,'Bahan Pakan'!I$25,IF($B16=20,'Bahan Pakan'!I$26,IF($B16=21,'Bahan Pakan'!I$27,IF($B16=22,'Bahan Pakan'!I$28,IF($B16=23,'Bahan Pakan'!I$29,IF($B16=24,'Bahan Pakan'!I$30,IF($B16=25,'Bahan Pakan'!I$31,IF($B16=26,'Bahan Pakan'!I$32,IF($B16=27,'Bahan Pakan'!I$33,IF($B16=28,'Bahan Pakan'!I$34,IF($B16=29,'Bahan Pakan'!I$35,IF($B16=30,'Bahan Pakan'!I$36,IF($B16=31,'Bahan Pakan'!I$37,IF($B16=32,'Bahan Pakan'!I$38,IF($B16=33,'Bahan Pakan'!I$39,IF($B16=34,'Bahan Pakan'!I$40,IF($B16=35,'Bahan Pakan'!I$41,IF($B16=36,'Bahan Pakan'!I$42,IF($B16=37,'Bahan Pakan'!I$43,IF($B16=38,'Bahan Pakan'!I$44,IF($B16=39,'Bahan Pakan'!I$45,IF($B16=40,'Bahan Pakan'!I$46,IF($B16=41,'Bahan Pakan'!I$47,IF($B16=42,'Bahan Pakan'!I$48,IF($B16=43,'Bahan Pakan'!I$49,IF($B16=44,'Bahan Pakan'!I$50,IF($B16=45,'Bahan Pakan'!I$51,IF($B16=46,'Bahan Pakan'!I$52,IF($B16=47,'Bahan Pakan'!I$53,IF($B16=48,'Bahan Pakan'!I$54,IF($B16=49,'Bahan Pakan'!I$55,IF($B16=50,'Bahan Pakan'!I$56,0)))))))))))))))))))))))))))))))))))))))))))))))))) -> 0 | N16: =IF($B16=1,'Bahan Pakan'!J$7,IF($B16=2,'Bahan Pakan'!J$8,IF($B16=3,'Bahan Pakan'!J$9,IF($B16=4,'Bahan Pakan'!J$10,IF($B16=5,'Bahan Pakan'!J$11,IF($B16=6,'Bahan Pakan'!J$12,IF($B16=7,'Bahan Pakan'!J$13,IF($B16=8,'Bahan Pakan'!J$14,IF($B16=9,'Bahan Pakan'!J$15,IF($B16=10,'Bahan Pakan'!J$16,IF($B16=11,'Bahan Pakan'!J$17,IF($B16=12,'Bahan Pakan'!J$18,IF($B16=13,'Bahan Pakan'!J$19,IF($B16=14,'Bahan Pakan'!J$20,IF($B16=15,'Bahan Pakan'!J$21,IF($B16=16,'Bahan Pakan'!J$22,IF($B16=17,'Bahan Pakan'!J$23,IF($B16=18,'Bahan Pakan'!J$24,IF($B16=19,'Bahan Pakan'!J$25,IF($B16=20,'Bahan Pakan'!J$26,IF($B16=21,'Bahan Pakan'!J$27,IF($B16=22,'Bahan Pakan'!J$28,IF($B16=23,'Bahan Pakan'!J$29,IF($B16=24,'Bahan Pakan'!J$30,IF($B16=25,'Bahan Pakan'!J$31,IF($B16=26,'Bahan Pakan'!J$32,IF($B16=27,'Bahan Pakan'!J$33,IF($B16=28,'Bahan Pakan'!J$34,IF($B16=29,'Bahan Pakan'!J$35,IF($B16=30,'Bahan Pakan'!J$36,IF($B16=31,'Bahan Pakan'!J$37,IF($B16=32,'Bahan Pakan'!J$38,IF($B16=33,'Bahan Pakan'!J$39,IF($B16=34,'Bahan Pakan'!J$40,IF($B16=35,'Bahan Pakan'!J$41,IF($B16=36,'Bahan Pakan'!J$42,IF($B16=37,'Bahan Pakan'!J$43,IF($B16=38,'Bahan Pakan'!J$44,IF($B16=39,'Bahan Pakan'!J$45,IF($B16=40,'Bahan Pakan'!J$46,IF($B16=41,'Bahan Pakan'!J$47,IF($B16=42,'Bahan Pakan'!J$48,IF($B16=43,'Bahan Pakan'!J$49,IF($B16=44,'Bahan Pakan'!J$50,IF($B16=45,'Bahan Pakan'!J$51,IF($B16=46,'Bahan Pakan'!J$52,IF($B16=47,'Bahan Pakan'!J$53,IF($B16=48,'Bahan Pakan'!J$54,IF($B16=49,'Bahan Pakan'!J$55,IF($B16=50,'Bahan Pakan'!J$56,0)))))))))))))))))))))))))))))))))))))))))))))))))) -> 0 | O16: =IF($B16=1,'Bahan Pakan'!K$7,IF($B16=2,'Bahan Pakan'!K$8,IF($B16=3,'Bahan Pakan'!K$9,IF($B16=4,'Bahan Pakan'!K$10,IF($B16=5,'Bahan Pakan'!K$11,IF($B16=6,'Bahan Pakan'!K$12,IF($B16=7,'Bahan Pakan'!K$13,IF($B16=8,'Bahan Pakan'!K$14,IF($B16=9,'Bahan Pakan'!K$15,IF($B16=10,'Bahan Pakan'!K$16,IF($B16=11,'Bahan Pakan'!K$17,IF($B16=12,'Bahan Pakan'!K$18,IF($B16=13,'Bahan Pakan'!K$19,IF($B16=14,'Bahan Pakan'!K$20,IF($B16=15,'Bahan Pakan'!K$21,IF($B16=16,'Bahan Pakan'!K$22,IF($B16=17,'Bahan Pakan'!K$23,IF($B16=18,'Bahan Pakan'!K$24,IF($B16=19,'Bahan Pakan'!K$25,IF($B16=20,'Bahan Pakan'!K$26,IF($B16=21,'Bahan Pakan'!K$27,IF($B16=22,'Bahan Pakan'!K$28,IF($B16=23,'Bahan Pakan'!K$29,IF($B16=24,'Bahan Pakan'!K$30,IF($B16=25,'Bahan Pakan'!K$31,IF($B16=26,'Bahan Pakan'!K$32,IF($B16=27,'Bahan Pakan'!K$33,IF($B16=28,'Bahan Pakan'!K$34,IF($B16=29,'Bahan Pakan'!K$35,IF($B16=30,'Bahan Pakan'!K$36,IF($B16=31,'Bahan Pakan'!K$37,IF($B16=32,'Bahan Pakan'!K$38,IF($B16=33,'Bahan Pakan'!K$39,IF($B16=34,'Bahan Pakan'!K$40,IF($B16=35,'Bahan Pakan'!K$41,IF($B16=36,'Bahan Pakan'!K$42,IF($B16=37,'Bahan Pakan'!K$43,IF($B16=38,'Bahan Pakan'!K$44,IF($B16=39,'Bahan Pakan'!K$45,IF($B16=40,'Bahan Pakan'!K$46,IF($B16=41,'Bahan Pakan'!K$47,IF($B16=42,'Bahan Pakan'!K$48,IF($B16=43,'Bahan Pakan'!K$49,IF($B16=44,'Bahan Pakan'!K$50,IF($B16=45,'Bahan Pakan'!K$51,IF($B16=46,'Bahan Pakan'!K$52,IF($B16=47,'Bahan Pakan'!K$53,IF($B16=48,'Bahan Pakan'!K$54,IF($B16=49,'Bahan Pakan'!K$55,IF($B16=50,'Bahan Pakan'!K$56,0)))))))))))))))))))))))))))))))))))))))))))))))))) -> 0 | P16: =IF($B16=1,'Bahan Pakan'!L$7,IF($B16=2,'Bahan Pakan'!L$8,IF($B16=3,'Bahan Pakan'!L$9,IF($B16=4,'Bahan Pakan'!L$10,IF($B16=5,'Bahan Pakan'!L$11,IF($B16=6,'Bahan Pakan'!L$12,IF($B16=7,'Bahan Pakan'!L$13,IF($B16=8,'Bahan Pakan'!L$14,IF($B16=9,'Bahan Pakan'!L$15,IF($B16=10,'Bahan Pakan'!L$16,IF($B16=11,'Bahan Pakan'!L$17,IF($B16=12,'Bahan Pakan'!L$18,IF($B16=13,'Bahan Pakan'!L$19,IF($B16=14,'Bahan Pakan'!L$20,IF($B16=15,'Bahan Pakan'!L$21,IF($B16=16,'Bahan Pakan'!L$22,IF($B16=17,'Bahan Pakan'!L$23,IF($B16=18,'Bahan Pakan'!L$24,IF($B16=19,'Bahan Pakan'!L$25,IF($B16=20,'Bahan Pakan'!L$26,IF($B16=21,'Bahan Pakan'!L$27,IF($B16=22,'Bahan Pakan'!L$28,IF($B16=23,'Bahan Pakan'!L$29,IF($B16=24,'Bahan Pakan'!L$30,IF($B16=25,'Bahan Pakan'!L$31,IF($B16=26,'Bahan Pakan'!L$32,IF($B16=27,'Bahan Pakan'!L$33,IF($B16=28,'Bahan Pakan'!L$34,IF($B16=29,'Bahan Pakan'!L$35,IF($B16=30,'Bahan Pakan'!L$36,IF($B16=31,'Bahan Pakan'!L$37,IF($B16=32,'Bahan Pakan'!L$38,IF($B16=33,'Bahan Pakan'!L$39,IF($B16=34,'Bahan Pakan'!L$40,IF($B16=35,'Bahan Pakan'!L$41,IF($B16=36,'Bahan Pakan'!L$42,IF($B16=37,'Bahan Pakan'!L$43,IF($B16=38,'Bahan Pakan'!L$44,IF($B16=39,'Bahan Pakan'!L$45,IF($B16=40,'Bahan Pakan'!L$46,IF($B16=41,'Bahan Pakan'!L$47,IF($B16=42,'Bahan Pakan'!L$48,IF($B16=43,'Bahan Pakan'!L$49,IF($B16=44,'Bahan Pakan'!L$50,IF($B16=45,'Bahan Pakan'!L$51,IF($B16=46,'Bahan Pakan'!L$52,IF($B16=47,'Bahan Pakan'!L$53,IF($B16=48,'Bahan Pakan'!L$54,IF($B16=49,'Bahan Pakan'!L$55,IF($B16=50,'Bahan Pakan'!L$56,0)))))))))))))))))))))))))))))))))))))))))))))))))) -> 0 | Q16: =IF($B16=1,'Bahan Pakan'!M$7,IF($B16=2,'Bahan Pakan'!M$8,IF($B16=3,'Bahan Pakan'!M$9,IF($B16=4,'Bahan Pakan'!M$10,IF($B16=5,'Bahan Pakan'!M$11,IF($B16=6,'Bahan Pakan'!M$12,IF($B16=7,'Bahan Pakan'!M$13,IF($B16=8,'Bahan Pakan'!M$14,IF($B16=9,'Bahan Pakan'!M$15,IF($B16=10,'Bahan Pakan'!M$16,IF($B16=11,'Bahan Pakan'!M$17,IF($B16=12,'Bahan Pakan'!M$18,IF($B16=13,'Bahan Pakan'!M$19,IF($B16=14,'Bahan Pakan'!M$20,IF($B16=15,'Bahan Pakan'!M$21,IF($B16=16,'Bahan Pakan'!M$22,IF($B16=17,'Bahan Pakan'!M$23,IF($B16=18,'Bahan Pakan'!M$24,IF($B16=19,'Bahan Pakan'!M$25,IF($B16=20,'Bahan Pakan'!M$26,IF($B16=21,'Bahan Pakan'!M$27,IF($B16=22,'Bahan Pakan'!M$28,IF($B16=23,'Bahan Pakan'!M$29,IF($B16=24,'Bahan Pakan'!M$30,IF($B16=25,'Bahan Pakan'!M$31,IF($B16=26,'Bahan Pakan'!M$32,IF($B16=27,'Bahan Pakan'!M$33,IF($B16=28,'Bahan Pakan'!M$34,IF($B16=29,'Bahan Pakan'!M$35,IF($B16=30,'Bahan Pakan'!M$36,IF($B16=31,'Bahan Pakan'!M$37,IF($B16=32,'Bahan Pakan'!M$38,IF($B16=33,'Bahan Pakan'!M$39,IF($B16=34,'Bahan Pakan'!M$40,IF($B16=35,'Bahan Pakan'!M$41,IF($B16=36,'Bahan Pakan'!M$42,IF($B16=37,'Bahan Pakan'!M$43,IF($B16=38,'Bahan Pakan'!M$44,IF($B16=39,'Bahan Pakan'!M$45,IF($B16=40,'Bahan Pakan'!M$46,IF($B16=41,'Bahan Pakan'!M$47,IF($B16=42,'Bahan Pakan'!M$48,IF($B16=43,'Bahan Pakan'!M$49,IF($B16=44,'Bahan Pakan'!M$50,IF($B16=45,'Bahan Pakan'!M$51,IF($B16=46,'Bahan Pakan'!M$52,IF($B16=47,'Bahan Pakan'!M$53,IF($B16=48,'Bahan Pakan'!M$54,IF($B16=49,'Bahan Pakan'!M$55,IF($B16=50,'Bahan Pakan'!M$56,0)))))))))))))))))))))))))))))))))))))))))))))))))) -> 0 | R16: =IF($B16=1,'Bahan Pakan'!N$7,IF($B16=2,'Bahan Pakan'!N$8,IF($B16=3,'Bahan Pakan'!N$9,IF($B16=4,'Bahan Pakan'!N$10,IF($B16=5,'Bahan Pakan'!N$11,IF($B16=6,'Bahan Pakan'!N$12,IF($B16=7,'Bahan Pakan'!N$13,IF($B16=8,'Bahan Pakan'!N$14,IF($B16=9,'Bahan Pakan'!N$15,IF($B16=10,'Bahan Pakan'!N$16,IF($B16=11,'Bahan Pakan'!N$17,IF($B16=12,'Bahan Pakan'!N$18,IF($B16=13,'Bahan Pakan'!N$19,IF($B16=14,'Bahan Pakan'!N$20,IF($B16=15,'Bahan Pakan'!N$21,IF($B16=16,'Bahan Pakan'!N$22,IF($B16=17,'Bahan Pakan'!N$23,IF($B16=18,'Bahan Pakan'!N$24,IF($B16=19,'Bahan Pakan'!N$25,IF($B16=20,'Bahan Pakan'!N$26,IF($B16=21,'Bahan Pakan'!N$27,IF($B16=22,'Bahan Pakan'!N$28,IF($B16=23,'Bahan Pakan'!N$29,IF($B16=24,'Bahan Pakan'!N$30,IF($B16=25,'Bahan Pakan'!N$31,IF($B16=26,'Bahan Pakan'!N$32,IF($B16=27,'Bahan Pakan'!N$33,IF($B16=28,'Bahan Pakan'!N$34,IF($B16=29,'Bahan Pakan'!N$35,IF($B16=30,'Bahan Pakan'!N$36,IF($B16=31,'Bahan Pakan'!N$37,IF($B16=32,'Bahan Pakan'!N$38,IF($B16=33,'Bahan Pakan'!N$39,IF($B16=34,'Bahan Pakan'!N$40,IF($B16=35,'Bahan Pakan'!N$41,IF($B16=36,'Bahan Pakan'!N$42,IF($B16=37,'Bahan Pakan'!N$43,IF($B16=38,'Bahan Pakan'!N$44,IF($B16=39,'Bahan Pakan'!N$45,IF($B16=40,'Bahan Pakan'!N$46,IF($B16=41,'Bahan Pakan'!N$47,IF($B16=42,'Bahan Pakan'!N$48,IF($B16=43,'Bahan Pakan'!N$49,IF($B16=44,'Bahan Pakan'!N$50,IF($B16=45,'Bahan Pakan'!N$51,IF($B16=46,'Bahan Pakan'!N$52,IF($B16=47,'Bahan Pakan'!N$53,IF($B16=48,'Bahan Pakan'!N$54,IF($B16=49,'Bahan Pakan'!N$55,IF($B16=50,'Bahan Pakan'!N$56,0)))))))))))))))))))))))))))))))))))))))))))))))))) -> 0 | S16: =IF($B16=1,'Bahan Pakan'!O$7,IF($B16=2,'Bahan Pakan'!O$8,IF($B16=3,'Bahan Pakan'!O$9,IF($B16=4,'Bahan Pakan'!O$10,IF($B16=5,'Bahan Pakan'!O$11,IF($B16=6,'Bahan Pakan'!O$12,IF($B16=7,'Bahan Pakan'!O$13,IF($B16=8,'Bahan Pakan'!O$14,IF($B16=9,'Bahan Pakan'!O$15,IF($B16=10,'Bahan Pakan'!O$16,IF($B16=11,'Bahan Pakan'!O$17,IF($B16=12,'Bahan Pakan'!O$18,IF($B16=13,'Bahan Pakan'!O$19,IF($B16=14,'Bahan Pakan'!O$20,IF($B16=15,'Bahan Pakan'!O$21,IF($B16=16,'Bahan Pakan'!O$22,IF($B16=17,'Bahan Pakan'!O$23,IF($B16=18,'Bahan Pakan'!O$24,IF($B16=19,'Bahan Pakan'!O$25,IF($B16=20,'Bahan Pakan'!O$26,IF($B16=21,'Bahan Pakan'!O$27,IF($B16=22,'Bahan Pakan'!O$28,IF($B16=23,'Bahan Pakan'!O$29,IF($B16=24,'Bahan Pakan'!O$30,IF($B16=25,'Bahan Pakan'!O$31,IF($B16=26,'Bahan Pakan'!O$32,IF($B16=27,'Bahan Pakan'!O$33,IF($B16=28,'Bahan Pakan'!O$34,IF($B16=29,'Bahan Pakan'!O$35,IF($B16=30,'Bahan Pakan'!O$36,IF($B16=31,'Bahan Pakan'!O$37,IF($B16=32,'Bahan Pakan'!O$38,IF($B16=33,'Bahan Pakan'!O$39,IF($B16=34,'Bahan Pakan'!O$40,IF($B16=35,'Bahan Pakan'!O$41,IF($B16=36,'Bahan Pakan'!O$42,IF($B16=37,'Bahan Pakan'!O$43,IF($B16=38,'Bahan Pakan'!O$44,IF($B16=39,'Bahan Pakan'!O$45,IF($B16=40,'Bahan Pakan'!O$46,IF($B16=41,'Bahan Pakan'!O$47,IF($B16=42,'Bahan Pakan'!O$48,IF($B16=43,'Bahan Pakan'!O$49,IF($B16=44,'Bahan Pakan'!O$50,IF($B16=45,'Bahan Pakan'!O$51,IF($B16=46,'Bahan Pakan'!O$52,IF($B16=47,'Bahan Pakan'!O$53,IF($B16=48,'Bahan Pakan'!O$54,IF($B16=49,'Bahan Pakan'!O$55,IF($B16=50,'Bahan Pakan'!O$56,0)))))))))))))))))))))))))))))))))))))))))))))))))) -> 0 | T16: =IF($B16=1,'Bahan Pakan'!P$7,IF($B16=2,'Bahan Pakan'!P$8,IF($B16=3,'Bahan Pakan'!P$9,IF($B16=4,'Bahan Pakan'!P$10,IF($B16=5,'Bahan Pakan'!P$11,IF($B16=6,'Bahan Pakan'!P$12,IF($B16=7,'Bahan Pakan'!P$13,IF($B16=8,'Bahan Pakan'!P$14,IF($B16=9,'Bahan Pakan'!P$15,IF($B16=10,'Bahan Pakan'!P$16,IF($B16=11,'Bahan Pakan'!P$17,IF($B16=12,'Bahan Pakan'!P$18,IF($B16=13,'Bahan Pakan'!P$19,IF($B16=14,'Bahan Pakan'!P$20,IF($B16=15,'Bahan Pakan'!P$21,IF($B16=16,'Bahan Pakan'!P$22,IF($B16=17,'Bahan Pakan'!P$23,IF($B16=18,'Bahan Pakan'!P$24,IF($B16=19,'Bahan Pakan'!P$25,IF($B16=20,'Bahan Pakan'!P$26,IF($B16=21,'Bahan Pakan'!P$27,IF($B16=22,'Bahan Pakan'!P$28,IF($B16=23,'Bahan Pakan'!P$29,IF($B16=24,'Bahan Pakan'!P$30,IF($B16=25,'Bahan Pakan'!P$31,IF($B16=26,'Bahan Pakan'!P$32,IF($B16=27,'Bahan Pakan'!P$33,IF($B16=28,'Bahan Pakan'!P$34,IF($B16=29,'Bahan Pakan'!P$35,IF($B16=30,'Bahan Pakan'!P$36,IF($B16=31,'Bahan Pakan'!P$37,IF($B16=32,'Bahan Pakan'!P$38,IF($B16=33,'Bahan Pakan'!P$39,IF($B16=34,'Bahan Pakan'!P$40,IF($B16=35,'Bahan Pakan'!P$41,IF($B16=36,'Bahan Pakan'!P$42,IF($B16=37,'Bahan Pakan'!P$43,IF($B16=38,'Bahan Pakan'!P$44,IF($B16=39,'Bahan Pakan'!P$45,IF($B16=40,'Bahan Pakan'!P$46,IF($B16=41,'Bahan Pakan'!P$47,IF($B16=42,'Bahan Pakan'!P$48,IF($B16=43,'Bahan Pakan'!P$49,IF($B16=44,'Bahan Pakan'!P$50,IF($B16=45,'Bahan Pakan'!P$51,IF($B16=46,'Bahan Pakan'!P$52,IF($B16=47,'Bahan Pakan'!P$53,IF($B16=48,'Bahan Pakan'!P$54,IF($B16=49,'Bahan Pakan'!P$55,IF($B16=50,'Bahan Pakan'!P$56,0)))))))))))))))))))))))))))))))))))))))))))))))))) -> 0 | Y16: Harga Ransum | Z16: Rp/kg | AA16: =F45 -> 1912.75
B17: =IF($D17='Bahan Pakan'!D$7,1,IF($D17='Bahan Pakan'!D$8,2,IF($D17='Bahan Pakan'!D$9,3,IF($D17='Bahan Pakan'!D$10,4,IF($D17='Bahan Pakan'!D$11,5,IF($D17='Bahan Pakan'!D$12,6,IF($D17='Bahan Pakan'!D$13,7,IF($D17='Bahan Pakan'!D$14,8,IF($D17='Bahan Pakan'!D$15,9,IF($D17='Bahan Pakan'!D$16,10,IF($D17='Bahan Pakan'!D$17,11,IF($D17='Bahan Pakan'!D$18,12,IF($D17='Bahan Pakan'!D$19,13,IF($D17='Bahan Pakan'!D$20,14,IF($D17='Bahan Pakan'!D$21,15,IF($D17='Bahan Pakan'!D$22,16,IF($D17='Bahan Pakan'!D$23,17,IF($D17='Bahan Pakan'!D$24,18,IF($D17='Bahan Pakan'!D$25,19,IF($D17='Bahan Pakan'!D$26,20,IF($D17='Bahan Pakan'!D$27,21,IF($D17='Bahan Pakan'!D$28,22,IF($D17='Bahan Pakan'!D$29,23,IF($D17='Bahan Pakan'!D$30,24,IF($D17='Bahan Pakan'!D$31,25,IF($D17='Bahan Pakan'!D$32,26,IF($D17='Bahan Pakan'!D$33,27,IF($D17='Bahan Pakan'!D$34,28,IF($D17='Bahan Pakan'!D$35,29,IF($D17='Bahan Pakan'!D$36,30,IF($D17='Bahan Pakan'!D$37,31,IF($D17='Bahan Pakan'!D$38,32,IF($D17='Bahan Pakan'!D$39,33,IF($D17='Bahan Pakan'!D$40,34,IF($D17='Bahan Pakan'!D$41,35,IF($D17='Bahan Pakan'!D$42,36,IF($D17='Bahan Pakan'!D$43,37,IF($D17='Bahan Pakan'!D$44,38,IF($D17='Bahan Pakan'!D$45,39,IF($D17='Bahan Pakan'!D$46,40,IF($D17='Bahan Pakan'!D$47,41,IF($D17='Bahan Pakan'!D$48,42,IF($D17='Bahan Pakan'!D$49,43,IF($D17='Bahan Pakan'!D$50,44,IF($D17='Bahan Pakan'!D$51,45,IF($D17='Bahan Pakan'!D$52,46,IF($D17='Bahan Pakan'!D$53,47,IF($D17='Bahan Pakan'!D$54,48,IF($D17='Bahan Pakan'!D$55,49,IF($D17='Bahan Pakan'!D$56,50,0)))))))))))))))))))))))))))))))))))))))))))))))))) -> 44 | C17: 11 | E17: =IF($B17=1,'Bahan Pakan'!E$7,IF($B17=2,'Bahan Pakan'!E$8,IF($B17=3,'Bahan Pakan'!E$9,IF($B17=4,'Bahan Pakan'!E$10,IF($B17=5,'Bahan Pakan'!E$11,IF($B17=6,'Bahan Pakan'!E$12,IF($B17=7,'Bahan Pakan'!E$13,IF($B17=8,'Bahan Pakan'!E$14,IF($B17=9,'Bahan Pakan'!E$15,IF($B17=10,'Bahan Pakan'!E$16,IF($B17=11,'Bahan Pakan'!E$17,IF($B17=12,'Bahan Pakan'!E$18,IF($B17=13,'Bahan Pakan'!E$19,IF($B17=14,'Bahan Pakan'!E$20,IF($B17=15,'Bahan Pakan'!E$21,IF($B17=16,'Bahan Pakan'!E$22,IF($B17=17,'Bahan Pakan'!E$23,IF($B17=18,'Bahan Pakan'!E$24,IF($B17=19,'Bahan Pakan'!E$25,IF($B17=20,'Bahan Pakan'!E$26,IF($B17=21,'Bahan Pakan'!E$27,IF($B17=22,'Bahan Pakan'!E$28,IF($B17=23,'Bahan Pakan'!E$29,IF($B17=24,'Bahan Pakan'!E$30,IF($B17=25,'Bahan Pakan'!E$31,IF($B17=26,'Bahan Pakan'!E$32,IF($B17=27,'Bahan Pakan'!E$33,IF($B17=28,'Bahan Pakan'!E$34,IF($B17=29,'Bahan Pakan'!E$35,IF($B17=30,'Bahan Pakan'!E$36,IF($B17=31,'Bahan Pakan'!E$37,IF($B17=32,'Bahan Pakan'!E$38,IF($B17=33,'Bahan Pakan'!E$39,IF($B17=34,'Bahan Pakan'!E$40,IF($B17=35,'Bahan Pakan'!E$41,IF($B17=36,'Bahan Pakan'!E$42,IF($B17=37,'Bahan Pakan'!E$43,IF($B17=38,'Bahan Pakan'!E$44,IF($B17=39,'Bahan Pakan'!E$45,IF($B17=40,'Bahan Pakan'!E$46,IF($B17=41,'Bahan Pakan'!E$47,IF($B17=42,'Bahan Pakan'!E$48,IF($B17=43,'Bahan Pakan'!E$49,IF($B17=44,'Bahan Pakan'!E$50,IF($B17=45,'Bahan Pakan'!E$51,IF($B17=46,'Bahan Pakan'!E$52,IF($B17=47,'Bahan Pakan'!E$53,IF($B17=48,'Bahan Pakan'!E$54,IF($B17=49,'Bahan Pakan'!E$55,IF($B17=50,'Bahan Pakan'!E$56,0)))))))))))))))))))))))))))))))))))))))))))))))))) -> 0 | F17: =IF($B17=1,'Bahan Pakan'!F$7,IF($B17=2,'Bahan Pakan'!F$8,IF($B17=3,'Bahan Pakan'!F$9,IF($B17=4,'Bahan Pakan'!F$10,IF($B17=5,'Bahan Pakan'!F$11,IF($B17=6,'Bahan Pakan'!F$12,IF($B17=7,'Bahan Pakan'!F$13,IF($B17=8,'Bahan Pakan'!F$14,IF($B17=9,'Bahan Pakan'!F$15,IF($B17=10,'Bahan Pakan'!F$16,IF($B17=11,'Bahan Pakan'!F$17,IF($B17=12,'Bahan Pakan'!F$18,IF($B17=13,'Bahan Pakan'!F$19,IF($B17=14,'Bahan Pakan'!F$20,IF($B17=15,'Bahan Pakan'!F$21,IF($B17=16,'Bahan Pakan'!F$22,IF($B17=17,'Bahan Pakan'!F$23,IF($B17=18,'Bahan Pakan'!F$24,IF($B17=19,'Bahan Pakan'!F$25,IF($B17=20,'Bahan Pakan'!F$26,IF($B17=21,'Bahan Pakan'!F$27,IF($B17=22,'Bahan Pakan'!F$28,IF($B17=23,'Bahan Pakan'!F$29,IF($B17=24,'Bahan Pakan'!F$30,IF($B17=25,'Bahan Pakan'!F$31,IF($B17=26,'Bahan Pakan'!F$32,IF($B17=27,'Bahan Pakan'!F$33,IF($B17=28,'Bahan Pakan'!F$34,IF($B17=29,'Bahan Pakan'!F$35,IF($B17=30,'Bahan Pakan'!F$36,IF($B17=31,'Bahan Pakan'!F$37,IF($B17=32,'Bahan Pakan'!F$38,IF($B17=33,'Bahan Pakan'!F$39,IF($B17=34,'Bahan Pakan'!F$40,IF($B17=35,'Bahan Pakan'!F$41,IF($B17=36,'Bahan Pakan'!F$42,IF($B17=37,'Bahan Pakan'!F$43,IF($B17=38,'Bahan Pakan'!F$44,IF($B17=39,'Bahan Pakan'!F$45,IF($B17=40,'Bahan Pakan'!F$46,IF($B17=41,'Bahan Pakan'!F$47,IF($B17=42,'Bahan Pakan'!F$48,IF($B17=43,'Bahan Pakan'!F$49,IF($B17=44,'Bahan Pakan'!F$50,IF($B17=45,'Bahan Pakan'!F$51,IF($B17=46,'Bahan Pakan'!F$52,IF($B17=47,'Bahan Pakan'!F$53,IF($B17=48,'Bahan Pakan'!F$54,IF($B17=49,'Bahan Pakan'!F$55,IF($B17=50,'Bahan Pakan'!F$56,0)))))))))))))))))))))))))))))))))))))))))))))))))) -> 0 | H17: 0 | I17: 0 | J17: 0 | K17: =IF($B17=1,'Bahan Pakan'!G$7,IF($B17=2,'Bahan Pakan'!G$8,IF($B17=3,'Bahan Pakan'!G$9,IF($B17=4,'Bahan Pakan'!G$10,IF($B17=5,'Bahan Pakan'!G$11,IF($B17=6,'Bahan Pakan'!G$12,IF($B17=7,'Bahan Pakan'!G$13,IF($B17=8,'Bahan Pakan'!G$14,IF($B17=9,'Bahan Pakan'!G$15,IF($B17=10,'Bahan Pakan'!G$16,IF($B17=11,'Bahan Pakan'!G$17,IF($B17=12,'Bahan Pakan'!G$18,IF($B17=13,'Bahan Pakan'!G$19,IF($B17=14,'Bahan Pakan'!G$20,IF($B17=15,'Bahan Pakan'!G$21,IF($B17=16,'Bahan Pakan'!G$22,IF($B17=17,'Bahan Pakan'!G$23,IF($B17=18,'Bahan Pakan'!G$24,IF($B17=19,'Bahan Pakan'!G$25,IF($B17=20,'Bahan Pakan'!G$26,IF($B17=21,'Bahan Pakan'!G$27,IF($B17=22,'Bahan Pakan'!G$28,IF($B17=23,'Bahan Pakan'!G$29,IF($B17=24,'Bahan Pakan'!G$30,IF($B17=25,'Bahan Pakan'!G$31,IF($B17=26,'Bahan Pakan'!G$32,IF($B17=27,'Bahan Pakan'!G$33,IF($B17=28,'Bahan Pakan'!G$34,IF($B17=29,'Bahan Pakan'!G$35,IF($B17=30,'Bahan Pakan'!G$36,IF($B17=31,'Bahan Pakan'!G$37,IF($B17=32,'Bahan Pakan'!G$38,IF($B17=33,'Bahan Pakan'!G$39,IF($B17=34,'Bahan Pakan'!G$40,IF($B17=35,'Bahan Pakan'!G$41,IF($B17=36,'Bahan Pakan'!G$42,IF($B17=37,'Bahan Pakan'!G$43,IF($B17=38,'Bahan Pakan'!G$44,IF($B17=39,'Bahan Pakan'!G$45,IF($B17=40,'Bahan Pakan'!G$46,IF($B17=41,'Bahan Pakan'!G$47,IF($B17=42,'Bahan Pakan'!G$48,IF($B17=43,'Bahan Pakan'!G$49,IF($B17=44,'Bahan Pakan'!G$50,IF($B17=45,'Bahan Pakan'!G$51,IF($B17=46,'Bahan Pakan'!G$52,IF($B17=47,'Bahan Pakan'!G$53,IF($B17=48,'Bahan Pakan'!G$54,IF($B17=49,'Bahan Pakan'!G$55,IF($B17=50,'Bahan Pakan'!G$56,0)))))))))))))))))))))))))))))))))))))))))))))))))) -> 0 | L17: =IF($B17=1,'Bahan Pakan'!H$7,IF($B17=2,'Bahan Pakan'!H$8,IF($B17=3,'Bahan Pakan'!H$9,IF($B17=4,'Bahan Pakan'!H$10,IF($B17=5,'Bahan Pakan'!H$11,IF($B17=6,'Bahan Pakan'!H$12,IF($B17=7,'Bahan Pakan'!H$13,IF($B17=8,'Bahan Pakan'!H$14,IF($B17=9,'Bahan Pakan'!H$15,IF($B17=10,'Bahan Pakan'!H$16,IF($B17=11,'Bahan Pakan'!H$17,IF($B17=12,'Bahan Pakan'!H$18,IF($B17=13,'Bahan Pakan'!H$19,IF($B17=14,'Bahan Pakan'!H$20,IF($B17=15,'Bahan Pakan'!H$21,IF($B17=16,'Bahan Pakan'!H$22,IF($B17=17,'Bahan Pakan'!H$23,IF($B17=18,'Bahan Pakan'!H$24,IF($B17=19,'Bahan Pakan'!H$25,IF($B17=20,'Bahan Pakan'!H$26,IF($B17=21,'Bahan Pakan'!H$27,IF($B17=22,'Bahan Pakan'!H$28,IF($B17=23,'Bahan Pakan'!H$29,IF($B17=24,'Bahan Pakan'!H$30,IF($B17=25,'Bahan Pakan'!H$31,IF($B17=26,'Bahan Pakan'!H$32,IF($B17=27,'Bahan Pakan'!H$33,IF($B17=28,'Bahan Pakan'!H$34,IF($B17=29,'Bahan Pakan'!H$35,IF($B17=30,'Bahan Pakan'!H$36,IF($B17=31,'Bahan Pakan'!H$37,IF($B17=32,'Bahan Pakan'!H$38,IF($B17=33,'Bahan Pakan'!H$39,IF($B17=34,'Bahan Pakan'!H$40,IF($B17=35,'Bahan Pakan'!H$41,IF($B17=36,'Bahan Pakan'!H$42,IF($B17=37,'Bahan Pakan'!H$43,IF($B17=38,'Bahan Pakan'!H$44,IF($B17=39,'Bahan Pakan'!H$45,IF($B17=40,'Bahan Pakan'!H$46,IF($B17=41,'Bahan Pakan'!H$47,IF($B17=42,'Bahan Pakan'!H$48,IF($B17=43,'Bahan Pakan'!H$49,IF($B17=44,'Bahan Pakan'!H$50,IF($B17=45,'Bahan Pakan'!H$51,IF($B17=46,'Bahan Pakan'!H$52,IF($B17=47,'Bahan Pakan'!H$53,IF($B17=48,'Bahan Pakan'!H$54,IF($B17=49,'Bahan Pakan'!H$55,IF($B17=50,'Bahan Pakan'!H$56,0)))))))))))))))))))))))))))))))))))))))))))))))))) -> 0 | M17: =IF($B17=1,'Bahan Pakan'!I$7,IF($B17=2,'Bahan Pakan'!I$8,IF($B17=3,'Bahan Pakan'!I$9,IF($B17=4,'Bahan Pakan'!I$10,IF($B17=5,'Bahan Pakan'!I$11,IF($B17=6,'Bahan Pakan'!I$12,IF($B17=7,'Bahan Pakan'!I$13,IF($B17=8,'Bahan Pakan'!I$14,IF($B17=9,'Bahan Pakan'!I$15,IF($B17=10,'Bahan Pakan'!I$16,IF($B17=11,'Bahan Pakan'!I$17,IF($B17=12,'Bahan Pakan'!I$18,IF($B17=13,'Bahan Pakan'!I$19,IF($B17=14,'Bahan Pakan'!I$20,IF($B17=15,'Bahan Pakan'!I$21,IF($B17=16,'Bahan Pakan'!I$22,IF($B17=17,'Bahan Pakan'!I$23,IF($B17=18,'Bahan Pakan'!I$24,IF($B17=19,'Bahan Pakan'!I$25,IF($B17=20,'Bahan Pakan'!I$26,IF($B17=21,'Bahan Pakan'!I$27,IF($B17=22,'Bahan Pakan'!I$28,IF($B17=23,'Bahan Pakan'!I$29,IF($B17=24,'Bahan Pakan'!I$30,IF($B17=25,'Bahan Pakan'!I$31,IF($B17=26,'Bahan Pakan'!I$32,IF($B17=27,'Bahan Pakan'!I$33,IF($B17=28,'Bahan Pakan'!I$34,IF($B17=29,'Bahan Pakan'!I$35,IF($B17=30,'Bahan Pakan'!I$36,IF($B17=31,'Bahan Pakan'!I$37,IF($B17=32,'Bahan Pakan'!I$38,IF($B17=33,'Bahan Pakan'!I$39,IF($B17=34,'Bahan Pakan'!I$40,IF($B17=35,'Bahan Pakan'!I$41,IF($B17=36,'Bahan Pakan'!I$42,IF($B17=37,'Bahan Pakan'!I$43,IF($B17=38,'Bahan Pakan'!I$44,IF($B17=39,'Bahan Pakan'!I$45,IF($B17=40,'Bahan Pakan'!I$46,IF($B17=41,'Bahan Pakan'!I$47,IF($B17=42,'Bahan Pakan'!I$48,IF($B17=43,'Bahan Pakan'!I$49,IF($B17=44,'Bahan Pakan'!I$50,IF($B17=45,'Bahan Pakan'!I$51,IF($B17=46,'Bahan Pakan'!I$52,IF($B17=47,'Bahan Pakan'!I$53,IF($B17=48,'Bahan Pakan'!I$54,IF($B17=49,'Bahan Pakan'!I$55,IF($B17=50,'Bahan Pakan'!I$56,0)))))))))))))))))))))))))))))))))))))))))))))))))) -> 0 | N17: =IF($B17=1,'Bahan Pakan'!J$7,IF($B17=2,'Bahan Pakan'!J$8,IF($B17=3,'Bahan Pakan'!J$9,IF($B17=4,'Bahan Pakan'!J$10,IF($B17=5,'Bahan Pakan'!J$11,IF($B17=6,'Bahan Pakan'!J$12,IF($B17=7,'Bahan Pakan'!J$13,IF($B17=8,'Bahan Pakan'!J$14,IF($B17=9,'Bahan Pakan'!J$15,IF($B17=10,'Bahan Pakan'!J$16,IF($B17=11,'Bahan Pakan'!J$17,IF($B17=12,'Bahan Pakan'!J$18,IF($B17=13,'Bahan Pakan'!J$19,IF($B17=14,'Bahan Pakan'!J$20,IF($B17=15,'Bahan Pakan'!J$21,IF($B17=16,'Bahan Pakan'!J$22,IF($B17=17,'Bahan Pakan'!J$23,IF($B17=18,'Bahan Pakan'!J$24,IF($B17=19,'Bahan Pakan'!J$25,IF($B17=20,'Bahan Pakan'!J$26,IF($B17=21,'Bahan Pakan'!J$27,IF($B17=22,'Bahan Pakan'!J$28,IF($B17=23,'Bahan Pakan'!J$29,IF($B17=24,'Bahan Pakan'!J$30,IF($B17=25,'Bahan Pakan'!J$31,IF($B17=26,'Bahan Pakan'!J$32,IF($B17=27,'Bahan Pakan'!J$33,IF($B17=28,'Bahan Pakan'!J$34,IF($B17=29,'Bahan Pakan'!J$35,IF($B17=30,'Bahan Pakan'!J$36,IF($B17=31,'Bahan Pakan'!J$37,IF($B17=32,'Bahan Pakan'!J$38,IF($B17=33,'Bahan Pakan'!J$39,IF($B17=34,'Bahan Pakan'!J$40,IF($B17=35,'Bahan Pakan'!J$41,IF($B17=36,'Bahan Pakan'!J$42,IF($B17=37,'Bahan Pakan'!J$43,IF($B17=38,'Bahan Pakan'!J$44,IF($B17=39,'Bahan Pakan'!J$45,IF($B17=40,'Bahan Pakan'!J$46,IF($B17=41,'Bahan Pakan'!J$47,IF($B17=42,'Bahan Pakan'!J$48,IF($B17=43,'Bahan Pakan'!J$49,IF($B17=44,'Bahan Pakan'!J$50,IF($B17=45,'Bahan Pakan'!J$51,IF($B17=46,'Bahan Pakan'!J$52,IF($B17=47,'Bahan Pakan'!J$53,IF($B17=48,'Bahan Pakan'!J$54,IF($B17=49,'Bahan Pakan'!J$55,IF($B17=50,'Bahan Pakan'!J$56,0)))))))))))))))))))))))))))))))))))))))))))))))))) -> 0 | O17: =IF($B17=1,'Bahan Pakan'!K$7,IF($B17=2,'Bahan Pakan'!K$8,IF($B17=3,'Bahan Pakan'!K$9,IF($B17=4,'Bahan Pakan'!K$10,IF($B17=5,'Bahan Pakan'!K$11,IF($B17=6,'Bahan Pakan'!K$12,IF($B17=7,'Bahan Pakan'!K$13,IF($B17=8,'Bahan Pakan'!K$14,IF($B17=9,'Bahan Pakan'!K$15,IF($B17=10,'Bahan Pakan'!K$16,IF($B17=11,'Bahan Pakan'!K$17,IF($B17=12,'Bahan Pakan'!K$18,IF($B17=13,'Bahan Pakan'!K$19,IF($B17=14,'Bahan Pakan'!K$20,IF($B17=15,'Bahan Pakan'!K$21,IF($B17=16,'Bahan Pakan'!K$22,IF($B17=17,'Bahan Pakan'!K$23,IF($B17=18,'Bahan Pakan'!K$24,IF($B17=19,'Bahan Pakan'!K$25,IF($B17=20,'Bahan Pakan'!K$26,IF($B17=21,'Bahan Pakan'!K$27,IF($B17=22,'Bahan Pakan'!K$28,IF($B17=23,'Bahan Pakan'!K$29,IF($B17=24,'Bahan Pakan'!K$30,IF($B17=25,'Bahan Pakan'!K$31,IF($B17=26,'Bahan Pakan'!K$32,IF($B17=27,'Bahan Pakan'!K$33,IF($B17=28,'Bahan Pakan'!K$34,IF($B17=29,'Bahan Pakan'!K$35,IF($B17=30,'Bahan Pakan'!K$36,IF($B17=31,'Bahan Pakan'!K$37,IF($B17=32,'Bahan Pakan'!K$38,IF($B17=33,'Bahan Pakan'!K$39,IF($B17=34,'Bahan Pakan'!K$40,IF($B17=35,'Bahan Pakan'!K$41,IF($B17=36,'Bahan Pakan'!K$42,IF($B17=37,'Bahan Pakan'!K$43,IF($B17=38,'Bahan Pakan'!K$44,IF($B17=39,'Bahan Pakan'!K$45,IF($B17=40,'Bahan Pakan'!K$46,IF($B17=41,'Bahan Pakan'!K$47,IF($B17=42,'Bahan Pakan'!K$48,IF($B17=43,'Bahan Pakan'!K$49,IF($B17=44,'Bahan Pakan'!K$50,IF($B17=45,'Bahan Pakan'!K$51,IF($B17=46,'Bahan Pakan'!K$52,IF($B17=47,'Bahan Pakan'!K$53,IF($B17=48,'Bahan Pakan'!K$54,IF($B17=49,'Bahan Pakan'!K$55,IF($B17=50,'Bahan Pakan'!K$56,0)))))))))))))))))))))))))))))))))))))))))))))))))) -> 0 | P17: =IF($B17=1,'Bahan Pakan'!L$7,IF($B17=2,'Bahan Pakan'!L$8,IF($B17=3,'Bahan Pakan'!L$9,IF($B17=4,'Bahan Pakan'!L$10,IF($B17=5,'Bahan Pakan'!L$11,IF($B17=6,'Bahan Pakan'!L$12,IF($B17=7,'Bahan Pakan'!L$13,IF($B17=8,'Bahan Pakan'!L$14,IF($B17=9,'Bahan Pakan'!L$15,IF($B17=10,'Bahan Pakan'!L$16,IF($B17=11,'Bahan Pakan'!L$17,IF($B17=12,'Bahan Pakan'!L$18,IF($B17=13,'Bahan Pakan'!L$19,IF($B17=14,'Bahan Pakan'!L$20,IF($B17=15,'Bahan Pakan'!L$21,IF($B17=16,'Bahan Pakan'!L$22,IF($B17=17,'Bahan Pakan'!L$23,IF($B17=18,'Bahan Pakan'!L$24,IF($B17=19,'Bahan Pakan'!L$25,IF($B17=20,'Bahan Pakan'!L$26,IF($B17=21,'Bahan Pakan'!L$27,IF($B17=22,'Bahan Pakan'!L$28,IF($B17=23,'Bahan Pakan'!L$29,IF($B17=24,'Bahan Pakan'!L$30,IF($B17=25,'Bahan Pakan'!L$31,IF($B17=26,'Bahan Pakan'!L$32,IF($B17=27,'Bahan Pakan'!L$33,IF($B17=28,'Bahan Pakan'!L$34,IF($B17=29,'Bahan Pakan'!L$35,IF($B17=30,'Bahan Pakan'!L$36,IF($B17=31,'Bahan Pakan'!L$37,IF($B17=32,'Bahan Pakan'!L$38,IF($B17=33,'Bahan Pakan'!L$39,IF($B17=34,'Bahan Pakan'!L$40,IF($B17=35,'Bahan Pakan'!L$41,IF($B17=36,'Bahan Pakan'!L$42,IF($B17=37,'Bahan Pakan'!L$43,IF($B17=38,'Bahan Pakan'!L$44,IF($B17=39,'Bahan Pakan'!L$45,IF($B17=40,'Bahan Pakan'!L$46,IF($B17=41,'Bahan Pakan'!L$47,IF($B17=42,'Bahan Pakan'!L$48,IF($B17=43,'Bahan Pakan'!L$49,IF($B17=44,'Bahan Pakan'!L$50,IF($B17=45,'Bahan Pakan'!L$51,IF($B17=46,'Bahan Pakan'!L$52,IF($B17=47,'Bahan Pakan'!L$53,IF($B17=48,'Bahan Pakan'!L$54,IF($B17=49,'Bahan Pakan'!L$55,IF($B17=50,'Bahan Pakan'!L$56,0)))))))))))))))))))))))))))))))))))))))))))))))))) -> 0 | Q17: =IF($B17=1,'Bahan Pakan'!M$7,IF($B17=2,'Bahan Pakan'!M$8,IF($B17=3,'Bahan Pakan'!M$9,IF($B17=4,'Bahan Pakan'!M$10,IF($B17=5,'Bahan Pakan'!M$11,IF($B17=6,'Bahan Pakan'!M$12,IF($B17=7,'Bahan Pakan'!M$13,IF($B17=8,'Bahan Pakan'!M$14,IF($B17=9,'Bahan Pakan'!M$15,IF($B17=10,'Bahan Pakan'!M$16,IF($B17=11,'Bahan Pakan'!M$17,IF($B17=12,'Bahan Pakan'!M$18,IF($B17=13,'Bahan Pakan'!M$19,IF($B17=14,'Bahan Pakan'!M$20,IF($B17=15,'Bahan Pakan'!M$21,IF($B17=16,'Bahan Pakan'!M$22,IF($B17=17,'Bahan Pakan'!M$23,IF($B17=18,'Bahan Pakan'!M$24,IF($B17=19,'Bahan Pakan'!M$25,IF($B17=20,'Bahan Pakan'!M$26,IF($B17=21,'Bahan Pakan'!M$27,IF($B17=22,'Bahan Pakan'!M$28,IF($B17=23,'Bahan Pakan'!M$29,IF($B17=24,'Bahan Pakan'!M$30,IF($B17=25,'Bahan Pakan'!M$31,IF($B17=26,'Bahan Pakan'!M$32,IF($B17=27,'Bahan Pakan'!M$33,IF($B17=28,'Bahan Pakan'!M$34,IF($B17=29,'Bahan Pakan'!M$35,IF($B17=30,'Bahan Pakan'!M$36,IF($B17=31,'Bahan Pakan'!M$37,IF($B17=32,'Bahan Pakan'!M$38,IF($B17=33,'Bahan Pakan'!M$39,IF($B17=34,'Bahan Pakan'!M$40,IF($B17=35,'Bahan Pakan'!M$41,IF($B17=36,'Bahan Pakan'!M$42,IF($B17=37,'Bahan Pakan'!M$43,IF($B17=38,'Bahan Pakan'!M$44,IF($B17=39,'Bahan Pakan'!M$45,IF($B17=40,'Bahan Pakan'!M$46,IF($B17=41,'Bahan Pakan'!M$47,IF($B17=42,'Bahan Pakan'!M$48,IF($B17=43,'Bahan Pakan'!M$49,IF($B17=44,'Bahan Pakan'!M$50,IF($B17=45,'Bahan Pakan'!M$51,IF($B17=46,'Bahan Pakan'!M$52,IF($B17=47,'Bahan Pakan'!M$53,IF($B17=48,'Bahan Pakan'!M$54,IF($B17=49,'Bahan Pakan'!M$55,IF($B17=50,'Bahan Pakan'!M$56,0)))))))))))))))))))))))))))))))))))))))))))))))))) -> 0 | R17: =IF($B17=1,'Bahan Pakan'!N$7,IF($B17=2,'Bahan Pakan'!N$8,IF($B17=3,'Bahan Pakan'!N$9,IF($B17=4,'Bahan Pakan'!N$10,IF($B17=5,'Bahan Pakan'!N$11,IF($B17=6,'Bahan Pakan'!N$12,IF($B17=7,'Bahan Pakan'!N$13,IF($B17=8,'Bahan Pakan'!N$14,IF($B17=9,'Bahan Pakan'!N$15,IF($B17=10,'Bahan Pakan'!N$16,IF($B17=11,'Bahan Pakan'!N$17,IF($B17=12,'Bahan Pakan'!N$18,IF($B17=13,'Bahan Pakan'!N$19,IF($B17=14,'Bahan Pakan'!N$20,IF($B17=15,'Bahan Pakan'!N$21,IF($B17=16,'Bahan Pakan'!N$22,IF($B17=17,'Bahan Pakan'!N$23,IF($B17=18,'Bahan Pakan'!N$24,IF($B17=19,'Bahan Pakan'!N$25,IF($B17=20,'Bahan Pakan'!N$26,IF($B17=21,'Bahan Pakan'!N$27,IF($B17=22,'Bahan Pakan'!N$28,IF($B17=23,'Bahan Pakan'!N$29,IF($B17=24,'Bahan Pakan'!N$30,IF($B17=25,'Bahan Pakan'!N$31,IF($B17=26,'Bahan Pakan'!N$32,IF($B17=27,'Bahan Pakan'!N$33,IF($B17=28,'Bahan Pakan'!N$34,IF($B17=29,'Bahan Pakan'!N$35,IF($B17=30,'Bahan Pakan'!N$36,IF($B17=31,'Bahan Pakan'!N$37,IF($B17=32,'Bahan Pakan'!N$38,IF($B17=33,'Bahan Pakan'!N$39,IF($B17=34,'Bahan Pakan'!N$40,IF($B17=35,'Bahan Pakan'!N$41,IF($B17=36,'Bahan Pakan'!N$42,IF($B17=37,'Bahan Pakan'!N$43,IF($B17=38,'Bahan Pakan'!N$44,IF($B17=39,'Bahan Pakan'!N$45,IF($B17=40,'Bahan Pakan'!N$46,IF($B17=41,'Bahan Pakan'!N$47,IF($B17=42,'Bahan Pakan'!N$48,IF($B17=43,'Bahan Pakan'!N$49,IF($B17=44,'Bahan Pakan'!N$50,IF($B17=45,'Bahan Pakan'!N$51,IF($B17=46,'Bahan Pakan'!N$52,IF($B17=47,'Bahan Pakan'!N$53,IF($B17=48,'Bahan Pakan'!N$54,IF($B17=49,'Bahan Pakan'!N$55,IF($B17=50,'Bahan Pakan'!N$56,0)))))))))))))))))))))))))))))))))))))))))))))))))) -> 0 | S17: =IF($B17=1,'Bahan Pakan'!O$7,IF($B17=2,'Bahan Pakan'!O$8,IF($B17=3,'Bahan Pakan'!O$9,IF($B17=4,'Bahan Pakan'!O$10,IF($B17=5,'Bahan Pakan'!O$11,IF($B17=6,'Bahan Pakan'!O$12,IF($B17=7,'Bahan Pakan'!O$13,IF($B17=8,'Bahan Pakan'!O$14,IF($B17=9,'Bahan Pakan'!O$15,IF($B17=10,'Bahan Pakan'!O$16,IF($B17=11,'Bahan Pakan'!O$17,IF($B17=12,'Bahan Pakan'!O$18,IF($B17=13,'Bahan Pakan'!O$19,IF($B17=14,'Bahan Pakan'!O$20,IF($B17=15,'Bahan Pakan'!O$21,IF($B17=16,'Bahan Pakan'!O$22,IF($B17=17,'Bahan Pakan'!O$23,IF($B17=18,'Bahan Pakan'!O$24,IF($B17=19,'Bahan Pakan'!O$25,IF($B17=20,'Bahan Pakan'!O$26,IF($B17=21,'Bahan Pakan'!O$27,IF($B17=22,'Bahan Pakan'!O$28,IF($B17=23,'Bahan Pakan'!O$29,IF($B17=24,'Bahan Pakan'!O$30,IF($B17=25,'Bahan Pakan'!O$31,IF($B17=26,'Bahan Pakan'!O$32,IF($B17=27,'Bahan Pakan'!O$33,IF($B17=28,'Bahan Pakan'!O$34,IF($B17=29,'Bahan Pakan'!O$35,IF($B17=30,'Bahan Pakan'!O$36,IF($B17=31,'Bahan Pakan'!O$37,IF($B17=32,'Bahan Pakan'!O$38,IF($B17=33,'Bahan Pakan'!O$39,IF($B17=34,'Bahan Pakan'!O$40,IF($B17=35,'Bahan Pakan'!O$41,IF($B17=36,'Bahan Pakan'!O$42,IF($B17=37,'Bahan Pakan'!O$43,IF($B17=38,'Bahan Pakan'!O$44,IF($B17=39,'Bahan Pakan'!O$45,IF($B17=40,'Bahan Pakan'!O$46,IF($B17=41,'Bahan Pakan'!O$47,IF($B17=42,'Bahan Pakan'!O$48,IF($B17=43,'Bahan Pakan'!O$49,IF($B17=44,'Bahan Pakan'!O$50,IF($B17=45,'Bahan Pakan'!O$51,IF($B17=46,'Bahan Pakan'!O$52,IF($B17=47,'Bahan Pakan'!O$53,IF($B17=48,'Bahan Pakan'!O$54,IF($B17=49,'Bahan Pakan'!O$55,IF($B17=50,'Bahan Pakan'!O$56,0)))))))))))))))))))))))))))))))))))))))))))))))))) -> 0 | T17: =IF($B17=1,'Bahan Pakan'!P$7,IF($B17=2,'Bahan Pakan'!P$8,IF($B17=3,'Bahan Pakan'!P$9,IF($B17=4,'Bahan Pakan'!P$10,IF($B17=5,'Bahan Pakan'!P$11,IF($B17=6,'Bahan Pakan'!P$12,IF($B17=7,'Bahan Pakan'!P$13,IF($B17=8,'Bahan Pakan'!P$14,IF($B17=9,'Bahan Pakan'!P$15,IF($B17=10,'Bahan Pakan'!P$16,IF($B17=11,'Bahan Pakan'!P$17,IF($B17=12,'Bahan Pakan'!P$18,IF($B17=13,'Bahan Pakan'!P$19,IF($B17=14,'Bahan Pakan'!P$20,IF($B17=15,'Bahan Pakan'!P$21,IF($B17=16,'Bahan Pakan'!P$22,IF($B17=17,'Bahan Pakan'!P$23,IF($B17=18,'Bahan Pakan'!P$24,IF($B17=19,'Bahan Pakan'!P$25,IF($B17=20,'Bahan Pakan'!P$26,IF($B17=21,'Bahan Pakan'!P$27,IF($B17=22,'Bahan Pakan'!P$28,IF($B17=23,'Bahan Pakan'!P$29,IF($B17=24,'Bahan Pakan'!P$30,IF($B17=25,'Bahan Pakan'!P$31,IF($B17=26,'Bahan Pakan'!P$32,IF($B17=27,'Bahan Pakan'!P$33,IF($B17=28,'Bahan Pakan'!P$34,IF($B17=29,'Bahan Pakan'!P$35,IF($B17=30,'Bahan Pakan'!P$36,IF($B17=31,'Bahan Pakan'!P$37,IF($B17=32,'Bahan Pakan'!P$38,IF($B17=33,'Bahan Pakan'!P$39,IF($B17=34,'Bahan Pakan'!P$40,IF($B17=35,'Bahan Pakan'!P$41,IF($B17=36,'Bahan Pakan'!P$42,IF($B17=37,'Bahan Pakan'!P$43,IF($B17=38,'Bahan Pakan'!P$44,IF($B17=39,'Bahan Pakan'!P$45,IF($B17=40,'Bahan Pakan'!P$46,IF($B17=41,'Bahan Pakan'!P$47,IF($B17=42,'Bahan Pakan'!P$48,IF($B17=43,'Bahan Pakan'!P$49,IF($B17=44,'Bahan Pakan'!P$50,IF($B17=45,'Bahan Pakan'!P$51,IF($B17=46,'Bahan Pakan'!P$52,IF($B17=47,'Bahan Pakan'!P$53,IF($B17=48,'Bahan Pakan'!P$54,IF($B17=49,'Bahan Pakan'!P$55,IF($B17=50,'Bahan Pakan'!P$56,0)))))))))))))))))))))))))))))))))))))))))))))))))) -> 0 | Y17: =NOW() -> 2017-09-16T07:26:23.080
B18: =IF($D18='Bahan Pakan'!D$7,1,IF($D18='Bahan Pakan'!D$8,2,IF($D18='Bahan Pakan'!D$9,3,IF($D18='Bahan Pakan'!D$10,4,IF($D18='Bahan Pakan'!D$11,5,IF($D18='Bahan Pakan'!D$12,6,IF($D18='Bahan Pakan'!D$13,7,IF($D18='Bahan Pakan'!D$14,8,IF($D18='Bahan Pakan'!D$15,9,IF($D18='Bahan Pakan'!D$16,10,IF($D18='Bahan Pakan'!D$17,11,IF($D18='Bahan Pakan'!D$18,12,IF($D18='Bahan Pakan'!D$19,13,IF($D18='Bahan Pakan'!D$20,14,IF($D18='Bahan Pakan'!D$21,15,IF($D18='Bahan Pakan'!D$22,16,IF($D18='Bahan Pakan'!D$23,17,IF($D18='Bahan Pakan'!D$24,18,IF($D18='Bahan Pakan'!D$25,19,IF($D18='Bahan Pakan'!D$26,20,IF($D18='Bahan Pakan'!D$27,21,IF($D18='Bahan Pakan'!D$28,22,IF($D18='Bahan Pakan'!D$29,23,IF($D18='Bahan Pakan'!D$30,24,IF($D18='Bahan Pakan'!D$31,25,IF($D18='Bahan Pakan'!D$32,26,IF($D18='Bahan Pakan'!D$33,27,IF($D18='Bahan Pakan'!D$34,28,IF($D18='Bahan Pakan'!D$35,29,IF($D18='Bahan Pakan'!D$36,30,IF($D18='Bahan Pakan'!D$37,31,IF($D18='Bahan Pakan'!D$38,32,IF($D18='Bahan Pakan'!D$39,33,IF($D18='Bahan Pakan'!D$40,34,IF($D18='Bahan Pakan'!D$41,35,IF($D18='Bahan Pakan'!D$42,36,IF($D18='Bahan Pakan'!D$43,37,IF($D18='Bahan Pakan'!D$44,38,IF($D18='Bahan Pakan'!D$45,39,IF($D18='Bahan Pakan'!D$46,40,IF($D18='Bahan Pakan'!D$47,41,IF($D18='Bahan Pakan'!D$48,42,IF($D18='Bahan Pakan'!D$49,43,IF($D18='Bahan Pakan'!D$50,44,IF($D18='Bahan Pakan'!D$51,45,IF($D18='Bahan Pakan'!D$52,46,IF($D18='Bahan Pakan'!D$53,47,IF($D18='Bahan Pakan'!D$54,48,IF($D18='Bahan Pakan'!D$55,49,IF($D18='Bahan Pakan'!D$56,50,0)))))))))))))))))))))))))))))))))))))))))))))))))) -> 44 | C18: 12 | E18: =IF($B18=1,'Bahan Pakan'!E$7,IF($B18=2,'Bahan Pakan'!E$8,IF($B18=3,'Bahan Pakan'!E$9,IF($B18=4,'Bahan Pakan'!E$10,IF($B18=5,'Bahan Pakan'!E$11,IF($B18=6,'Bahan Pakan'!E$12,IF($B18=7,'Bahan Pakan'!E$13,IF($B18=8,'Bahan Pakan'!E$14,IF($B18=9,'Bahan Pakan'!E$15,IF($B18=10,'Bahan Pakan'!E$16,IF($B18=11,'Bahan Pakan'!E$17,IF($B18=12,'Bahan Pakan'!E$18,IF($B18=13,'Bahan Pakan'!E$19,IF($B18=14,'Bahan Pakan'!E$20,IF($B18=15,'Bahan Pakan'!E$21,IF($B18=16,'Bahan Pakan'!E$22,IF($B18=17,'Bahan Pakan'!E$23,IF($B18=18,'Bahan Pakan'!E$24,IF($B18=19,'Bahan Pakan'!E$25,IF($B18=20,'Bahan Pakan'!E$26,IF($B18=21,'Bahan Pakan'!E$27,IF($B18=22,'Bahan Pakan'!E$28,IF($B18=23,'Bahan Pakan'!E$29,IF($B18=24,'Bahan Pakan'!E$30,IF($B18=25,'Bahan Pakan'!E$31,IF($B18=26,'Bahan Pakan'!E$32,IF($B18=27,'Bahan Pakan'!E$33,IF($B18=28,'Bahan Pakan'!E$34,IF($B18=29,'Bahan Pakan'!E$35,IF($B18=30,'Bahan Pakan'!E$36,IF($B18=31,'Bahan Pakan'!E$37,IF($B18=32,'Bahan Pakan'!E$38,IF($B18=33,'Bahan Pakan'!E$39,IF($B18=34,'Bahan Pakan'!E$40,IF($B18=35,'Bahan Pakan'!E$41,IF($B18=36,'Bahan Pakan'!E$42,IF($B18=37,'Bahan Pakan'!E$43,IF($B18=38,'Bahan Pakan'!E$44,IF($B18=39,'Bahan Pakan'!E$45,IF($B18=40,'Bahan Pakan'!E$46,IF($B18=41,'Bahan Pakan'!E$47,IF($B18=42,'Bahan Pakan'!E$48,IF($B18=43,'Bahan Pakan'!E$49,IF($B18=44,'Bahan Pakan'!E$50,IF($B18=45,'Bahan Pakan'!E$51,IF($B18=46,'Bahan Pakan'!E$52,IF($B18=47,'Bahan Pakan'!E$53,IF($B18=48,'Bahan Pakan'!E$54,IF($B18=49,'Bahan Pakan'!E$55,IF($B18=50,'Bahan Pakan'!E$56,0)))))))))))))))))))))))))))))))))))))))))))))))))) -> 0 | F18: =IF($B18=1,'Bahan Pakan'!F$7,IF($B18=2,'Bahan Pakan'!F$8,IF($B18=3,'Bahan Pakan'!F$9,IF($B18=4,'Bahan Pakan'!F$10,IF($B18=5,'Bahan Pakan'!F$11,IF($B18=6,'Bahan Pakan'!F$12,IF($B18=7,'Bahan Pakan'!F$13,IF($B18=8,'Bahan Pakan'!F$14,IF($B18=9,'Bahan Pakan'!F$15,IF($B18=10,'Bahan Pakan'!F$16,IF($B18=11,'Bahan Pakan'!F$17,IF($B18=12,'Bahan Pakan'!F$18,IF($B18=13,'Bahan Pakan'!F$19,IF($B18=14,'Bahan Pakan'!F$20,IF($B18=15,'Bahan Pakan'!F$21,IF($B18=16,'Bahan Pakan'!F$22,IF($B18=17,'Bahan Pakan'!F$23,IF($B18=18,'Bahan Pakan'!F$24,IF($B18=19,'Bahan Pakan'!F$25,IF($B18=20,'Bahan Pakan'!F$26,IF($B18=21,'Bahan Pakan'!F$27,IF($B18=22,'Bahan Pakan'!F$28,IF($B18=23,'Bahan Pakan'!F$29,IF($B18=24,'Bahan Pakan'!F$30,IF($B18=25,'Bahan Pakan'!F$31,IF($B18=26,'Bahan Pakan'!F$32,IF($B18=27,'Bahan Pakan'!F$33,IF($B18=28,'Bahan Pakan'!F$34,IF($B18=29,'Bahan Pakan'!F$35,IF($B18=30,'Bahan Pakan'!F$36,IF($B18=31,'Bahan Pakan'!F$37,IF($B18=32,'Bahan Pakan'!F$38,IF($B18=33,'Bahan Pakan'!F$39,IF($B18=34,'Bahan Pakan'!F$40,IF($B18=35,'Bahan Pakan'!F$41,IF($B18=36,'Bahan Pakan'!F$42,IF($B18=37,'Bahan Pakan'!F$43,IF($B18=38,'Bahan Pakan'!F$44,IF($B18=39,'Bahan Pakan'!F$45,IF($B18=40,'Bahan Pakan'!F$46,IF($B18=41,'Bahan Pakan'!F$47,IF($B18=42,'Bahan Pakan'!F$48,IF($B18=43,'Bahan Pakan'!F$49,IF($B18=44,'Bahan Pakan'!F$50,IF($B18=45,'Bahan Pakan'!F$51,IF($B18=46,'Bahan Pakan'!F$52,IF($B18=47,'Bahan Pakan'!F$53,IF($B18=48,'Bahan Pakan'!F$54,IF($B18=49,'Bahan Pakan'!F$55,IF($B18=50,'Bahan Pakan'!F$56,0)))))))))))))))))))))))))))))))))))))))))))))))))) -> 0 | H18: 0 | I18: 0 | J18: 0 | K18: =IF($B18=1,'Bahan Pakan'!G$7,IF($B18=2,'Bahan Pakan'!G$8,IF($B18=3,'Bahan Pakan'!G$9,IF($B18=4,'Bahan Pakan'!G$10,IF($B18=5,'Bahan Pakan'!G$11,IF($B18=6,'Bahan Pakan'!G$12,IF($B18=7,'Bahan Pakan'!G$13,IF($B18=8,'Bahan Pakan'!G$14,IF($B18=9,'Bahan Pakan'!G$15,IF($B18=10,'Bahan Pakan'!G$16,IF($B18=11,'Bahan Pakan'!G$17,IF($B18=12,'Bahan Pakan'!G$18,IF($B18=13,'Bahan Pakan'!G$19,IF($B18=14,'Bahan Pakan'!G$20,IF($B18=15,'Bahan Pakan'!G$21,IF($B18=16,'Bahan Pakan'!G$22,IF($B18=17,'Bahan Pakan'!G$23,IF($B18=18,'Bahan Pakan'!G$24,IF($B18=19,'Bahan Pakan'!G$25,IF($B18=20,'Bahan Pakan'!G$26,IF($B18=21,'Bahan Pakan'!G$27,IF($B18=22,'Bahan Pakan'!G$28,IF($B18=23,'Bahan Pakan'!G$29,IF($B18=24,'Bahan Pakan'!G$30,IF($B18=25,'Bahan Pakan'!G$31,IF($B18=26,'Bahan Pakan'!G$32,IF($B18=27,'Bahan Pakan'!G$33,IF($B18=28,'Bahan Pakan'!G$34,IF($B18=29,'Bahan Pakan'!G$35,IF($B18=30,'Bahan Pakan'!G$36,IF($B18=31,'Bahan Pakan'!G$37,IF($B18=32,'Bahan Pakan'!G$38,IF($B18=33,'Bahan Pakan'!G$39,IF($B18=34,'Bahan Pakan'!G$40,IF($B18=35,'Bahan Pakan'!G$41,IF($B18=36,'Bahan Pakan'!G$42,IF($B18=37,'Bahan Pakan'!G$43,IF($B18=38,'Bahan Pakan'!G$44,IF($B18=39,'Bahan Pakan'!G$45,IF($B18=40,'Bahan Pakan'!G$46,IF($B18=41,'Bahan Pakan'!G$47,IF($B18=42,'Bahan Pakan'!G$48,IF($B18=43,'Bahan Pakan'!G$49,IF($B18=44,'Bahan Pakan'!G$50,IF($B18=45,'Bahan Pakan'!G$51,IF($B18=46,'Bahan Pakan'!G$52,IF($B18=47,'Bahan Pakan'!G$53,IF($B18=48,'Bahan Pakan'!G$54,IF($B18=49,'Bahan Pakan'!G$55,IF($B18=50,'Bahan Pakan'!G$56,0)))))))))))))))))))))))))))))))))))))))))))))))))) -> 0 | L18: =IF($B18=1,'Bahan Pakan'!H$7,IF($B18=2,'Bahan Pakan'!H$8,IF($B18=3,'Bahan Pakan'!H$9,IF($B18=4,'Bahan Pakan'!H$10,IF($B18=5,'Bahan Pakan'!H$11,IF($B18=6,'Bahan Pakan'!H$12,IF($B18=7,'Bahan Pakan'!H$13,IF($B18=8,'Bahan Pakan'!H$14,IF($B18=9,'Bahan Pakan'!H$15,IF($B18=10,'Bahan Pakan'!H$16,IF($B18=11,'Bahan Pakan'!H$17,IF($B18=12,'Bahan Pakan'!H$18,IF($B18=13,'Bahan Pakan'!H$19,IF($B18=14,'Bahan Pakan'!H$20,IF($B18=15,'Bahan Pakan'!H$21,IF($B18=16,'Bahan Pakan'!H$22,IF($B18=17,'Bahan Pakan'!H$23,IF($B18=18,'Bahan Pakan'!H$24,IF($B18=19,'Bahan Pakan'!H$25,IF($B18=20,'Bahan Pakan'!H$26,IF($B18=21,'Bahan Pakan'!H$27,IF($B18=22,'Bahan Pakan'!H$28,IF($B18=23,'Bahan Pakan'!H$29,IF($B18=24,'Bahan Pakan'!H$30,IF($B18=25,'Bahan Pakan'!H$31,IF($B18=26,'Bahan Pakan'!H$32,IF($B18=27,'Bahan Pakan'!H$33,IF($B18=28,'Bahan Pakan'!H$34,IF($B18=29,'Bahan Pakan'!H$35,IF($B18=30,'Bahan Pakan'!H$36,IF($B18=31,'Bahan Pakan'!H$37,IF($B18=32,'Bahan Pakan'!H$38,IF($B18=33,'Bahan Pakan'!H$39,IF($B18=34,'Bahan Pakan'!H$40,IF($B18=35,'Bahan Pakan'!H$41,IF($B18=36,'Bahan Pakan'!H$42,IF($B18=37,'Bahan Pakan'!H$43,IF($B18=38,'Bahan Pakan'!H$44,IF($B18=39,'Bahan Pakan'!H$45,IF($B18=40,'Bahan Pakan'!H$46,IF($B18=41,'Bahan Pakan'!H$47,IF($B18=42,'Bahan Pakan'!H$48,IF($B18=43,'Bahan Pakan'!H$49,IF($B18=44,'Bahan Pakan'!H$50,IF($B18=45,'Bahan Pakan'!H$51,IF($B18=46,'Bahan Pakan'!H$52,IF($B18=47,'Bahan Pakan'!H$53,IF($B18=48,'Bahan Pakan'!H$54,IF($B18=49,'Bahan Pakan'!H$55,IF($B18=50,'Bahan Pakan'!H$56,0)))))))))))))))))))))))))))))))))))))))))))))))))) -> 0 | M18: =IF($B18=1,'Bahan Pakan'!I$7,IF($B18=2,'Bahan Pakan'!I$8,IF($B18=3,'Bahan Pakan'!I$9,IF($B18=4,'Bahan Pakan'!I$10,IF($B18=5,'Bahan Pakan'!I$11,IF($B18=6,'Bahan Pakan'!I$12,IF($B18=7,'Bahan Pakan'!I$13,IF($B18=8,'Bahan Pakan'!I$14,IF($B18=9,'Bahan Pakan'!I$15,IF($B18=10,'Bahan Pakan'!I$16,IF($B18=11,'Bahan Pakan'!I$17,IF($B18=12,'Bahan Pakan'!I$18,IF($B18=13,'Bahan Pakan'!I$19,IF($B18=14,'Bahan Pakan'!I$20,IF($B18=15,'Bahan Pakan'!I$21,IF($B18=16,'Bahan Pakan'!I$22,IF($B18=17,'Bahan Pakan'!I$23,IF($B18=18,'Bahan Pakan'!I$24,IF($B18=19,'Bahan Pakan'!I$25,IF($B18=20,'Bahan Pakan'!I$26,IF($B18=21,'Bahan Pakan'!I$27,IF($B18=22,'Bahan Pakan'!I$28,IF($B18=23,'Bahan Pakan'!I$29,IF($B18=24,'Bahan Pakan'!I$30,IF($B18=25,'Bahan Pakan'!I$31,IF($B18=26,'Bahan Pakan'!I$32,IF($B18=27,'Bahan Pakan'!I$33,IF($B18=28,'Bahan Pakan'!I$34,IF($B18=29,'Bahan Pakan'!I$35,IF($B18=30,'Bahan Pakan'!I$36,IF($B18=31,'Bahan Pakan'!I$37,IF($B18=32,'Bahan Pakan'!I$38,IF($B18=33,'Bahan Pakan'!I$39,IF($B18=34,'Bahan Pakan'!I$40,IF($B18=35,'Bahan Pakan'!I$41,IF($B18=36,'Bahan Pakan'!I$42,IF($B18=37,'Bahan Pakan'!I$43,IF($B18=38,'Bahan Pakan'!I$44,IF($B18=39,'Bahan Pakan'!I$45,IF($B18=40,'Bahan Pakan'!I$46,IF($B18=41,'Bahan Pakan'!I$47,IF($B18=42,'Bahan Pakan'!I$48,IF($B18=43,'Bahan Pakan'!I$49,IF($B18=44,'Bahan Pakan'!I$50,IF($B18=45,'Bahan Pakan'!I$51,IF($B18=46,'Bahan Pakan'!I$52,IF($B18=47,'Bahan Pakan'!I$53,IF($B18=48,'Bahan Pakan'!I$54,IF($B18=49,'Bahan Pakan'!I$55,IF($B18=50,'Bahan Pakan'!I$56,0)))))))))))))))))))))))))))))))))))))))))))))))))) -> 0 | N18: =IF($B18=1,'Bahan Pakan'!J$7,IF($B18=2,'Bahan Pakan'!J$8,IF($B18=3,'Bahan Pakan'!J$9,IF($B18=4,'Bahan Pakan'!J$10,IF($B18=5,'Bahan Pakan'!J$11,IF($B18=6,'Bahan Pakan'!J$12,IF($B18=7,'Bahan Pakan'!J$13,IF($B18=8,'Bahan Pakan'!J$14,IF($B18=9,'Bahan Pakan'!J$15,IF($B18=10,'Bahan Pakan'!J$16,IF($B18=11,'Bahan Pakan'!J$17,IF($B18=12,'Bahan Pakan'!J$18,IF($B18=13,'Bahan Pakan'!J$19,IF($B18=14,'Bahan Pakan'!J$20,IF($B18=15,'Bahan Pakan'!J$21,IF($B18=16,'Bahan Pakan'!J$22,IF($B18=17,'Bahan Pakan'!J$23,IF($B18=18,'Bahan Pakan'!J$24,IF($B18=19,'Bahan Pakan'!J$25,IF($B18=20,'Bahan Pakan'!J$26,IF($B18=21,'Bahan Pakan'!J$27,IF($B18=22,'Bahan Pakan'!J$28,IF($B18=23,'Bahan Pakan'!J$29,IF($B18=24,'Bahan Pakan'!J$30,IF($B18=25,'Bahan Pakan'!J$31,IF($B18=26,'Bahan Pakan'!J$32,IF($B18=27,'Bahan Pakan'!J$33,IF($B18=28,'Bahan Pakan'!J$34,IF($B18=29,'Bahan Pakan'!J$35,IF($B18=30,'Bahan Pakan'!J$36,IF($B18=31,'Bahan Pakan'!J$37,IF($B18=32,'Bahan Pakan'!J$38,IF($B18=33,'Bahan Pakan'!J$39,IF($B18=34,'Bahan Pakan'!J$40,IF($B18=35,'Bahan Pakan'!J$41,IF($B18=36,'Bahan Pakan'!J$42,IF($B18=37,'Bahan Pakan'!J$43,IF($B18=38,'Bahan Pakan'!J$44,IF($B18=39,'Bahan Pakan'!J$45,IF($B18=40,'Bahan Pakan'!J$46,IF($B18=41,'Bahan Pakan'!J$47,IF($B18=42,'Bahan Pakan'!J$48,IF($B18=43,'Bahan Pakan'!J$49,IF($B18=44,'Bahan Pakan'!J$50,IF($B18=45,'Bahan Pakan'!J$51,IF($B18=46,'Bahan Pakan'!J$52,IF($B18=47,'Bahan Pakan'!J$53,IF($B18=48,'Bahan Pakan'!J$54,IF($B18=49,'Bahan Pakan'!J$55,IF($B18=50,'Bahan Pakan'!J$56,0)))))))))))))))))))))))))))))))))))))))))))))))))) -> 0 | O18: =IF($B18=1,'Bahan Pakan'!K$7,IF($B18=2,'Bahan Pakan'!K$8,IF($B18=3,'Bahan Pakan'!K$9,IF($B18=4,'Bahan Pakan'!K$10,IF($B18=5,'Bahan Pakan'!K$11,IF($B18=6,'Bahan Pakan'!K$12,IF($B18=7,'Bahan Pakan'!K$13,IF($B18=8,'Bahan Pakan'!K$14,IF($B18=9,'Bahan Pakan'!K$15,IF($B18=10,'Bahan Pakan'!K$16,IF($B18=11,'Bahan Pakan'!K$17,IF($B18=12,'Bahan Pakan'!K$18,IF($B18=13,'Bahan Pakan'!K$19,IF($B18=14,'Bahan Pakan'!K$20,IF($B18=15,'Bahan Pakan'!K$21,IF($B18=16,'Bahan Pakan'!K$22,IF($B18=17,'Bahan Pakan'!K$23,IF($B18=18,'Bahan Pakan'!K$24,IF($B18=19,'Bahan Pakan'!K$25,IF($B18=20,'Bahan Pakan'!K$26,IF($B18=21,'Bahan Pakan'!K$27,IF($B18=22,'Bahan Pakan'!K$28,IF($B18=23,'Bahan Pakan'!K$29,IF($B18=24,'Bahan Pakan'!K$30,IF($B18=25,'Bahan Pakan'!K$31,IF($B18=26,'Bahan Pakan'!K$32,IF($B18=27,'Bahan Pakan'!K$33,IF($B18=28,'Bahan Pakan'!K$34,IF($B18=29,'Bahan Pakan'!K$35,IF($B18=30,'Bahan Pakan'!K$36,IF($B18=31,'Bahan Pakan'!K$37,IF($B18=32,'Bahan Pakan'!K$38,IF($B18=33,'Bahan Pakan'!K$39,IF($B18=34,'Bahan Pakan'!K$40,IF($B18=35,'Bahan Pakan'!K$41,IF($B18=36,'Bahan Pakan'!K$42,IF($B18=37,'Bahan Pakan'!K$43,IF($B18=38,'Bahan Pakan'!K$44,IF($B18=39,'Bahan Pakan'!K$45,IF($B18=40,'Bahan Pakan'!K$46,IF($B18=41,'Bahan Pakan'!K$47,IF($B18=42,'Bahan Pakan'!K$48,IF($B18=43,'Bahan Pakan'!K$49,IF($B18=44,'Bahan Pakan'!K$50,IF($B18=45,'Bahan Pakan'!K$51,IF($B18=46,'Bahan Pakan'!K$52,IF($B18=47,'Bahan Pakan'!K$53,IF($B18=48,'Bahan Pakan'!K$54,IF($B18=49,'Bahan Pakan'!K$55,IF($B18=50,'Bahan Pakan'!K$56,0)))))))))))))))))))))))))))))))))))))))))))))))))) -> 0 | P18: =IF($B18=1,'Bahan Pakan'!L$7,IF($B18=2,'Bahan Pakan'!L$8,IF($B18=3,'Bahan Pakan'!L$9,IF($B18=4,'Bahan Pakan'!L$10,IF($B18=5,'Bahan Pakan'!L$11,IF($B18=6,'Bahan Pakan'!L$12,IF($B18=7,'Bahan Pakan'!L$13,IF($B18=8,'Bahan Pakan'!L$14,IF($B18=9,'Bahan Pakan'!L$15,IF($B18=10,'Bahan Pakan'!L$16,IF($B18=11,'Bahan Pakan'!L$17,IF($B18=12,'Bahan Pakan'!L$18,IF($B18=13,'Bahan Pakan'!L$19,IF($B18=14,'Bahan Pakan'!L$20,IF($B18=15,'Bahan Pakan'!L$21,IF($B18=16,'Bahan Pakan'!L$22,IF($B18=17,'Bahan Pakan'!L$23,IF($B18=18,'Bahan Pakan'!L$24,IF($B18=19,'Bahan Pakan'!L$25,IF($B18=20,'Bahan Pakan'!L$26,IF($B18=21,'Bahan Pakan'!L$27,IF($B18=22,'Bahan Pakan'!L$28,IF($B18=23,'Bahan Pakan'!L$29,IF($B18=24,'Bahan Pakan'!L$30,IF($B18=25,'Bahan Pakan'!L$31,IF($B18=26,'Bahan Pakan'!L$32,IF($B18=27,'Bahan Pakan'!L$33,IF($B18=28,'Bahan Pakan'!L$34,IF($B18=29,'Bahan Pakan'!L$35,IF($B18=30,'Bahan Pakan'!L$36,IF($B18=31,'Bahan Pakan'!L$37,IF($B18=32,'Bahan Pakan'!L$38,IF($B18=33,'Bahan Pakan'!L$39,IF($B18=34,'Bahan Pakan'!L$40,IF($B18=35,'Bahan Pakan'!L$41,IF($B18=36,'Bahan Pakan'!L$42,IF($B18=37,'Bahan Pakan'!L$43,IF($B18=38,'Bahan Pakan'!L$44,IF($B18=39,'Bahan Pakan'!L$45,IF($B18=40,'Bahan Pakan'!L$46,IF($B18=41,'Bahan Pakan'!L$47,IF($B18=42,'Bahan Pakan'!L$48,IF($B18=43,'Bahan Pakan'!L$49,IF($B18=44,'Bahan Pakan'!L$50,IF($B18=45,'Bahan Pakan'!L$51,IF($B18=46,'Bahan Pakan'!L$52,IF($B18=47,'Bahan Pakan'!L$53,IF($B18=48,'Bahan Pakan'!L$54,IF($B18=49,'Bahan Pakan'!L$55,IF($B18=50,'Bahan Pakan'!L$56,0)))))))))))))))))))))))))))))))))))))))))))))))))) -> 0 | Q18: =IF($B18=1,'Bahan Pakan'!M$7,IF($B18=2,'Bahan Pakan'!M$8,IF($B18=3,'Bahan Pakan'!M$9,IF($B18=4,'Bahan Pakan'!M$10,IF($B18=5,'Bahan Pakan'!M$11,IF($B18=6,'Bahan Pakan'!M$12,IF($B18=7,'Bahan Pakan'!M$13,IF($B18=8,'Bahan Pakan'!M$14,IF($B18=9,'Bahan Pakan'!M$15,IF($B18=10,'Bahan Pakan'!M$16,IF($B18=11,'Bahan Pakan'!M$17,IF($B18=12,'Bahan Pakan'!M$18,IF($B18=13,'Bahan Pakan'!M$19,IF($B18=14,'Bahan Pakan'!M$20,IF($B18=15,'Bahan Pakan'!M$21,IF($B18=16,'Bahan Pakan'!M$22,IF($B18=17,'Bahan Pakan'!M$23,IF($B18=18,'Bahan Pakan'!M$24,IF($B18=19,'Bahan Pakan'!M$25,IF($B18=20,'Bahan Pakan'!M$26,IF($B18=21,'Bahan Pakan'!M$27,IF($B18=22,'Bahan Pakan'!M$28,IF($B18=23,'Bahan Pakan'!M$29,IF($B18=24,'Bahan Pakan'!M$30,IF($B18=25,'Bahan Pakan'!M$31,IF($B18=26,'Bahan Pakan'!M$32,IF($B18=27,'Bahan Pakan'!M$33,IF($B18=28,'Bahan Pakan'!M$34,IF($B18=29,'Bahan Pakan'!M$35,IF($B18=30,'Bahan Pakan'!M$36,IF($B18=31,'Bahan Pakan'!M$37,IF($B18=32,'Bahan Pakan'!M$38,IF($B18=33,'Bahan Pakan'!M$39,IF($B18=34,'Bahan Pakan'!M$40,IF($B18=35,'Bahan Pakan'!M$41,IF($B18=36,'Bahan Pakan'!M$42,IF($B18=37,'Bahan Pakan'!M$43,IF($B18=38,'Bahan Pakan'!M$44,IF($B18=39,'Bahan Pakan'!M$45,IF($B18=40,'Bahan Pakan'!M$46,IF($B18=41,'Bahan Pakan'!M$47,IF($B18=42,'Bahan Pakan'!M$48,IF($B18=43,'Bahan Pakan'!M$49,IF($B18=44,'Bahan Pakan'!M$50,IF($B18=45,'Bahan Pakan'!M$51,IF($B18=46,'Bahan Pakan'!M$52,IF($B18=47,'Bahan Pakan'!M$53,IF($B18=48,'Bahan Pakan'!M$54,IF($B18=49,'Bahan Pakan'!M$55,IF($B18=50,'Bahan Pakan'!M$56,0)))))))))))))))))))))))))))))))))))))))))))))))))) -> 0 | R18: =IF($B18=1,'Bahan Pakan'!N$7,IF($B18=2,'Bahan Pakan'!N$8,IF($B18=3,'Bahan Pakan'!N$9,IF($B18=4,'Bahan Pakan'!N$10,IF($B18=5,'Bahan Pakan'!N$11,IF($B18=6,'Bahan Pakan'!N$12,IF($B18=7,'Bahan Pakan'!N$13,IF($B18=8,'Bahan Pakan'!N$14,IF($B18=9,'Bahan Pakan'!N$15,IF($B18=10,'Bahan Pakan'!N$16,IF($B18=11,'Bahan Pakan'!N$17,IF($B18=12,'Bahan Pakan'!N$18,IF($B18=13,'Bahan Pakan'!N$19,IF($B18=14,'Bahan Pakan'!N$20,IF($B18=15,'Bahan Pakan'!N$21,IF($B18=16,'Bahan Pakan'!N$22,IF($B18=17,'Bahan Pakan'!N$23,IF($B18=18,'Bahan Pakan'!N$24,IF($B18=19,'Bahan Pakan'!N$25,IF($B18=20,'Bahan Pakan'!N$26,IF($B18=21,'Bahan Pakan'!N$27,IF($B18=22,'Bahan Pakan'!N$28,IF($B18=23,'Bahan Pakan'!N$29,IF($B18=24,'Bahan Pakan'!N$30,IF($B18=25,'Bahan Pakan'!N$31,IF($B18=26,'Bahan Pakan'!N$32,IF($B18=27,'Bahan Pakan'!N$33,IF($B18=28,'Bahan Pakan'!N$34,IF($B18=29,'Bahan Pakan'!N$35,IF($B18=30,'Bahan Pakan'!N$36,IF($B18=31,'Bahan Pakan'!N$37,IF($B18=32,'Bahan Pakan'!N$38,IF($B18=33,'Bahan Pakan'!N$39,IF($B18=34,'Bahan Pakan'!N$40,IF($B18=35,'Bahan Pakan'!N$41,IF($B18=36,'Bahan Pakan'!N$42,IF($B18=37,'Bahan Pakan'!N$43,IF($B18=38,'Bahan Pakan'!N$44,IF($B18=39,'Bahan Pakan'!N$45,IF($B18=40,'Bahan Pakan'!N$46,IF($B18=41,'Bahan Pakan'!N$47,IF($B18=42,'Bahan Pakan'!N$48,IF($B18=43,'Bahan Pakan'!N$49,IF($B18=44,'Bahan Pakan'!N$50,IF($B18=45,'Bahan Pakan'!N$51,IF($B18=46,'Bahan Pakan'!N$52,IF($B18=47,'Bahan Pakan'!N$53,IF($B18=48,'Bahan Pakan'!N$54,IF($B18=49,'Bahan Pakan'!N$55,IF($B18=50,'Bahan Pakan'!N$56,0)))))))))))))))))))))))))))))))))))))))))))))))))) -> 0 | S18: =IF($B18=1,'Bahan Pakan'!O$7,IF($B18=2,'Bahan Pakan'!O$8,IF($B18=3,'Bahan Pakan'!O$9,IF($B18=4,'Bahan Pakan'!O$10,IF($B18=5,'Bahan Pakan'!O$11,IF($B18=6,'Bahan Pakan'!O$12,IF($B18=7,'Bahan Pakan'!O$13,IF($B18=8,'Bahan Pakan'!O$14,IF($B18=9,'Bahan Pakan'!O$15,IF($B18=10,'Bahan Pakan'!O$16,IF($B18=11,'Bahan Pakan'!O$17,IF($B18=12,'Bahan Pakan'!O$18,IF($B18=13,'Bahan Pakan'!O$19,IF($B18=14,'Bahan Pakan'!O$20,IF($B18=15,'Bahan Pakan'!O$21,IF($B18=16,'Bahan Pakan'!O$22,IF($B18=17,'Bahan Pakan'!O$23,IF($B18=18,'Bahan Pakan'!O$24,IF($B18=19,'Bahan Pakan'!O$25,IF($B18=20,'Bahan Pakan'!O$26,IF($B18=21,'Bahan Pakan'!O$27,IF($B18=22,'Bahan Pakan'!O$28,IF($B18=23,'Bahan Pakan'!O$29,IF($B18=24,'Bahan Pakan'!O$30,IF($B18=25,'Bahan Pakan'!O$31,IF($B18=26,'Bahan Pakan'!O$32,IF($B18=27,'Bahan Pakan'!O$33,IF($B18=28,'Bahan Pakan'!O$34,IF($B18=29,'Bahan Pakan'!O$35,IF($B18=30,'Bahan Pakan'!O$36,IF($B18=31,'Bahan Pakan'!O$37,IF($B18=32,'Bahan Pakan'!O$38,IF($B18=33,'Bahan Pakan'!O$39,IF($B18=34,'Bahan Pakan'!O$40,IF($B18=35,'Bahan Pakan'!O$41,IF($B18=36,'Bahan Pakan'!O$42,IF($B18=37,'Bahan Pakan'!O$43,IF($B18=38,'Bahan Pakan'!O$44,IF($B18=39,'Bahan Pakan'!O$45,IF($B18=40,'Bahan Pakan'!O$46,IF($B18=41,'Bahan Pakan'!O$47,IF($B18=42,'Bahan Pakan'!O$48,IF($B18=43,'Bahan Pakan'!O$49,IF($B18=44,'Bahan Pakan'!O$50,IF($B18=45,'Bahan Pakan'!O$51,IF($B18=46,'Bahan Pakan'!O$52,IF($B18=47,'Bahan Pakan'!O$53,IF($B18=48,'Bahan Pakan'!O$54,IF($B18=49,'Bahan Pakan'!O$55,IF($B18=50,'Bahan Pakan'!O$56,0)))))))))))))))))))))))))))))))))))))))))))))))))) -> 0 | T18: =IF($B18=1,'Bahan Pakan'!P$7,IF($B18=2,'Bahan Pakan'!P$8,IF($B18=3,'Bahan Pakan'!P$9,IF($B18=4,'Bahan Pakan'!P$10,IF($B18=5,'Bahan Pakan'!P$11,IF($B18=6,'Bahan Pakan'!P$12,IF($B18=7,'Bahan Pakan'!P$13,IF($B18=8,'Bahan Pakan'!P$14,IF($B18=9,'Bahan Pakan'!P$15,IF($B18=10,'Bahan Pakan'!P$16,IF($B18=11,'Bahan Pakan'!P$17,IF($B18=12,'Bahan Pakan'!P$18,IF($B18=13,'Bahan Pakan'!P$19,IF($B18=14,'Bahan Pakan'!P$20,IF($B18=15,'Bahan Pakan'!P$21,IF($B18=16,'Bahan Pakan'!P$22,IF($B18=17,'Bahan Pakan'!P$23,IF($B18=18,'Bahan Pakan'!P$24,IF($B18=19,'Bahan Pakan'!P$25,IF($B18=20,'Bahan Pakan'!P$26,IF($B18=21,'Bahan Pakan'!P$27,IF($B18=22,'Bahan Pakan'!P$28,IF($B18=23,'Bahan Pakan'!P$29,IF($B18=24,'Bahan Pakan'!P$30,IF($B18=25,'Bahan Pakan'!P$31,IF($B18=26,'Bahan Pakan'!P$32,IF($B18=27,'Bahan Pakan'!P$33,IF($B18=28,'Bahan Pakan'!P$34,IF($B18=29,'Bahan Pakan'!P$35,IF($B18=30,'Bahan Pakan'!P$36,IF($B18=31,'Bahan Pakan'!P$37,IF($B18=32,'Bahan Pakan'!P$38,IF($B18=33,'Bahan Pakan'!P$39,IF($B18=34,'Bahan Pakan'!P$40,IF($B18=35,'Bahan Pakan'!P$41,IF($B18=36,'Bahan Pakan'!P$42,IF($B18=37,'Bahan Pakan'!P$43,IF($B18=38,'Bahan Pakan'!P$44,IF($B18=39,'Bahan Pakan'!P$45,IF($B18=40,'Bahan Pakan'!P$46,IF($B18=41,'Bahan Pakan'!P$47,IF($B18=42,'Bahan Pakan'!P$48,IF($B18=43,'Bahan Pakan'!P$49,IF($B18=44,'Bahan Pakan'!P$50,IF($B18=45,'Bahan Pakan'!P$51,IF($B18=46,'Bahan Pakan'!P$52,IF($B18=47,'Bahan Pakan'!P$53,IF($B18=48,'Bahan Pakan'!P$54,IF($B18=49,'Bahan Pakan'!P$55,IF($B18=50,'Bahan Pakan'!P$56,0)))))))))))))))))))))))))))))))))))))))))))))))))) -> 0
B19: =IF($D19='Bahan Pakan'!D$7,1,IF($D19='Bahan Pakan'!D$8,2,IF($D19='Bahan Pakan'!D$9,3,IF($D19='Bahan Pakan'!D$10,4,IF($D19='Bahan Pakan'!D$11,5,IF($D19='Bahan Pakan'!D$12,6,IF($D19='Bahan Pakan'!D$13,7,IF($D19='Bahan Pakan'!D$14,8,IF($D19='Bahan Pakan'!D$15,9,IF($D19='Bahan Pakan'!D$16,10,IF($D19='Bahan Pakan'!D$17,11,IF($D19='Bahan Pakan'!D$18,12,IF($D19='Bahan Pakan'!D$19,13,IF($D19='Bahan Pakan'!D$20,14,IF($D19='Bahan Pakan'!D$21,15,IF($D19='Bahan Pakan'!D$22,16,IF($D19='Bahan Pakan'!D$23,17,IF($D19='Bahan Pakan'!D$24,18,IF($D19='Bahan Pakan'!D$25,19,IF($D19='Bahan Pakan'!D$26,20,IF($D19='Bahan Pakan'!D$27,21,IF($D19='Bahan Pakan'!D$28,22,IF($D19='Bahan Pakan'!D$29,23,IF($D19='Bahan Pakan'!D$30,24,IF($D19='Bahan Pakan'!D$31,25,IF($D19='Bahan Pakan'!D$32,26,IF($D19='Bahan Pakan'!D$33,27,IF($D19='Bahan Pakan'!D$34,28,IF($D19='Bahan Pakan'!D$35,29,IF($D19='Bahan Pakan'!D$36,30,IF($D19='Bahan Pakan'!D$37,31,IF($D19='Bahan Pakan'!D$38,32,IF($D19='Bahan Pakan'!D$39,33,IF($D19='Bahan Pakan'!D$40,34,IF($D19='Bahan Pakan'!D$41,35,IF($D19='Bahan Pakan'!D$42,36,IF($D19='Bahan Pakan'!D$43,37,IF($D19='Bahan Pakan'!D$44,38,IF($D19='Bahan Pakan'!D$45,39,IF($D19='Bahan Pakan'!D$46,40,IF($D19='Bahan Pakan'!D$47,41,IF($D19='Bahan Pakan'!D$48,42,IF($D19='Bahan Pakan'!D$49,43,IF($D19='Bahan Pakan'!D$50,44,IF($D19='Bahan Pakan'!D$51,45,IF($D19='Bahan Pakan'!D$52,46,IF($D19='Bahan Pakan'!D$53,47,IF($D19='Bahan Pakan'!D$54,48,IF($D19='Bahan Pakan'!D$55,49,IF($D19='Bahan Pakan'!D$56,50,0)))))))))))))))))))))))))))))))))))))))))))))))))) -> 44 | C19: 13 | E19: =IF($B19=1,'Bahan Pakan'!E$7,IF($B19=2,'Bahan Pakan'!E$8,IF($B19=3,'Bahan Pakan'!E$9,IF($B19=4,'Bahan Pakan'!E$10,IF($B19=5,'Bahan Pakan'!E$11,IF($B19=6,'Bahan Pakan'!E$12,IF($B19=7,'Bahan Pakan'!E$13,IF($B19=8,'Bahan Pakan'!E$14,IF($B19=9,'Bahan Pakan'!E$15,IF($B19=10,'Bahan Pakan'!E$16,IF($B19=11,'Bahan Pakan'!E$17,IF($B19=12,'Bahan Pakan'!E$18,IF($B19=13,'Bahan Pakan'!E$19,IF($B19=14,'Bahan Pakan'!E$20,IF($B19=15,'Bahan Pakan'!E$21,IF($B19=16,'Bahan Pakan'!E$22,IF($B19=17,'Bahan Pakan'!E$23,IF($B19=18,'Bahan Pakan'!E$24,IF($B19=19,'Bahan Pakan'!E$25,IF($B19=20,'Bahan Pakan'!E$26,IF($B19=21,'Bahan Pakan'!E$27,IF($B19=22,'Bahan Pakan'!E$28,IF($B19=23,'Bahan Pakan'!E$29,IF($B19=24,'Bahan Pakan'!E$30,IF($B19=25,'Bahan Pakan'!E$31,IF($B19=26,'Bahan Pakan'!E$32,IF($B19=27,'Bahan Pakan'!E$33,IF($B19=28,'Bahan Pakan'!E$34,IF($B19=29,'Bahan Pakan'!E$35,IF($B19=30,'Bahan Pakan'!E$36,IF($B19=31,'Bahan Pakan'!E$37,IF($B19=32,'Bahan Pakan'!E$38,IF($B19=33,'Bahan Pakan'!E$39,IF($B19=34,'Bahan Pakan'!E$40,IF($B19=35,'Bahan Pakan'!E$41,IF($B19=36,'Bahan Pakan'!E$42,IF($B19=37,'Bahan Pakan'!E$43,IF($B19=38,'Bahan Pakan'!E$44,IF($B19=39,'Bahan Pakan'!E$45,IF($B19=40,'Bahan Pakan'!E$46,IF($B19=41,'Bahan Pakan'!E$47,IF($B19=42,'Bahan Pakan'!E$48,IF($B19=43,'Bahan Pakan'!E$49,IF($B19=44,'Bahan Pakan'!E$50,IF($B19=45,'Bahan Pakan'!E$51,IF($B19=46,'Bahan Pakan'!E$52,IF($B19=47,'Bahan Pakan'!E$53,IF($B19=48,'Bahan Pakan'!E$54,IF($B19=49,'Bahan Pakan'!E$55,IF($B19=50,'Bahan Pakan'!E$56,0)))))))))))))))))))))))))))))))))))))))))))))))))) -> 0 | F19: =IF($B19=1,'Bahan Pakan'!F$7,IF($B19=2,'Bahan Pakan'!F$8,IF($B19=3,'Bahan Pakan'!F$9,IF($B19=4,'Bahan Pakan'!F$10,IF($B19=5,'Bahan Pakan'!F$11,IF($B19=6,'Bahan Pakan'!F$12,IF($B19=7,'Bahan Pakan'!F$13,IF($B19=8,'Bahan Pakan'!F$14,IF($B19=9,'Bahan Pakan'!F$15,IF($B19=10,'Bahan Pakan'!F$16,IF($B19=11,'Bahan Pakan'!F$17,IF($B19=12,'Bahan Pakan'!F$18,IF($B19=13,'Bahan Pakan'!F$19,IF($B19=14,'Bahan Pakan'!F$20,IF($B19=15,'Bahan Pakan'!F$21,IF($B19=16,'Bahan Pakan'!F$22,IF($B19=17,'Bahan Pakan'!F$23,IF($B19=18,'Bahan Pakan'!F$24,IF($B19=19,'Bahan Pakan'!F$25,IF($B19=20,'Bahan Pakan'!F$26,IF($B19=21,'Bahan Pakan'!F$27,IF($B19=22,'Bahan Pakan'!F$28,IF($B19=23,'Bahan Pakan'!F$29,IF($B19=24,'Bahan Pakan'!F$30,IF($B19=25,'Bahan Pakan'!F$31,IF($B19=26,'Bahan Pakan'!F$32,IF($B19=27,'Bahan Pakan'!F$33,IF($B19=28,'Bahan Pakan'!F$34,IF($B19=29,'Bahan Pakan'!F$35,IF($B19=30,'Bahan Pakan'!F$36,IF($B19=31,'Bahan Pakan'!F$37,IF($B19=32,'Bahan Pakan'!F$38,IF($B19=33,'Bahan Pakan'!F$39,IF($B19=34,'Bahan Pakan'!F$40,IF($B19=35,'Bahan Pakan'!F$41,IF($B19=36,'Bahan Pakan'!F$42,IF($B19=37,'Bahan Pakan'!F$43,IF($B19=38,'Bahan Pakan'!F$44,IF($B19=39,'Bahan Pakan'!F$45,IF($B19=40,'Bahan Pakan'!F$46,IF($B19=41,'Bahan Pakan'!F$47,IF($B19=42,'Bahan Pakan'!F$48,IF($B19=43,'Bahan Pakan'!F$49,IF($B19=44,'Bahan Pakan'!F$50,IF($B19=45,'Bahan Pakan'!F$51,IF($B19=46,'Bahan Pakan'!F$52,IF($B19=47,'Bahan Pakan'!F$53,IF($B19=48,'Bahan Pakan'!F$54,IF($B19=49,'Bahan Pakan'!F$55,IF($B19=50,'Bahan Pakan'!F$56,0)))))))))))))))))))))))))))))))))))))))))))))))))) -> 0 | H19: 0 | I19: 0 | J19: 0 | K19: =IF($B19=1,'Bahan Pakan'!G$7,IF($B19=2,'Bahan Pakan'!G$8,IF($B19=3,'Bahan Pakan'!G$9,IF($B19=4,'Bahan Pakan'!G$10,IF($B19=5,'Bahan Pakan'!G$11,IF($B19=6,'Bahan Pakan'!G$12,IF($B19=7,'Bahan Pakan'!G$13,IF($B19=8,'Bahan Pakan'!G$14,IF($B19=9,'Bahan Pakan'!G$15,IF($B19=10,'Bahan Pakan'!G$16,IF($B19=11,'Bahan Pakan'!G$17,IF($B19=12,'Bahan Pakan'!G$18,IF($B19=13,'Bahan Pakan'!G$19,IF($B19=14,'Bahan Pakan'!G$20,IF($B19=15,'Bahan Pakan'!G$21,IF($B19=16,'Bahan Pakan'!G$22,IF($B19=17,'Bahan Pakan'!G$23,IF($B19=18,'Bahan Pakan'!G$24,IF($B19=19,'Bahan Pakan'!G$25,IF($B19=20,'Bahan Pakan'!G$26,IF($B19=21,'Bahan Pakan'!G$27,IF($B19=22,'Bahan Pakan'!G$28,IF($B19=23,'Bahan Pakan'!G$29,IF($B19=24,'Bahan Pakan'!G$30,IF($B19=25,'Bahan Pakan'!G$31,IF($B19=26,'Bahan Pakan'!G$32,IF($B19=27,'Bahan Pakan'!G$33,IF($B19=28,'Bahan Pakan'!G$34,IF($B19=29,'Bahan Pakan'!G$35,IF($B19=30,'Bahan Pakan'!G$36,IF($B19=31,'Bahan Pakan'!G$37,IF($B19=32,'Bahan Pakan'!G$38,IF($B19=33,'Bahan Pakan'!G$39,IF($B19=34,'Bahan Pakan'!G$40,IF($B19=35,'Bahan Pakan'!G$41,IF($B19=36,'Bahan Pakan'!G$42,IF($B19=37,'Bahan Pakan'!G$43,IF($B19=38,'Bahan Pakan'!G$44,IF($B19=39,'Bahan Pakan'!G$45,IF($B19=40,'Bahan Pakan'!G$46,IF($B19=41,'Bahan Pakan'!G$47,IF($B19=42,'Bahan Pakan'!G$48,IF($B19=43,'Bahan Pakan'!G$49,IF($B19=44,'Bahan Pakan'!G$50,IF($B19=45,'Bahan Pakan'!G$51,IF($B19=46,'Bahan Pakan'!G$52,IF($B19=47,'Bahan Pakan'!G$53,IF($B19=48,'Bahan Pakan'!G$54,IF($B19=49,'Bahan Pakan'!G$55,IF($B19=50,'Bahan Pakan'!G$56,0)))))))))))))))))))))))))))))))))))))))))))))))))) -> 0 | L19: =IF($B19=1,'Bahan Pakan'!H$7,IF($B19=2,'Bahan Pakan'!H$8,IF($B19=3,'Bahan Pakan'!H$9,IF($B19=4,'Bahan Pakan'!H$10,IF($B19=5,'Bahan Pakan'!H$11,IF($B19=6,'Bahan Pakan'!H$12,IF($B19=7,'Bahan Pakan'!H$13,IF($B19=8,'Bahan Pakan'!H$14,IF($B19=9,'Bahan Pakan'!H$15,IF($B19=10,'Bahan Pakan'!H$16,IF($B19=11,'Bahan Pakan'!H$17,IF($B19=12,'Bahan Pakan'!H$18,IF($B19=13,'Bahan Pakan'!H$19,IF($B19=14,'Bahan Pakan'!H$20,IF($B19=15,'Bahan Pakan'!H$21,IF($B19=16,'Bahan Pakan'!H$22,IF($B19=17,'Bahan Pakan'!H$23,IF($B19=18,'Bahan Pakan'!H$24,IF($B19=19,'Bahan Pakan'!H$25,IF($B19=20,'Bahan Pakan'!H$26,IF($B19=21,'Bahan Pakan'!H$27,IF($B19=22,'Bahan Pakan'!H$28,IF($B19=23,'Bahan Pakan'!H$29,IF($B19=24,'Bahan Pakan'!H$30,IF($B19=25,'Bahan Pakan'!H$31,IF($B19=26,'Bahan Pakan'!H$32,IF($B19=27,'Bahan Pakan'!H$33,IF($B19=28,'Bahan Pakan'!H$34,IF($B19=29,'Bahan Pakan'!H$35,IF($B19=30,'Bahan Pakan'!H$36,IF($B19=31,'Bahan Pakan'!H$37,IF($B19=32,'Bahan Pakan'!H$38,IF($B19=33,'Bahan Pakan'!H$39,IF($B19=34,'Bahan Pakan'!H$40,IF($B19=35,'Bahan Pakan'!H$41,IF($B19=36,'Bahan Pakan'!H$42,IF($B19=37,'Bahan Pakan'!H$43,IF($B19=38,'Bahan Pakan'!H$44,IF($B19=39,'Bahan Pakan'!H$45,IF($B19=40,'Bahan Pakan'!H$46,IF($B19=41,'Bahan Pakan'!H$47,IF($B19=42,'Bahan Pakan'!H$48,IF($B19=43,'Bahan Pakan'!H$49,IF($B19=44,'Bahan Pakan'!H$50,IF($B19=45,'Bahan Pakan'!H$51,IF($B19=46,'Bahan Pakan'!H$52,IF($B19=47,'Bahan Pakan'!H$53,IF($B19=48,'Bahan Pakan'!H$54,IF($B19=49,'Bahan Pakan'!H$55,IF($B19=50,'Bahan Pakan'!H$56,0)))))))))))))))))))))))))))))))))))))))))))))))))) -> 0 | M19: =IF($B19=1,'Bahan Pakan'!I$7,IF($B19=2,'Bahan Pakan'!I$8,IF($B19=3,'Bahan Pakan'!I$9,IF($B19=4,'Bahan Pakan'!I$10,IF($B19=5,'Bahan Pakan'!I$11,IF($B19=6,'Bahan Pakan'!I$12,IF($B19=7,'Bahan Pakan'!I$13,IF($B19=8,'Bahan Pakan'!I$14,IF($B19=9,'Bahan Pakan'!I$15,IF($B19=10,'Bahan Pakan'!I$16,IF($B19=11,'Bahan Pakan'!I$17,IF($B19=12,'Bahan Pakan'!I$18,IF($B19=13,'Bahan Pakan'!I$19,IF($B19=14,'Bahan Pakan'!I$20,IF($B19=15,'Bahan Pakan'!I$21,IF($B19=16,'Bahan Pakan'!I$22,IF($B19=17,'Bahan Pakan'!I$23,IF($B19=18,'Bahan Pakan'!I$24,IF($B19=19,'Bahan Pakan'!I$25,IF($B19=20,'Bahan Pakan'!I$26,IF($B19=21,'Bahan Pakan'!I$27,IF($B19=22,'Bahan Pakan'!I$28,IF($B19=23,'Bahan Pakan'!I$29,IF($B19=24,'Bahan Pakan'!I$30,IF($B19=25,'Bahan Pakan'!I$31,IF($B19=26,'Bahan Pakan'!I$32,IF($B19=27,'Bahan Pakan'!I$33,IF($B19=28,'Bahan Pakan'!I$34,IF($B19=29,'Bahan Pakan'!I$35,IF($B19=30,'Bahan Pakan'!I$36,IF($B19=31,'Bahan Pakan'!I$37,IF($B19=32,'Bahan Pakan'!I$38,IF($B19=33,'Bahan Pakan'!I$39,IF($B19=34,'Bahan Pakan'!I$40,IF($B19=35,'Bahan Pakan'!I$41,IF($B19=36,'Bahan Pakan'!I$42,IF($B19=37,'Bahan Pakan'!I$43,IF($B19=38,'Bahan Pakan'!I$44,IF($B19=39,'Bahan Pakan'!I$45,IF($B19=40,'Bahan Pakan'!I$46,IF($B19=41,'Bahan Pakan'!I$47,IF($B19=42,'Bahan Pakan'!I$48,IF($B19=43,'Bahan Pakan'!I$49,IF($B19=44,'Bahan Pakan'!I$50,IF($B19=45,'Bahan Pakan'!I$51,IF($B19=46,'Bahan Pakan'!I$52,IF($B19=47,'Bahan Pakan'!I$53,IF($B19=48,'Bahan Pakan'!I$54,IF($B19=49,'Bahan Pakan'!I$55,IF($B19=50,'Bahan Pakan'!I$56,0)))))))))))))))))))))))))))))))))))))))))))))))))) -> 0 | N19: =IF($B19=1,'Bahan Pakan'!J$7,IF($B19=2,'Bahan Pakan'!J$8,IF($B19=3,'Bahan Pakan'!J$9,IF($B19=4,'Bahan Pakan'!J$10,IF($B19=5,'Bahan Pakan'!J$11,IF($B19=6,'Bahan Pakan'!J$12,IF($B19=7,'Bahan Pakan'!J$13,IF($B19=8,'Bahan Pakan'!J$14,IF($B19=9,'Bahan Pakan'!J$15,IF($B19=10,'Bahan Pakan'!J$16,IF($B19=11,'Bahan Pakan'!J$17,IF($B19=12,'Bahan Pakan'!J$18,IF($B19=13,'Bahan Pakan'!J$19,IF($B19=14,'Bahan Pakan'!J$20,IF($B19=15,'Bahan Pakan'!J$21,IF($B19=16,'Bahan Pakan'!J$22,IF($B19=17,'Bahan Pakan'!J$23,IF($B19=18,'Bahan Pakan'!J$24,IF($B19=19,'Bahan Pakan'!J$25,IF($B19=20,'Bahan Pakan'!J$26,IF($B19=21,'Bahan Pakan'!J$27,IF($B19=22,'Bahan Pakan'!J$28,IF($B19=23,'Bahan Pakan'!J$29,IF($B19=24,'Bahan Pakan'!J$30,IF($B19=25,'Bahan Pakan'!J$31,IF($B19=26,'Bahan Pakan'!J$32,IF($B19=27,'Bahan Pakan'!J$33,IF($B19=28,'Bahan Pakan'!J$34,IF($B19=29,'Bahan Pakan'!J$35,IF($B19=30,'Bahan Pakan'!J$36,IF($B19=31,'Bahan Pakan'!J$37,IF($B19=32,'Bahan Pakan'!J$38,IF($B19=33,'Bahan Pakan'!J$39,IF($B19=34,'Bahan Pakan'!J$40,IF($B19=35,'Bahan Pakan'!J$41,IF($B19=36,'Bahan Pakan'!J$42,IF($B19=37,'Bahan Pakan'!J$43,IF($B19=38,'Bahan Pakan'!J$44,IF($B19=39,'Bahan Pakan'!J$45,IF($B19=40,'Bahan Pakan'!J$46,IF($B19=41,'Bahan Pakan'!J$47,IF($B19=42,'Bahan Pakan'!J$48,IF($B19=43,'Bahan Pakan'!J$49,IF($B19=44,'Bahan Pakan'!J$50,IF($B19=45,'Bahan Pakan'!J$51,IF($B19=46,'Bahan Pakan'!J$52,IF($B19=47,'Bahan Pakan'!J$53,IF($B19=48,'Bahan Pakan'!J$54,IF($B19=49,'Bahan Pakan'!J$55,IF($B19=50,'Bahan Pakan'!J$56,0)))))))))))))))))))))))))))))))))))))))))))))))))) -> 0 | O19: =IF($B19=1,'Bahan Pakan'!K$7,IF($B19=2,'Bahan Pakan'!K$8,IF($B19=3,'Bahan Pakan'!K$9,IF($B19=4,'Bahan Pakan'!K$10,IF($B19=5,'Bahan Pakan'!K$11,IF($B19=6,'Bahan Pakan'!K$12,IF($B19=7,'Bahan Pakan'!K$13,IF($B19=8,'Bahan Pakan'!K$14,IF($B19=9,'Bahan Pakan'!K$15,IF($B19=10,'Bahan Pakan'!K$16,IF($B19=11,'Bahan Pakan'!K$17,IF($B19=12,'Bahan Pakan'!K$18,IF($B19=13,'Bahan Pakan'!K$19,IF($B19=14,'Bahan Pakan'!K$20,IF($B19=15,'Bahan Pakan'!K$21,IF($B19=16,'Bahan Pakan'!K$22,IF($B19=17,'Bahan Pakan'!K$23,IF($B19=18,'Bahan Pakan'!K$24,IF($B19=19,'Bahan Pakan'!K$25,IF($B19=20,'Bahan Pakan'!K$26,IF($B19=21,'Bahan Pakan'!K$27,IF($B19=22,'Bahan Pakan'!K$28,IF($B19=23,'Bahan Pakan'!K$29,IF($B19=24,'Bahan Pakan'!K$30,IF($B19=25,'Bahan Pakan'!K$31,IF($B19=26,'Bahan Pakan'!K$32,IF($B19=27,'Bahan Pakan'!K$33,IF($B19=28,'Bahan Pakan'!K$34,IF($B19=29,'Bahan Pakan'!K$35,IF($B19=30,'Bahan Pakan'!K$36,IF($B19=31,'Bahan Pakan'!K$37,IF($B19=32,'Bahan Pakan'!K$38,IF($B19=33,'Bahan Pakan'!K$39,IF($B19=34,'Bahan Pakan'!K$40,IF($B19=35,'Bahan Pakan'!K$41,IF($B19=36,'Bahan Pakan'!K$42,IF($B19=37,'Bahan Pakan'!K$43,IF($B19=38,'Bahan Pakan'!K$44,IF($B19=39,'Bahan Pakan'!K$45,IF($B19=40,'Bahan Pakan'!K$46,IF($B19=41,'Bahan Pakan'!K$47,IF($B19=42,'Bahan Pakan'!K$48,IF($B19=43,'Bahan Pakan'!K$49,IF($B19=44,'Bahan Pakan'!K$50,IF($B19=45,'Bahan Pakan'!K$51,IF($B19=46,'Bahan Pakan'!K$52,IF($B19=47,'Bahan Pakan'!K$53,IF($B19=48,'Bahan Pakan'!K$54,IF($B19=49,'Bahan Pakan'!K$55,IF($B19=50,'Bahan Pakan'!K$56,0)))))))))))))))))))))))))))))))))))))))))))))))))) -> 0 | P19: =IF($B19=1,'Bahan Pakan'!L$7,IF($B19=2,'Bahan Pakan'!L$8,IF($B19=3,'Bahan Pakan'!L$9,IF($B19=4,'Bahan Pakan'!L$10,IF($B19=5,'Bahan Pakan'!L$11,IF($B19=6,'Bahan Pakan'!L$12,IF($B19=7,'Bahan Pakan'!L$13,IF($B19=8,'Bahan Pakan'!L$14,IF($B19=9,'Bahan Pakan'!L$15,IF($B19=10,'Bahan Pakan'!L$16,IF($B19=11,'Bahan Pakan'!L$17,IF($B19=12,'Bahan Pakan'!L$18,IF($B19=13,'Bahan Pakan'!L$19,IF($B19=14,'Bahan Pakan'!L$20,IF($B19=15,'Bahan Pakan'!L$21,IF($B19=16,'Bahan Pakan'!L$22,IF($B19=17,'Bahan Pakan'!L$23,IF($B19=18,'Bahan Pakan'!L$24,IF($B19=19,'Bahan Pakan'!L$25,IF($B19=20,'Bahan Pakan'!L$26,IF($B19=21,'Bahan Pakan'!L$27,IF($B19=22,'Bahan Pakan'!L$28,IF($B19=23,'Bahan Pakan'!L$29,IF($B19=24,'Bahan Pakan'!L$30,IF($B19=25,'Bahan Pakan'!L$31,IF($B19=26,'Bahan Pakan'!L$32,IF($B19=27,'Bahan Pakan'!L$33,IF($B19=28,'Bahan Pakan'!L$34,IF($B19=29,'Bahan Pakan'!L$35,IF($B19=30,'Bahan Pakan'!L$36,IF($B19=31,'Bahan Pakan'!L$37,IF($B19=32,'Bahan Pakan'!L$38,IF($B19=33,'Bahan Pakan'!L$39,IF($B19=34,'Bahan Pakan'!L$40,IF($B19=35,'Bahan Pakan'!L$41,IF($B19=36,'Bahan Pakan'!L$42,IF($B19=37,'Bahan Pakan'!L$43,IF($B19=38,'Bahan Pakan'!L$44,IF($B19=39,'Bahan Pakan'!L$45,IF($B19=40,'Bahan Pakan'!L$46,IF($B19=41,'Bahan Pakan'!L$47,IF($B19=42,'Bahan Pakan'!L$48,IF($B19=43,'Bahan Pakan'!L$49,IF($B19=44,'Bahan Pakan'!L$50,IF($B19=45,'Bahan Pakan'!L$51,IF($B19=46,'Bahan Pakan'!L$52,IF($B19=47,'Bahan Pakan'!L$53,IF($B19=48,'Bahan Pakan'!L$54,IF($B19=49,'Bahan Pakan'!L$55,IF($B19=50,'Bahan Pakan'!L$56,0)))))))))))))))))))))))))))))))))))))))))))))))))) -> 0 | Q19: =IF($B19=1,'Bahan Pakan'!M$7,IF($B19=2,'Bahan Pakan'!M$8,IF($B19=3,'Bahan Pakan'!M$9,IF($B19=4,'Bahan Pakan'!M$10,IF($B19=5,'Bahan Pakan'!M$11,IF($B19=6,'Bahan Pakan'!M$12,IF($B19=7,'Bahan Pakan'!M$13,IF($B19=8,'Bahan Pakan'!M$14,IF($B19=9,'Bahan Pakan'!M$15,IF($B19=10,'Bahan Pakan'!M$16,IF($B19=11,'Bahan Pakan'!M$17,IF($B19=12,'Bahan Pakan'!M$18,IF($B19=13,'Bahan Pakan'!M$19,IF($B19=14,'Bahan Pakan'!M$20,IF($B19=15,'Bahan Pakan'!M$21,IF($B19=16,'Bahan Pakan'!M$22,IF($B19=17,'Bahan Pakan'!M$23,IF($B19=18,'Bahan Pakan'!M$24,IF($B19=19,'Bahan Pakan'!M$25,IF($B19=20,'Bahan Pakan'!M$26,IF($B19=21,'Bahan Pakan'!M$27,IF($B19=22,'Bahan Pakan'!M$28,IF($B19=23,'Bahan Pakan'!M$29,IF($B19=24,'Bahan Pakan'!M$30,IF($B19=25,'Bahan Pakan'!M$31,IF($B19=26,'Bahan Pakan'!M$32,IF($B19=27,'Bahan Pakan'!M$33,IF($B19=28,'Bahan Pakan'!M$34,IF($B19=29,'Bahan Pakan'!M$35,IF($B19=30,'Bahan Pakan'!M$36,IF($B19=31,'Bahan Pakan'!M$37,IF($B19=32,'Bahan Pakan'!M$38,IF($B19=33,'Bahan Pakan'!M$39,IF($B19=34,'Bahan Pakan'!M$40,IF($B19=35,'Bahan Pakan'!M$41,IF($B19=36,'Bahan Pakan'!M$42,IF($B19=37,'Bahan Pakan'!M$43,IF($B19=38,'Bahan Pakan'!M$44,IF($B19=39,'Bahan Pakan'!M$45,IF($B19=40,'Bahan Pakan'!M$46,IF($B19=41,'Bahan Pakan'!M$47,IF($B19=42,'Bahan Pakan'!M$48,IF($B19=43,'Bahan Pakan'!M$49,IF($B19=44,'Bahan Pakan'!M$50,IF($B19=45,'Bahan Pakan'!M$51,IF($B19=46,'Bahan Pakan'!M$52,IF($B19=47,'Bahan Pakan'!M$53,IF($B19=48,'Bahan Pakan'!M$54,IF($B19=49,'Bahan Pakan'!M$55,IF($B19=50,'Bahan Pakan'!M$56,0)))))))))))))))))))))))))))))))))))))))))))))))))) -> 0 | R19: =IF($B19=1,'Bahan Pakan'!N$7,IF($B19=2,'Bahan Pakan'!N$8,IF($B19=3,'Bahan Pakan'!N$9,IF($B19=4,'Bahan Pakan'!N$10,IF($B19=5,'Bahan Pakan'!N$11,IF($B19=6,'Bahan Pakan'!N$12,IF($B19=7,'Bahan Pakan'!N$13,IF($B19=8,'Bahan Pakan'!N$14,IF($B19=9,'Bahan Pakan'!N$15,IF($B19=10,'Bahan Pakan'!N$16,IF($B19=11,'Bahan Pakan'!N$17,IF($B19=12,'Bahan Pakan'!N$18,IF($B19=13,'Bahan Pakan'!N$19,IF($B19=14,'Bahan Pakan'!N$20,IF($B19=15,'Bahan Pakan'!N$21,IF($B19=16,'Bahan Pakan'!N$22,IF($B19=17,'Bahan Pakan'!N$23,IF($B19=18,'Bahan Pakan'!N$24,IF($B19=19,'Bahan Pakan'!N$25,IF($B19=20,'Bahan Pakan'!N$26,IF($B19=21,'Bahan Pakan'!N$27,IF($B19=22,'Bahan Pakan'!N$28,IF($B19=23,'Bahan Pakan'!N$29,IF($B19=24,'Bahan Pakan'!N$30,IF($B19=25,'Bahan Pakan'!N$31,IF($B19=26,'Bahan Pakan'!N$32,IF($B19=27,'Bahan Pakan'!N$33,IF($B19=28,'Bahan Pakan'!N$34,IF($B19=29,'Bahan Pakan'!N$35,IF($B19=30,'Bahan Pakan'!N$36,IF($B19=31,'Bahan Pakan'!N$37,IF($B19=32,'Bahan Pakan'!N$38,IF($B19=33,'Bahan Pakan'!N$39,IF($B19=34,'Bahan Pakan'!N$40,IF($B19=35,'Bahan Pakan'!N$41,IF($B19=36,'Bahan Pakan'!N$42,IF($B19=37,'Bahan Pakan'!N$43,IF($B19=38,'Bahan Pakan'!N$44,IF($B19=39,'Bahan Pakan'!N$45,IF($B19=40,'Bahan Pakan'!N$46,IF($B19=41,'Bahan Pakan'!N$47,IF($B19=42,'Bahan Pakan'!N$48,IF($B19=43,'Bahan Pakan'!N$49,IF($B19=44,'Bahan Pakan'!N$50,IF($B19=45,'Bahan Pakan'!N$51,IF($B19=46,'Bahan Pakan'!N$52,IF($B19=47,'Bahan Pakan'!N$53,IF($B19=48,'Bahan Pakan'!N$54,IF($B19=49,'Bahan Pakan'!N$55,IF($B19=50,'Bahan Pakan'!N$56,0)))))))))))))))))))))))))))))))))))))))))))))))))) -> 0 | S19: =IF($B19=1,'Bahan Pakan'!O$7,IF($B19=2,'Bahan Pakan'!O$8,IF($B19=3,'Bahan Pakan'!O$9,IF($B19=4,'Bahan Pakan'!O$10,IF($B19=5,'Bahan Pakan'!O$11,IF($B19=6,'Bahan Pakan'!O$12,IF($B19=7,'Bahan Pakan'!O$13,IF($B19=8,'Bahan Pakan'!O$14,IF($B19=9,'Bahan Pakan'!O$15,IF($B19=10,'Bahan Pakan'!O$16,IF($B19=11,'Bahan Pakan'!O$17,IF($B19=12,'Bahan Pakan'!O$18,IF($B19=13,'Bahan Pakan'!O$19,IF($B19=14,'Bahan Pakan'!O$20,IF($B19=15,'Bahan Pakan'!O$21,IF($B19=16,'Bahan Pakan'!O$22,IF($B19=17,'Bahan Pakan'!O$23,IF($B19=18,'Bahan Pakan'!O$24,IF($B19=19,'Bahan Pakan'!O$25,IF($B19=20,'Bahan Pakan'!O$26,IF($B19=21,'Bahan Pakan'!O$27,IF($B19=22,'Bahan Pakan'!O$28,IF($B19=23,'Bahan Pakan'!O$29,IF($B19=24,'Bahan Pakan'!O$30,IF($B19=25,'Bahan Pakan'!O$31,IF($B19=26,'Bahan Pakan'!O$32,IF($B19=27,'Bahan Pakan'!O$33,IF($B19=28,'Bahan Pakan'!O$34,IF($B19=29,'Bahan Pakan'!O$35,IF($B19=30,'Bahan Pakan'!O$36,IF($B19=31,'Bahan Pakan'!O$37,IF($B19=32,'Bahan Pakan'!O$38,IF($B19=33,'Bahan Pakan'!O$39,IF($B19=34,'Bahan Pakan'!O$40,IF($B19=35,'Bahan Pakan'!O$41,IF($B19=36,'Bahan Pakan'!O$42,IF($B19=37,'Bahan Pakan'!O$43,IF($B19=38,'Bahan Pakan'!O$44,IF($B19=39,'Bahan Pakan'!O$45,IF($B19=40,'Bahan Pakan'!O$46,IF($B19=41,'Bahan Pakan'!O$47,IF($B19=42,'Bahan Pakan'!O$48,IF($B19=43,'Bahan Pakan'!O$49,IF($B19=44,'Bahan Pakan'!O$50,IF($B19=45,'Bahan Pakan'!O$51,IF($B19=46,'Bahan Pakan'!O$52,IF($B19=47,'Bahan Pakan'!O$53,IF($B19=48,'Bahan Pakan'!O$54,IF($B19=49,'Bahan Pakan'!O$55,IF($B19=50,'Bahan Pakan'!O$56,0)))))))))))))))))))))))))))))))))))))))))))))))))) -> 0 | T19: =IF($B19=1,'Bahan Pakan'!P$7,IF($B19=2,'Bahan Pakan'!P$8,IF($B19=3,'Bahan Pakan'!P$9,IF($B19=4,'Bahan Pakan'!P$10,IF($B19=5,'Bahan Pakan'!P$11,IF($B19=6,'Bahan Pakan'!P$12,IF($B19=7,'Bahan Pakan'!P$13,IF($B19=8,'Bahan Pakan'!P$14,IF($B19=9,'Bahan Pakan'!P$15,IF($B19=10,'Bahan Pakan'!P$16,IF($B19=11,'Bahan Pakan'!P$17,IF($B19=12,'Bahan Pakan'!P$18,IF($B19=13,'Bahan Pakan'!P$19,IF($B19=14,'Bahan Pakan'!P$20,IF($B19=15,'Bahan Pakan'!P$21,IF($B19=16,'Bahan Pakan'!P$22,IF($B19=17,'Bahan Pakan'!P$23,IF($B19=18,'Bahan Pakan'!P$24,IF($B19=19,'Bahan Pakan'!P$25,IF($B19=20,'Bahan Pakan'!P$26,IF($B19=21,'Bahan Pakan'!P$27,IF($B19=22,'Bahan Pakan'!P$28,IF($B19=23,'Bahan Pakan'!P$29,IF($B19=24,'Bahan Pakan'!P$30,IF($B19=25,'Bahan Pakan'!P$31,IF($B19=26,'Bahan Pakan'!P$32,IF($B19=27,'Bahan Pakan'!P$33,IF($B19=28,'Bahan Pakan'!P$34,IF($B19=29,'Bahan Pakan'!P$35,IF($B19=30,'Bahan Pakan'!P$36,IF($B19=31,'Bahan Pakan'!P$37,IF($B19=32,'Bahan Pakan'!P$38,IF($B19=33,'Bahan Pakan'!P$39,IF($B19=34,'Bahan Pakan'!P$40,IF($B19=35,'Bahan Pakan'!P$41,IF($B19=36,'Bahan Pakan'!P$42,IF($B19=37,'Bahan Pakan'!P$43,IF($B19=38,'Bahan Pakan'!P$44,IF($B19=39,'Bahan Pakan'!P$45,IF($B19=40,'Bahan Pakan'!P$46,IF($B19=41,'Bahan Pakan'!P$47,IF($B19=42,'Bahan Pakan'!P$48,IF($B19=43,'Bahan Pakan'!P$49,IF($B19=44,'Bahan Pakan'!P$50,IF($B19=45,'Bahan Pakan'!P$51,IF($B19=46,'Bahan Pakan'!P$52,IF($B19=47,'Bahan Pakan'!P$53,IF($B19=48,'Bahan Pakan'!P$54,IF($B19=49,'Bahan Pakan'!P$55,IF($B19=50,'Bahan Pakan'!P$56,0)))))))))))))))))))))))))))))))))))))))))))))))))) -> 0
B20: =IF($D20='Bahan Pakan'!D$7,1,IF($D20='Bahan Pakan'!D$8,2,IF($D20='Bahan Pakan'!D$9,3,IF($D20='Bahan Pakan'!D$10,4,IF($D20='Bahan Pakan'!D$11,5,IF($D20='Bahan Pakan'!D$12,6,IF($D20='Bahan Pakan'!D$13,7,IF($D20='Bahan Pakan'!D$14,8,IF($D20='Bahan Pakan'!D$15,9,IF($D20='Bahan Pakan'!D$16,10,IF($D20='Bahan Pakan'!D$17,11,IF($D20='Bahan Pakan'!D$18,12,IF($D20='Bahan Pakan'!D$19,13,IF($D20='Bahan Pakan'!D$20,14,IF($D20='Bahan Pakan'!D$21,15,IF($D20='Bahan Pakan'!D$22,16,IF($D20='Bahan Pakan'!D$23,17,IF($D20='Bahan Pakan'!D$24,18,IF($D20='Bahan Pakan'!D$25,19,IF($D20='Bahan Pakan'!D$26,20,IF($D20='Bahan Pakan'!D$27,21,IF($D20='Bahan Pakan'!D$28,22,IF($D20='Bahan Pakan'!D$29,23,IF($D20='Bahan Pakan'!D$30,24,IF($D20='Bahan Pakan'!D$31,25,IF($D20='Bahan Pakan'!D$32,26,IF($D20='Bahan Pakan'!D$33,27,IF($D20='Bahan Pakan'!D$34,28,IF($D20='Bahan Pakan'!D$35,29,IF($D20='Bahan Pakan'!D$36,30,IF($D20='Bahan Pakan'!D$37,31,IF($D20='Bahan Pakan'!D$38,32,IF($D20='Bahan Pakan'!D$39,33,IF($D20='Bahan Pakan'!D$40,34,IF($D20='Bahan Pakan'!D$41,35,IF($D20='Bahan Pakan'!D$42,36,IF($D20='Bahan Pakan'!D$43,37,IF($D20='Bahan Pakan'!D$44,38,IF($D20='Bahan Pakan'!D$45,39,IF($D20='Bahan Pakan'!D$46,40,IF($D20='Bahan Pakan'!D$47,41,IF($D20='Bahan Pakan'!D$48,42,IF($D20='Bahan Pakan'!D$49,43,IF($D20='Bahan Pakan'!D$50,44,IF($D20='Bahan Pakan'!D$51,45,IF($D20='Bahan Pakan'!D$52,46,IF($D20='Bahan Pakan'!D$53,47,IF($D20='Bahan Pakan'!D$54,48,IF($D20='Bahan Pakan'!D$55,49,IF($D20='Bahan Pakan'!D$56,50,0)))))))))))))))))))))))))))))))))))))))))))))))))) -> 44 | C20: 14 | E20: =IF($B20=1,'Bahan Pakan'!E$7,IF($B20=2,'Bahan Pakan'!E$8,IF($B20=3,'Bahan Pakan'!E$9,IF($B20=4,'Bahan Pakan'!E$10,IF($B20=5,'Bahan Pakan'!E$11,IF($B20=6,'Bahan Pakan'!E$12,IF($B20=7,'Bahan Pakan'!E$13,IF($B20=8,'Bahan Pakan'!E$14,IF($B20=9,'Bahan Pakan'!E$15,IF($B20=10,'Bahan Pakan'!E$16,IF($B20=11,'Bahan Pakan'!E$17,IF($B20=12,'Bahan Pakan'!E$18,IF($B20=13,'Bahan Pakan'!E$19,IF($B20=14,'Bahan Pakan'!E$20,IF($B20=15,'Bahan Pakan'!E$21,IF($B20=16,'Bahan Pakan'!E$22,IF($B20=17,'Bahan Pakan'!E$23,IF($B20=18,'Bahan Pakan'!E$24,IF($B20=19,'Bahan Pakan'!E$25,IF($B20=20,'Bahan Pakan'!E$26,IF($B20=21,'Bahan Pakan'!E$27,IF($B20=22,'Bahan Pakan'!E$28,IF($B20=23,'Bahan Pakan'!E$29,IF($B20=24,'Bahan Pakan'!E$30,IF($B20=25,'Bahan Pakan'!E$31,IF($B20=26,'Bahan Pakan'!E$32,IF($B20=27,'Bahan Pakan'!E$33,IF($B20=28,'Bahan Pakan'!E$34,IF($B20=29,'Bahan Pakan'!E$35,IF($B20=30,'Bahan Pakan'!E$36,IF($B20=31,'Bahan Pakan'!E$37,IF($B20=32,'Bahan Pakan'!E$38,IF($B20=33,'Bahan Pakan'!E$39,IF($B20=34,'Bahan Pakan'!E$40,IF($B20=35,'Bahan Pakan'!E$41,IF($B20=36,'Bahan Pakan'!E$42,IF($B20=37,'Bahan Pakan'!E$43,IF($B20=38,'Bahan Pakan'!E$44,IF($B20=39,'Bahan Pakan'!E$45,IF($B20=40,'Bahan Pakan'!E$46,IF($B20=41,'Bahan Pakan'!E$47,IF($B20=42,'Bahan Pakan'!E$48,IF($B20=43,'Bahan Pakan'!E$49,IF($B20=44,'Bahan Pakan'!E$50,IF($B20=45,'Bahan Pakan'!E$51,IF($B20=46,'Bahan Pakan'!E$52,IF($B20=47,'Bahan Pakan'!E$53,IF($B20=48,'Bahan Pakan'!E$54,IF($B20=49,'Bahan Pakan'!E$55,IF($B20=50,'Bahan Pakan'!E$56,0)))))))))))))))))))))))))))))))))))))))))))))))))) -> 0 | F20: =IF($B20=1,'Bahan Pakan'!F$7,IF($B20=2,'Bahan Pakan'!F$8,IF($B20=3,'Bahan Pakan'!F$9,IF($B20=4,'Bahan Pakan'!F$10,IF($B20=5,'Bahan Pakan'!F$11,IF($B20=6,'Bahan Pakan'!F$12,IF($B20=7,'Bahan Pakan'!F$13,IF($B20=8,'Bahan Pakan'!F$14,IF($B20=9,'Bahan Pakan'!F$15,IF($B20=10,'Bahan Pakan'!F$16,IF($B20=11,'Bahan Pakan'!F$17,IF($B20=12,'Bahan Pakan'!F$18,IF($B20=13,'Bahan Pakan'!F$19,IF($B20=14,'Bahan Pakan'!F$20,IF($B20=15,'Bahan Pakan'!F$21,IF($B20=16,'Bahan Pakan'!F$22,IF($B20=17,'Bahan Pakan'!F$23,IF($B20=18,'Bahan Pakan'!F$24,IF($B20=19,'Bahan Pakan'!F$25,IF($B20=20,'Bahan Pakan'!F$26,IF($B20=21,'Bahan Pakan'!F$27,IF($B20=22,'Bahan Pakan'!F$28,IF($B20=23,'Bahan Pakan'!F$29,IF($B20=24,'Bahan Pakan'!F$30,IF($B20=25,'Bahan Pakan'!F$31,IF($B20=26,'Bahan Pakan'!F$32,IF($B20=27,'Bahan Pakan'!F$33,IF($B20=28,'Bahan Pakan'!F$34,IF($B20=29,'Bahan Pakan'!F$35,IF($B20=30,'Bahan Pakan'!F$36,IF($B20=31,'Bahan Pakan'!F$37,IF($B20=32,'Bahan Pakan'!F$38,IF($B20=33,'Bahan Pakan'!F$39,IF($B20=34,'Bahan Pakan'!F$40,IF($B20=35,'Bahan Pakan'!F$41,IF($B20=36,'Bahan Pakan'!F$42,IF($B20=37,'Bahan Pakan'!F$43,IF($B20=38,'Bahan Pakan'!F$44,IF($B20=39,'Bahan Pakan'!F$45,IF($B20=40,'Bahan Pakan'!F$46,IF($B20=41,'Bahan Pakan'!F$47,IF($B20=42,'Bahan Pakan'!F$48,IF($B20=43,'Bahan Pakan'!F$49,IF($B20=44,'Bahan Pakan'!F$50,IF($B20=45,'Bahan Pakan'!F$51,IF($B20=46,'Bahan Pakan'!F$52,IF($B20=47,'Bahan Pakan'!F$53,IF($B20=48,'Bahan Pakan'!F$54,IF($B20=49,'Bahan Pakan'!F$55,IF($B20=50,'Bahan Pakan'!F$56,0)))))))))))))))))))))))))))))))))))))))))))))))))) -> 0 | H20: 0 | I20: 0 | J20: 0 | K20: =IF($B20=1,'Bahan Pakan'!G$7,IF($B20=2,'Bahan Pakan'!G$8,IF($B20=3,'Bahan Pakan'!G$9,IF($B20=4,'Bahan Pakan'!G$10,IF($B20=5,'Bahan Pakan'!G$11,IF($B20=6,'Bahan Pakan'!G$12,IF($B20=7,'Bahan Pakan'!G$13,IF($B20=8,'Bahan Pakan'!G$14,IF($B20=9,'Bahan Pakan'!G$15,IF($B20=10,'Bahan Pakan'!G$16,IF($B20=11,'Bahan Pakan'!G$17,IF($B20=12,'Bahan Pakan'!G$18,IF($B20=13,'Bahan Pakan'!G$19,IF($B20=14,'Bahan Pakan'!G$20,IF($B20=15,'Bahan Pakan'!G$21,IF($B20=16,'Bahan Pakan'!G$22,IF($B20=17,'Bahan Pakan'!G$23,IF($B20=18,'Bahan Pakan'!G$24,IF($B20=19,'Bahan Pakan'!G$25,IF($B20=20,'Bahan Pakan'!G$26,IF($B20=21,'Bahan Pakan'!G$27,IF($B20=22,'Bahan Pakan'!G$28,IF($B20=23,'Bahan Pakan'!G$29,IF($B20=24,'Bahan Pakan'!G$30,IF($B20=25,'Bahan Pakan'!G$31,IF($B20=26,'Bahan Pakan'!G$32,IF($B20=27,'Bahan Pakan'!G$33,IF($B20=28,'Bahan Pakan'!G$34,IF($B20=29,'Bahan Pakan'!G$35,IF($B20=30,'Bahan Pakan'!G$36,IF($B20=31,'Bahan Pakan'!G$37,IF($B20=32,'Bahan Pakan'!G$38,IF($B20=33,'Bahan Pakan'!G$39,IF($B20=34,'Bahan Pakan'!G$40,IF($B20=35,'Bahan Pakan'!G$41,IF($B20=36,'Bahan Pakan'!G$42,IF($B20=37,'Bahan Pakan'!G$43,IF($B20=38,'Bahan Pakan'!G$44,IF($B20=39,'Bahan Pakan'!G$45,IF($B20=40,'Bahan Pakan'!G$46,IF($B20=41,'Bahan Pakan'!G$47,IF($B20=42,'Bahan Pakan'!G$48,IF($B20=43,'Bahan Pakan'!G$49,IF($B20=44,'Bahan Pakan'!G$50,IF($B20=45,'Bahan Pakan'!G$51,IF($B20=46,'Bahan Pakan'!G$52,IF($B20=47,'Bahan Pakan'!G$53,IF($B20=48,'Bahan Pakan'!G$54,IF($B20=49,'Bahan Pakan'!G$55,IF($B20=50,'Bahan Pakan'!G$56,0)))))))))))))))))))))))))))))))))))))))))))))))))) -> 0 | L20: =IF($B20=1,'Bahan Pakan'!H$7,IF($B20=2,'Bahan Pakan'!H$8,IF($B20=3,'Bahan Pakan'!H$9,IF($B20=4,'Bahan Pakan'!H$10,IF($B20=5,'Bahan Pakan'!H$11,IF($B20=6,'Bahan Pakan'!H$12,IF($B20=7,'Bahan Pakan'!H$13,IF($B20=8,'Bahan Pakan'!H$14,IF($B20=9,'Bahan Pakan'!H$15,IF($B20=10,'Bahan Pakan'!H$16,IF($B20=11,'Bahan Pakan'!H$17,IF($B20=12,'Bahan Pakan'!H$18,IF($B20=13,'Bahan Pakan'!H$19,IF($B20=14,'Bahan Pakan'!H$20,IF($B20=15,'Bahan Pakan'!H$21,IF($B20=16,'Bahan Pakan'!H$22,IF($B20=17,'Bahan Pakan'!H$23,IF($B20=18,'Bahan Pakan'!H$24,IF($B20=19,'Bahan Pakan'!H$25,IF($B20=20,'Bahan Pakan'!H$26,IF($B20=21,'Bahan Pakan'!H$27,IF($B20=22,'Bahan Pakan'!H$28,IF($B20=23,'Bahan Pakan'!H$29,IF($B20=24,'Bahan Pakan'!H$30,IF($B20=25,'Bahan Pakan'!H$31,IF($B20=26,'Bahan Pakan'!H$32,IF($B20=27,'Bahan Pakan'!H$33,IF($B20=28,'Bahan Pakan'!H$34,IF($B20=29,'Bahan Pakan'!H$35,IF($B20=30,'Bahan Pakan'!H$36,IF($B20=31,'Bahan Pakan'!H$37,IF($B20=32,'Bahan Pakan'!H$38,IF($B20=33,'Bahan Pakan'!H$39,IF($B20=34,'Bahan Pakan'!H$40,IF($B20=35,'Bahan Pakan'!H$41,IF($B20=36,'Bahan Pakan'!H$42,IF($B20=37,'Bahan Pakan'!H$43,IF($B20=38,'Bahan Pakan'!H$44,IF($B20=39,'Bahan Pakan'!H$45,IF($B20=40,'Bahan Pakan'!H$46,IF($B20=41,'Bahan Pakan'!H$47,IF($B20=42,'Bahan Pakan'!H$48,IF($B20=43,'Bahan Pakan'!H$49,IF($B20=44,'Bahan Pakan'!H$50,IF($B20=45,'Bahan Pakan'!H$51,IF($B20=46,'Bahan Pakan'!H$52,IF($B20=47,'Bahan Pakan'!H$53,IF($B20=48,'Bahan Pakan'!H$54,IF($B20=49,'Bahan Pakan'!H$55,IF($B20=50,'Bahan Pakan'!H$56,0)))))))))))))))))))))))))))))))))))))))))))))))))) -> 0 | M20: =IF($B20=1,'Bahan Pakan'!I$7,IF($B20=2,'Bahan Pakan'!I$8,IF($B20=3,'Bahan Pakan'!I$9,IF($B20=4,'Bahan Pakan'!I$10,IF($B20=5,'Bahan Pakan'!I$11,IF($B20=6,'Bahan Pakan'!I$12,IF($B20=7,'Bahan Pakan'!I$13,IF($B20=8,'Bahan Pakan'!I$14,IF($B20=9,'Bahan Pakan'!I$15,IF($B20=10,'Bahan Pakan'!I$16,IF($B20=11,'Bahan Pakan'!I$17,IF($B20=12,'Bahan Pakan'!I$18,IF($B20=13,'Bahan Pakan'!I$19,IF($B20=14,'Bahan Pakan'!I$20,IF($B20=15,'Bahan Pakan'!I$21,IF($B20=16,'Bahan Pakan'!I$22,IF($B20=17,'Bahan Pakan'!I$23,IF($B20=18,'Bahan Pakan'!I$24,IF($B20=19,'Bahan Pakan'!I$25,IF($B20=20,'Bahan Pakan'!I$26,IF($B20=21,'Bahan Pakan'!I$27,IF($B20=22,'Bahan Pakan'!I$28,IF($B20=23,'Bahan Pakan'!I$29,IF($B20=24,'Bahan Pakan'!I$30,IF($B20=25,'Bahan Pakan'!I$31,IF($B20=26,'Bahan Pakan'!I$32,IF($B20=27,'Bahan Pakan'!I$33,IF($B20=28,'Bahan Pakan'!I$34,IF($B20=29,'Bahan Pakan'!I$35,IF($B20=30,'Bahan Pakan'!I$36,IF($B20=31,'Bahan Pakan'!I$37,IF($B20=32,'Bahan Pakan'!I$38,IF($B20=33,'Bahan Pakan'!I$39,IF($B20=34,'Bahan Pakan'!I$40,IF($B20=35,'Bahan Pakan'!I$41,IF($B20=36,'Bahan Pakan'!I$42,IF($B20=37,'Bahan Pakan'!I$43,IF($B20=38,'Bahan Pakan'!I$44,IF($B20=39,'Bahan Pakan'!I$45,IF($B20=40,'Bahan Pakan'!I$46,IF($B20=41,'Bahan Pakan'!I$47,IF($B20=42,'Bahan Pakan'!I$48,IF($B20=43,'Bahan Pakan'!I$49,IF($B20=44,'Bahan Pakan'!I$50,IF($B20=45,'Bahan Pakan'!I$51,IF($B20=46,'Bahan Pakan'!I$52,IF($B20=47,'Bahan Pakan'!I$53,IF($B20=48,'Bahan Pakan'!I$54,IF($B20=49,'Bahan Pakan'!I$55,IF($B20=50,'Bahan Pakan'!I$56,0)))))))))))))))))))))))))))))))))))))))))))))))))) -> 0 | N20: =IF($B20=1,'Bahan Pakan'!J$7,IF($B20=2,'Bahan Pakan'!J$8,IF($B20=3,'Bahan Pakan'!J$9,IF($B20=4,'Bahan Pakan'!J$10,IF($B20=5,'Bahan Pakan'!J$11,IF($B20=6,'Bahan Pakan'!J$12,IF($B20=7,'Bahan Pakan'!J$13,IF($B20=8,'Bahan Pakan'!J$14,IF($B20=9,'Bahan Pakan'!J$15,IF($B20=10,'Bahan Pakan'!J$16,IF($B20=11,'Bahan Pakan'!J$17,IF($B20=12,'Bahan Pakan'!J$18,IF($B20=13,'Bahan Pakan'!J$19,IF($B20=14,'Bahan Pakan'!J$20,IF($B20=15,'Bahan Pakan'!J$21,IF($B20=16,'Bahan Pakan'!J$22,IF($B20=17,'Bahan Pakan'!J$23,IF($B20=18,'Bahan Pakan'!J$24,IF($B20=19,'Bahan Pakan'!J$25,IF($B20=20,'Bahan Pakan'!J$26,IF($B20=21,'Bahan Pakan'!J$27,IF($B20=22,'Bahan Pakan'!J$28,IF($B20=23,'Bahan Pakan'!J$29,IF($B20=24,'Bahan Pakan'!J$30,IF($B20=25,'Bahan Pakan'!J$31,IF($B20=26,'Bahan Pakan'!J$32,IF($B20=27,'Bahan Pakan'!J$33,IF($B20=28,'Bahan Pakan'!J$34,IF($B20=29,'Bahan Pakan'!J$35,IF($B20=30,'Bahan Pakan'!J$36,IF($B20=31,'Bahan Pakan'!J$37,IF($B20=32,'Bahan Pakan'!J$38,IF($B20=33,'Bahan Pakan'!J$39,IF($B20=34,'Bahan Pakan'!J$40,IF($B20=35,'Bahan Pakan'!J$41,IF($B20=36,'Bahan Pakan'!J$42,IF($B20=37,'Bahan Pakan'!J$43,IF($B20=38,'Bahan Pakan'!J$44,IF($B20=39,'Bahan Pakan'!J$45,IF($B20=40,'Bahan Pakan'!J$46,IF($B20=41,'Bahan Pakan'!J$47,IF($B20=42,'Bahan Pakan'!J$48,IF($B20=43,'Bahan Pakan'!J$49,IF($B20=44,'Bahan Pakan'!J$50,IF($B20=45,'Bahan Pakan'!J$51,IF($B20=46,'Bahan Pakan'!J$52,IF($B20=47,'Bahan Pakan'!J$53,IF($B20=48,'Bahan Pakan'!J$54,IF($B20=49,'Bahan Pakan'!J$55,IF($B20=50,'Bahan Pakan'!J$56,0)))))))))))))))))))))))))))))))))))))))))))))))))) -> 0 | O20: =IF($B20=1,'Bahan Pakan'!K$7,IF($B20=2,'Bahan Pakan'!K$8,IF($B20=3,'Bahan Pakan'!K$9,IF($B20=4,'Bahan Pakan'!K$10,IF($B20=5,'Bahan Pakan'!K$11,IF($B20=6,'Bahan Pakan'!K$12,IF($B20=7,'Bahan Pakan'!K$13,IF($B20=8,'Bahan Pakan'!K$14,IF($B20=9,'Bahan Pakan'!K$15,IF($B20=10,'Bahan Pakan'!K$16,IF($B20=11,'Bahan Pakan'!K$17,IF($B20=12,'Bahan Pakan'!K$18,IF($B20=13,'Bahan Pakan'!K$19,IF($B20=14,'Bahan Pakan'!K$20,IF($B20=15,'Bahan Pakan'!K$21,IF($B20=16,'Bahan Pakan'!K$22,IF($B20=17,'Bahan Pakan'!K$23,IF($B20=18,'Bahan Pakan'!K$24,IF($B20=19,'Bahan Pakan'!K$25,IF($B20=20,'Bahan Pakan'!K$26,IF($B20=21,'Bahan Pakan'!K$27,IF($B20=22,'Bahan Pakan'!K$28,IF($B20=23,'Bahan Pakan'!K$29,IF($B20=24,'Bahan Pakan'!K$30,IF($B20=25,'Bahan Pakan'!K$31,IF($B20=26,'Bahan Pakan'!K$32,IF($B20=27,'Bahan Pakan'!K$33,IF($B20=28,'Bahan Pakan'!K$34,IF($B20=29,'Bahan Pakan'!K$35,IF($B20=30,'Bahan Pakan'!K$36,IF($B20=31,'Bahan Pakan'!K$37,IF($B20=32,'Bahan Pakan'!K$38,IF($B20=33,'Bahan Pakan'!K$39,IF($B20=34,'Bahan Pakan'!K$40,IF($B20=35,'Bahan Pakan'!K$41,IF($B20=36,'Bahan Pakan'!K$42,IF($B20=37,'Bahan Pakan'!K$43,IF($B20=38,'Bahan Pakan'!K$44,IF($B20=39,'Bahan Pakan'!K$45,IF($B20=40,'Bahan Pakan'!K$46,IF($B20=41,'Bahan Pakan'!K$47,IF($B20=42,'Bahan Pakan'!K$48,IF($B20=43,'Bahan Pakan'!K$49,IF($B20=44,'Bahan Pakan'!K$50,IF($B20=45,'Bahan Pakan'!K$51,IF($B20=46,'Bahan Pakan'!K$52,IF($B20=47,'Bahan Pakan'!K$53,IF($B20=48,'Bahan Pakan'!K$54,IF($B20=49,'Bahan Pakan'!K$55,IF($B20=50,'Bahan Pakan'!K$56,0)))))))))))))))))))))))))))))))))))))))))))))))))) -> 0 | P20: =IF($B20=1,'Bahan Pakan'!L$7,IF($B20=2,'Bahan Pakan'!L$8,IF($B20=3,'Bahan Pakan'!L$9,IF($B20=4,'Bahan Pakan'!L$10,IF($B20=5,'Bahan Pakan'!L$11,IF($B20=6,'Bahan Pakan'!L$12,IF($B20=7,'Bahan Pakan'!L$13,IF($B20=8,'Bahan Pakan'!L$14,IF($B20=9,'Bahan Pakan'!L$15,IF($B20=10,'Bahan Pakan'!L$16,IF($B20=11,'Bahan Pakan'!L$17,IF($B20=12,'Bahan Pakan'!L$18,IF($B20=13,'Bahan Pakan'!L$19,IF($B20=14,'Bahan Pakan'!L$20,IF($B20=15,'Bahan Pakan'!L$21,IF($B20=16,'Bahan Pakan'!L$22,IF($B20=17,'Bahan Pakan'!L$23,IF($B20=18,'Bahan Pakan'!L$24,IF($B20=19,'Bahan Pakan'!L$25,IF($B20=20,'Bahan Pakan'!L$26,IF($B20=21,'Bahan Pakan'!L$27,IF($B20=22,'Bahan Pakan'!L$28,IF($B20=23,'Bahan Pakan'!L$29,IF($B20=24,'Bahan Pakan'!L$30,IF($B20=25,'Bahan Pakan'!L$31,IF($B20=26,'Bahan Pakan'!L$32,IF($B20=27,'Bahan Pakan'!L$33,IF($B20=28,'Bahan Pakan'!L$34,IF($B20=29,'Bahan Pakan'!L$35,IF($B20=30,'Bahan Pakan'!L$36,IF($B20=31,'Bahan Pakan'!L$37,IF($B20=32,'Bahan Pakan'!L$38,IF($B20=33,'Bahan Pakan'!L$39,IF($B20=34,'Bahan Pakan'!L$40,IF($B20=35,'Bahan Pakan'!L$41,IF($B20=36,'Bahan Pakan'!L$42,IF($B20=37,'Bahan Pakan'!L$43,IF($B20=38,'Bahan Pakan'!L$44,IF($B20=39,'Bahan Pakan'!L$45,IF($B20=40,'Bahan Pakan'!L$46,IF($B20=41,'Bahan Pakan'!L$47,IF($B20=42,'Bahan Pakan'!L$48,IF($B20=43,'Bahan Pakan'!L$49,IF($B20=44,'Bahan Pakan'!L$50,IF($B20=45,'Bahan Pakan'!L$51,IF($B20=46,'Bahan Pakan'!L$52,IF($B20=47,'Bahan Pakan'!L$53,IF($B20=48,'Bahan Pakan'!L$54,IF($B20=49,'Bahan Pakan'!L$55,IF($B20=50,'Bahan Pakan'!L$56,0)))))))))))))))))))))))))))))))))))))))))))))))))) -> 0 | Q20: =IF($B20=1,'Bahan Pakan'!M$7,IF($B20=2,'Bahan Pakan'!M$8,IF($B20=3,'Bahan Pakan'!M$9,IF($B20=4,'Bahan Pakan'!M$10,IF($B20=5,'Bahan Pakan'!M$11,IF($B20=6,'Bahan Pakan'!M$12,IF($B20=7,'Bahan Pakan'!M$13,IF($B20=8,'Bahan Pakan'!M$14,IF($B20=9,'Bahan Pakan'!M$15,IF($B20=10,'Bahan Pakan'!M$16,IF($B20=11,'Bahan Pakan'!M$17,IF($B20=12,'Bahan Pakan'!M$18,IF($B20=13,'Bahan Pakan'!M$19,IF($B20=14,'Bahan Pakan'!M$20,IF($B20=15,'Bahan Pakan'!M$21,IF($B20=16,'Bahan Pakan'!M$22,IF($B20=17,'Bahan Pakan'!M$23,IF($B20=18,'Bahan Pakan'!M$24,IF($B20=19,'Bahan Pakan'!M$25,IF($B20=20,'Bahan Pakan'!M$26,IF($B20=21,'Bahan Pakan'!M$27,IF($B20=22,'Bahan Pakan'!M$28,IF($B20=23,'Bahan Pakan'!M$29,IF($B20=24,'Bahan Pakan'!M$30,IF($B20=25,'Bahan Pakan'!M$31,IF($B20=26,'Bahan Pakan'!M$32,IF($B20=27,'Bahan Pakan'!M$33,IF($B20=28,'Bahan Pakan'!M$34,IF($B20=29,'Bahan Pakan'!M$35,IF($B20=30,'Bahan Pakan'!M$36,IF($B20=31,'Bahan Pakan'!M$37,IF($B20=32,'Bahan Pakan'!M$38,IF($B20=33,'Bahan Pakan'!M$39,IF($B20=34,'Bahan Pakan'!M$40,IF($B20=35,'Bahan Pakan'!M$41,IF($B20=36,'Bahan Pakan'!M$42,IF($B20=37,'Bahan Pakan'!M$43,IF($B20=38,'Bahan Pakan'!M$44,IF($B20=39,'Bahan Pakan'!M$45,IF($B20=40,'Bahan Pakan'!M$46,IF($B20=41,'Bahan Pakan'!M$47,IF($B20=42,'Bahan Pakan'!M$48,IF($B20=43,'Bahan Pakan'!M$49,IF($B20=44,'Bahan Pakan'!M$50,IF($B20=45,'Bahan Pakan'!M$51,IF($B20=46,'Bahan Pakan'!M$52,IF($B20=47,'Bahan Pakan'!M$53,IF($B20=48,'Bahan Pakan'!M$54,IF($B20=49,'Bahan Pakan'!M$55,IF($B20=50,'Bahan Pakan'!M$56,0)))))))))))))))))))))))))))))))))))))))))))))))))) -> 0 | R20: =IF($B20=1,'Bahan Pakan'!N$7,IF($B20=2,'Bahan Pakan'!N$8,IF($B20=3,'Bahan Pakan'!N$9,IF($B20=4,'Bahan Pakan'!N$10,IF($B20=5,'Bahan Pakan'!N$11,IF($B20=6,'Bahan Pakan'!N$12,IF($B20=7,'Bahan Pakan'!N$13,IF($B20=8,'Bahan Pakan'!N$14,IF($B20=9,'Bahan Pakan'!N$15,IF($B20=10,'Bahan Pakan'!N$16,IF($B20=11,'Bahan Pakan'!N$17,IF($B20=12,'Bahan Pakan'!N$18,IF($B20=13,'Bahan Pakan'!N$19,IF($B20=14,'Bahan Pakan'!N$20,IF($B20=15,'Bahan Pakan'!N$21,IF($B20=16,'Bahan Pakan'!N$22,IF($B20=17,'Bahan Pakan'!N$23,IF($B20=18,'Bahan Pakan'!N$24,IF($B20=19,'Bahan Pakan'!N$25,IF($B20=20,'Bahan Pakan'!N$26,IF($B20=21,'Bahan Pakan'!N$27,IF($B20=22,'Bahan Pakan'!N$28,IF($B20=23,'Bahan Pakan'!N$29,IF($B20=24,'Bahan Pakan'!N$30,IF($B20=25,'Bahan Pakan'!N$31,IF($B20=26,'Bahan Pakan'!N$32,IF($B20=27,'Bahan Pakan'!N$33,IF($B20=28,'Bahan Pakan'!N$34,IF($B20=29,'Bahan Pakan'!N$35,IF($B20=30,'Bahan Pakan'!N$36,IF($B20=31,'Bahan Pakan'!N$37,IF($B20=32,'Bahan Pakan'!N$38,IF($B20=33,'Bahan Pakan'!N$39,IF($B20=34,'Bahan Pakan'!N$40,IF($B20=35,'Bahan Pakan'!N$41,IF($B20=36,'Bahan Pakan'!N$42,IF($B20=37,'Bahan Pakan'!N$43,IF($B20=38,'Bahan Pakan'!N$44,IF($B20=39,'Bahan Pakan'!N$45,IF($B20=40,'Bahan Pakan'!N$46,IF($B20=41,'Bahan Pakan'!N$47,IF($B20=42,'Bahan Pakan'!N$48,IF($B20=43,'Bahan Pakan'!N$49,IF($B20=44,'Bahan Pakan'!N$50,IF($B20=45,'Bahan Pakan'!N$51,IF($B20=46,'Bahan Pakan'!N$52,IF($B20=47,'Bahan Pakan'!N$53,IF($B20=48,'Bahan Pakan'!N$54,IF($B20=49,'Bahan Pakan'!N$55,IF($B20=50,'Bahan Pakan'!N$56,0)))))))))))))))))))))))))))))))))))))))))))))))))) -> 0 | S20: =IF($B20=1,'Bahan Pakan'!O$7,IF($B20=2,'Bahan Pakan'!O$8,IF($B20=3,'Bahan Pakan'!O$9,IF($B20=4,'Bahan Pakan'!O$10,IF($B20=5,'Bahan Pakan'!O$11,IF($B20=6,'Bahan Pakan'!O$12,IF($B20=7,'Bahan Pakan'!O$13,IF($B20=8,'Bahan Pakan'!O$14,IF($B20=9,'Bahan Pakan'!O$15,IF($B20=10,'Bahan Pakan'!O$16,IF($B20=11,'Bahan Pakan'!O$17,IF($B20=12,'Bahan Pakan'!O$18,IF($B20=13,'Bahan Pakan'!O$19,IF($B20=14,'Bahan Pakan'!O$20,IF($B20=15,'Bahan Pakan'!O$21,IF($B20=16,'Bahan Pakan'!O$22,IF($B20=17,'Bahan Pakan'!O$23,IF($B20=18,'Bahan Pakan'!O$24,IF($B20=19,'Bahan Pakan'!O$25,IF($B20=20,'Bahan Pakan'!O$26,IF($B20=21,'Bahan Pakan'!O$27,IF($B20=22,'Bahan Pakan'!O$28,IF($B20=23,'Bahan Pakan'!O$29,IF($B20=24,'Bahan Pakan'!O$30,IF($B20=25,'Bahan Pakan'!O$31,IF($B20=26,'Bahan Pakan'!O$32,IF($B20=27,'Bahan Pakan'!O$33,IF($B20=28,'Bahan Pakan'!O$34,IF($B20=29,'Bahan Pakan'!O$35,IF($B20=30,'Bahan Pakan'!O$36,IF($B20=31,'Bahan Pakan'!O$37,IF($B20=32,'Bahan Pakan'!O$38,IF($B20=33,'Bahan Pakan'!O$39,IF($B20=34,'Bahan Pakan'!O$40,IF($B20=35,'Bahan Pakan'!O$41,IF($B20=36,'Bahan Pakan'!O$42,IF($B20=37,'Bahan Pakan'!O$43,IF($B20=38,'Bahan Pakan'!O$44,IF($B20=39,'Bahan Pakan'!O$45,IF($B20=40,'Bahan Pakan'!O$46,IF($B20=41,'Bahan Pakan'!O$47,IF($B20=42,'Bahan Pakan'!O$48,IF($B20=43,'Bahan Pakan'!O$49,IF($B20=44,'Bahan Pakan'!O$50,IF($B20=45,'Bahan Pakan'!O$51,IF($B20=46,'Bahan Pakan'!O$52,IF($B20=47,'Bahan Pakan'!O$53,IF($B20=48,'Bahan Pakan'!O$54,IF($B20=49,'Bahan Pakan'!O$55,IF($B20=50,'Bahan Pakan'!O$56,0)))))))))))))))))))))))))))))))))))))))))))))))))) -> 0 | T20: =IF($B20=1,'Bahan Pakan'!P$7,IF($B20=2,'Bahan Pakan'!P$8,IF($B20=3,'Bahan Pakan'!P$9,IF($B20=4,'Bahan Pakan'!P$10,IF($B20=5,'Bahan Pakan'!P$11,IF($B20=6,'Bahan Pakan'!P$12,IF($B20=7,'Bahan Pakan'!P$13,IF($B20=8,'Bahan Pakan'!P$14,IF($B20=9,'Bahan Pakan'!P$15,IF($B20=10,'Bahan Pakan'!P$16,IF($B20=11,'Bahan Pakan'!P$17,IF($B20=12,'Bahan Pakan'!P$18,IF($B20=13,'Bahan Pakan'!P$19,IF($B20=14,'Bahan Pakan'!P$20,IF($B20=15,'Bahan Pakan'!P$21,IF($B20=16,'Bahan Pakan'!P$22,IF($B20=17,'Bahan Pakan'!P$23,IF($B20=18,'Bahan Pakan'!P$24,IF($B20=19,'Bahan Pakan'!P$25,IF($B20=20,'Bahan Pakan'!P$26,IF($B20=21,'Bahan Pakan'!P$27,IF($B20=22,'Bahan Pakan'!P$28,IF($B20=23,'Bahan Pakan'!P$29,IF($B20=24,'Bahan Pakan'!P$30,IF($B20=25,'Bahan Pakan'!P$31,IF($B20=26,'Bahan Pakan'!P$32,IF($B20=27,'Bahan Pakan'!P$33,IF($B20=28,'Bahan Pakan'!P$34,IF($B20=29,'Bahan Pakan'!P$35,IF($B20=30,'Bahan Pakan'!P$36,IF($B20=31,'Bahan Pakan'!P$37,IF($B20=32,'Bahan Pakan'!P$38,IF($B20=33,'Bahan Pakan'!P$39,IF($B20=34,'Bahan Pakan'!P$40,IF($B20=35,'Bahan Pakan'!P$41,IF($B20=36,'Bahan Pakan'!P$42,IF($B20=37,'Bahan Pakan'!P$43,IF($B20=38,'Bahan Pakan'!P$44,IF($B20=39,'Bahan Pakan'!P$45,IF($B20=40,'Bahan Pakan'!P$46,IF($B20=41,'Bahan Pakan'!P$47,IF($B20=42,'Bahan Pakan'!P$48,IF($B20=43,'Bahan Pakan'!P$49,IF($B20=44,'Bahan Pakan'!P$50,IF($B20=45,'Bahan Pakan'!P$51,IF($B20=46,'Bahan Pakan'!P$52,IF($B20=47,'Bahan Pakan'!P$53,IF($B20=48,'Bahan Pakan'!P$54,IF($B20=49,'Bahan Pakan'!P$55,IF($B20=50,'Bahan Pakan'!P$56,0)))))))))))))))))))))))))))))))))))))))))))))))))) -> 0
